Workbook

Sheet Menu
E26: Empresa: | G26: Empresa ABCDE

Sheet DA
B11: Empresa: | C11: =Menu!G26 -> Empresa ABCDE | G11: Meta Específica por Área
B13: Ano início do planejamento | D13: 2020 | G13: Perspectiva 1 | H13: Perspectiva Financeira | J13: Perspectiva 2 | K13: Perspectiva de Clientes
G14: Direção | H14: Indicador | J14: Direção | K14: Indicador
B15: Planejar para quantos anos? | D15: 3 anos | G15: Aumentar | H15: Receitas | J15: Aumentar | K15: Quantidade de vendas
G16: Aumentar | H16: Lucratividade | J16: Aumentar | K16: Número de clientes
B17: Missão | C17: Contribuir para melhor gestão das empresas. | G17: Diminuir | H17: Despesas
B19: Visão | C19: Ser pioneira em gestão empresarial.
B21: Insira os valores abaixo (um valor por campo)
B22: Ética
B23: Comprometimento
B24: Honestidade | G24: Perspectiva 3 | H24: Perspectiva de Processos Internos | J24: Perspectiva 4 | K24: Perspectiva de Aprendizagem
G25: Direção | H25: Indicador | J25: Direção | K25: Indicador
G26: Aumentar | H26: Capacidade de atendimentos | J26: Aumentar | K26: Know How da equipe
J27: Aumentar | K27: Satisfação interna

Sheet Int
B12: FATORES INTERNOS | C12: ATENDIMENTO | D12: IMPORTÂNCIA | E12: PONTUAÇÃO | F12: ANÁLISE | AB12: FATORES EXTERNOS | AC12: MOMENTO | AD12: IMPORTÂNCIA | AE12: PONTUAÇÃO | AF12: ANÁLISE
A14: =IF(OR(B14="Digite aqui(Produto ou serviço)",B14=""),"",IF(AND(O14=1,P14=1),"Abacaxi",IF(AND(O14=2,P14=1),"Questionamento",IF(AND(O14=2,P14=2),"Estrela","Vaca Leiteira")))) -> Estrela | B14: Relação entre os funcionários | C14: Atende razoavelmente | D14: Muito importante | E14: =IF(OR(C14="",D14=""),"",VLOOKUP(G14,Parametros!$A$4:$C$12,2,0)) -> 5 | F14: =IF(OR(C14="",D14=""),"",VLOOKUP(G14,Parametros!$A$4:$C$12,3,0)) -> FORÇA | G14: =CONCATENATE(C14,"-",D14) -> Atende razoavelmente-Muito importante | O14: =IF(C14="","",IF(C14="Mercado estagnado ou em queda",1,2)) -> 2 | P14: =IF(D14="","",IF(D14="Pouca Participação",1,2)) -> 2 | AA14: =IF(OR(AB14="Digite aqui(Produto ou serviço)",AB14=""),"",IF(AND(AO14=1,AP14=1),"Abacaxi",IF(AND(AO14=2,AP14=1),"Questionamento",IF(AND(AO14=2,AP14=2),"Estrela","Vaca Leiteira")))) -> Estrela | AB14: Situação do Mercado | AC14: Desfavorável | AD14: Muito Importante | AE14: =IF(OR(AC14="",AD14=""),"",VLOOKUP(AG14,Parametros!$F$4:$H$12,2,0)) -> -10 | AF14: =IF(OR(AC14="",AD14=""),"",VLOOKUP(AG14,Parametros!$F$4:$H$12,3,0)) -> AMEAÇA | AG14: =CONCATENATE(AC14,"-",AD14) -> Desfavorável-Muito Importante | AO14: =IF(AC14="","",IF(AC14="Mercado estagnado ou em queda",1,2)) -> 2 | AP14: =IF(AD14="","",IF(AD14="Pouca Participação",1,2)) -> 2
A15: =IF(OR(B15="Digite aqui(Produto ou serviço)",B15=""),"",IF(AND(O15=1,P15=1),"Abacaxi",IF(AND(O15=2,P15=1),"Questionamento",IF(AND(O15=2,P15=2),"Estrela","Vaca Leiteira")))) -> Estrela | B15: Qualificação da equipe | C15: Atende totalmente | D15: Muito Importante | E15: =IF(OR(C15="",D15=""),"",VLOOKUP(G15,Parametros!$A$4:$C$12,2,0)) -> 10 | F15: =IF(OR(C15="",D15=""),"",VLOOKUP(G15,Parametros!$A$4:$C$12,3,0)) -> FORÇA | G15: =CONCATENATE(C15,"-",D15) -> Atende totalmente-Muito Importante | O15: =IF(C15="","",IF(C15="Mercado estagnado ou em queda",1,2)) -> 2 | P15: =IF(D15="","",IF(D15="Pouca Participação",1,2)) -> 2 | AA15: Estrela | AB15: Quantidade de concorrentes | AC15: Favorável | AD15: Importante | AE15: =IF(OR(AC15="",AD15=""),"",VLOOKUP(AG15,Parametros!$F$4:$H$12,2,0)) -> 8 | AF15: =IF(OR(AC15="",AD15=""),"",VLOOKUP(AG15,Parametros!$F$4:$H$12,3,0)) -> OPORTUNIDADE | AG15: Favorável-Importante | AO15: 2 | AP15: 2
E16: =IF(OR(C16="",D16=""),"",VLOOKUP(G16,Parametros!$A$4:$C$12,2,0)) ->  | F16: =IF(OR(C16="",D16=""),"",VLOOKUP(G16,Parametros!$A$4:$C$12,3,0)) ->  | G16: - | AE16: =IF(OR(AC16="",AD16=""),"",VLOOKUP(AG16,Parametros!$F$4:$H$12,2,0)) ->  | AF16: =IF(OR(AC16="",AD16=""),"",VLOOKUP(AG16,Parametros!$F$4:$H$12,3,0)) ->  | AG16: -
A17: =IF(OR(B17="Digite aqui(Produto ou serviço)",B17=""),"",IF(AND(O17=1,P17=1),"Abacaxi",IF(AND(O17=2,P17=1),"Questionamento",IF(AND(O17=2,P17=2),"Estrela","Vaca Leiteira")))) ->  | E17: =IF(OR(C17="",D17=""),"",VLOOKUP(G17,Parametros!$A$4:$C$12,2,0)) ->  | F17: =IF(OR(C17="",D17=""),"",VLOOKUP(G17,Parametros!$A$4:$C$12,3,0)) ->  | G17: - | AE17: =IF(OR(AC17="",AD17=""),"",VLOOKUP(AG17,Parametros!$F$4:$H$12,2,0)) ->  | AF17: =IF(OR(AC17="",AD17=""),"",VLOOKUP(AG17,Parametros!$F$4:$H$12,3,0)) ->  | AG17: -
E18: =IF(OR(C18="",D18=""),"",VLOOKUP(G18,Parametros!$A$4:$C$12,2,0)) ->  | F18: =IF(OR(C18="",D18=""),"",VLOOKUP(G18,Parametros!$A$4:$C$12,3,0)) ->  | G18: - | AE18: =IF(OR(AC18="",AD18=""),"",VLOOKUP(AG18,Parametros!$F$4:$H$12,2,0)) ->  | AF18: =IF(OR(AC18="",AD18=""),"",VLOOKUP(AG18,Parametros!$F$4:$H$12,3,0)) ->  | AG18: -
E19: =IF(OR(C19="",D19=""),"",VLOOKUP(G19,Parametros!$A$4:$C$12,2,0)) ->  | F19: =IF(OR(C19="",D19=""),"",VLOOKUP(G19,Parametros!$A$4:$C$12,3,0)) ->  | G19: - | AE19: =IF(OR(AC19="",AD19=""),"",VLOOKUP(AG19,Parametros!$F$4:$H$12,2,0)) ->  | AF19: =IF(OR(AC19="",AD19=""),"",VLOOKUP(AG19,Parametros!$F$4:$H$12,3,0)) ->  | AG19: -
E20: =IF(OR(C20="",D20=""),"",VLOOKUP(G20,Parametros!$A$4:$C$12,2,0)) ->  | F20: =IF(OR(C20="",D20=""),"",VLOOKUP(G20,Parametros!$A$4:$C$12,3,0)) ->  | G20: - | AE20: =IF(OR(AC20="",AD20=""),"",VLOOKUP(AG20,Parametros!$F$4:$H$12,2,0)) ->  | AF20: =IF(OR(AC20="",AD20=""),"",VLOOKUP(AG20,Parametros!$F$4:$H$12,3,0)) ->  | AG20: -
E21: =IF(OR(C21="",D21=""),"",VLOOKUP(G21,Parametros!$A$4:$C$12,2,0)) ->  | F21: =IF(OR(C21="",D21=""),"",VLOOKUP(G21,Parametros!$A$4:$C$12,3,0)) ->  | G21: - | AE21: =IF(OR(AC21="",AD21=""),"",VLOOKUP(AG21,Parametros!$F$4:$H$12,2,0)) ->  | AF21: =IF(OR(AC21="",AD21=""),"",VLOOKUP(AG21,Parametros!$F$4:$H$12,3,0)) ->  | AG21: -
E22: =IF(OR(C22="",D22=""),"",VLOOKUP(G22,Parametros!$A$4:$C$12,2,0)) ->  | F22: =IF(OR(C22="",D22=""),"",VLOOKUP(G22,Parametros!$A$4:$C$12,3,0)) ->  | G22: - | AE22: =IF(OR(AC22="",AD22=""),"",VLOOKUP(AG22,Parametros!$F$4:$H$12,2,0)) ->  | AF22: =IF(OR(AC22="",AD22=""),"",VLOOKUP(AG22,Parametros!$F$4:$H$12,3,0)) ->  | AG22: -
E23: =IF(OR(C23="",D23=""),"",VLOOKUP(G23,Parametros!$A$4:$C$12,2,0)) ->  | F23: =IF(OR(C23="",D23=""),"",VLOOKUP(G23,Parametros!$A$4:$C$12,3,0)) ->  | G23: - | AE23: =IF(OR(AC23="",AD23=""),"",VLOOKUP(AG23,Parametros!$F$4:$H$12,2,0)) ->  | AF23: =IF(OR(AC23="",AD23=""),"",VLOOKUP(AG23,Parametros!$F$4:$H$12,3,0)) ->  | AG23: -
E24: =IF(OR(C24="",D24=""),"",VLOOKUP(G24,Parametros!$A$4:$C$12,2,0)) ->  | F24: =IF(OR(C24="",D24=""),"",VLOOKUP(G24,Parametros!$A$4:$C$12,3,0)) ->  | G24: - | AE24: =IF(OR(AC24="",AD24=""),"",VLOOKUP(AG24,Parametros!$F$4:$H$12,2,0)) ->  | AF24: =IF(OR(AC24="",AD24=""),"",VLOOKUP(AG24,Parametros!$F$4:$H$12,3,0)) ->  | AG24: -
E25: =IF(OR(C25="",D25=""),"",VLOOKUP(G25,Parametros!$A$4:$C$12,2,0)) ->  | F25: =IF(OR(C25="",D25=""),"",VLOOKUP(G25,Parametros!$A$4:$C$12,3,0)) ->  | G25: - | AE25: =IF(OR(AC25="",AD25=""),"",VLOOKUP(AG25,Parametros!$F$4:$H$12,2,0)) ->  | AF25: =IF(OR(AC25="",AD25=""),"",VLOOKUP(AG25,Parametros!$F$4:$H$12,3,0)) ->  | AG25: -
E26: =IF(OR(C26="",D26=""),"",VLOOKUP(G26,Parametros!$A$4:$C$12,2,0)) ->  | F26: =IF(OR(C26="",D26=""),"",VLOOKUP(G26,Parametros!$A$4:$C$12,3,0)) ->  | G26: - | AE26: =IF(OR(AC26="",AD26=""),"",VLOOKUP(AG26,Parametros!$F$4:$H$12,2,0)) ->  | AF26: =IF(OR(AC26="",AD26=""),"",VLOOKUP(AG26,Parametros!$F$4:$H$12,3,0)) ->  | AG26: -
E27: =IF(OR(C27="",D27=""),"",VLOOKUP(G27,Parametros!$A$4:$C$12,2,0)) ->  | F27: =IF(OR(C27="",D27=""),"",VLOOKUP(G27,Parametros!$A$4:$C$12,3,0)) ->  | G27: - | AE27: =IF(OR(AC27="",AD27=""),"",VLOOKUP(AG27,Parametros!$F$4:$H$12,2,0)) ->  | AF27: =IF(OR(AC27="",AD27=""),"",VLOOKUP(AG27,Parametros!$F$4:$H$12,3,0)) ->  | AG27: -
E28: =IF(OR(C28="",D28=""),"",VLOOKUP(G28,Parametros!$A$4:$C$12,2,0)) ->  | F28: =IF(OR(C28="",D28=""),"",VLOOKUP(G28,Parametros!$A$4:$C$12,3,0)) ->  | G28: - | AE28: =IF(OR(AC28="",AD28=""),"",VLOOKUP(AG28,Parametros!$F$4:$H$12,2,0)) ->  | AF28: =IF(OR(AC28="",AD28=""),"",VLOOKUP(AG28,Parametros!$F$4:$H$12,3,0)) ->  | AG28: -
E29: =IF(OR(C29="",D29=""),"",VLOOKUP(G29,Parametros!$A$4:$C$12,2,0)) ->  | F29: =IF(OR(C29="",D29=""),"",VLOOKUP(G29,Parametros!$A$4:$C$12,3,0)) ->  | G29: - | AE29: =IF(OR(AC29="",AD29=""),"",VLOOKUP(AG29,Parametros!$F$4:$H$12,2,0)) ->  | AF29: =IF(OR(AC29="",AD29=""),"",VLOOKUP(AG29,Parametros!$F$4:$H$12,3,0)) ->  | AG29: -
E30: =IF(OR(C30="",D30=""),"",VLOOKUP(G30,Parametros!$A$4:$C$12,2,0)) ->  | F30: =IF(OR(C30="",D30=""),"",VLOOKUP(G30,Parametros!$A$4:$C$12,3,0)) ->  | G30: - | AE30: =IF(OR(AC30="",AD30=""),"",VLOOKUP(AG30,Parametros!$F$4:$H$12,2,0)) ->  | AF30: =IF(OR(AC30="",AD30=""),"",VLOOKUP(AG30,Parametros!$F$4:$H$12,3,0)) ->  | AG30: -
E31: =IF(OR(C31="",D31=""),"",VLOOKUP(G31,Parametros!$A$4:$C$12,2,0)) ->  | F31: =IF(OR(C31="",D31=""),"",VLOOKUP(G31,Parametros!$A$4:$C$12,3,0)) ->  | G31: - | AE31: =IF(OR(AC31="",AD31=""),"",VLOOKUP(AG31,Parametros!$F$4:$H$12,2,0)) ->  | AF31: =IF(OR(AC31="",AD31=""),"",VLOOKUP(AG31,Parametros!$F$4:$H$12,3,0)) ->  | AG31: -
E32: =IF(OR(C32="",D32=""),"",VLOOKUP(G32,Parametros!$A$4:$C$12,2,0)) ->  | F32: =IF(OR(C32="",D32=""),"",VLOOKUP(G32,Parametros!$A$4:$C$12,3,0)) ->  | G32: - | AE32: =IF(OR(AC32="",AD32=""),"",VLOOKUP(AG32,Parametros!$F$4:$H$12,2,0)) ->  | AF32: =IF(OR(AC32="",AD32=""),"",VLOOKUP(AG32,Parametros!$F$4:$H$12,3,0)) ->  | AG32: -
E33: =IF(OR(C33="",D33=""),"",VLOOKUP(G33,Parametros!$A$4:$C$12,2,0)) ->  | F33: =IF(OR(C33="",D33=""),"",VLOOKUP(G33,Parametros!$A$4:$C$12,3,0)) ->  | G33: - | AE33: =IF(OR(AC33="",AD33=""),"",VLOOKUP(AG33,Parametros!$F$4:$H$12,2,0)) ->  | AF33: =IF(OR(AC33="",AD33=""),"",VLOOKUP(AG33,Parametros!$F$4:$H$12,3,0)) ->  | AG33: -
AA46: =IF(OR(AB46="Digite aqui(Produto ou serviço)",AB46=""),"",IF(AND(AO46=1,AP46=1),"Abacaxi",IF(AND(AO46=2,AP46=1),"Questionamento",IF(AND(AO46=2,AP46=2),"Estrela","Vaca Leiteira")))) ->  | AO46: =IF(AC46="","",IF(AC46="Mercado estagnado ou em queda",1,2)) ->  | AP46: =IF(AD46="","",IF(AD46="Pouca Participação",1,2)) -> 
AA78: =IF(OR(AB78="Digite aqui(Produto ou serviço)",AB78=""),"",IF(AND(AO78=1,AP78=1),"Abacaxi",IF(AND(AO78=2,AP78=1),"Questionamento",IF(AND(AO78=2,AP78=2),"Estrela","Vaca Leiteira")))) ->  | AO78: =IF(AC78="","",IF(AC78="Mercado estagnado ou em queda",1,2)) ->  | AP78: =IF(AD78="","",IF(AD78="Pouca Participação",1,2)) -> 
A79: =IF(OR(B79="Digite aqui(Produto ou serviço)",B79=""),"",IF(AND(O79=1,P79=1),"Abacaxi",IF(AND(O79=2,P79=1),"Questionamento",IF(AND(O79=2,P79=2),"Estrela","Vaca Leiteira")))) ->  | O79: =IF(C79="","",IF(C79="Mercado estagnado ou em queda",1,2)) ->  | P79: =IF(D79="","",IF(D79="Pouca Participação",1,2)) -> 
AA110: =IF(OR(AB110="Digite aqui(Produto ou serviço)",AB110=""),"",IF(AND(AO110=1,AP110=1),"Abacaxi",IF(AND(AO110=2,AP110=1),"Questionamento",IF(AND(AO110=2,AP110=2),"Estrela","Vaca Leiteira")))) ->  | AO110: =IF(AC110="","",IF(AC110="Mercado estagnado ou em queda",1,2)) ->  | AP110: =IF(AD110="","",IF(AD110="Pouca Participação",1,2)) -> 
A113: =IF(OR(B113="Digite aqui(Produto ou serviço)",B113=""),"",IF(AND(O113=1,P113=1),"Abacaxi",IF(AND(O113=2,P113=1),"Questionamento",IF(AND(O113=2,P113=2),"Estrela","Vaca Leiteira")))) -> 
AO142: =IF(AC142="","",IF(AC142="Mercado estagnado ou em queda",1,2)) ->  | AP142: =IF(AD142="","",IF(AD142="Pouca Participação",1,2)) -> 
O143: =IF(C143="","",IF(C143="Mercado estagnado ou em queda",1,2)) ->  | P143: =IF(D143="","",IF(D143="Pouca Participação",1,2)) -> 
AO174: =IF(AC174="","",IF(AC174="Mercado estagnado ou em queda",1,2)) ->  | AP174: =IF(AD174="","",IF(AD174="Pouca Participação",1,2)) -> 

Sheet EST
B12: =DA!D13 -> 2020 | C12: Ano 1 | R12: =B12+1 -> 2021 | S12: Ano 2 | AH12: =R12+1 -> 2022 | AI12: Ano 3 | AX12: =AH12+1 -> 2023 | AY12: Ano 4 | BN12: =AX12+1 -> 2024 | BO12: Ano 5
B13: Meta | C13: R$ | D13: Jan | E13: Fev | F13: Mar | G13: Abr | H13: Mai | I13: Jun | J13: Jul | K13: Ago | L13: Set | M13: Out | N13: Nov | O13: Dez | P13: Parcial | Q13: Total | T13: Jan | U13: Fev | V13: Mar | W13: Abr | X13: Mai | Y13: Jun | Z13: Jul | AA13: Ago | AB13: Set | AC13: Out | AD13: Nov | AE13: Dez | AF13: Parcial | AG13: Total | AJ13: Jan | AK13: Fev | AL13: Mar | AM13: Abr | AN13: Mai | AO13: Jun | AP13: Jul | AQ13: Ago | AR13: Set | AS13: Out | AT13: Nov | AU13: Dez | AV13: Parcial | AW13: Total | AZ13: Jan | BA13: Fev | BB13: Mar | BC13: Abr | BD13: Mai | BE13: Jun | BF13: Jul | BG13: Ago | BH13: Set | BI13: Out | BJ13: Nov | BK13: Dez | BL13: Parcial | BM13: Total | BP13: Jan | BQ13: Fev | BR13: Mar | BS13: Abr | BT13: Mai | BU13: Jun | BV13: Jul | BW13: Ago | BX13: Set | BY13: Out | BZ13: Nov | CA13: Dez | CB13: Parcial | CC13: Total
B14: Aumentar: Receitas | C14: Planejado | D14: 100 | E14: 200 | F14: 300 | P14: =SUMIF(D39:O39,"=1",D14:O14) -> 600 | Q14: =SUM(D14:O14) -> 600 | R14: 7 | S14: Planejado | T14: 50 | AF14: =SUMIF(T39:AE39,"=1",T14:AE14) -> 50 | AG14: =SUM(T14:AE14) -> 50 | AI14: Planejado | AV14: =SUMIF(AJ39:AU39,"=1",AJ14:AU14) -> 0 | AW14: =SUM(AJ14:AU14) -> 0 | AY14: Planejado | BL14: =SUMIF(AZ39:BK39,"=1",AZ14:BK14) -> 0 | BM14: =SUM(AZ14:BK14) -> 0 | BO14: Planejado | CB14: =SUMIF(BP39:CA39,"=1",BP14:CA14) -> 0 | CC14: =SUM(BP14:CA14) -> 0
C15: Realizado | D15: 50 | E15: 100 | F15: 150 | P15: =SUMIF(D40:O40,"=1",D15:O15) -> 300 | Q15: =SUM(D15:O15) -> 300 | R15: 8 | S15: Realizado | AF15: =SUMIF(T40:AE40,"=1",T15:AE15) -> 0 | AG15: =SUM(T15:AE15) -> 0 | AI15: Realizado | AV15: =SUMIF(AJ40:AU40,"=1",AJ15:AU15) -> 0 | AW15: =SUM(AJ15:AU15) -> 0 | AY15: Realizado | BL15: =SUMIF(AZ40:BK40,"=1",AZ15:BK15) -> 0 | BM15: =SUM(AZ15:BK15) -> 0 | BO15: Realizado | CB15: =SUMIF(BP40:CA40,"=1",BP15:CA15) -> 0 | CC15: =SUM(BP15:CA15) -> 0
C16: Percentual | D16: =IF(OR(ISERROR(D15/D14-1),D15=""),"",D15/D14-1) -> -0.5 | E16: =IF(OR(ISERROR(E15/E14-1),E15=""),"",E15/E14-1) -> -0.5 | F16: -0.5 | K16: =IF(OR(ISERROR(K15/K14-1),K15=""),"",K15/K14-1) ->  | O16: =IF(OR(ISERROR(O15/O14-1),O15=""),"",O15/O14-1) ->  | P16: =IF(OR(ISERROR(P15/P14-1),P15=""),"",P15/P14-1) -> -0.5 | Q16: =IF(OR(ISERROR(Q15/Q14-1),Q15=""),"",Q15/Q14-1) -> -0.5 | S16: Percentual | T16: =IF(OR(ISERROR(T15/T14-1),T15=""),"",T15/T14-1) ->  | AF16: -1 | AG16: -1 | AI16: Percentual | AJ16: =IF(OR(ISERROR(AJ15/AJ14-1),AJ15=""),"",AJ15/AJ14-1) ->  | AY16: Percentual | AZ16: =IF(OR(ISERROR(AZ15/AZ14-1),AZ15=""),"",AZ15/AZ14-1) ->  | BO16: Percentual | BP16: =IF(OR(ISERROR(BP15/BP14-1),BP15=""),"",BP15/BP14-1) -> 
D17: =COLUMN(D17) -> 4 | O17: =COLUMN(O17) -> 15 | T17: =COLUMN(T17) -> 20 | AE17: =COLUMN(AE17) -> 31 | AJ17: =COLUMN(AJ17) -> 36 | AU17: =COLUMN(AU17) -> 47 | AZ17: =COLUMN(AZ17) -> 52 | BK17: =COLUMN(BK17) -> 63 | BP17: =COLUMN(BP17) -> 68 | CA17: =COLUMN(CA17) -> 79
B18: Meta | C18: Número | D18: Jan | E18: Fev | F18: Mar | G18: Abr | H18: Mai | I18: Jun | J18: Jul | K18: Ago | L18: Set | M18: Out | N18: Nov | O18: Dez | P18: Parcial | Q18: Total | T18: Jan | U18: Fev | V18: Mar | W18: Abr | X18: Mai | Y18: Jun | Z18: Jul | AA18: Ago | AB18: Set | AC18: Out | AD18: Nov | AE18: Dez | AF18: Parcial | AG18: Total | AJ18: Jan | AK18: Fev | AL18: Mar | AM18: Abr | AN18: Mai | AO18: Jun | AP18: Jul | AQ18: Ago | AR18: Set | AS18: Out | AT18: Nov | AU18: Dez | AV18: Parcial | AW18: Total | AZ18: Jan | BA18: Fev | BB18: Mar | BC18: Abr | BD18: Mai | BE18: Jun | BF18: Jul | BG18: Ago | BH18: Set | BI18: Out | BJ18: Nov | BK18: Dez | BL18: Parcial | BM18: Total | BP18: Jan | BQ18: Fev | BR18: Mar | BS18: Abr | BT18: Mai | BU18: Jun | BV18: Jul | BW18: Ago | BX18: Set | BY18: Out | BZ18: Nov | CA18: Dez | CB18: Parcial | CC18: Total
B19: Aumentar: Lucratividade | C19: Planejado | D19: 100 | E19: 200 | F19: 300 | G19: 500 | O19: 2 | P19: =SUMIF(D41:O41,"=1",D19:O19) -> 1102 | Q19: =SUM(D19:O19) -> 1102 | R19: 12 | S19: Planejado | AF19: =SUMIF(T41:AE41,"=1",T19:AE19) -> 0 | AG19: =SUM(T19:AE19) -> 0 | AI19: Planejado | AV19: =SUMIF(AJ41:AU41,"=1",AJ19:AU19) -> 0 | AW19: =SUM(AJ19:AU19) -> 0 | AY19: Planejado | BL19: =SUMIF(AZ41:BK41,"=1",AZ19:BK19) -> 0 | BM19: =SUM(AZ19:BK19) -> 0 | BO19: Planejado | CB19: =SUMIF(BP41:CA41,"=1",BP19:CA19) -> 0 | CC19: =SUM(BP19:CA19) -> 0
C20: Realizado | D20: 150 | E20: 250 | F20: 350 | G20: 450 | O20: 1 | P20: =SUMIF(D42:O42,"=1",D20:O20) -> 1201 | Q20: =SUM(D20:O20) -> 1201 | R20: 13 | S20: Realizado | AF20: =SUMIF(T42:AE42,"=1",T20:AE20) -> 0 | AG20: =SUM(T20:AE20) -> 0 | AI20: Realizado | AV20: =SUMIF(AJ42:AU42,"=1",AJ20:AU20) -> 0 | AW20: =SUM(AJ20:AU20) -> 0 | AY20: Realizado | BL20: =SUMIF(AZ42:BK42,"=1",AZ20:BK20) -> 0 | BM20: =SUM(AZ20:BK20) -> 0 | BO20: Realizado | CB20: =SUMIF(BP42:CA42,"=1",BP20:CA20) -> 0 | CC20: =SUM(BP20:CA20) -> 0
C21: Percentual | D21: =IF(OR(ISERROR(D20/D19-1),D20=""),"",D20/D19-1) -> 0.5 | E21: 0.25 | F21: 0.1666666667 | G21: -0.1 | O21: -0.5 | P21: 0.08983666062 | Q21: 0.08983666062 | S21: Percentual | T21: =IF(OR(ISERROR(T20/T19-1),T20=""),"",T20/T19-1) ->  | AI21: Percentual | AJ21: =IF(OR(ISERROR(AJ20/AJ19-1),AJ20=""),"",AJ20/AJ19-1) ->  | AY21: Percentual | AZ21: =IF(OR(ISERROR(AZ20/AZ19-1),AZ20=""),"",AZ20/AZ19-1) ->  | BO21: Percentual | BP21: =IF(OR(ISERROR(BP20/BP19-1),BP20=""),"",BP20/BP19-1) -> 
B23: Meta | C23: Porcentagem | D23: Jan | E23: Fev | F23: Mar | G23: Abr | H23: Mai | I23: Jun | J23: Jul | K23: Ago | L23: Set | M23: Out | N23: Nov | O23: Dez | P23: Parcial | Q23: Total | T23: Jan | U23: Fev | V23: Mar | W23: Abr | X23: Mai | Y23: Jun | Z23: Jul | AA23: Ago | AB23: Set | AC23: Out | AD23: Nov | AE23: Dez | AF23: Parcial | AG23: Total | AJ23: Jan | AK23: Fev | AL23: Mar | AM23: Abr | AN23: Mai | AO23: Jun | AP23: Jul | AQ23: Ago | AR23: Set | AS23: Out | AT23: Nov | AU23: Dez | AV23: Parcial | AW23: Total | AZ23: Jan | BA23: Fev | BB23: Mar | BC23: Abr | BD23: Mai | BE23: Jun | BF23: Jul | BG23: Ago | BH23: Set | BI23: Out | BJ23: Nov | BK23: Dez | BL23: Parcial | BM23: Total | BP23: Jan | BQ23: Fev | BR23: Mar | BS23: Abr | BT23: Mai | BU23: Jun | BV23: Jul | BW23: Ago | BX23: Set | BY23: Out | BZ23: Nov | CA23: Dez | CB23: Parcial | CC23: Total
B24: Diminuir: Despesas | C24: Planejado | D24: 0.1 | E24: 0.2 | P24: =SUMIF(D43:O43,"=1",D24:O24) -> 0.3 | Q24: =SUM(D24:O24) -> 0.3 | R24: 17 | S24: Planejado | AF24: =SUMIF(T43:AE43,"=1",T24:AE24) -> 0 | AG24: =SUM(T24:AE24) -> 0 | AI24: Planejado | AV24: =SUMIF(AJ43:AU43,"=1",AJ24:AU24) -> 0 | AW24: =SUM(AJ24:AU24) -> 0 | AY24: Planejado | BL24: =SUMIF(AZ43:BK43,"=1",AZ24:BK24) -> 0 | BM24: =SUM(AZ24:BK24) -> 0 | BO24: Planejado | CB24: =SUMIF(BP43:CA43,"=1",BP24:CA24) -> 0 | CC24: =SUM(BP24:CA24) -> 0
C25: Realizado | D25: 0.1 | E25: 0.2 | P25: =SUMIF(D44:O44,"=1",D25:O25) -> 0.3 | Q25: =SUM(D25:O25) -> 0.3 | R25: 18 | S25: Realizado | AF25: =SUMIF(T44:AE44,"=1",T25:AE25) -> 0 | AG25: =SUM(T25:AE25) -> 0 | AI25: Realizado | AV25: =SUMIF(AJ44:AU44,"=1",AJ25:AU25) -> 0 | AW25: =SUM(AJ25:AU25) -> 0 | AY25: Realizado | BL25: =SUMIF(AZ44:BK44,"=1",AZ25:BK25) -> 0 | BM25: =SUM(AZ25:BK25) -> 0 | BO25: Realizado | CB25: =SUMIF(BP44:CA44,"=1",BP25:CA25) -> 0 | CC25: =SUM(BP25:CA25) -> 0
A26: =COUNTIF(B24,"Diminuir"&"*") -> 1 | C26: Percentual | D26: =IF(OR(ISERROR(D25/D24-1),D25=""),"",D25/D24-1) -> 0 | E26: 0 | P26: 0 | Q26: 0 | S26: Percentual | T26: =IF(OR(ISERROR(T25/T24-1),T25=""),"",T25/T24-1) ->  | AI26: Percentual | AJ26: =IF(OR(ISERROR(AJ25/AJ24-1),AJ25=""),"",AJ25/AJ24-1) ->  | AY26: Percentual | AZ26: =IF(OR(ISERROR(AZ25/AZ24-1),AZ25=""),"",AZ25/AZ24-1) ->  | BO26: Percentual | BP26: =IF(OR(ISERROR(BP25/BP24-1),BP25=""),"",BP25/BP24-1) -> 
B28: Meta | C28: Porcentagem | D28: Jan | E28: Fev | F28: Mar | G28: Abr | H28: Mai | I28: Jun | J28: Jul | K28: Ago | L28: Set | M28: Out | N28: Nov | O28: Dez | P28: Parcial | Q28: Total | T28: Jan | U28: Fev | V28: Mar | W28: Abr | X28: Mai | Y28: Jun | Z28: Jul | AA28: Ago | AB28: Set | AC28: Out | AD28: Nov | AE28: Dez | AF28: Parcial | AG28: Total | AJ28: Jan | AK28: Fev | AL28: Mar | AM28: Abr | AN28: Mai | AO28: Jun | AP28: Jul | AQ28: Ago | AR28: Set | AS28: Out | AT28: Nov | AU28: Dez | AV28: Parcial | AW28: Total | AZ28: Jan | BA28: Fev | BB28: Mar | BC28: Abr | BD28: Mai | BE28: Jun | BF28: Jul | BG28: Ago | BH28: Set | BI28: Out | BJ28: Nov | BK28: Dez | BL28: Parcial | BM28: Total | BP28: Jan | BQ28: Fev | BR28: Mar | BS28: Abr | BT28: Mai | BU28: Jun | BV28: Jul | BW28: Ago | BX28: Set | BY28: Out | BZ28: Nov | CA28: Dez | CB28: Parcial | CC28: Total
C29: Planejado | P29: =SUMIF(D45:O45,"=1",D29:O29) -> 0 | Q29: =SUM(D29:O29) -> 0 | R29: 17 | S29: Planejado | AF29: =SUMIF(T45:AE45,"=1",T29:AE29) -> 0 | AG29: =SUM(T29:AE29) -> 0 | AI29: Planejado | AV29: =SUMIF(AJ45:AU45,"=1",AJ29:AU29) -> 0 | AW29: =SUM(AJ29:AU29) -> 0 | AY29: Planejado | BL29: =SUMIF(AZ45:BK45,"=1",AZ29:BK29) -> 0 | BM29: =SUM(AZ29:BK29) -> 0 | BO29: Planejado | CB29: =SUMIF(BP45:CA45,"=1",BP29:CA29) -> 0 | CC29: =SUM(BP29:CA29) -> 0
C30: Realizado | P30: =SUMIF(D46:O46,"=1",D30:O30) -> 0 | Q30: =SUM(D30:O30) -> 0 | R30: 18 | S30: Realizado | AF30: =SUMIF(T46:AE46,"=1",T30:AE30) -> 0 | AG30: =SUM(T30:AE30) -> 0 | AI30: Realizado | AV30: =SUMIF(AJ46:AU46,"=1",AJ30:AU30) -> 0 | AW30: =SUM(AJ30:AU30) -> 0 | AY30: Realizado | BL30: =SUMIF(AZ46:BK46,"=1",AZ30:BK30) -> 0 | BM30: =SUM(AZ30:BK30) -> 0 | BO30: Realizado | CB30: =SUMIF(BP46:CA46,"=1",BP30:CA30) -> 0 | CC30: =SUM(BP30:CA30) -> 0
A31: =COUNTIF(B29,"Diminuir"&"*") -> 0 | C31: Percentual | D31: =IF(OR(ISERROR(D30/D29-1),D30=""),"",D30/D29-1) ->  | S31: Percentual | T31: =IF(OR(ISERROR(T30/T29-1),T30=""),"",T30/T29-1) ->  | AI31: Percentual | AJ31: =IF(OR(ISERROR(AJ30/AJ29-1),AJ30=""),"",AJ30/AJ29-1) ->  | AY31: Percentual | AZ31: =IF(OR(ISERROR(AZ30/AZ29-1),AZ30=""),"",AZ30/AZ29-1) ->  | BO31: Percentual | BP31: =IF(OR(ISERROR(BP30/BP29-1),BP30=""),"",BP30/BP29-1) -> 
B33: Meta | C33: Porcentagem | D33: Jan | E33: Fev | F33: Mar | G33: Abr | H33: Mai | I33: Jun | J33: Jul | K33: Ago | L33: Set | M33: Out | N33: Nov | O33: Dez | P33: Parcial | Q33: Total | T33: Jan | U33: Fev | V33: Mar | W33: Abr | X33: Mai | Y33: Jun | Z33: Jul | AA33: Ago | AB33: Set | AC33: Out | AD33: Nov | AE33: Dez | AF33: Parcial | AG33: Total | AJ33: Jan | AK33: Fev | AL33: Mar | AM33: Abr | AN33: Mai | AO33: Jun | AP33: Jul | AQ33: Ago | AR33: Set | AS33: Out | AT33: Nov | AU33: Dez | AV33: Parcial | AW33: Total | AZ33: Jan | BA33: Fev | BB33: Mar | BC33: Abr | BD33: Mai | BE33: Jun | BF33: Jul | BG33: Ago | BH33: Set | BI33: Out | BJ33: Nov | BK33: Dez | BL33: Parcial | BM33: Total | BP33: Jan | BQ33: Fev | BR33: Mar | BS33: Abr | BT33: Mai | BU33: Jun | BV33: Jul | BW33: Ago | BX33: Set | BY33: Out | BZ33: Nov | CA33: Dez | CB33: Parcial | CC33: Total
C34: Planejado | P34: =SUMIF(D47:O47,"=1",D34:O34) -> 0 | Q34: =SUM(D34:O34) -> 0 | R34: 17 | S34: Planejado | AF34: =SUMIF(T47:AE47,"=1",T34:AE34) -> 0 | AG34: =SUM(T34:AE34) -> 0 | AI34: Planejado | AV34: =SUMIF(AJ47:AU47,"=1",AJ34:AU34) -> 0 | AW34: =SUM(AJ34:AU34) -> 0 | AY34: Planejado | BL34: =SUMIF(AZ47:BK47,"=1",AZ34:BK34) -> 0 | BM34: =SUM(AZ34:BK34) -> 0 | BO34: Planejado | CB34: =SUMIF(BP47:CA47,"=1",BP34:CA34) -> 0 | CC34: =SUM(BP34:CA34) -> 0
C35: Realizado | P35: =SUMIF(D48:O48,"=1",D35:O35) -> 0 | Q35: =SUM(D35:O35) -> 0 | R35: 18 | S35: Realizado | AF35: =SUMIF(T48:AE48,"=1",T35:AE35) -> 0 | AG35: =SUM(T35:AE35) -> 0 | AI35: Realizado | AV35: =SUMIF(AJ48:AU48,"=1",AJ35:AU35) -> 0 | AW35: =SUM(AJ35:AU35) -> 0 | AY35: Realizado | BL35: =SUMIF(AZ48:BK48,"=1",AZ35:BK35) -> 0 | BM35: =SUM(AZ35:BK35) -> 0 | BO35: Realizado | CB35: =SUMIF(BP48:CA48,"=1",BP35:CA35) -> 0 | CC35: =SUM(BP35:CA35) -> 0
A36: =COUNTIF(B34,"Diminuir"&"*") -> 0 | C36: Percentual | D36: =IF(OR(ISERROR(D35/D34-1),D35=""),"",D35/D34-1) ->  | S36: Percentual | T36: =IF(OR(ISERROR(T35/T34-1),T35=""),"",T35/T34-1) ->  | AI36: Percentual | AJ36: =IF(OR(ISERROR(AJ35/AJ34-1),AJ35=""),"",AJ35/AJ34-1) ->  | AY36: Percentual | AZ36: =IF(OR(ISERROR(AZ35/AZ34-1),AZ35=""),"",AZ35/AZ34-1) ->  | BO36: Percentual | BP36: =IF(OR(ISERROR(BP35/BP34-1),BP35=""),"",BP35/BP34-1) -> 
D39: =IF(D14="","",1) -> 1 | E39: 1 | F39: 1 | H39: =IF(H14="","",1) ->  | I39: =IF(I14="","",1) ->  | T39: =IF(T14="","",1) -> 1 | X39: =IF(X14="","",1) ->  | Y39: =IF(Y14="","",1) ->  | AJ39: =IF(AJ14="","",1) ->  | AN39: =IF(AN14="","",1) ->  | AO39: =IF(AO14="","",1) ->  | AZ39: =IF(AZ14="","",1) ->  | BD39: =IF(BD14="","",1) ->  | BE39: =IF(BE14="","",1) ->  | BP39: =IF(BP14="","",1) ->  | BT39: =IF(BT14="","",1) ->  | BU39: =IF(BU14="","",1) -> 
D40: =IF(D15="","",1) -> 1 | E40: 1 | F40: 1 | H40: =IF(H15="","",1) ->  | I40: =IF(I15="","",1) ->  | T40: =IF(T15="","",1) ->  | X40: =IF(X15="","",1) ->  | Y40: =IF(Y15="","",1) ->  | AJ40: =IF(AJ15="","",1) ->  | AN40: =IF(AN15="","",1) ->  | AO40: =IF(AO15="","",1) ->  | AZ40: =IF(AZ15="","",1) ->  | BD40: =IF(BD15="","",1) ->  | BE40: =IF(BE15="","",1) ->  | BP40: =IF(BP15="","",1) ->  | BT40: =IF(BT15="","",1) ->  | BU40: =IF(BU15="","",1) -> 
D41: =IF(D19="","",1) -> 1 | E41: 1 | F41: 1 | G41: 1 | H41: =IF(H19="","",1) ->  | I41: =IF(I19="","",1) ->  | O41: 1 | T41: =IF(T19="","",1) ->  | X41: =IF(X19="","",1) ->  | Y41: =IF(Y19="","",1) ->  | AJ41: =IF(AJ19="","",1) ->  | AN41: =IF(AN19="","",1) ->  | AO41: =IF(AO19="","",1) ->  | AZ41: =IF(AZ19="","",1) ->  | BD41: =IF(BD19="","",1) ->  | BE41: =IF(BE19="","",1) ->  | BP41: =IF(BP19="","",1) ->  | BT41: =IF(BT19="","",1) ->  | BU41: =IF(BU19="","",1) -> 
D42: =IF(D20="","",1) -> 1 | E42: 1 | F42: 1 | G42: 1 | H42: =IF(H20="","",1) ->  | I42: =IF(I20="","",1) ->  | O42: 1 | T42: =IF(T20="","",1) ->  | X42: =IF(X20="","",1) ->  | Y42: =IF(Y20="","",1) ->  | AJ42: =IF(AJ20="","",1) ->  | AN42: =IF(AN20="","",1) ->  | AO42: =IF(AO20="","",1) ->  | AZ42: =IF(AZ20="","",1) ->  | BD42: =IF(BD20="","",1) ->  | BE42: =IF(BE20="","",1) ->  | BP42: =IF(BP20="","",1) ->  | BT42: =IF(BT20="","",1) ->  | BU42: =IF(BU20="","",1) -> 
D43: =IF(D24="","",1) -> 1 | E43: 1 | H43: =IF(H24="","",1) ->  | I43: =IF(I24="","",1) ->  | T43: =IF(T24="","",1) ->  | X43: =IF(X24="","",1) ->  | Y43: =IF(Y24="","",1) ->  | AJ43: =IF(AJ24="","",1) ->  | AN43: =IF(AN24="","",1) ->  | AO43: =IF(AO24="","",1) ->  | AZ43: =IF(AZ24="","",1) ->  | BD43: =IF(BD24="","",1) ->  | BE43: =IF(BE24="","",1) ->  | BP43: =IF(BP24="","",1) ->  | BT43: =IF(BT24="","",1) ->  | BU43: =IF(BU24="","",1) -> 
D44: =IF(D25="","",1) -> 1 | E44: 1 | H44: =IF(H25="","",1) ->  | I44: =IF(I25="","",1) ->  | T44: =IF(T25="","",1) ->  | X44: =IF(X25="","",1) ->  | Y44: =IF(Y25="","",1) ->  | AJ44: =IF(AJ25="","",1) ->  | AN44: =IF(AN25="","",1) ->  | AO44: =IF(AO25="","",1) ->  | AZ44: =IF(AZ25="","",1) ->  | BD44: =IF(BD25="","",1) ->  | BE44: =IF(BE25="","",1) ->  | BP44: =IF(BP25="","",1) ->  | BT44: =IF(BT25="","",1) ->  | BU44: =IF(BU25="","",1) -> 
D45: =IF(D29="","",1) ->  | H45: =IF(H29="","",1) ->  | I45: =IF(I29="","",1) ->  | T45: =IF(T29="","",1) ->  | X45: =IF(X29="","",1) ->  | Y45: =IF(Y29="","",1) ->  | AJ45: =IF(AJ29="","",1) ->  | AN45: =IF(AN29="","",1) ->  | AO45: =IF(AO29="","",1) ->  | AZ45: =IF(AZ29="","",1) ->  | BD45: =IF(BD29="","",1) ->  | BE45: =IF(BE29="","",1) ->  | BP45: =IF(BP29="","",1) ->  | BT45: =IF(BT29="","",1) ->  | BU45: =IF(BU29="","",1) -> 
D46: =IF(D30="","",1) ->  | H46: =IF(H30="","",1) ->  | I46: =IF(I30="","",1) ->  | T46: =IF(T30="","",1) ->  | X46: =IF(X30="","",1) ->  | Y46: =IF(Y30="","",1) ->  | AJ46: =IF(AJ30="","",1) ->  | AN46: =IF(AN30="","",1) ->  | AO46: =IF(AO30="","",1) ->  | AZ46: =IF(AZ30="","",1) ->  | BD46: =IF(BD30="","",1) ->  | BE46: =IF(BE30="","",1) ->  | BP46: =IF(BP30="","",1) ->  | BT46: =IF(BT30="","",1) ->  | BU46: =IF(BU30="","",1) -> 
D47: =IF(D34="","",1) ->  | H47: =IF(H34="","",1) ->  | I47: =IF(I34="","",1) ->  | T47: =IF(T34="","",1) ->  | X47: =IF(X34="","",1) ->  | Y47: =IF(Y34="","",1) ->  | AJ47: =IF(AJ34="","",1) ->  | AN47: =IF(AN34="","",1) ->  | AO47: =IF(AO34="","",1) ->  | AZ47: =IF(AZ34="","",1) ->  | BD47: =IF(BD34="","",1) ->  | BE47: =IF(BE34="","",1) ->  | BP47: =IF(BP34="","",1) ->  | BT47: =IF(BT34="","",1) ->  | BU47: =IF(BU34="","",1) -> 
D48: =IF(D35="","",1) ->  | H48: =IF(H35="","",1) ->  | I48: =IF(I35="","",1) ->  | T48: =IF(T35="","",1) ->  | X48: =IF(X35="","",1) ->  | Y48: =IF(Y35="","",1) ->  | AJ48: =IF(AJ35="","",1) ->  | AN48: =IF(AN35="","",1) ->  | AO48: =IF(AO35="","",1) ->  | AZ48: =IF(AZ35="","",1) ->  | BD48: =IF(BD35="","",1) ->  | BE48: =IF(BE35="","",1) ->  | BP48: =IF(BP35="","",1) ->  | BT48: =IF(BT35="","",1) ->  | BU48: =IF(BU35="","",1) -> 
D55: =IF(OR(D29="",D30=""),"Não","ok") -> Não | E55: Não | F55: Não | G55: ok | H55: ok | I55: ok | J55: ok | K55: Não | L55: Não | M55: Não | N55: Não | O55: Não | T55: Não | U55: Não | V55: Não | W55: Não | X55: Não | Y55: Não | Z55: Não | AA55: Não | AB55: Não | AC55: Não | AD55: Não | AE55: Não | AJ55: Não | AK55: Não | AL55: Não | AM55: Não | AN55: Não | AO55: Não | AP55: Não | AQ55: Não | AR55: Não | AS55: Não | AT55: Não | AU55: Não | AZ55: Não | BA55: Não | BB55: Não | BC55: Não | BD55: Não | BE55: Não | BF55: Não | BG55: Não | BH55: Não | BI55: Não | BJ55: Não | BK55: Não | BP55: Não | BQ55: Não | BR55: Não | BS55: Não | BT55: Não | BU55: Não | BV55: Não | BW55: Não | BX55: Não | BY55: Não | BZ55: Não | CA55: Não
D56: =IF(D55="ok",COLUMN(#REF!),"") ->  | E56: =IF(E55="ok",COLUMN(A77),"") ->  | G56: 4 | H56: 5 | I56: 6 | J56: 7
D57: =IF(OR(D31="",D32=""),"Não","ok") -> Não | E57: =IF(OR(E31="",E32=""),"Não","ok") -> Não | F57: Não | G57: ok | H57: Não | I57: Não | J57: Não | K57: Não | L57: Não | M57: Não | N57: Não | O57: Não | T57: Não | U57: Não | V57: Não | W57: Não | X57: Não | Y57: Não | Z57: Não | AA57: Não | AB57: Não | AC57: Não | AD57: Não | AE57: Não | AJ57: Não | AK57: Não | AL57: Não | AM57: Não | AN57: Não | AO57: Não | AP57: Não | AQ57: Não | AR57: Não | AS57: Não | AT57: Não | AU57: Não | AV57: Não | AW57: Não | AX57: Não | AY57: Não | AZ57: Não | BA57: Não | BB57: Não | BC57: Não | BD57: Não | BE57: Não | BF57: Não | BG57: Não | BH57: Não | BI57: Não | BJ57: Não | BK57: Não | BP57: Não | BQ57: Não | BR57: Não | BS57: Não | BT57: Não | BU57: Não | BV57: Não | BW57: Não | BX57: Não | BY57: Não | BZ57: Não | CA57: Não
D58: =IF(D57="ok",COLUMN(#REF!),"") ->  | E58: =IF(E57="ok",COLUMN(A78),"") ->  | G58: 4
D59: =IF(OR(D33="",D34=""),"Não","ok") -> Não | E59: =IF(OR(E33="",E34=""),"Não","ok") -> Não | F59: Não | G59: ok | H59: Não | I59: Não | J59: Não | K59: Não | L59: Não | M59: Não | N59: Não | O59: Não | T59: Não | U59: Não | V59: Não | W59: Não | X59: Não | Y59: Não | Z59: Não | AA59: Não | AB59: Não | AC59: Não | AD59: Não | AE59: Não | AJ59: Não | AK59: Não | AL59: Não | AM59: Não | AN59: Não | AO59: Não | AP59: Não | AQ59: Não | AR59: Não | AS59: Não | AT59: Não | AU59: Não | AV59: Não | AW59: Não | AX59: Não | AY59: Não | AZ59: Não | BA59: Não | BB59: Não | BC59: Não | BD59: Não | BE59: Não | BF59: Não | BG59: Não | BH59: Não | BI59: Não | BJ59: Não | BK59: Não | BP59: Não | BQ59: Não | BR59: Não | BS59: Não | BT59: Não | BU59: Não | BV59: Não | BW59: Não | BX59: Não | BY59: Não | BZ59: Não | CA59: Não
D62: =IF(D59="ok",COLUMN(#REF!),"") ->  | E62: =IF(E59="ok",COLUMN(A79),"") ->  | G62: 4
B63: =DA!G15&": "&DA!H15 -> Aumentar: Receitas | C63: =DA!H13 -> Perspectiva Financeira
B64: =DA!G16&": "&DA!H16 -> Aumentar: Lucratividade | C64: =DA!K13 -> Perspectiva de Clientes
B65: =DA!G17&": "&DA!H17 -> Diminuir: Despesas | C65: =DA!H24 -> Perspectiva de Processos Internos
B66: =DA!G18&": "&DA!H18 -> : | C66: =DA!K24 -> Perspectiva de Aprendizagem
B67: =DA!G19&": "&DA!H19 -> :
B68: =DA!G20&": "&DA!H20 -> :
B69: =DA!G21&": "&DA!H21 -> :
B70: =DA!G22&": "&DA!H22 -> :

Sheet EST 2
B12: =DA!D13 -> 2020 | C12: Ano 1 | R12: =B12+1 -> 2021 | S12: Ano 2 | AH12: =R12+1 -> 2022 | AI12: Ano 3 | AX12: =AH12+1 -> 2023 | AY12: Ano 4 | BN12: =AX12+1 -> 2024 | BO12: Ano 5
B13: Meta | C13: Porcentagem | D13: Jan | E13: Fev | F13: Mar | G13: Abr | H13: Mai | I13: Jun | J13: Jul | K13: Ago | L13: Set | M13: Out | N13: Nov | O13: Dez | P13: Parcial | Q13: Total | T13: Jan | U13: Fev | V13: Mar | W13: Abr | X13: Mai | Y13: Jun | Z13: Jul | AA13: Ago | AB13: Set | AC13: Out | AD13: Nov | AE13: Dez | AF13: Parcial | AG13: Total | AJ13: Jan | AK13: Fev | AL13: Mar | AM13: Abr | AN13: Mai | AO13: Jun | AP13: Jul | AQ13: Ago | AR13: Set | AS13: Out | AT13: Nov | AU13: Dez | AV13: Parcial | AW13: Total | AZ13: Jan | BA13: Fev | BB13: Mar | BC13: Abr | BD13: Mai | BE13: Jun | BF13: Jul | BG13: Ago | BH13: Set | BI13: Out | BJ13: Nov | BK13: Dez | BL13: Parcial | BM13: Total | BP13: Jan | BQ13: Fev | BR13: Mar | BS13: Abr | BT13: Mai | BU13: Jun | BV13: Jul | BW13: Ago | BX13: Set | BY13: Out | BZ13: Nov | CA13: Dez | CB13: Parcial | CC13: Total
B14: Aumentar: Quantidade de vendas | C14: Planejado | D14: 0.1 | E14: 0.1 | F14: 0.1 | G14: 0.1 | H14: 0.1 | I14: 0.1 | J14: 0.1 | K14: 0.1 | P14: =SUMIF(D39:O39,"=1",D14:O14) -> 0.8 | Q14: =SUM(D14:O14) -> 0.8 | R14: 7 | S14: Planejado | T14: 200 | U14: 210 | V14: 211 | AE14: 2 | AF14: =SUMIF(T39:AE39,"=1",T14:AE14) -> 623 | AG14: =SUM(T14:AE14) -> 623 | AI14: Planejado | AJ14: 2 | AK14: 0.9 | AU14: 2 | AV14: =SUMIF(AJ39:AU39,"=1",AJ14:AU14) -> 4.9 | AW14: =SUM(AJ14:AU14) -> 4.9 | AY14: Planejado | AZ14: 1 | BK14: 3 | BL14: =SUMIF(AZ39:BK39,"=1",AZ14:BK14) -> 4 | BM14: =SUM(AZ14:BK14) -> 4 | BO14: Planejado | BP14: 2 | CA14: 5 | CB14: =SUMIF(BP39:CA39,"=1",BP14:CA14) -> 7 | CC14: =SUM(BP14:CA14) -> 7
C15: Realizado | D15: 0.2 | E15: 0.05 | F15: 0.1 | G15: 0.2 | H15: 0.2 | I15: 0.2 | J15: 0.2 | K15: 0.2 | P15: =SUMIF(D40:O40,"=1",D15:O15) -> 1.35 | Q15: =SUM(D15:O15) -> 1.35 | R15: 8 | S15: Realizado | T15: 220 | U15: 200 | V15: 200 | AE15: 2 | AF15: =SUMIF(T40:AE40,"=1",T15:AE15) -> 622 | AG15: =SUM(T15:AE15) -> 622 | AI15: Realizado | AJ15: 2 | AU15: 3 | AV15: =SUMIF(AJ40:AU40,"=1",AJ15:AU15) -> 5 | AW15: =SUM(AJ15:AU15) -> 5 | AY15: Realizado | AZ15: 1 | BK15: 3 | BL15: =SUMIF(AZ40:BK40,"=1",AZ15:BK15) -> 4 | BM15: =SUM(AZ15:BK15) -> 4 | BO15: Realizado | BP15: 2 | CA15: 6 | CB15: =SUMIF(BP40:CA40,"=1",BP15:CA15) -> 8 | CC15: =SUM(BP15:CA15) -> 8
C16: Percentual | D16: =IF(OR(ISERROR(D15/D14-1),D15=""),"",D15/D14-1) -> 1 | E16: =IF(OR(ISERROR(E15/E14-1),E15=""),"",E15/E14-1) -> -0.5 | F16: 0 | G16: 1 | H16: 1 | I16: 1 | J16: 1 | K16: =IF(OR(ISERROR(K15/K14-1),K15=""),"",K15/K14-1) -> 1 | O16: =IF(OR(ISERROR(O15/O14-1),O15=""),"",O15/O14-1) ->  | P16: =IF(OR(ISERROR(P15/P14-1),P15=""),"",P15/P14-1) -> 0.6875 | Q16: =IF(OR(ISERROR(Q15/Q14-1),Q15=""),"",Q15/Q14-1) -> 0.6875 | S16: Percentual | T16: =IF(OR(ISERROR(T15/T14-1),T15=""),"",T15/T14-1) -> 0.1 | U16: -0.04761904762 | V16: -0.05213270142 | AE16: 0 | AF16: -0.001605136437 | AG16: -0.001605136437 | AI16: Percentual | AJ16: =IF(OR(ISERROR(AJ15/AJ14-1),AJ15=""),"",AJ15/AJ14-1) -> 0 | AU16: 0.5 | AV16: 0.02040816327 | AW16: 0.02040816327 | AY16: Percentual | AZ16: =IF(OR(ISERROR(AZ15/AZ14-1),AZ15=""),"",AZ15/AZ14-1) -> 0 | BK16: 0 | BL16: 0 | BM16: 0 | BO16: Percentual | BP16: =IF(OR(ISERROR(BP15/BP14-1),BP15=""),"",BP15/BP14-1) -> 0 | CA16: 0.2 | CB16: 0.1428571429 | CC16: 0.1428571429
D17: =COLUMN(D17) -> 4 | O17: =COLUMN(O17) -> 15 | T17: =COLUMN(T17) -> 20 | AE17: =COLUMN(AE17) -> 31 | AJ17: =COLUMN(AJ17) -> 36 | AU17: =COLUMN(AU17) -> 47 | AZ17: =COLUMN(AZ17) -> 52 | BK17: =COLUMN(BK17) -> 63 | BP17: =COLUMN(BP17) -> 68 | CA17: =COLUMN(CA17) -> 79
B18: Meta | C18: Número | D18: Jan | E18: Fev | F18: Mar | G18: Abr | H18: Mai | I18: Jun | J18: Jul | K18: Ago | L18: Set | M18: Out | N18: Nov | O18: Dez | P18: Parcial | Q18: Total | T18: Jan | U18: Fev | V18: Mar | W18: Abr | X18: Mai | Y18: Jun | Z18: Jul | AA18: Ago | AB18: Set | AC18: Out | AD18: Nov | AE18: Dez | AF18: Parcial | AG18: Total | AJ18: Jan | AK18: Fev | AL18: Mar | AM18: Abr | AN18: Mai | AO18: Jun | AP18: Jul | AQ18: Ago | AR18: Set | AS18: Out | AT18: Nov | AU18: Dez | AV18: Parcial | AW18: Total | AZ18: Jan | BA18: Fev | BB18: Mar | BC18: Abr | BD18: Mai | BE18: Jun | BF18: Jul | BG18: Ago | BH18: Set | BI18: Out | BJ18: Nov | BK18: Dez | BL18: Parcial | BM18: Total | BP18: Jan | BQ18: Fev | BR18: Mar | BS18: Abr | BT18: Mai | BU18: Jun | BV18: Jul | BW18: Ago | BX18: Set | BY18: Out | BZ18: Nov | CA18: Dez | CB18: Parcial | CC18: Total
B19: Aumentar: Número de clientes | C19: Planejado | D19: 5 | E19: 5 | F19: 5 | G19: 5 | H19: 5 | I19: 5 | J19: 5 | K19: 5 | L19: 5 | M19: 5 | N19: 5 | O19: 5 | P19: =SUMIF(D41:O41,"=1",D19:O19) -> 60 | Q19: =SUM(D19:O19) -> 60 | R19: 12 | S19: Planejado | T19: 55 | AE19: 2 | AF19: =SUMIF(T41:AE41,"=1",T19:AE19) -> 57 | AG19: =SUM(T19:AE19) -> 57 | AI19: Planejado | AJ19: 7 | AU19: 4 | AV19: =SUMIF(AJ41:AU41,"=1",AJ19:AU19) -> 11 | AW19: =SUM(AJ19:AU19) -> 11 | AY19: Planejado | AZ19: 2 | BK19: 3 | BL19: =SUMIF(AZ41:BK41,"=1",AZ19:BK19) -> 5 | BM19: =SUM(AZ19:BK19) -> 5 | BO19: Planejado | BP19: 2 | CA19: 4 | CB19: =SUMIF(BP41:CA41,"=1",BP19:CA19) -> 6 | CC19: =SUM(BP19:CA19) -> 6
C20: Realizado | D20: 1 | E20: 2 | F20: 3 | G20: 4 | H20: 5 | I20: 6 | J20: 7 | K20: 8 | L20: 9 | M20: 10 | N20: 11 | O20: 12 | P20: =SUMIF(D42:O42,"=1",D20:O20) -> 78 | Q20: =SUM(D20:O20) -> 78 | R20: 13 | S20: Realizado | T20: 45 | AE20: 2 | AF20: =SUMIF(T42:AE42,"=1",T20:AE20) -> 47 | AG20: =SUM(T20:AE20) -> 47 | AI20: Realizado | AJ20: 78 | AU20: 5 | AV20: =SUMIF(AJ42:AU42,"=1",AJ20:AU20) -> 83 | AW20: =SUM(AJ20:AU20) -> 83 | AY20: Realizado | AZ20: 2 | BK20: 3 | BL20: =SUMIF(AZ42:BK42,"=1",AZ20:BK20) -> 5 | BM20: =SUM(AZ20:BK20) -> 5 | BO20: Realizado | BP20: 2 | CA20: 4 | CB20: =SUMIF(BP42:CA42,"=1",BP20:CA20) -> 6 | CC20: =SUM(BP20:CA20) -> 6
C21: Percentual | D21: =IF(OR(ISERROR(D20/D19-1),D20=""),"",D20/D19-1) -> -0.8 | E21: -0.6 | F21: -0.4 | G21: -0.2 | H21: 0 | I21: 0.2 | J21: 0.4 | K21: 0.6 | L21: 0.8 | M21: 1 | N21: 1.2 | O21: 1.4 | P21: 0.3 | Q21: 0.3 | S21: Percentual | T21: =IF(OR(ISERROR(T20/T19-1),T20=""),"",T20/T19-1) -> -0.1818181818 | AE21: 0 | AF21: -0.1754385965 | AG21: -0.1754385965 | AI21: Percentual | AJ21: =IF(OR(ISERROR(AJ20/AJ19-1),AJ20=""),"",AJ20/AJ19-1) -> 10.14285714 | AU21: 0.25 | AV21: 6.545454545 | AW21: 6.545454545 | AY21: Percentual | AZ21: =IF(OR(ISERROR(AZ20/AZ19-1),AZ20=""),"",AZ20/AZ19-1) -> 0 | BK21: 0 | BL21: 0 | BM21: 0 | BO21: Percentual | BP21: =IF(OR(ISERROR(BP20/BP19-1),BP20=""),"",BP20/BP19-1) -> 0 | CA21: 0 | CB21: 0 | CC21: 0
B23: Meta | C23: Porcentagem | D23: Jan | E23: Fev | F23: Mar | G23: Abr | H23: Mai | I23: Jun | J23: Jul | K23: Ago | L23: Set | M23: Out | N23: Nov | O23: Dez | P23: Parcial | Q23: Total | T23: Jan | U23: Fev | V23: Mar | W23: Abr | X23: Mai | Y23: Jun | Z23: Jul | AA23: Ago | AB23: Set | AC23: Out | AD23: Nov | AE23: Dez | AF23: Parcial | AG23: Total | AJ23: Jan | AK23: Fev | AL23: Mar | AM23: Abr | AN23: Mai | AO23: Jun | AP23: Jul | AQ23: Ago | AR23: Set | AS23: Out | AT23: Nov | AU23: Dez | AV23: Parcial | AW23: Total | AZ23: Jan | BA23: Fev | BB23: Mar | BC23: Abr | BD23: Mai | BE23: Jun | BF23: Jul | BG23: Ago | BH23: Set | BI23: Out | BJ23: Nov | BK23: Dez | BL23: Parcial | BM23: Total | BP23: Jan | BQ23: Fev | BR23: Mar | BS23: Abr | BT23: Mai | BU23: Jun | BV23: Jul | BW23: Ago | BX23: Set | BY23: Out | BZ23: Nov | CA23: Dez | CB23: Parcial | CC23: Total
C24: Planejado | P24: =SUMIF(D43:O43,"=1",D24:O24) -> 0 | Q24: =SUM(D24:O24) -> 0 | R24: 17 | S24: Planejado | T24: 10 | AE24: 2 | AF24: =SUMIF(T43:AE43,"=1",T24:AE24) -> 12 | AG24: =SUM(T24:AE24) -> 12 | AI24: Planejado | AJ24: 90 | AV24: =SUMIF(AJ43:AU43,"=1",AJ24:AU24) -> 90 | AW24: =SUM(AJ24:AU24) -> 90 | AY24: Planejado | AZ24: 7 | BK24: 9 | BL24: =SUMIF(AZ43:BK43,"=1",AZ24:BK24) -> 16 | BM24: =SUM(AZ24:BK24) -> 16 | BO24: Planejado | BP24: 4 | CA24: 9 | CB24: =SUMIF(BP43:CA43,"=1",BP24:CA24) -> 13 | CC24: =SUM(BP24:CA24) -> 13
C25: Realizado | P25: =SUMIF(D44:O44,"=1",D25:O25) -> 0 | Q25: =SUM(D25:O25) -> 0 | R25: 18 | S25: Realizado | T25: 90 | AE25: 3 | AF25: =SUMIF(T44:AE44,"=1",T25:AE25) -> 93 | AG25: =SUM(T25:AE25) -> 93 | AI25: Realizado | AJ25: 10 | AV25: =SUMIF(AJ44:AU44,"=1",AJ25:AU25) -> 10 | AW25: =SUM(AJ25:AU25) -> 10 | AY25: Realizado | AZ25: 8 | BK25: 10 | BL25: =SUMIF(AZ44:BK44,"=1",AZ25:BK25) -> 18 | BM25: =SUM(AZ25:BK25) -> 18 | BO25: Realizado | BP25: 9 | CA25: 10 | CB25: =SUMIF(BP44:CA44,"=1",BP25:CA25) -> 19 | CC25: =SUM(BP25:CA25) -> 19
C26: Percentual | D26: =IF(OR(ISERROR(D25/D24-1),D25=""),"",D25/D24-1) ->  | S26: Percentual | T26: =IF(OR(ISERROR(T25/T24-1),T25=""),"",T25/T24-1) -> 8 | AE26: 0.5 | AF26: 6.75 | AG26: 6.75 | AI26: Percentual | AJ26: =IF(OR(ISERROR(AJ25/AJ24-1),AJ25=""),"",AJ25/AJ24-1) -> -0.8888888889 | AV26: -0.8888888889 | AW26: -0.8888888889 | AY26: Percentual | AZ26: =IF(OR(ISERROR(AZ25/AZ24-1),AZ25=""),"",AZ25/AZ24-1) -> 0.1428571429 | BK26: 0.1111111111 | BL26: 0.125 | BM26: 0.125 | BO26: Percentual | BP26: =IF(OR(ISERROR(BP25/BP24-1),BP25=""),"",BP25/BP24-1) -> 1.25 | CA26: 0.1111111111 | CB26: 0.4615384615 | CC26: 0.4615384615
B28: Meta | C28: Porcentagem | D28: Jan | E28: Fev | F28: Mar | G28: Abr | H28: Mai | I28: Jun | J28: Jul | K28: Ago | L28: Set | M28: Out | N28: Nov | O28: Dez | P28: Parcial | Q28: Total | T28: Jan | U28: Fev | V28: Mar | W28: Abr | X28: Mai | Y28: Jun | Z28: Jul | AA28: Ago | AB28: Set | AC28: Out | AD28: Nov | AE28: Dez | AF28: Parcial | AG28: Total | AJ28: Jan | AK28: Fev | AL28: Mar | AM28: Abr | AN28: Mai | AO28: Jun | AP28: Jul | AQ28: Ago | AR28: Set | AS28: Out | AT28: Nov | AU28: Dez | AV28: Parcial | AW28: Total | AZ28: Jan | BA28: Fev | BB28: Mar | BC28: Abr | BD28: Mai | BE28: Jun | BF28: Jul | BG28: Ago | BH28: Set | BI28: Out | BJ28: Nov | BK28: Dez | BL28: Parcial | BM28: Total | BP28: Jan | BQ28: Fev | BR28: Mar | BS28: Abr | BT28: Mai | BU28: Jun | BV28: Jul | BW28: Ago | BX28: Set | BY28: Out | BZ28: Nov | CA28: Dez | CB28: Parcial | CC28: Total
C29: Planejado | P29: =SUMIF(D45:O45,"=1",D29:O29) -> 0 | Q29: =SUM(D29:O29) -> 0 | R29: 17 | S29: Planejado | T29: 10 | AE29: 2 | AF29: =SUMIF(T45:AE45,"=1",T29:AE29) -> 12 | AG29: =SUM(T29:AE29) -> 12 | AI29: Planejado | AJ29: 90 | AV29: =SUMIF(AJ45:AU45,"=1",AJ29:AU29) -> 90 | AW29: =SUM(AJ29:AU29) -> 90 | AY29: Planejado | AZ29: 7 | BK29: 9 | BL29: =SUMIF(AZ45:BK45,"=1",AZ29:BK29) -> 16 | BM29: =SUM(AZ29:BK29) -> 16 | BO29: Planejado | BP29: 4 | CA29: 9 | CB29: =SUMIF(BP45:CA45,"=1",BP29:CA29) -> 13 | CC29: =SUM(BP29:CA29) -> 13
C30: Realizado | P30: =SUMIF(D46:O46,"=1",D30:O30) -> 0 | Q30: =SUM(D30:O30) -> 0 | R30: 18 | S30: Realizado | T30: 90 | AE30: 3 | AF30: =SUMIF(T46:AE46,"=1",T30:AE30) -> 93 | AG30: =SUM(T30:AE30) -> 93 | AI30: Realizado | AJ30: 10 | AV30: =SUMIF(AJ46:AU46,"=1",AJ30:AU30) -> 10 | AW30: =SUM(AJ30:AU30) -> 10 | AY30: Realizado | AZ30: 8 | BK30: 10 | BL30: =SUMIF(AZ46:BK46,"=1",AZ30:BK30) -> 18 | BM30: =SUM(AZ30:BK30) -> 18 | BO30: Realizado | BP30: 9 | CA30: 10 | CB30: =SUMIF(BP46:CA46,"=1",BP30:CA30) -> 19 | CC30: =SUM(BP30:CA30) -> 19
C31: Percentual | D31: =IF(OR(ISERROR(D30/D29-1),D30=""),"",D30/D29-1) ->  | S31: Percentual | T31: =IF(OR(ISERROR(T30/T29-1),T30=""),"",T30/T29-1) -> 8 | AE31: 0.5 | AF31: 6.75 | AG31: 6.75 | AI31: Percentual | AJ31: =IF(OR(ISERROR(AJ30/AJ29-1),AJ30=""),"",AJ30/AJ29-1) -> -0.8888888889 | AV31: -0.8888888889 | AW31: -0.8888888889 | AY31: Percentual | AZ31: =IF(OR(ISERROR(AZ30/AZ29-1),AZ30=""),"",AZ30/AZ29-1) -> 0.1428571429 | BK31: 0.1111111111 | BL31: 0.125 | BM31: 0.125 | BO31: Percentual | BP31: =IF(OR(ISERROR(BP30/BP29-1),BP30=""),"",BP30/BP29-1) -> 1.25 | CA31: 0.1111111111 | CB31: 0.4615384615 | CC31: 0.4615384615
B33: Meta | C33: Porcentagem | D33: Jan | E33: Fev | F33: Mar | G33: Abr | H33: Mai | I33: Jun | J33: Jul | K33: Ago | L33: Set | M33: Out | N33: Nov | O33: Dez | P33: Parcial | Q33: Total | T33: Jan | U33: Fev | V33: Mar | W33: Abr | X33: Mai | Y33: Jun | Z33: Jul | AA33: Ago | AB33: Set | AC33: Out | AD33: Nov | AE33: Dez | AF33: Parcial | AG33: Total | AJ33: Jan | AK33: Fev | AL33: Mar | AM33: Abr | AN33: Mai | AO33: Jun | AP33: Jul | AQ33: Ago | AR33: Set | AS33: Out | AT33: Nov | AU33: Dez | AV33: Parcial | AW33: Total | AZ33: Jan | BA33: Fev | BB33: Mar | BC33: Abr | BD33: Mai | BE33: Jun | BF33: Jul | BG33: Ago | BH33: Set | BI33: Out | BJ33: Nov | BK33: Dez | BL33: Parcial | BM33: Total | BP33: Jan | BQ33: Fev | BR33: Mar | BS33: Abr | BT33: Mai | BU33: Jun | BV33: Jul | BW33: Ago | BX33: Set | BY33: Out | BZ33: Nov | CA33: Dez | CB33: Parcial | CC33: Total
C34: Planejado | P34: =SUMIF(D47:O47,"=1",D34:O34) -> 0 | Q34: =SUM(D34:O34) -> 0 | R34: 17 | S34: Planejado | T34: 10 | AE34: 2 | AF34: =SUMIF(T47:AE47,"=1",T34:AE34) -> 12 | AG34: =SUM(T34:AE34) -> 12 | AI34: Planejado | AJ34: 90 | AV34: =SUMIF(AJ47:AU47,"=1",AJ34:AU34) -> 90 | AW34: =SUM(AJ34:AU34) -> 90 | AY34: Planejado | AZ34: 7 | BK34: 9 | BL34: =SUMIF(AZ47:BK47,"=1",AZ34:BK34) -> 16 | BM34: =SUM(AZ34:BK34) -> 16 | BO34: Planejado | BP34: 4 | CA34: 9 | CB34: =SUMIF(BP47:CA47,"=1",BP34:CA34) -> 13 | CC34: =SUM(BP34:CA34) -> 13
C35: Realizado | P35: =SUMIF(D48:O48,"=1",D35:O35) -> 0 | Q35: =SUM(D35:O35) -> 0 | R35: 18 | S35: Realizado | T35: 90 | AE35: 3 | AF35: =SUMIF(T48:AE48,"=1",T35:AE35) -> 93 | AG35: =SUM(T35:AE35) -> 93 | AI35: Realizado | AJ35: 10 | AV35: =SUMIF(AJ48:AU48,"=1",AJ35:AU35) -> 10 | AW35: =SUM(AJ35:AU35) -> 10 | AY35: Realizado | AZ35: 8 | BK35: 10 | BL35: =SUMIF(AZ48:BK48,"=1",AZ35:BK35) -> 18 | BM35: =SUM(AZ35:BK35) -> 18 | BO35: Realizado | BP35: 9 | CA35: 10 | CB35: =SUMIF(BP48:CA48,"=1",BP35:CA35) -> 19 | CC35: =SUM(BP35:CA35) -> 19
C36: Percentual | D36: =IF(OR(ISERROR(D35/D34-1),D35=""),"",D35/D34-1) ->  | S36: Percentual | T36: =IF(OR(ISERROR(T35/T34-1),T35=""),"",T35/T34-1) -> 8 | AE36: 0.5 | AF36: 6.75 | AG36: 6.75 | AI36: Percentual | AJ36: =IF(OR(ISERROR(AJ35/AJ34-1),AJ35=""),"",AJ35/AJ34-1) -> -0.8888888889 | AV36: -0.8888888889 | AW36: -0.8888888889 | AY36: Percentual | AZ36: =IF(OR(ISERROR(AZ35/AZ34-1),AZ35=""),"",AZ35/AZ34-1) -> 0.1428571429 | BK36: 0.1111111111 | BL36: 0.125 | BM36: 0.125 | BO36: Percentual | BP36: =IF(OR(ISERROR(BP35/BP34-1),BP35=""),"",BP35/BP34-1) -> 1.25 | CA36: 0.1111111111 | CB36: 0.4615384615 | CC36: 0.4615384615
D39: =IF(D14="","",1) -> 1 | E39: 1 | F39: 1 | G39: 1 | H39: =IF(H14="","",1) -> 1 | I39: =IF(I14="","",1) -> 1 | J39: 1 | K39: 1 | T39: =IF(T14="","",1) -> 1 | U39: 1 | V39: 1 | X39: =IF(X14="","",1) ->  | Y39: =IF(Y14="","",1) ->  | AE39: 1 | AJ39: =IF(AJ14="","",1) -> 1 | AK39: 1 | AN39: =IF(AN14="","",1) ->  | AO39: =IF(AO14="","",1) ->  | AU39: 1 | AZ39: =IF(AZ14="","",1) -> 1 | BD39: =IF(BD14="","",1) ->  | BE39: =IF(BE14="","",1) ->  | BK39: 1 | BP39: =IF(BP14="","",1) -> 1 | BT39: =IF(BT14="","",1) ->  | BU39: =IF(BU14="","",1) ->  | CA39: 1
D40: 1 | E40: 1 | F40: 1 | G40: 1 | H40: =IF(H15="","",1) -> 1 | I40: 1 | J40: 1 | K40: 1 | T40: 1 | U40: 1 | V40: 1 | X40: =IF(X15="","",1) ->  | AE40: 1 | AJ40: 1 | AN40: =IF(AN15="","",1) ->  | AU40: 1 | AZ40: 1 | BD40: =IF(BD15="","",1) ->  | BK40: 1 | BP40: 1 | BT40: =IF(BT15="","",1) ->  | CA40: 1
D41: =IF(D19="","",1) -> 1 | E41: 1 | F41: 1 | G41: 1 | H41: =IF(H19="","",1) -> 1 | I41: =IF(I19="","",1) -> 1 | J41: 1 | K41: 1 | L41: 1 | M41: 1 | N41: 1 | O41: 1 | T41: =IF(T19="","",1) -> 1 | X41: =IF(X19="","",1) ->  | Y41: =IF(Y19="","",1) ->  | AE41: 1 | AJ41: =IF(AJ19="","",1) -> 1 | AN41: =IF(AN19="","",1) ->  | AO41: =IF(AO19="","",1) ->  | AU41: 1 | AZ41: =IF(AZ19="","",1) -> 1 | BD41: =IF(BD19="","",1) ->  | BE41: =IF(BE19="","",1) ->  | BK41: 1 | BP41: =IF(BP19="","",1) -> 1 | BT41: =IF(BT19="","",1) ->  | BU41: =IF(BU19="","",1) ->  | CA41: 1
D42: 1 | E42: 1 | F42: 1 | G42: 1 | H42: =IF(H20="","",1) -> 1 | I42: 1 | J42: 1 | K42: 1 | L42: 1 | M42: 1 | N42: 1 | O42: 1 | T42: 1 | X42: =IF(X20="","",1) ->  | AE42: 1 | AJ42: 1 | AN42: =IF(AN20="","",1) ->  | AU42: 1 | AZ42: 1 | BD42: =IF(BD20="","",1) ->  | BK42: 1 | BP42: 1 | BT42: =IF(BT20="","",1) ->  | CA42: 1
D43: =IF(D24="","",1) ->  | H43: =IF(H24="","",1) ->  | I43: =IF(I24="","",1) ->  | T43: =IF(T24="","",1) -> 1 | X43: =IF(X24="","",1) ->  | Y43: =IF(Y24="","",1) ->  | AE43: 1 | AJ43: =IF(AJ24="","",1) -> 1 | AN43: =IF(AN24="","",1) ->  | AO43: =IF(AO24="","",1) ->  | AZ43: =IF(AZ24="","",1) -> 1 | BD43: =IF(BD24="","",1) ->  | BE43: =IF(BE24="","",1) ->  | BK43: 1 | BP43: =IF(BP24="","",1) -> 1 | BT43: =IF(BT24="","",1) ->  | BU43: =IF(BU24="","",1) ->  | CA43: 1
H44: =IF(H25="","",1) ->  | T44: 1 | X44: =IF(X25="","",1) ->  | AE44: 1 | AJ44: 1 | AN44: =IF(AN25="","",1) ->  | AZ44: 1 | BD44: =IF(BD25="","",1) ->  | BK44: 1 | BP44: 1 | BT44: =IF(BT25="","",1) ->  | CA44: 1
D45: =IF(D29="","",1) ->  | H45: =IF(H29="","",1) ->  | I45: =IF(I29="","",1) ->  | T45: =IF(T29="","",1) -> 1 | X45: =IF(X29="","",1) ->  | Y45: =IF(Y29="","",1) ->  | AE45: 1 | AJ45: =IF(AJ29="","",1) -> 1 | AN45: =IF(AN29="","",1) ->  | AO45: =IF(AO29="","",1) ->  | AZ45: =IF(AZ29="","",1) -> 1 | BD45: =IF(BD29="","",1) ->  | BE45: =IF(BE29="","",1) ->  | BK45: 1 | BP45: =IF(BP29="","",1) -> 1 | BT45: =IF(BT29="","",1) ->  | BU45: =IF(BU29="","",1) ->  | CA45: 1
H46: =IF(H30="","",1) ->  | T46: 1 | X46: =IF(X30="","",1) ->  | AE46: 1 | AJ46: 1 | AN46: =IF(AN30="","",1) ->  | AZ46: 1 | BD46: =IF(BD30="","",1) ->  | BK46: 1 | BP46: 1 | BT46: =IF(BT30="","",1) ->  | CA46: 1
D47: =IF(D34="","",1) ->  | H47: =IF(H34="","",1) ->  | I47: =IF(I34="","",1) ->  | T47: =IF(T34="","",1) -> 1 | X47: =IF(X34="","",1) ->  | Y47: =IF(Y34="","",1) ->  | AE47: 1 | AJ47: =IF(AJ34="","",1) -> 1 | AN47: =IF(AN34="","",1) ->  | AO47: =IF(AO34="","",1) ->  | AZ47: =IF(AZ34="","",1) -> 1 | BD47: =IF(BD34="","",1) ->  | BE47: =IF(BE34="","",1) ->  | BK47: 1 | BP47: =IF(BP34="","",1) -> 1 | BT47: =IF(BT34="","",1) ->  | BU47: =IF(BU34="","",1) ->  | CA47: 1
H48: =IF(H35="","",1) ->  | T48: 1 | X48: =IF(X35="","",1) ->  | AE48: 1 | AJ48: 1 | AN48: =IF(AN35="","",1) ->  | AZ48: 1 | BD48: =IF(BD35="","",1) ->  | BK48: 1 | BP48: 1 | BT48: =IF(BT35="","",1) ->  | CA48: 1
D55: =IF(OR(D29="",D30=""),"Não","ok") -> Não | E55: Não | F55: Não | G55: ok | H55: ok | I55: ok | J55: ok | K55: Não | L55: Não | M55: Não | N55: Não | O55: Não | T55: Não | U55: Não | V55: Não | W55: Não | X55: Não | Y55: Não | Z55: Não | AA55: Não | AB55: Não | AC55: Não | AD55: Não | AE55: Não | AJ55: Não | AK55: Não | AL55: Não | AM55: Não | AN55: Não | AO55: Não | AP55: Não | AQ55: Não | AR55: Não | AS55: Não | AT55: Não | AU55: Não | AZ55: Não | BA55: Não | BB55: Não | BC55: Não | BD55: Não | BE55: Não | BF55: Não | BG55: Não | BH55: Não | BI55: Não | BJ55: Não | BK55: Não | BP55: Não | BQ55: Não | BR55: Não | BS55: Não | BT55: Não | BU55: Não | BV55: Não | BW55: Não | BX55: Não | BY55: Não | BZ55: Não | CA55: Não
D56: =IF(D55="ok",COLUMN(#REF!),"") ->  | E56: =IF(E55="ok",COLUMN(A77),"") ->  | G56: 4 | H56: 5 | I56: 6 | J56: 7
D57: =IF(OR(D31="",D32=""),"Não","ok") -> Não | E57: =IF(OR(E31="",E32=""),"Não","ok") -> Não | F57: Não | G57: ok | H57: Não | I57: Não | J57: Não | K57: Não | L57: Não | M57: Não | N57: Não | O57: Não | T57: Não | U57: Não | V57: Não | W57: Não | X57: Não | Y57: Não | Z57: Não | AA57: Não | AB57: Não | AC57: Não | AD57: Não | AE57: Não | AJ57: Não | AK57: Não | AL57: Não | AM57: Não | AN57: Não | AO57: Não | AP57: Não | AQ57: Não | AR57: Não | AS57: Não | AT57: Não | AU57: Não | AV57: Não | AW57: Não | AX57: Não | AY57: Não | AZ57: Não | BA57: Não | BB57: Não | BC57: Não | BD57: Não | BE57: Não | BF57: Não | BG57: Não | BH57: Não | BI57: Não | BJ57: Não | BK57: Não | BP57: Não | BQ57: Não | BR57: Não | BS57: Não | BT57: Não | BU57: Não | BV57: Não | BW57: Não | BX57: Não | BY57: Não | BZ57: Não | CA57: Não
D58: =IF(D57="ok",COLUMN(#REF!),"") ->  | E58: =IF(E57="ok",COLUMN(A78),"") ->  | G58: 4
D59: =IF(OR(D33="",D34=""),"Não","ok") -> Não | E59: =IF(OR(E33="",E34=""),"Não","ok") -> Não | F59: Não | G59: ok | H59: Não | I59: Não | J59: Não | K59: Não | L59: Não | M59: Não | N59: Não | O59: Não | T59: Não | U59: Não | V59: Não | W59: Não | X59: Não | Y59: Não | Z59: Não | AA59: Não | AB59: Não | AC59: Não | AD59: Não | AE59: Não | AJ59: Não | AK59: Não | AL59: Não | AM59: Não | AN59: Não | AO59: Não | AP59: Não | AQ59: Não | AR59: Não | AS59: Não | AT59: Não | AU59: Não | AV59: Não | AW59: Não | AX59: Não | AY59: Não | AZ59: Não | BA59: Não | BB59: Não | BC59: Não | BD59: Não | BE59: Não | BF59: Não | BG59: Não | BH59: Não | BI59: Não | BJ59: Não | BK59: Não | BP59: Não | BQ59: Não | BR59: Não | BS59: Não | BT59: Não | BU59: Não | BV59: Não | BW59: Não | BX59: Não | BY59: Não | BZ59: Não | CA59: Não
D62: =IF(D59="ok",COLUMN(#REF!),"") ->  | E62: =IF(E59="ok",COLUMN(A79),"") ->  | G62: 4
B63: =DA!J15&": "&DA!K15 -> Aumentar: Quantidade de vendas | C63: =DA!H13 -> Perspectiva Financeira
B64: =DA!J16&": "&DA!K16 -> Aumentar: Número de clientes | C64: =DA!K13 -> Perspectiva de Clientes
B65: =DA!J17&": "&DA!K17 -> : | C65: =DA!H24 -> Perspectiva de Processos Internos
B66: =DA!J18&": "&DA!K18 -> : | C66: =DA!K24 -> Perspectiva de Aprendizagem
B67: =DA!J19&": "&DA!K19 -> :
B68: =DA!J20&": "&DA!K20 -> :
B69: =DA!J21&": "&DA!K21 -> :
B70: =DA!J22&": "&DA!K22 -> :

Sheet EST 3
B12: =DA!D13 -> 2020 | C12: Ano 1 | R12: =B12+1 -> 2021 | S12: Ano 2 | AH12: =R12+1 -> 2022 | AI12: Ano 3 | AX12: =AH12+1 -> 2023 | AY12: Ano 4 | BN12: =AX12+1 -> 2024 | BO12: Ano 5
B13: Meta | C13: Número | D13: Jan | E13: Fev | F13: Mar | G13: Abr | H13: Mai | I13: Jun | J13: Jul | K13: Ago | L13: Set | M13: Out | N13: Nov | O13: Dez | P13: Parcial | Q13: Total | T13: Jan | U13: Fev | V13: Mar | W13: Abr | X13: Mai | Y13: Jun | Z13: Jul | AA13: Ago | AB13: Set | AC13: Out | AD13: Nov | AE13: Dez | AF13: Parcial | AG13: Total | AJ13: Jan | AK13: Fev | AL13: Mar | AM13: Abr | AN13: Mai | AO13: Jun | AP13: Jul | AQ13: Ago | AR13: Set | AS13: Out | AT13: Nov | AU13: Dez | AV13: Parcial | AW13: Total | AZ13: Jan | BA13: Fev | BB13: Mar | BC13: Abr | BD13: Mai | BE13: Jun | BF13: Jul | BG13: Ago | BH13: Set | BI13: Out | BJ13: Nov | BK13: Dez | BL13: Parcial | BM13: Total | BP13: Jan | BQ13: Fev | BR13: Mar | BS13: Abr | BT13: Mai | BU13: Jun | BV13: Jul | BW13: Ago | BX13: Set | BY13: Out | BZ13: Nov | CA13: Dez | CB13: Parcial | CC13: Total
B14: Aumentar: Capacidade de atendimentos | C14: Planejado | D14: 100 | E14: 200 | F14: 300 | G14: 400 | H14: 500 | I14: 500 | J14: 500 | K14: 500 | P14: =SUMIF(D39:O39,"=1",D14:O14) -> 3000 | Q14: =SUM(D14:O14) -> 3000 | R14: 7 | S14: Planejado | T14: 200 | U14: 210 | V14: 211 | AE14: 2 | AF14: =SUMIF(T39:AE39,"=1",T14:AE14) -> 623 | AG14: =SUM(T14:AE14) -> 623 | AI14: Planejado | AJ14: 2 | AK14: 0.9 | AU14: 2 | AV14: =SUMIF(AJ39:AU39,"=1",AJ14:AU14) -> 4.9 | AW14: =SUM(AJ14:AU14) -> 4.9 | AY14: Planejado | AZ14: 1 | BK14: 3 | BL14: =SUMIF(AZ39:BK39,"=1",AZ14:BK14) -> 4 | BM14: =SUM(AZ14:BK14) -> 4 | BO14: Planejado | BP14: 2 | CA14: 5 | CB14: =SUMIF(BP39:CA39,"=1",BP14:CA14) -> 7 | CC14: =SUM(BP14:CA14) -> 7
C15: Realizado | D15: 50 | E15: 100 | F15: 150 | G15: 200 | H15: 200 | I15: 100 | J15: 100 | K15: 450 | P15: =SUMIF(D40:O40,"=1",D15:O15) -> 1350 | Q15: =SUM(D15:O15) -> 1350 | R15: 8 | S15: Realizado | T15: 220 | U15: 200 | V15: 200 | AE15: 2 | AF15: =SUMIF(T40:AE40,"=1",T15:AE15) -> 622 | AG15: =SUM(T15:AE15) -> 622 | AI15: Realizado | AJ15: 2 | AU15: 3 | AV15: =SUMIF(AJ40:AU40,"=1",AJ15:AU15) -> 5 | AW15: =SUM(AJ15:AU15) -> 5 | AY15: Realizado | AZ15: 1 | BK15: 3 | BL15: =SUMIF(AZ40:BK40,"=1",AZ15:BK15) -> 4 | BM15: =SUM(AZ15:BK15) -> 4 | BO15: Realizado | BP15: 2 | CA15: 6 | CB15: =SUMIF(BP40:CA40,"=1",BP15:CA15) -> 8 | CC15: =SUM(BP15:CA15) -> 8
C16: Percentual | D16: =IF(OR(ISERROR(D15/D14-1),D15=""),"",D15/D14-1) -> -0.5 | E16: =IF(OR(ISERROR(E15/E14-1),E15=""),"",E15/E14-1) -> -0.5 | F16: -0.5 | G16: -0.5 | H16: -0.6 | I16: -0.8 | J16: -0.8 | K16: =IF(OR(ISERROR(K15/K14-1),K15=""),"",K15/K14-1) -> -0.1 | O16: =IF(OR(ISERROR(O15/O14-1),O15=""),"",O15/O14-1) ->  | P16: =IF(OR(ISERROR(P15/P14-1),P15=""),"",P15/P14-1) -> -0.55 | Q16: =IF(OR(ISERROR(Q15/Q14-1),Q15=""),"",Q15/Q14-1) -> -0.55 | S16: Percentual | T16: =IF(OR(ISERROR(T15/T14-1),T15=""),"",T15/T14-1) -> 0.1 | U16: -0.04761904762 | V16: -0.05213270142 | AE16: 0 | AF16: -0.001605136437 | AG16: -0.001605136437 | AI16: Percentual | AJ16: =IF(OR(ISERROR(AJ15/AJ14-1),AJ15=""),"",AJ15/AJ14-1) -> 0 | AU16: 0.5 | AV16: 0.02040816327 | AW16: 0.02040816327 | AY16: Percentual | AZ16: =IF(OR(ISERROR(AZ15/AZ14-1),AZ15=""),"",AZ15/AZ14-1) -> 0 | BK16: 0 | BL16: 0 | BM16: 0 | BO16: Percentual | BP16: =IF(OR(ISERROR(BP15/BP14-1),BP15=""),"",BP15/BP14-1) -> 0 | CA16: 0.2 | CB16: 0.1428571429 | CC16: 0.1428571429
D17: =COLUMN(D17) -> 4 | O17: =COLUMN(O17) -> 15 | T17: =COLUMN(T17) -> 20 | AE17: =COLUMN(AE17) -> 31 | AJ17: =COLUMN(AJ17) -> 36 | AU17: =COLUMN(AU17) -> 47 | AZ17: =COLUMN(AZ17) -> 52 | BK17: =COLUMN(BK17) -> 63 | BP17: =COLUMN(BP17) -> 68 | CA17: =COLUMN(CA17) -> 79
B18: Meta | C18: R$ | D18: Jan | E18: Fev | F18: Mar | G18: Abr | H18: Mai | I18: Jun | J18: Jul | K18: Ago | L18: Set | M18: Out | N18: Nov | O18: Dez | P18: Parcial | Q18: Total | T18: Jan | U18: Fev | V18: Mar | W18: Abr | X18: Mai | Y18: Jun | Z18: Jul | AA18: Ago | AB18: Set | AC18: Out | AD18: Nov | AE18: Dez | AF18: Parcial | AG18: Total | AJ18: Jan | AK18: Fev | AL18: Mar | AM18: Abr | AN18: Mai | AO18: Jun | AP18: Jul | AQ18: Ago | AR18: Set | AS18: Out | AT18: Nov | AU18: Dez | AV18: Parcial | AW18: Total | AZ18: Jan | BA18: Fev | BB18: Mar | BC18: Abr | BD18: Mai | BE18: Jun | BF18: Jul | BG18: Ago | BH18: Set | BI18: Out | BJ18: Nov | BK18: Dez | BL18: Parcial | BM18: Total | BP18: Jan | BQ18: Fev | BR18: Mar | BS18: Abr | BT18: Mai | BU18: Jun | BV18: Jul | BW18: Ago | BX18: Set | BY18: Out | BZ18: Nov | CA18: Dez | CB18: Parcial | CC18: Total
C19: Planejado | P19: =SUMIF(D41:O41,"=1",D19:O19) -> 0 | Q19: =SUM(D19:O19) -> 0 | R19: 12 | S19: Planejado | T19: 55 | AE19: 2 | AF19: =SUMIF(T41:AE41,"=1",T19:AE19) -> 57 | AG19: =SUM(T19:AE19) -> 57 | AI19: Planejado | AJ19: 7 | AU19: 4 | AV19: =SUMIF(AJ41:AU41,"=1",AJ19:AU19) -> 11 | AW19: =SUM(AJ19:AU19) -> 11 | AY19: Planejado | AZ19: 2 | BK19: 3 | BL19: =SUMIF(AZ41:BK41,"=1",AZ19:BK19) -> 5 | BM19: =SUM(AZ19:BK19) -> 5 | BO19: Planejado | BP19: 2 | CA19: 4 | CB19: =SUMIF(BP41:CA41,"=1",BP19:CA19) -> 6 | CC19: =SUM(BP19:CA19) -> 6
C20: Realizado | P20: =SUMIF(D42:O42,"=1",D20:O20) -> 0 | Q20: =SUM(D20:O20) -> 0 | R20: 13 | S20: Realizado | T20: 45 | AE20: 2 | AF20: =SUMIF(T42:AE42,"=1",T20:AE20) -> 47 | AG20: =SUM(T20:AE20) -> 47 | AI20: Realizado | AJ20: 78 | AU20: 5 | AV20: =SUMIF(AJ42:AU42,"=1",AJ20:AU20) -> 83 | AW20: =SUM(AJ20:AU20) -> 83 | AY20: Realizado | AZ20: 2 | BK20: 3 | BL20: =SUMIF(AZ42:BK42,"=1",AZ20:BK20) -> 5 | BM20: =SUM(AZ20:BK20) -> 5 | BO20: Realizado | BP20: 2 | CA20: 4 | CB20: =SUMIF(BP42:CA42,"=1",BP20:CA20) -> 6 | CC20: =SUM(BP20:CA20) -> 6
C21: Percentual | D21: =IF(OR(ISERROR(D20/D19-1),D20=""),"",D20/D19-1) ->  | S21: Percentual | T21: =IF(OR(ISERROR(T20/T19-1),T20=""),"",T20/T19-1) -> -0.1818181818 | AE21: 0 | AF21: -0.1754385965 | AG21: -0.1754385965 | AI21: Percentual | AJ21: =IF(OR(ISERROR(AJ20/AJ19-1),AJ20=""),"",AJ20/AJ19-1) -> 10.14285714 | AU21: 0.25 | AV21: 6.545454545 | AW21: 6.545454545 | AY21: Percentual | AZ21: =IF(OR(ISERROR(AZ20/AZ19-1),AZ20=""),"",AZ20/AZ19-1) -> 0 | BK21: 0 | BL21: 0 | BM21: 0 | BO21: Percentual | BP21: =IF(OR(ISERROR(BP20/BP19-1),BP20=""),"",BP20/BP19-1) -> 0 | CA21: 0 | CB21: 0 | CC21: 0
B23: Meta | C23: Porcentagem | D23: Jan | E23: Fev | F23: Mar | G23: Abr | H23: Mai | I23: Jun | J23: Jul | K23: Ago | L23: Set | M23: Out | N23: Nov | O23: Dez | P23: Parcial | Q23: Total | T23: Jan | U23: Fev | V23: Mar | W23: Abr | X23: Mai | Y23: Jun | Z23: Jul | AA23: Ago | AB23: Set | AC23: Out | AD23: Nov | AE23: Dez | AF23: Parcial | AG23: Total | AJ23: Jan | AK23: Fev | AL23: Mar | AM23: Abr | AN23: Mai | AO23: Jun | AP23: Jul | AQ23: Ago | AR23: Set | AS23: Out | AT23: Nov | AU23: Dez | AV23: Parcial | AW23: Total | AZ23: Jan | BA23: Fev | BB23: Mar | BC23: Abr | BD23: Mai | BE23: Jun | BF23: Jul | BG23: Ago | BH23: Set | BI23: Out | BJ23: Nov | BK23: Dez | BL23: Parcial | BM23: Total | BP23: Jan | BQ23: Fev | BR23: Mar | BS23: Abr | BT23: Mai | BU23: Jun | BV23: Jul | BW23: Ago | BX23: Set | BY23: Out | BZ23: Nov | CA23: Dez | CB23: Parcial | CC23: Total
C24: Planejado | P24: =SUMIF(D43:O43,"=1",D24:O24) -> 0 | Q24: =SUM(D24:O24) -> 0 | R24: 17 | S24: Planejado | T24: 10 | AE24: 2 | AF24: =SUMIF(T43:AE43,"=1",T24:AE24) -> 12 | AG24: =SUM(T24:AE24) -> 12 | AI24: Planejado | AJ24: 90 | AV24: =SUMIF(AJ43:AU43,"=1",AJ24:AU24) -> 90 | AW24: =SUM(AJ24:AU24) -> 90 | AY24: Planejado | AZ24: 7 | BK24: 9 | BL24: =SUMIF(AZ43:BK43,"=1",AZ24:BK24) -> 16 | BM24: =SUM(AZ24:BK24) -> 16 | BO24: Planejado | BP24: 4 | CA24: 9 | CB24: =SUMIF(BP43:CA43,"=1",BP24:CA24) -> 13 | CC24: =SUM(BP24:CA24) -> 13
C25: Realizado | P25: =SUMIF(D44:O44,"=1",D25:O25) -> 0 | Q25: =SUM(D25:O25) -> 0 | R25: 18 | S25: Realizado | T25: 90 | AE25: 3 | AF25: =SUMIF(T44:AE44,"=1",T25:AE25) -> 93 | AG25: =SUM(T25:AE25) -> 93 | AI25: Realizado | AJ25: 10 | AV25: =SUMIF(AJ44:AU44,"=1",AJ25:AU25) -> 10 | AW25: =SUM(AJ25:AU25) -> 10 | AY25: Realizado | AZ25: 8 | BK25: 10 | BL25: =SUMIF(AZ44:BK44,"=1",AZ25:BK25) -> 18 | BM25: =SUM(AZ25:BK25) -> 18 | BO25: Realizado | BP25: 9 | CA25: 10 | CB25: =SUMIF(BP44:CA44,"=1",BP25:CA25) -> 19 | CC25: =SUM(BP25:CA25) -> 19
C26: Percentual | D26: =IF(OR(ISERROR(D25/D24-1),D25=""),"",D25/D24-1) ->  | S26: Percentual | T26: =IF(OR(ISERROR(T25/T24-1),T25=""),"",T25/T24-1) -> 8 | AE26: 0.5 | AF26: 6.75 | AG26: 6.75 | AI26: Percentual | AJ26: =IF(OR(ISERROR(AJ25/AJ24-1),AJ25=""),"",AJ25/AJ24-1) -> -0.8888888889 | AV26: -0.8888888889 | AW26: -0.8888888889 | AY26: Percentual | AZ26: =IF(OR(ISERROR(AZ25/AZ24-1),AZ25=""),"",AZ25/AZ24-1) -> 0.1428571429 | BK26: 0.1111111111 | BL26: 0.125 | BM26: 0.125 | BO26: Percentual | BP26: =IF(OR(ISERROR(BP25/BP24-1),BP25=""),"",BP25/BP24-1) -> 1.25 | CA26: 0.1111111111 | CB26: 0.4615384615 | CC26: 0.4615384615
B28: Meta | C28: Porcentagem | D28: Jan | E28: Fev | F28: Mar | G28: Abr | H28: Mai | I28: Jun | J28: Jul | K28: Ago | L28: Set | M28: Out | N28: Nov | O28: Dez | P28: Parcial | Q28: Total | T28: Jan | U28: Fev | V28: Mar | W28: Abr | X28: Mai | Y28: Jun | Z28: Jul | AA28: Ago | AB28: Set | AC28: Out | AD28: Nov | AE28: Dez | AF28: Parcial | AG28: Total | AJ28: Jan | AK28: Fev | AL28: Mar | AM28: Abr | AN28: Mai | AO28: Jun | AP28: Jul | AQ28: Ago | AR28: Set | AS28: Out | AT28: Nov | AU28: Dez | AV28: Parcial | AW28: Total | AZ28: Jan | BA28: Fev | BB28: Mar | BC28: Abr | BD28: Mai | BE28: Jun | BF28: Jul | BG28: Ago | BH28: Set | BI28: Out | BJ28: Nov | BK28: Dez | BL28: Parcial | BM28: Total | BP28: Jan | BQ28: Fev | BR28: Mar | BS28: Abr | BT28: Mai | BU28: Jun | BV28: Jul | BW28: Ago | BX28: Set | BY28: Out | BZ28: Nov | CA28: Dez | CB28: Parcial | CC28: Total
B29: Aumentar: Gasto para produção | C29: Planejado | P29: =SUMIF(D45:O45,"=1",D29:O29) -> 0 | Q29: =SUM(D29:O29) -> 0 | R29: 17 | S29: Planejado | T29: 10 | AE29: 2 | AF29: =SUMIF(T45:AE45,"=1",T29:AE29) -> 12 | AG29: =SUM(T29:AE29) -> 12 | AI29: Planejado | AJ29: 90 | AV29: =SUMIF(AJ45:AU45,"=1",AJ29:AU29) -> 90 | AW29: =SUM(AJ29:AU29) -> 90 | AY29: Planejado | AZ29: 7 | BK29: 9 | BL29: =SUMIF(AZ45:BK45,"=1",AZ29:BK29) -> 16 | BM29: =SUM(AZ29:BK29) -> 16 | BO29: Planejado | BP29: 4 | CA29: 9 | CB29: =SUMIF(BP45:CA45,"=1",BP29:CA29) -> 13 | CC29: =SUM(BP29:CA29) -> 13
C30: Realizado | P30: =SUMIF(D46:O46,"=1",D30:O30) -> 0 | Q30: =SUM(D30:O30) -> 0 | R30: 18 | S30: Realizado | T30: 90 | AE30: 3 | AF30: =SUMIF(T46:AE46,"=1",T30:AE30) -> 93 | AG30: =SUM(T30:AE30) -> 93 | AI30: Realizado | AJ30: 10 | AV30: =SUMIF(AJ46:AU46,"=1",AJ30:AU30) -> 10 | AW30: =SUM(AJ30:AU30) -> 10 | AY30: Realizado | AZ30: 8 | BK30: 10 | BL30: =SUMIF(AZ46:BK46,"=1",AZ30:BK30) -> 18 | BM30: =SUM(AZ30:BK30) -> 18 | BO30: Realizado | BP30: 9 | CA30: 10 | CB30: =SUMIF(BP46:CA46,"=1",BP30:CA30) -> 19 | CC30: =SUM(BP30:CA30) -> 19
C31: Percentual | D31: =IF(OR(ISERROR(D30/D29-1),D30=""),"",D30/D29-1) ->  | S31: Percentual | T31: =IF(OR(ISERROR(T30/T29-1),T30=""),"",T30/T29-1) -> 8 | AE31: 0.5 | AF31: 6.75 | AG31: 6.75 | AI31: Percentual | AJ31: =IF(OR(ISERROR(AJ30/AJ29-1),AJ30=""),"",AJ30/AJ29-1) -> -0.8888888889 | AV31: -0.8888888889 | AW31: -0.8888888889 | AY31: Percentual | AZ31: =IF(OR(ISERROR(AZ30/AZ29-1),AZ30=""),"",AZ30/AZ29-1) -> 0.1428571429 | BK31: 0.1111111111 | BL31: 0.125 | BM31: 0.125 | BO31: Percentual | BP31: =IF(OR(ISERROR(BP30/BP29-1),BP30=""),"",BP30/BP29-1) -> 1.25 | CA31: 0.1111111111 | CB31: 0.4615384615 | CC31: 0.4615384615
B33: Meta | C33: Porcentagem | D33: Jan | E33: Fev | F33: Mar | G33: Abr | H33: Mai | I33: Jun | J33: Jul | K33: Ago | L33: Set | M33: Out | N33: Nov | O33: Dez | P33: Parcial | Q33: Total | T33: Jan | U33: Fev | V33: Mar | W33: Abr | X33: Mai | Y33: Jun | Z33: Jul | AA33: Ago | AB33: Set | AC33: Out | AD33: Nov | AE33: Dez | AF33: Parcial | AG33: Total | AJ33: Jan | AK33: Fev | AL33: Mar | AM33: Abr | AN33: Mai | AO33: Jun | AP33: Jul | AQ33: Ago | AR33: Set | AS33: Out | AT33: Nov | AU33: Dez | AV33: Parcial | AW33: Total | AZ33: Jan | BA33: Fev | BB33: Mar | BC33: Abr | BD33: Mai | BE33: Jun | BF33: Jul | BG33: Ago | BH33: Set | BI33: Out | BJ33: Nov | BK33: Dez | BL33: Parcial | BM33: Total | BP33: Jan | BQ33: Fev | BR33: Mar | BS33: Abr | BT33: Mai | BU33: Jun | BV33: Jul | BW33: Ago | BX33: Set | BY33: Out | BZ33: Nov | CA33: Dez | CB33: Parcial | CC33: Total
B34: Aumentar: Gasto para produção | C34: Planejado | P34: =SUMIF(D47:O47,"=1",D34:O34) -> 0 | Q34: =SUM(D34:O34) -> 0 | R34: 17 | S34: Planejado | T34: 10 | AE34: 2 | AF34: =SUMIF(T47:AE47,"=1",T34:AE34) -> 12 | AG34: =SUM(T34:AE34) -> 12 | AI34: Planejado | AJ34: 90 | AV34: =SUMIF(AJ47:AU47,"=1",AJ34:AU34) -> 90 | AW34: =SUM(AJ34:AU34) -> 90 | AY34: Planejado | AZ34: 7 | BK34: 9 | BL34: =SUMIF(AZ47:BK47,"=1",AZ34:BK34) -> 16 | BM34: =SUM(AZ34:BK34) -> 16 | BO34: Planejado | BP34: 4 | CA34: 9 | CB34: =SUMIF(BP47:CA47,"=1",BP34:CA34) -> 13 | CC34: =SUM(BP34:CA34) -> 13
C35: Realizado | P35: =SUMIF(D48:O48,"=1",D35:O35) -> 0 | Q35: =SUM(D35:O35) -> 0 | R35: 18 | S35: Realizado | T35: 90 | AE35: 3 | AF35: =SUMIF(T48:AE48,"=1",T35:AE35) -> 93 | AG35: =SUM(T35:AE35) -> 93 | AI35: Realizado | AJ35: 10 | AV35: =SUMIF(AJ48:AU48,"=1",AJ35:AU35) -> 10 | AW35: =SUM(AJ35:AU35) -> 10 | AY35: Realizado | AZ35: 8 | BK35: 10 | BL35: =SUMIF(AZ48:BK48,"=1",AZ35:BK35) -> 18 | BM35: =SUM(AZ35:BK35) -> 18 | BO35: Realizado | BP35: 9 | CA35: 10 | CB35: =SUMIF(BP48:CA48,"=1",BP35:CA35) -> 19 | CC35: =SUM(BP35:CA35) -> 19
C36: Percentual | D36: =IF(OR(ISERROR(D35/D34-1),D35=""),"",D35/D34-1) ->  | S36: Percentual | T36: =IF(OR(ISERROR(T35/T34-1),T35=""),"",T35/T34-1) -> 8 | AE36: 0.5 | AF36: 6.75 | AG36: 6.75 | AI36: Percentual | AJ36: =IF(OR(ISERROR(AJ35/AJ34-1),AJ35=""),"",AJ35/AJ34-1) -> -0.8888888889 | AV36: -0.8888888889 | AW36: -0.8888888889 | AY36: Percentual | AZ36: =IF(OR(ISERROR(AZ35/AZ34-1),AZ35=""),"",AZ35/AZ34-1) -> 0.1428571429 | BK36: 0.1111111111 | BL36: 0.125 | BM36: 0.125 | BO36: Percentual | BP36: =IF(OR(ISERROR(BP35/BP34-1),BP35=""),"",BP35/BP34-1) -> 1.25 | CA36: 0.1111111111 | CB36: 0.4615384615 | CC36: 0.4615384615
D39: =IF(D14="","",1) -> 1 | E39: 1 | F39: 1 | G39: 1 | H39: =IF(H14="","",1) -> 1 | I39: =IF(I14="","",1) -> 1 | J39: 1 | K39: 1 | T39: =IF(T14="","",1) -> 1 | U39: 1 | V39: 1 | X39: =IF(X14="","",1) ->  | Y39: =IF(Y14="","",1) ->  | AE39: 1 | AJ39: =IF(AJ14="","",1) -> 1 | AK39: 1 | AN39: =IF(AN14="","",1) ->  | AO39: =IF(AO14="","",1) ->  | AU39: 1 | AZ39: =IF(AZ14="","",1) -> 1 | BD39: =IF(BD14="","",1) ->  | BE39: =IF(BE14="","",1) ->  | BK39: 1 | BP39: =IF(BP14="","",1) -> 1 | BT39: =IF(BT14="","",1) ->  | BU39: =IF(BU14="","",1) ->  | CA39: 1
D40: 1 | E40: 1 | F40: 1 | G40: 1 | H40: =IF(H15="","",1) -> 1 | I40: 1 | J40: 1 | K40: 1 | T40: 1 | U40: 1 | V40: 1 | X40: =IF(X15="","",1) ->  | AE40: 1 | AJ40: 1 | AN40: =IF(AN15="","",1) ->  | AU40: 1 | AZ40: 1 | BD40: =IF(BD15="","",1) ->  | BK40: 1 | BP40: 1 | BT40: =IF(BT15="","",1) ->  | CA40: 1
D41: =IF(D19="","",1) ->  | H41: =IF(H19="","",1) ->  | I41: =IF(I19="","",1) ->  | T41: =IF(T19="","",1) -> 1 | X41: =IF(X19="","",1) ->  | Y41: =IF(Y19="","",1) ->  | AE41: 1 | AJ41: =IF(AJ19="","",1) -> 1 | AN41: =IF(AN19="","",1) ->  | AO41: =IF(AO19="","",1) ->  | AU41: 1 | AZ41: =IF(AZ19="","",1) -> 1 | BD41: =IF(BD19="","",1) ->  | BE41: =IF(BE19="","",1) ->  | BK41: 1 | BP41: =IF(BP19="","",1) -> 1 | BT41: =IF(BT19="","",1) ->  | BU41: =IF(BU19="","",1) ->  | CA41: 1
H42: =IF(H20="","",1) ->  | T42: 1 | X42: =IF(X20="","",1) ->  | AE42: 1 | AJ42: 1 | AN42: =IF(AN20="","",1) ->  | AU42: 1 | AZ42: 1 | BD42: =IF(BD20="","",1) ->  | BK42: 1 | BP42: 1 | BT42: =IF(BT20="","",1) ->  | CA42: 1
D43: =IF(D24="","",1) ->  | H43: =IF(H24="","",1) ->  | I43: =IF(I24="","",1) ->  | T43: =IF(T24="","",1) -> 1 | X43: =IF(X24="","",1) ->  | Y43: =IF(Y24="","",1) ->  | AE43: 1 | AJ43: =IF(AJ24="","",1) -> 1 | AN43: =IF(AN24="","",1) ->  | AO43: =IF(AO24="","",1) ->  | AZ43: =IF(AZ24="","",1) -> 1 | BD43: =IF(BD24="","",1) ->  | BE43: =IF(BE24="","",1) ->  | BK43: 1 | BP43: =IF(BP24="","",1) -> 1 | BT43: =IF(BT24="","",1) ->  | BU43: =IF(BU24="","",1) ->  | CA43: 1
H44: =IF(H25="","",1) ->  | T44: 1 | X44: =IF(X25="","",1) ->  | AE44: 1 | AJ44: 1 | AN44: =IF(AN25="","",1) ->  | AZ44: 1 | BD44: =IF(BD25="","",1) ->  | BK44: 1 | BP44: 1 | BT44: =IF(BT25="","",1) ->  | CA44: 1
D45: =IF(D29="","",1) ->  | H45: =IF(H29="","",1) ->  | I45: =IF(I29="","",1) ->  | T45: =IF(T29="","",1) -> 1 | X45: =IF(X29="","",1) ->  | Y45: =IF(Y29="","",1) ->  | AE45: 1 | AJ45: =IF(AJ29="","",1) -> 1 | AN45: =IF(AN29="","",1) ->  | AO45: =IF(AO29="","",1) ->  | AZ45: =IF(AZ29="","",1) -> 1 | BD45: =IF(BD29="","",1) ->  | BE45: =IF(BE29="","",1) ->  | BK45: 1 | BP45: =IF(BP29="","",1) -> 1 | BT45: =IF(BT29="","",1) ->  | BU45: =IF(BU29="","",1) ->  | CA45: 1
H46: =IF(H30="","",1) ->  | T46: 1 | X46: =IF(X30="","",1) ->  | AE46: 1 | AJ46: 1 | AN46: =IF(AN30="","",1) ->  | AZ46: 1 | BD46: =IF(BD30="","",1) ->  | BK46: 1 | BP46: 1 | BT46: =IF(BT30="","",1) ->  | CA46: 1
D47: =IF(D34="","",1) ->  | H47: =IF(H34="","",1) ->  | I47: =IF(I34="","",1) ->  | T47: =IF(T34="","",1) -> 1 | X47: =IF(X34="","",1) ->  | Y47: =IF(Y34="","",1) ->  | AE47: 1 | AJ47: =IF(AJ34="","",1) -> 1 | AN47: =IF(AN34="","",1) ->  | AO47: =IF(AO34="","",1) ->  | AZ47: =IF(AZ34="","",1) -> 1 | BD47: =IF(BD34="","",1) ->  | BE47: =IF(BE34="","",1) ->  | BK47: 1 | BP47: =IF(BP34="","",1) -> 1 | BT47: =IF(BT34="","",1) ->  | BU47: =IF(BU34="","",1) ->  | CA47: 1
H48: =IF(H35="","",1) ->  | T48: 1 | X48: =IF(X35="","",1) ->  | AE48: 1 | AJ48: 1 | AN48: =IF(AN35="","",1) ->  | AZ48: 1 | BD48: =IF(BD35="","",1) ->  | BK48: 1 | BP48: 1 | BT48: =IF(BT35="","",1) ->  | CA48: 1
D55: =IF(OR(D29="",D30=""),"Não","ok") -> Não | E55: Não | F55: Não | G55: ok | H55: ok | I55: ok | J55: ok | K55: Não | L55: Não | M55: Não | N55: Não | O55: Não | T55: Não | U55: Não | V55: Não | W55: Não | X55: Não | Y55: Não | Z55: Não | AA55: Não | AB55: Não | AC55: Não | AD55: Não | AE55: Não | AJ55: Não | AK55: Não | AL55: Não | AM55: Não | AN55: Não | AO55: Não | AP55: Não | AQ55: Não | AR55: Não | AS55: Não | AT55: Não | AU55: Não | AZ55: Não | BA55: Não | BB55: Não | BC55: Não | BD55: Não | BE55: Não | BF55: Não | BG55: Não | BH55: Não | BI55: Não | BJ55: Não | BK55: Não | BP55: Não | BQ55: Não | BR55: Não | BS55: Não | BT55: Não | BU55: Não | BV55: Não | BW55: Não | BX55: Não | BY55: Não | BZ55: Não | CA55: Não
D56: =IF(D55="ok",COLUMN(#REF!),"") ->  | E56: =IF(E55="ok",COLUMN(A77),"") ->  | G56: 4 | H56: 5 | I56: 6 | J56: 7
D57: =IF(OR(D31="",D32=""),"Não","ok") -> Não | E57: =IF(OR(E31="",E32=""),"Não","ok") -> Não | F57: Não | G57: ok | H57: Não | I57: Não | J57: Não | K57: Não | L57: Não | M57: Não | N57: Não | O57: Não | T57: Não | U57: Não | V57: Não | W57: Não | X57: Não | Y57: Não | Z57: Não | AA57: Não | AB57: Não | AC57: Não | AD57: Não | AE57: Não | AJ57: Não | AK57: Não | AL57: Não | AM57: Não | AN57: Não | AO57: Não | AP57: Não | AQ57: Não | AR57: Não | AS57: Não | AT57: Não | AU57: Não | AV57: Não | AW57: Não | AX57: Não | AY57: Não | AZ57: Não | BA57: Não | BB57: Não | BC57: Não | BD57: Não | BE57: Não | BF57: Não | BG57: Não | BH57: Não | BI57: Não | BJ57: Não | BK57: Não | BP57: Não | BQ57: Não | BR57: Não | BS57: Não | BT57: Não | BU57: Não | BV57: Não | BW57: Não | BX57: Não | BY57: Não | BZ57: Não | CA57: Não
D58: =IF(D57="ok",COLUMN(#REF!),"") ->  | E58: =IF(E57="ok",COLUMN(A78),"") ->  | G58: 4
D59: =IF(OR(D33="",D34=""),"Não","ok") -> Não | E59: =IF(OR(E33="",E34=""),"Não","ok") -> Não | F59: Não | G59: ok | H59: Não | I59: Não | J59: Não | K59: Não | L59: Não | M59: Não | N59: Não | O59: Não | T59: Não | U59: Não | V59: Não | W59: Não | X59: Não | Y59: Não | Z59: Não | AA59: Não | AB59: Não | AC59: Não | AD59: Não | AE59: Não | AJ59: Não | AK59: Não | AL59: Não | AM59: Não | AN59: Não | AO59: Não | AP59: Não | AQ59: Não | AR59: Não | AS59: Não | AT59: Não | AU59: Não | AV59: Não | AW59: Não | AX59: Não | AY59: Não | AZ59: Não | BA59: Não | BB59: Não | BC59: Não | BD59: Não | BE59: Não | BF59: Não | BG59: Não | BH59: Não | BI59: Não | BJ59: Não | BK59: Não | BP59: Não | BQ59: Não | BR59: Não | BS59: Não | BT59: Não | BU59: Não | BV59: Não | BW59: Não | BX59: Não | BY59: Não | BZ59: Não | CA59: Não
D62: =IF(D59="ok",COLUMN(#REF!),"") ->  | E62: =IF(E59="ok",COLUMN(A79),"") ->  | G62: 4
B63: =DA!G26&": "&DA!H26 -> Aumentar: Capacidade de atendimentos | C63: =DA!H13 -> Perspectiva Financeira
B64: =DA!G27&": "&DA!H27 -> : | C64: =DA!K13 -> Perspectiva de Clientes
B65: =DA!G28&": "&DA!H28 -> : | C65: =DA!H24 -> Perspectiva de Processos Internos
B66: =DA!G29&": "&DA!H29 -> : | C66: =DA!K24 -> Perspectiva de Aprendizagem
B67: =DA!G30&": "&DA!H30 -> :
B68: =DA!G31&": "&DA!H31 -> :
B69: =DA!G32&": "&DA!H32 -> :
B70: =DA!G33&": "&DA!H33 -> :

Sheet EST 4
B12: =DA!D13 -> 2020 | C12: Ano 1 | R12: =B12+1 -> 2021 | S12: Ano 2 | AH12: =R12+1 -> 2022 | AI12: Ano 3 | AX12: =AH12+1 -> 2023 | AY12: Ano 4 | BN12: =AX12+1 -> 2024 | BO12: Ano 5
B13: Meta | C13: Número | D13: Jan | E13: Fev | F13: Mar | G13: Abr | H13: Mai | I13: Jun | J13: Jul | K13: Ago | L13: Set | M13: Out | N13: Nov | O13: Dez | P13: Parcial | Q13: Total | T13: Jan | U13: Fev | V13: Mar | W13: Abr | X13: Mai | Y13: Jun | Z13: Jul | AA13: Ago | AB13: Set | AC13: Out | AD13: Nov | AE13: Dez | AF13: Parcial | AG13: Total | AJ13: Jan | AK13: Fev | AL13: Mar | AM13: Abr | AN13: Mai | AO13: Jun | AP13: Jul | AQ13: Ago | AR13: Set | AS13: Out | AT13: Nov | AU13: Dez | AV13: Parcial | AW13: Total | AZ13: Jan | BA13: Fev | BB13: Mar | BC13: Abr | BD13: Mai | BE13: Jun | BF13: Jul | BG13: Ago | BH13: Set | BI13: Out | BJ13: Nov | BK13: Dez | BL13: Parcial | BM13: Total | BP13: Jan | BQ13: Fev | BR13: Mar | BS13: Abr | BT13: Mai | BU13: Jun | BV13: Jul | BW13: Ago | BX13: Set | BY13: Out | BZ13: Nov | CA13: Dez | CB13: Parcial | CC13: Total
B14: Aumentar: Know How da equipe | C14: Planejado | D14: 100 | E14: 200 | F14: 300 | G14: 400 | H14: 500 | I14: 500 | J14: 500 | K14: 500 | L14: 500 | M14: 500 | N14: 500 | P14: =SUMIF(D39:O39,"=1",D14:O14) -> 4500 | Q14: =SUM(D14:O14) -> 4500 | R14: 7 | S14: Planejado | T14: 200 | U14: 210 | V14: 211 | AE14: 2 | AF14: =SUMIF(T39:AE39,"=1",T14:AE14) -> 623 | AG14: =SUM(T14:AE14) -> 623 | AI14: Planejado | AJ14: 2 | AK14: 0.9 | AU14: 2 | AV14: =SUMIF(AJ39:AU39,"=1",AJ14:AU14) -> 4.9 | AW14: =SUM(AJ14:AU14) -> 4.9 | AY14: Planejado | AZ14: 1 | BK14: 3 | BL14: =SUMIF(AZ39:BK39,"=1",AZ14:BK14) -> 4 | BM14: =SUM(AZ14:BK14) -> 4 | BO14: Planejado | BP14: 2 | CA14: 5 | CB14: =SUMIF(BP39:CA39,"=1",BP14:CA14) -> 7 | CC14: =SUM(BP14:CA14) -> 7
C15: Realizado | D15: 50 | E15: 100 | F15: 150 | G15: 200 | H15: 200 | I15: 100 | J15: 100 | K15: 450 | P15: =SUMIF(D40:O40,"=1",D15:O15) -> 1350 | Q15: =SUM(D15:O15) -> 1350 | R15: 8 | S15: Realizado | T15: 220 | U15: 200 | V15: 200 | AE15: 2 | AF15: =SUMIF(T40:AE40,"=1",T15:AE15) -> 622 | AG15: =SUM(T15:AE15) -> 622 | AI15: Realizado | AJ15: 2 | AU15: 3 | AV15: =SUMIF(AJ40:AU40,"=1",AJ15:AU15) -> 5 | AW15: =SUM(AJ15:AU15) -> 5 | AY15: Realizado | AZ15: 1 | BK15: 3 | BL15: =SUMIF(AZ40:BK40,"=1",AZ15:BK15) -> 4 | BM15: =SUM(AZ15:BK15) -> 4 | BO15: Realizado | BP15: 2 | CA15: 6 | CB15: =SUMIF(BP40:CA40,"=1",BP15:CA15) -> 8 | CC15: =SUM(BP15:CA15) -> 8
C16: Percentual | D16: =IF(OR(ISERROR(D15/D14-1),D15=""),"",D15/D14-1) -> -0.5 | E16: =IF(OR(ISERROR(E15/E14-1),E15=""),"",E15/E14-1) -> -0.5 | F16: -0.5 | G16: -0.5 | H16: -0.6 | I16: -0.8 | J16: -0.8 | K16: =IF(OR(ISERROR(K15/K14-1),K15=""),"",K15/K14-1) -> -0.1 | O16: =IF(OR(ISERROR(O15/O14-1),O15=""),"",O15/O14-1) ->  | P16: =IF(OR(ISERROR(P15/P14-1),P15=""),"",P15/P14-1) -> -0.7 | Q16: =IF(OR(ISERROR(Q15/Q14-1),Q15=""),"",Q15/Q14-1) -> -0.7 | S16: Percentual | T16: =IF(OR(ISERROR(T15/T14-1),T15=""),"",T15/T14-1) -> 0.1 | U16: -0.04761904762 | V16: -0.05213270142 | AE16: 0 | AF16: -0.001605136437 | AG16: -0.001605136437 | AI16: Percentual | AJ16: =IF(OR(ISERROR(AJ15/AJ14-1),AJ15=""),"",AJ15/AJ14-1) -> 0 | AU16: 0.5 | AV16: 0.02040816327 | AW16: 0.02040816327 | AY16: Percentual | AZ16: =IF(OR(ISERROR(AZ15/AZ14-1),AZ15=""),"",AZ15/AZ14-1) -> 0 | BK16: 0 | BL16: 0 | BM16: 0 | BO16: Percentual | BP16: =IF(OR(ISERROR(BP15/BP14-1),BP15=""),"",BP15/BP14-1) -> 0 | CA16: 0.2 | CB16: 0.1428571429 | CC16: 0.1428571429
D17: =COLUMN(D17) -> 4 | O17: =COLUMN(O17) -> 15 | T17: =COLUMN(T17) -> 20 | AE17: =COLUMN(AE17) -> 31 | AJ17: =COLUMN(AJ17) -> 36 | AU17: =COLUMN(AU17) -> 47 | AZ17: =COLUMN(AZ17) -> 52 | BK17: =COLUMN(BK17) -> 63 | BP17: =COLUMN(BP17) -> 68 | CA17: =COLUMN(CA17) -> 79
B18: Meta | C18: Porcentagem | D18: Jan | E18: Fev | F18: Mar | G18: Abr | H18: Mai | I18: Jun | J18: Jul | K18: Ago | L18: Set | M18: Out | N18: Nov | O18: Dez | P18: Parcial | Q18: Total | T18: Jan | U18: Fev | V18: Mar | W18: Abr | X18: Mai | Y18: Jun | Z18: Jul | AA18: Ago | AB18: Set | AC18: Out | AD18: Nov | AE18: Dez | AF18: Parcial | AG18: Total | AJ18: Jan | AK18: Fev | AL18: Mar | AM18: Abr | AN18: Mai | AO18: Jun | AP18: Jul | AQ18: Ago | AR18: Set | AS18: Out | AT18: Nov | AU18: Dez | AV18: Parcial | AW18: Total | AZ18: Jan | BA18: Fev | BB18: Mar | BC18: Abr | BD18: Mai | BE18: Jun | BF18: Jul | BG18: Ago | BH18: Set | BI18: Out | BJ18: Nov | BK18: Dez | BL18: Parcial | BM18: Total | BP18: Jan | BQ18: Fev | BR18: Mar | BS18: Abr | BT18: Mai | BU18: Jun | BV18: Jul | BW18: Ago | BX18: Set | BY18: Out | BZ18: Nov | CA18: Dez | CB18: Parcial | CC18: Total
B19: Aumentar: Satisfação interna | C19: Planejado | D19: 0.9 | E19: 0.9 | F19: 0.9 | G19: 0.9 | H19: 0.9 | I19: 0.9 | J19: 0.9 | K19: 0.9 | L19: 0.9 | M19: 0.9 | N19: 0.9 | O19: 0.9 | P19: =SUMIF(D41:O41,"=1",D19:O19) -> 10.8 | Q19: =SUM(D19:O19) -> 10.8 | R19: 12 | S19: Planejado | T19: 55 | AE19: 2 | AF19: =SUMIF(T41:AE41,"=1",T19:AE19) -> 57 | AG19: =SUM(T19:AE19) -> 57 | AI19: Planejado | AJ19: 7 | AU19: 4 | AV19: =SUMIF(AJ41:AU41,"=1",AJ19:AU19) -> 11 | AW19: =SUM(AJ19:AU19) -> 11 | AY19: Planejado | AZ19: 2 | BK19: 3 | BL19: =SUMIF(AZ41:BK41,"=1",AZ19:BK19) -> 5 | BM19: =SUM(AZ19:BK19) -> 5 | BO19: Planejado | BP19: 2 | CA19: 4 | CB19: =SUMIF(BP41:CA41,"=1",BP19:CA19) -> 6 | CC19: =SUM(BP19:CA19) -> 6
C20: Realizado | D20: 0.85 | E20: 0.89 | F20: 0.95 | P20: =SUMIF(D42:O42,"=1",D20:O20) -> 2.69 | Q20: =SUM(D20:O20) -> 2.69 | R20: 13 | S20: Realizado | T20: 45 | AE20: 2 | AF20: =SUMIF(T42:AE42,"=1",T20:AE20) -> 47 | AG20: =SUM(T20:AE20) -> 47 | AI20: Realizado | AJ20: 78 | AU20: 5 | AV20: =SUMIF(AJ42:AU42,"=1",AJ20:AU20) -> 83 | AW20: =SUM(AJ20:AU20) -> 83 | AY20: Realizado | AZ20: 2 | BK20: 3 | BL20: =SUMIF(AZ42:BK42,"=1",AZ20:BK20) -> 5 | BM20: =SUM(AZ20:BK20) -> 5 | BO20: Realizado | BP20: 2 | CA20: 4 | CB20: =SUMIF(BP42:CA42,"=1",BP20:CA20) -> 6 | CC20: =SUM(BP20:CA20) -> 6
C21: Percentual | D21: =IF(OR(ISERROR(D20/D19-1),D20=""),"",D20/D19-1) -> -0.05555555556 | E21: -0.01111111111 | F21: 0.05555555556 | P21: -0.7509259259 | Q21: -0.7509259259 | S21: Percentual | T21: =IF(OR(ISERROR(T20/T19-1),T20=""),"",T20/T19-1) -> -0.1818181818 | AE21: 0 | AF21: -0.1754385965 | AG21: -0.1754385965 | AI21: Percentual | AJ21: =IF(OR(ISERROR(AJ20/AJ19-1),AJ20=""),"",AJ20/AJ19-1) -> 10.14285714 | AU21: 0.25 | AV21: 6.545454545 | AW21: 6.545454545 | AY21: Percentual | AZ21: =IF(OR(ISERROR(AZ20/AZ19-1),AZ20=""),"",AZ20/AZ19-1) -> 0 | BK21: 0 | BL21: 0 | BM21: 0 | BO21: Percentual | BP21: =IF(OR(ISERROR(BP20/BP19-1),BP20=""),"",BP20/BP19-1) -> 0 | CA21: 0 | CB21: 0 | CC21: 0
B23: Meta | C23: Porcentagem | D23: Jan | E23: Fev | F23: Mar | G23: Abr | H23: Mai | I23: Jun | J23: Jul | K23: Ago | L23: Set | M23: Out | N23: Nov | O23: Dez | P23: Parcial | Q23: Total | T23: Jan | U23: Fev | V23: Mar | W23: Abr | X23: Mai | Y23: Jun | Z23: Jul | AA23: Ago | AB23: Set | AC23: Out | AD23: Nov | AE23: Dez | AF23: Parcial | AG23: Total | AJ23: Jan | AK23: Fev | AL23: Mar | AM23: Abr | AN23: Mai | AO23: Jun | AP23: Jul | AQ23: Ago | AR23: Set | AS23: Out | AT23: Nov | AU23: Dez | AV23: Parcial | AW23: Total | AZ23: Jan | BA23: Fev | BB23: Mar | BC23: Abr | BD23: Mai | BE23: Jun | BF23: Jul | BG23: Ago | BH23: Set | BI23: Out | BJ23: Nov | BK23: Dez | BL23: Parcial | BM23: Total | BP23: Jan | BQ23: Fev | BR23: Mar | BS23: Abr | BT23: Mai | BU23: Jun | BV23: Jul | BW23: Ago | BX23: Set | BY23: Out | BZ23: Nov | CA23: Dez | CB23: Parcial | CC23: Total
C24: Planejado | P24: =SUMIF(D43:O43,"=1",D24:O24) -> 0 | Q24: =SUM(D24:O24) -> 0 | R24: 17 | S24: Planejado | T24: 10 | AE24: 2 | AF24: =SUMIF(T43:AE43,"=1",T24:AE24) -> 12 | AG24: =SUM(T24:AE24) -> 12 | AI24: Planejado | AJ24: 90 | AV24: =SUMIF(AJ43:AU43,"=1",AJ24:AU24) -> 90 | AW24: =SUM(AJ24:AU24) -> 90 | AY24: Planejado | AZ24: 7 | BK24: 9 | BL24: =SUMIF(AZ43:BK43,"=1",AZ24:BK24) -> 16 | BM24: =SUM(AZ24:BK24) -> 16 | BO24: Planejado | BP24: 4 | CA24: 9 | CB24: =SUMIF(BP43:CA43,"=1",BP24:CA24) -> 13 | CC24: =SUM(BP24:CA24) -> 13
C25: Realizado | P25: =SUMIF(D44:O44,"=1",D25:O25) -> 0 | Q25: =SUM(D25:O25) -> 0 | R25: 18 | S25: Realizado | T25: 90 | AE25: 3 | AF25: =SUMIF(T44:AE44,"=1",T25:AE25) -> 93 | AG25: =SUM(T25:AE25) -> 93 | AI25: Realizado | AJ25: 10 | AV25: =SUMIF(AJ44:AU44,"=1",AJ25:AU25) -> 10 | AW25: =SUM(AJ25:AU25) -> 10 | AY25: Realizado | AZ25: 8 | BK25: 10 | BL25: =SUMIF(AZ44:BK44,"=1",AZ25:BK25) -> 18 | BM25: =SUM(AZ25:BK25) -> 18 | BO25: Realizado | BP25: 9 | CA25: 10 | CB25: =SUMIF(BP44:CA44,"=1",BP25:CA25) -> 19 | CC25: =SUM(BP25:CA25) -> 19
C26: Percentual | D26: =IF(OR(ISERROR(D25/D24-1),D25=""),"",D25/D24-1) ->  | S26: Percentual | T26: =IF(OR(ISERROR(T25/T24-1),T25=""),"",T25/T24-1) -> 8 | AE26: 0.5 | AF26: 6.75 | AG26: 6.75 | AI26: Percentual | AJ26: =IF(OR(ISERROR(AJ25/AJ24-1),AJ25=""),"",AJ25/AJ24-1) -> -0.8888888889 | AV26: -0.8888888889 | AW26: -0.8888888889 | AY26: Percentual | AZ26: =IF(OR(ISERROR(AZ25/AZ24-1),AZ25=""),"",AZ25/AZ24-1) -> 0.1428571429 | BK26: 0.1111111111 | BL26: 0.125 | BM26: 0.125 | BO26: Percentual | BP26: =IF(OR(ISERROR(BP25/BP24-1),BP25=""),"",BP25/BP24-1) -> 1.25 | CA26: 0.1111111111 | CB26: 0.4615384615 | CC26: 0.4615384615
B28: Meta | C28: Porcentagem | D28: Jan | E28: Fev | F28: Mar | G28: Abr | H28: Mai | I28: Jun | J28: Jul | K28: Ago | L28: Set | M28: Out | N28: Nov | O28: Dez | P28: Parcial | Q28: Total | T28: Jan | U28: Fev | V28: Mar | W28: Abr | X28: Mai | Y28: Jun | Z28: Jul | AA28: Ago | AB28: Set | AC28: Out | AD28: Nov | AE28: Dez | AF28: Parcial | AG28: Total | AJ28: Jan | AK28: Fev | AL28: Mar | AM28: Abr | AN28: Mai | AO28: Jun | AP28: Jul | AQ28: Ago | AR28: Set | AS28: Out | AT28: Nov | AU28: Dez | AV28: Parcial | AW28: Total | AZ28: Jan | BA28: Fev | BB28: Mar | BC28: Abr | BD28: Mai | BE28: Jun | BF28: Jul | BG28: Ago | BH28: Set | BI28: Out | BJ28: Nov | BK28: Dez | BL28: Parcial | BM28: Total | BP28: Jan | BQ28: Fev | BR28: Mar | BS28: Abr | BT28: Mai | BU28: Jun | BV28: Jul | BW28: Ago | BX28: Set | BY28: Out | BZ28: Nov | CA28: Dez | CB28: Parcial | CC28: Total
C29: Planejado | P29: =SUMIF(D45:O45,"=1",D29:O29) -> 0 | Q29: =SUM(D29:O29) -> 0 | R29: 17 | S29: Planejado | T29: 10 | AE29: 2 | AF29: =SUMIF(T45:AE45,"=1",T29:AE29) -> 12 | AG29: =SUM(T29:AE29) -> 12 | AI29: Planejado | AJ29: 90 | AV29: =SUMIF(AJ45:AU45,"=1",AJ29:AU29) -> 90 | AW29: =SUM(AJ29:AU29) -> 90 | AY29: Planejado | AZ29: 7 | BK29: 9 | BL29: =SUMIF(AZ45:BK45,"=1",AZ29:BK29) -> 16 | BM29: =SUM(AZ29:BK29) -> 16 | BO29: Planejado | BP29: 4 | CA29: 9 | CB29: =SUMIF(BP45:CA45,"=1",BP29:CA29) -> 13 | CC29: =SUM(BP29:CA29) -> 13
C30: Realizado | P30: =SUMIF(D46:O46,"=1",D30:O30) -> 0 | Q30: =SUM(D30:O30) -> 0 | R30: 18 | S30: Realizado | T30: 90 | AE30: 3 | AF30: =SUMIF(T46:AE46,"=1",T30:AE30) -> 93 | AG30: =SUM(T30:AE30) -> 93 | AI30: Realizado | AJ30: 10 | AV30: =SUMIF(AJ46:AU46,"=1",AJ30:AU30) -> 10 | AW30: =SUM(AJ30:AU30) -> 10 | AY30: Realizado | AZ30: 8 | BK30: 10 | BL30: =SUMIF(AZ46:BK46,"=1",AZ30:BK30) -> 18 | BM30: =SUM(AZ30:BK30) -> 18 | BO30: Realizado | BP30: 9 | CA30: 10 | CB30: =SUMIF(BP46:CA46,"=1",BP30:CA30) -> 19 | CC30: =SUM(BP30:CA30) -> 19
C31: Percentual | D31: =IF(OR(ISERROR(D30/D29-1),D30=""),"",D30/D29-1) ->  | S31: Percentual | T31: =IF(OR(ISERROR(T30/T29-1),T30=""),"",T30/T29-1) -> 8 | AE31: 0.5 | AF31: 6.75 | AG31: 6.75 | AI31: Percentual | AJ31: =IF(OR(ISERROR(AJ30/AJ29-1),AJ30=""),"",AJ30/AJ29-1) -> -0.8888888889 | AV31: -0.8888888889 | AW31: -0.8888888889 | AY31: Percentual | AZ31: =IF(OR(ISERROR(AZ30/AZ29-1),AZ30=""),"",AZ30/AZ29-1) -> 0.1428571429 | BK31: 0.1111111111 | BL31: 0.125 | BM31: 0.125 | BO31: Percentual | BP31: =IF(OR(ISERROR(BP30/BP29-1),BP30=""),"",BP30/BP29-1) -> 1.25 | CA31: 0.1111111111 | CB31: 0.4615384615 | CC31: 0.4615384615
B33: Meta | C33: Porcentagem | D33: Jan | E33: Fev | F33: Mar | G33: Abr | H33: Mai | I33: Jun | J33: Jul | K33: Ago | L33: Set | M33: Out | N33: Nov | O33: Dez | P33: Parcial | Q33: Total | T33: Jan | U33: Fev | V33: Mar | W33: Abr | X33: Mai | Y33: Jun | Z33: Jul | AA33: Ago | AB33: Set | AC33: Out | AD33: Nov | AE33: Dez | AF33: Parcial | AG33: Total | AJ33: Jan | AK33: Fev | AL33: Mar | AM33: Abr | AN33: Mai | AO33: Jun | AP33: Jul | AQ33: Ago | AR33: Set | AS33: Out | AT33: Nov | AU33: Dez | AV33: Parcial | AW33: Total | AZ33: Jan | BA33: Fev | BB33: Mar | BC33: Abr | BD33: Mai | BE33: Jun | BF33: Jul | BG33: Ago | BH33: Set | BI33: Out | BJ33: Nov | BK33: Dez | BL33: Parcial | BM33: Total | BP33: Jan | BQ33: Fev | BR33: Mar | BS33: Abr | BT33: Mai | BU33: Jun | BV33: Jul | BW33: Ago | BX33: Set | BY33: Out | BZ33: Nov | CA33: Dez | CB33: Parcial | CC33: Total
C34: Planejado | P34: =SUMIF(D47:O47,"=1",D34:O34) -> 0 | Q34: =SUM(D34:O34) -> 0 | R34: 17 | S34: Planejado | T34: 10 | AE34: 2 | AF34: =SUMIF(T47:AE47,"=1",T34:AE34) -> 12 | AG34: =SUM(T34:AE34) -> 12 | AI34: Planejado | AJ34: 90 | AV34: =SUMIF(AJ47:AU47,"=1",AJ34:AU34) -> 90 | AW34: =SUM(AJ34:AU34) -> 90 | AY34: Planejado | AZ34: 7 | BK34: 9 | BL34: =SUMIF(AZ47:BK47,"=1",AZ34:BK34) -> 16 | BM34: =SUM(AZ34:BK34) -> 16 | BO34: Planejado | BP34: 4 | CA34: 9 | CB34: =SUMIF(BP47:CA47,"=1",BP34:CA34) -> 13 | CC34: =SUM(BP34:CA34) -> 13
C35: Realizado | P35: =SUMIF(D48:O48,"=1",D35:O35) -> 0 | Q35: =SUM(D35:O35) -> 0 | R35: 18 | S35: Realizado | T35: 90 | AE35: 3 | AF35: =SUMIF(T48:AE48,"=1",T35:AE35) -> 93 | AG35: =SUM(T35:AE35) -> 93 | AI35: Realizado | AJ35: 10 | AV35: =SUMIF(AJ48:AU48,"=1",AJ35:AU35) -> 10 | AW35: =SUM(AJ35:AU35) -> 10 | AY35: Realizado | AZ35: 8 | BK35: 10 | BL35: =SUMIF(AZ48:BK48,"=1",AZ35:BK35) -> 18 | BM35: =SUM(AZ35:BK35) -> 18 | BO35: Realizado | BP35: 9 | CA35: 10 | CB35: =SUMIF(BP48:CA48,"=1",BP35:CA35) -> 19 | CC35: =SUM(BP35:CA35) -> 19
C36: Percentual | D36: =IF(OR(ISERROR(D35/D34-1),D35=""),"",D35/D34-1) ->  | S36: Percentual | T36: =IF(OR(ISERROR(T35/T34-1),T35=""),"",T35/T34-1) -> 8 | AE36: 0.5 | AF36: 6.75 | AG36: 6.75 | AI36: Percentual | AJ36: =IF(OR(ISERROR(AJ35/AJ34-1),AJ35=""),"",AJ35/AJ34-1) -> -0.8888888889 | AV36: -0.8888888889 | AW36: -0.8888888889 | AY36: Percentual | AZ36: =IF(OR(ISERROR(AZ35/AZ34-1),AZ35=""),"",AZ35/AZ34-1) -> 0.1428571429 | BK36: 0.1111111111 | BL36: 0.125 | BM36: 0.125 | BO36: Percentual | BP36: =IF(OR(ISERROR(BP35/BP34-1),BP35=""),"",BP35/BP34-1) -> 1.25 | CA36: 0.1111111111 | CB36: 0.4615384615 | CC36: 0.4615384615
D39: =IF(D14="","",1) -> 1 | E39: 1 | F39: 1 | G39: 1 | H39: =IF(H14="","",1) -> 1 | I39: =IF(I14="","",1) -> 1 | J39: 1 | K39: 1 | L39: 1 | M39: 1 | N39: 1 | T39: =IF(T14="","",1) -> 1 | U39: 1 | V39: 1 | X39: =IF(X14="","",1) ->  | Y39: =IF(Y14="","",1) ->  | AE39: 1 | AJ39: =IF(AJ14="","",1) -> 1 | AK39: 1 | AN39: =IF(AN14="","",1) ->  | AO39: =IF(AO14="","",1) ->  | AU39: 1 | AZ39: =IF(AZ14="","",1) -> 1 | BD39: =IF(BD14="","",1) ->  | BE39: =IF(BE14="","",1) ->  | BK39: 1 | BP39: =IF(BP14="","",1) -> 1 | BT39: =IF(BT14="","",1) ->  | BU39: =IF(BU14="","",1) ->  | CA39: 1
D40: 1 | E40: 1 | F40: 1 | G40: 1 | H40: =IF(H15="","",1) -> 1 | I40: 1 | J40: 1 | K40: 1 | T40: 1 | U40: 1 | V40: 1 | X40: =IF(X15="","",1) ->  | AE40: 1 | AJ40: 1 | AN40: =IF(AN15="","",1) ->  | AU40: 1 | AZ40: 1 | BD40: =IF(BD15="","",1) ->  | BK40: 1 | BP40: 1 | BT40: =IF(BT15="","",1) ->  | CA40: 1
D41: =IF(D19="","",1) -> 1 | E41: 1 | F41: 1 | G41: 1 | H41: =IF(H19="","",1) -> 1 | I41: =IF(I19="","",1) -> 1 | J41: 1 | K41: 1 | L41: 1 | M41: 1 | N41: 1 | O41: 1 | T41: =IF(T19="","",1) -> 1 | X41: =IF(X19="","",1) ->  | Y41: =IF(Y19="","",1) ->  | AE41: 1 | AJ41: =IF(AJ19="","",1) -> 1 | AN41: =IF(AN19="","",1) ->  | AO41: =IF(AO19="","",1) ->  | AU41: 1 | AZ41: =IF(AZ19="","",1) -> 1 | BD41: =IF(BD19="","",1) ->  | BE41: =IF(BE19="","",1) ->  | BK41: 1 | BP41: =IF(BP19="","",1) -> 1 | BT41: =IF(BT19="","",1) ->  | BU41: =IF(BU19="","",1) ->  | CA41: 1
D42: 1 | E42: 1 | F42: 1 | H42: =IF(H20="","",1) ->  | T42: 1 | X42: =IF(X20="","",1) ->  | AE42: 1 | AJ42: 1 | AN42: =IF(AN20="","",1) ->  | AU42: 1 | AZ42: 1 | BD42: =IF(BD20="","",1) ->  | BK42: 1 | BP42: 1 | BT42: =IF(BT20="","",1) ->  | CA42: 1
D43: =IF(D24="","",1) ->  | H43: =IF(H24="","",1) ->  | I43: =IF(I24="","",1) ->  | T43: =IF(T24="","",1) -> 1 | X43: =IF(X24="","",1) ->  | Y43: =IF(Y24="","",1) ->  | AE43: 1 | AJ43: =IF(AJ24="","",1) -> 1 | AN43: =IF(AN24="","",1) ->  | AO43: =IF(AO24="","",1) ->  | AZ43: =IF(AZ24="","",1) -> 1 | BD43: =IF(BD24="","",1) ->  | BE43: =IF(BE24="","",1) ->  | BK43: 1 | BP43: =IF(BP24="","",1) -> 1 | BT43: =IF(BT24="","",1) ->  | BU43: =IF(BU24="","",1) ->  | CA43: 1
H44: =IF(H25="","",1) ->  | T44: 1 | X44: =IF(X25="","",1) ->  | AE44: 1 | AJ44: 1 | AN44: =IF(AN25="","",1) ->  | AZ44: 1 | BD44: =IF(BD25="","",1) ->  | BK44: 1 | BP44: 1 | BT44: =IF(BT25="","",1) ->  | CA44: 1
D45: =IF(D29="","",1) ->  | H45: =IF(H29="","",1) ->  | I45: =IF(I29="","",1) ->  | T45: =IF(T29="","",1) -> 1 | X45: =IF(X29="","",1) ->  | Y45: =IF(Y29="","",1) ->  | AE45: 1 | AJ45: =IF(AJ29="","",1) -> 1 | AN45: =IF(AN29="","",1) ->  | AO45: =IF(AO29="","",1) ->  | AZ45: =IF(AZ29="","",1) -> 1 | BD45: =IF(BD29="","",1) ->  | BE45: =IF(BE29="","",1) ->  | BK45: 1 | BP45: =IF(BP29="","",1) -> 1 | BT45: =IF(BT29="","",1) ->  | BU45: =IF(BU29="","",1) ->  | CA45: 1
H46: =IF(H30="","",1) ->  | T46: 1 | X46: =IF(X30="","",1) ->  | AE46: 1 | AJ46: 1 | AN46: =IF(AN30="","",1) ->  | AZ46: 1 | BD46: =IF(BD30="","",1) ->  | BK46: 1 | BP46: 1 | BT46: =IF(BT30="","",1) ->  | CA46: 1
D47: =IF(D34="","",1) ->  | H47: =IF(H34="","",1) ->  | I47: =IF(I34="","",1) ->  | T47: =IF(T34="","",1) -> 1 | X47: =IF(X34="","",1) ->  | Y47: =IF(Y34="","",1) ->  | AE47: 1 | AJ47: =IF(AJ34="","",1) -> 1 | AN47: =IF(AN34="","",1) ->  | AO47: =IF(AO34="","",1) ->  | AZ47: =IF(AZ34="","",1) -> 1 | BD47: =IF(BD34="","",1) ->  | BE47: =IF(BE34="","",1) ->  | BK47: 1 | BP47: =IF(BP34="","",1) -> 1 | BT47: =IF(BT34="","",1) ->  | BU47: =IF(BU34="","",1) ->  | CA47: 1
H48: =IF(H35="","",1) ->  | T48: 1 | X48: =IF(X35="","",1) ->  | AE48: 1 | AJ48: 1 | AN48: =IF(AN35="","",1) ->  | AZ48: 1 | BD48: =IF(BD35="","",1) ->  | BK48: 1 | BP48: 1 | BT48: =IF(BT35="","",1) ->  | CA48: 1
D55: =IF(OR(D29="",D30=""),"Não","ok") -> Não | E55: Não | F55: Não | G55: ok | H55: ok | I55: ok | J55: ok | K55: Não | L55: Não | M55: Não | N55: Não | O55: Não | T55: Não | U55: Não | V55: Não | W55: Não | X55: Não | Y55: Não | Z55: Não | AA55: Não | AB55: Não | AC55: Não | AD55: Não | AE55: Não | AJ55: Não | AK55: Não | AL55: Não | AM55: Não | AN55: Não | AO55: Não | AP55: Não | AQ55: Não | AR55: Não | AS55: Não | AT55: Não | AU55: Não | AZ55: Não | BA55: Não | BB55: Não | BC55: Não | BD55: Não | BE55: Não | BF55: Não | BG55: Não | BH55: Não | BI55: Não | BJ55: Não | BK55: Não | BP55: Não | BQ55: Não | BR55: Não | BS55: Não | BT55: Não | BU55: Não | BV55: Não | BW55: Não | BX55: Não | BY55: Não | BZ55: Não | CA55: Não
D56: =IF(D55="ok",COLUMN(#REF!),"") ->  | E56: =IF(E55="ok",COLUMN(A77),"") ->  | G56: 4 | H56: 5 | I56: 6 | J56: 7
D57: =IF(OR(D31="",D32=""),"Não","ok") -> Não | E57: =IF(OR(E31="",E32=""),"Não","ok") -> Não | F57: Não | G57: ok | H57: Não | I57: Não | J57: Não | K57: Não | L57: Não | M57: Não | N57: Não | O57: Não | T57: Não | U57: Não | V57: Não | W57: Não | X57: Não | Y57: Não | Z57: Não | AA57: Não | AB57: Não | AC57: Não | AD57: Não | AE57: Não | AJ57: Não | AK57: Não | AL57: Não | AM57: Não | AN57: Não | AO57: Não | AP57: Não | AQ57: Não | AR57: Não | AS57: Não | AT57: Não | AU57: Não | AV57: Não | AW57: Não | AX57: Não | AY57: Não | AZ57: Não | BA57: Não | BB57: Não | BC57: Não | BD57: Não | BE57: Não | BF57: Não | BG57: Não | BH57: Não | BI57: Não | BJ57: Não | BK57: Não | BP57: Não | BQ57: Não | BR57: Não | BS57: Não | BT57: Não | BU57: Não | BV57: Não | BW57: Não | BX57: Não | BY57: Não | BZ57: Não | CA57: Não
D58: =IF(D57="ok",COLUMN(#REF!),"") ->  | E58: =IF(E57="ok",COLUMN(A78),"") ->  | G58: 4
D59: =IF(OR(D33="",D34=""),"Não","ok") -> Não | E59: =IF(OR(E33="",E34=""),"Não","ok") -> Não | F59: Não | G59: ok | H59: Não | I59: Não | J59: Não | K59: Não | L59: Não | M59: Não | N59: Não | O59: Não | T59: Não | U59: Não | V59: Não | W59: Não | X59: Não | Y59: Não | Z59: Não | AA59: Não | AB59: Não | AC59: Não | AD59: Não | AE59: Não | AJ59: Não | AK59: Não | AL59: Não | AM59: Não | AN59: Não | AO59: Não | AP59: Não | AQ59: Não | AR59: Não | AS59: Não | AT59: Não | AU59: Não | AV59: Não | AW59: Não | AX59: Não | AY59: Não | AZ59: Não | BA59: Não | BB59: Não | BC59: Não | BD59: Não | BE59: Não | BF59: Não | BG59: Não | BH59: Não | BI59: Não | BJ59: Não | BK59: Não | BP59: Não | BQ59: Não | BR59: Não | BS59: Não | BT59: Não | BU59: Não | BV59: Não | BW59: Não | BX59: Não | BY59: Não | BZ59: Não | CA59: Não
D62: =IF(D59="ok",COLUMN(#REF!),"") ->  | E62: =IF(E59="ok",COLUMN(A79),"") ->  | G62: 4
B63: =DA!J26&": "&DA!K26 -> Aumentar: Know How da equipe | C63: =DA!H13 -> Perspectiva Financeira
B64: =DA!J27&": "&DA!K27 -> Aumentar: Satisfação interna | C64: =DA!K13 -> Perspectiva de Clientes
B65: =DA!J28&": "&DA!K28 -> : | C65: =DA!H24 -> Perspectiva de Processos Internos
B66: =DA!J29&": "&DA!K29 -> : | C66: =DA!K24 -> Perspectiva de Aprendizagem
B67: =DA!J30&": "&DA!K30 -> :
B68: =DA!J31&": "&DA!K31 -> :
B69: =DA!J32&": "&DA!K32 -> :
B70: =DA!J33&": "&DA!K33 -> :

Sheet PA
B12: Objetivos/Metas | D12: Ação | E12: Setor | F12: Responsável | G12: Como | H12: Prazo (Mês) | I12: Prazo (Ano) | J12: Status | K12: Saldo (Dias) | L12: % | O12: Mês prazo | P12: data prazo | Q12: Hoje | R12: mês hoje | S12: ano hoje | U12: atraso | V12: faltam | X12: =DA!D13 -> 2020 | Y12: =X12+1 -> 2021 | Z12: =Y12+1 -> 2022 | AA12: =Z12+1 -> 2023 | AB12: =AA12+1 -> 2024 | AD12: =X12 -> 2020 | AE12: =Y12 -> 2021 | AF12: =Z12 -> 2022 | AG12: =AA12 -> 2023 | AH12: =AB12 -> 2024 | AI12: Contador de dias
B13: Aumentar: Receitas | D13: Aumentar segmentos de serviços | E13: Comercial | F13: Silas | G13: Dar mais opções de serviços para os clientes atuais. | H13: Janeiro | I13: 2020 | J13: =IF(L13=1,"Concluído",IF(P13="","",IF(T13=0,"Vence esse mês",IF(T13>=3,"Faltam "&T13&" meses",IF(T13=2,"Faltam 2 meses",IF(T13=1,"Falta 1 mês",IF(T13=-1,ABS(T13)&" mês de atraso",ABS(T13)&" meses de atraso"))))))) -> 24 meses de atraso | K13: =IF(L13=1,"Concluído",AI13) -> -743.6691931 | L13: 0.95 | M13: Janeiro | N13: 1 | O13: =IF(ISERROR(VLOOKUP(H13,$M$13:$N$24,2,FALSE)),"",VLOOKUP(H13,$M$13:$N$24,2,FALSE)) -> 1 | P13: =IF(O13="","","1/"&O13&"/"&I13) -> 1/1/2020 | Q13: =NOW() -> 44574.66919 | R13: =MONTH(Q13) -> 1 | S13: =YEAR(Q13) -> 2022 | T13: =IF(U13<>"",-U13,V13) -> -24 | U13: =IF(I13>$S$13,"",((YEAR(NOW())-YEAR(P13))*12+MONTH(NOW())-MONTH(P13))) -> 24 | V13: =IF(U13<>"","",((YEAR(P13)-YEAR($Q$13))*12+MONTH(P13)-MONTH($Q$13))) ->  | X13: =IF($I13=X$12,$O13,"") -> 1 | Y13: =IF($I13=Y$12,$O13,"") ->  | Z13: =IF($I13=Z$12,$O13,"") ->  | AA13: =IF($I13=AA$12,$O13,"") ->  | AB13: =IF($I13=AB$12,$O13,"") ->  | AC13: =VLOOKUP(B13,EST!$B$14:$R$26,18,FALSE) ->  | AD13: =IF($I13<AD$12,"-",SUM(INDIRECT(ADDRESS($AC13+"1",6,1,1,"EST")):INDIRECT(ADDRESS($AC13+"1",IF(X13="",17,X13+"5"),1,1,"EST")))/SUM(INDIRECT(ADDRESS($AC13,6,1,1,"EST")):INDIRECT(ADDRESS($AC13,IF(X13="",17,X13+"5"),1,1,"EST")))-1) ->  | AE13: =IF($I13<AE$12,"-",SUM(INDIRECT(ADDRESS($AC13+"1",22,1,1,"EST")):INDIRECT(ADDRESS($AC13+"1",IF(Y13="",33,Y13+"21"),1,1,"EST")))/SUM(INDIRECT(ADDRESS($AC13,22,1,1,"EST")):INDIRECT(ADDRESS($AC13,IF(Y13="",33,Y13+"21"),1,1,"EST")))-1) -> - | AF13: =IF($I13<AF$12,"-",SUM(INDIRECT(ADDRESS($AC13+"1",38,1,1,"EST")):INDIRECT(ADDRESS($AC13+"1",IF(Z13="",49,Z13+"37"),1,1,"EST")))/SUM(INDIRECT(ADDRESS($AC13,38,1,1,"EST")):INDIRECT(ADDRESS($AC13,IF(Z13="",49,Z13+"37"),1,1,"EST")))-1) -> - | AG13: =IF($I13<AG$12,"-",SUM(INDIRECT(ADDRESS($AC13+"1",54,1,1,"EST")):INDIRECT(ADDRESS($AC13+"1",IF(AA13="",65,AA13+"53"),1,1,"EST")))/SUM(INDIRECT(ADDRESS($AC13,54,1,1,"EST")):INDIRECT(ADDRESS($AC13,IF(AA13="",65,AA13+"53"),1,1,"EST")))-1) -> - | AH13: =IF($I13<AH$12,"-",SUM(INDIRECT(ADDRESS($AC13+"1",70,1,1,"EST")):INDIRECT(ADDRESS($AC13+"1",IF(AB13="",81,AB13+"69"),1,1,"EST")))/SUM(INDIRECT(ADDRESS($AC13,70,1,1,"EST")):INDIRECT(ADDRESS($AC13,IF(AB13="",81,AB13+"69"),1,1,"EST")))-1) -> - | AI13: =IF(P13="","",P13-Q13) -> -743.6691931
B14: Aumentar: Lucratividade | D14: Reduzir custos operacionais | E14: Financeiro | F14: José | G14: Estabelecer metas de produção com recompensas para redução de custos | H14: Fevereiro | I14: 2020 | J14: Concluído | K14: Concluído | L14: 1 | M14: Fevereiro | N14: 2 | O14: =IF(ISERROR(VLOOKUP(H14,$M$13:$N$24,2,FALSE)),"",VLOOKUP(H14,$M$13:$N$24,2,FALSE)) -> 2 | P14: =IF(O14="","","1/"&O14&"/"&I14) -> 1/2/2020 | Q14: =NOW() -> 44574.66919 | R14: =MONTH(Q14) -> 1 | S14: =YEAR(Q14) -> 2022 | T14: =IF(U14<>"",-U14,V14) -> -23 | U14: =IF(I14>$S$13,"",((YEAR(NOW())-YEAR(P14))*12+MONTH(NOW())-MONTH(P14))) -> 23 | V14: =IF(U14<>"","",((YEAR(P14)-YEAR($Q$13))*12+MONTH(P14)-MONTH($Q$13))) ->  | X14: =IF($I14=X$12,$O14,"") -> 2 | AC14: =VLOOKUP(B14,EST!$B$14:$R$26,18,FALSE) ->  | AD14: =IF($I14<AD$12,"-",SUM(INDIRECT(ADDRESS($AC14+"1",6,1,1,"EST")):INDIRECT(ADDRESS($AC14+"1",IF(X14="",17,X14+"5"),1,1,"EST")))/SUM(INDIRECT(ADDRESS($AC14,6,1,1,"EST")):INDIRECT(ADDRESS($AC14,IF(X14="",17,X14+"5"),1,1,"EST")))-1) ->  | AE14: =IF($I14<AE$12,"-",SUM(INDIRECT(ADDRESS($AC14+"1",22,1,1,"EST")):INDIRECT(ADDRESS($AC14+"1",IF(Y14="",33,Y14+"21"),1,1,"EST")))/SUM(INDIRECT(ADDRESS($AC14,22,1,1,"EST")):INDIRECT(ADDRESS($AC14,IF(Y14="",33,Y14+"21"),1,1,"EST")))-1) -> - | AF14: =IF($I14<AF$12,"-",SUM(INDIRECT(ADDRESS($AC14+"1",38,1,1,"EST")):INDIRECT(ADDRESS($AC14+"1",IF(Z14="",49,Z14+"37"),1,1,"EST")))/SUM(INDIRECT(ADDRESS($AC14,38,1,1,"EST")):INDIRECT(ADDRESS($AC14,IF(Z14="",49,Z14+"37"),1,1,"EST")))-1) -> - | AG14: =IF($I14<AG$12,"-",SUM(INDIRECT(ADDRESS($AC14+"1",54,1,1,"EST")):INDIRECT(ADDRESS($AC14+"1",IF(AA14="",65,AA14+"53"),1,1,"EST")))/SUM(INDIRECT(ADDRESS($AC14,54,1,1,"EST")):INDIRECT(ADDRESS($AC14,IF(AA14="",65,AA14+"53"),1,1,"EST")))-1) -> - | AH14: =IF($I14<AH$12,"-",SUM(INDIRECT(ADDRESS($AC14+"1",70,1,1,"EST")):INDIRECT(ADDRESS($AC14+"1",IF(AB14="",81,AB14+"69"),1,1,"EST")))/SUM(INDIRECT(ADDRESS($AC14,70,1,1,"EST")):INDIRECT(ADDRESS($AC14,IF(AB14="",81,AB14+"69"),1,1,"EST")))-1) -> - | AI14: =IF(P14="","",P14-Q14) -> -712.6691931
B15: Diminuir: Despesas | D15: Reduzir despesas fixas | E15: Financeiro | F15: Henrique | G15: Pesquisar outras opções para as despesas fixas. | H15: Maio | I15: 2020 | J15: Concluído | K15: Concluído | L15: 1 | M15: Março | N15: 3 | O15: 5 | P15: 1/5/2020 | Q15: 44574.66919 | R15: 1 | S15: 2022 | T15: -20 | U15: 20 | X15: 5 | AC15: =VLOOKUP(B15,EST!$B$14:$R$26,18,FALSE) ->  | AD15: =IF($I15<AD$12,"-",SUM(INDIRECT(ADDRESS($AC15+"1",6,1,1,"EST")):INDIRECT(ADDRESS($AC15+"1",IF(X15="",17,X15+"5"),1,1,"EST")))/SUM(INDIRECT(ADDRESS($AC15,6,1,1,"EST")):INDIRECT(ADDRESS($AC15,IF(X15="",17,X15+"5"),1,1,"EST")))-1) ->  | AE15: =IF($I15<AE$12,"-",SUM(INDIRECT(ADDRESS($AC15+"1",22,1,1,"EST")):INDIRECT(ADDRESS($AC15+"1",IF(Y15="",33,Y15+"21"),1,1,"EST")))/SUM(INDIRECT(ADDRESS($AC15,22,1,1,"EST")):INDIRECT(ADDRESS($AC15,IF(Y15="",33,Y15+"21"),1,1,"EST")))-1) -> - | AF15: =IF($I15<AF$12,"-",SUM(INDIRECT(ADDRESS($AC15+"1",38,1,1,"EST")):INDIRECT(ADDRESS($AC15+"1",IF(Z15="",49,Z15+"37"),1,1,"EST")))/SUM(INDIRECT(ADDRESS($AC15,38,1,1,"EST")):INDIRECT(ADDRESS($AC15,IF(Z15="",49,Z15+"37"),1,1,"EST")))-1) -> - | AG15: =IF($I15<AG$12,"-",SUM(INDIRECT(ADDRESS($AC15+"1",54,1,1,"EST")):INDIRECT(ADDRESS($AC15+"1",IF(AA15="",65,AA15+"53"),1,1,"EST")))/SUM(INDIRECT(ADDRESS($AC15,54,1,1,"EST")):INDIRECT(ADDRESS($AC15,IF(AA15="",65,AA15+"53"),1,1,"EST")))-1) -> - | AH15: =IF($I15<AH$12,"-",SUM(INDIRECT(ADDRESS($AC15+"1",70,1,1,"EST")):INDIRECT(ADDRESS($AC15+"1",IF(AB15="",81,AB15+"69"),1,1,"EST")))/SUM(INDIRECT(ADDRESS($AC15,70,1,1,"EST")):INDIRECT(ADDRESS($AC15,IF(AB15="",81,AB15+"69"),1,1,"EST")))-1) -> - | AI15: -622.6691931
M16: Abril | N16: 4 | Q16: 44574.66919 | R16: 1 | S16: 2022 | AC16: =VLOOKUP(B16,EST!$B$14:$R$26,18,FALSE) ->  | AD16: =IF($I16<AD$12,"-",SUM(INDIRECT(ADDRESS($AC16+"1",6,1,1,"EST")):INDIRECT(ADDRESS($AC16+"1",IF(X16="",17,X16+"5"),1,1,"EST")))/SUM(INDIRECT(ADDRESS($AC16,6,1,1,"EST")):INDIRECT(ADDRESS($AC16,IF(X16="",17,X16+"5"),1,1,"EST")))-1) -> - | AE16: =IF($I16<AE$12,"-",SUM(INDIRECT(ADDRESS($AC16+"1",22,1,1,"EST")):INDIRECT(ADDRESS($AC16+"1",IF(Y16="",33,Y16+"21"),1,1,"EST")))/SUM(INDIRECT(ADDRESS($AC16,22,1,1,"EST")):INDIRECT(ADDRESS($AC16,IF(Y16="",33,Y16+"21"),1,1,"EST")))-1) -> - | AF16: =IF($I16<AF$12,"-",SUM(INDIRECT(ADDRESS($AC16+"1",38,1,1,"EST")):INDIRECT(ADDRESS($AC16+"1",IF(Z16="",49,Z16+"37"),1,1,"EST")))/SUM(INDIRECT(ADDRESS($AC16,38,1,1,"EST")):INDIRECT(ADDRESS($AC16,IF(Z16="",49,Z16+"37"),1,1,"EST")))-1) -> - | AG16: =IF($I16<AG$12,"-",SUM(INDIRECT(ADDRESS($AC16+"1",54,1,1,"EST")):INDIRECT(ADDRESS($AC16+"1",IF(AA16="",65,AA16+"53"),1,1,"EST")))/SUM(INDIRECT(ADDRESS($AC16,54,1,1,"EST")):INDIRECT(ADDRESS($AC16,IF(AA16="",65,AA16+"53"),1,1,"EST")))-1) -> - | AH16: =IF($I16<AH$12,"-",SUM(INDIRECT(ADDRESS($AC16+"1",70,1,1,"EST")):INDIRECT(ADDRESS($AC16+"1",IF(AB16="",81,AB16+"69"),1,1,"EST")))/SUM(INDIRECT(ADDRESS($AC16,70,1,1,"EST")):INDIRECT(ADDRESS($AC16,IF(AB16="",81,AB16+"69"),1,1,"EST")))-1) -> -
M17: Maio | N17: 5 | Q17: 44574.66919 | R17: 1 | S17: 2022 | AC17: =VLOOKUP(B17,EST!$B$14:$R$26,18,FALSE) ->  | AD17: =IF($I17<AD$12,"-",SUM(INDIRECT(ADDRESS($AC17+"1",6,1,1,"EST")):INDIRECT(ADDRESS($AC17+"1",IF(X17="",17,X17+"5"),1,1,"EST")))/SUM(INDIRECT(ADDRESS($AC17,6,1,1,"EST")):INDIRECT(ADDRESS($AC17,IF(X17="",17,X17+"5"),1,1,"EST")))-1) -> - | AE17: =IF($I17<AE$12,"-",SUM(INDIRECT(ADDRESS($AC17+"1",22,1,1,"EST")):INDIRECT(ADDRESS($AC17+"1",IF(Y17="",33,Y17+"21"),1,1,"EST")))/SUM(INDIRECT(ADDRESS($AC17,22,1,1,"EST")):INDIRECT(ADDRESS($AC17,IF(Y17="",33,Y17+"21"),1,1,"EST")))-1) -> - | AF17: =IF($I17<AF$12,"-",SUM(INDIRECT(ADDRESS($AC17+"1",38,1,1,"EST")):INDIRECT(ADDRESS($AC17+"1",IF(Z17="",49,Z17+"37"),1,1,"EST")))/SUM(INDIRECT(ADDRESS($AC17,38,1,1,"EST")):INDIRECT(ADDRESS($AC17,IF(Z17="",49,Z17+"37"),1,1,"EST")))-1) -> - | AG17: =IF($I17<AG$12,"-",SUM(INDIRECT(ADDRESS($AC17+"1",54,1,1,"EST")):INDIRECT(ADDRESS($AC17+"1",IF(AA17="",65,AA17+"53"),1,1,"EST")))/SUM(INDIRECT(ADDRESS($AC17,54,1,1,"EST")):INDIRECT(ADDRESS($AC17,IF(AA17="",65,AA17+"53"),1,1,"EST")))-1) -> - | AH17: =IF($I17<AH$12,"-",SUM(INDIRECT(ADDRESS($AC17+"1",70,1,1,"EST")):INDIRECT(ADDRESS($AC17+"1",IF(AB17="",81,AB17+"69"),1,1,"EST")))/SUM(INDIRECT(ADDRESS($AC17,70,1,1,"EST")):INDIRECT(ADDRESS($AC17,IF(AB17="",81,AB17+"69"),1,1,"EST")))-1) -> -
K18: =IF(L18=1,"Concluído",AI18) ->  | M18: Junho | N18: 6 | Q18: 44574.66919 | R18: 1 | S18: 2022 | AC18: =VLOOKUP(B18,EST!$B$14:$R$26,18,FALSE) ->  | AD18: =IF($I18<AD$12,"-",SUM(INDIRECT(ADDRESS($AC18+"1",6,1,1,"EST")):INDIRECT(ADDRESS($AC18+"1",IF(X18="",17,X18+"5"),1,1,"EST")))/SUM(INDIRECT(ADDRESS($AC18,6,1,1,"EST")):INDIRECT(ADDRESS($AC18,IF(X18="",17,X18+"5"),1,1,"EST")))-1) -> - | AE18: =IF($I18<AE$12,"-",SUM(INDIRECT(ADDRESS($AC18+"1",22,1,1,"EST")):INDIRECT(ADDRESS($AC18+"1",IF(Y18="",33,Y18+"21"),1,1,"EST")))/SUM(INDIRECT(ADDRESS($AC18,22,1,1,"EST")):INDIRECT(ADDRESS($AC18,IF(Y18="",33,Y18+"21"),1,1,"EST")))-1) -> - | AF18: =IF($I18<AF$12,"-",SUM(INDIRECT(ADDRESS($AC18+"1",38,1,1,"EST")):INDIRECT(ADDRESS($AC18+"1",IF(Z18="",49,Z18+"37"),1,1,"EST")))/SUM(INDIRECT(ADDRESS($AC18,38,1,1,"EST")):INDIRECT(ADDRESS($AC18,IF(Z18="",49,Z18+"37"),1,1,"EST")))-1) -> - | AG18: =IF($I18<AG$12,"-",SUM(INDIRECT(ADDRESS($AC18+"1",54,1,1,"EST")):INDIRECT(ADDRESS($AC18+"1",IF(AA18="",65,AA18+"53"),1,1,"EST")))/SUM(INDIRECT(ADDRESS($AC18,54,1,1,"EST")):INDIRECT(ADDRESS($AC18,IF(AA18="",65,AA18+"53"),1,1,"EST")))-1) -> - | AH18: =IF($I18<AH$12,"-",SUM(INDIRECT(ADDRESS($AC18+"1",70,1,1,"EST")):INDIRECT(ADDRESS($AC18+"1",IF(AB18="",81,AB18+"69"),1,1,"EST")))/SUM(INDIRECT(ADDRESS($AC18,70,1,1,"EST")):INDIRECT(ADDRESS($AC18,IF(AB18="",81,AB18+"69"),1,1,"EST")))-1) -> -
K19: =IF(L19=1,"Concluído",AI19) ->  | M19: Julho | N19: 7 | Q19: 44574.66919 | R19: 1 | S19: 2022 | AC19: =VLOOKUP(B19,EST!$B$14:$R$26,18,FALSE) ->  | AD19: =IF($I19<AD$12,"-",SUM(INDIRECT(ADDRESS($AC19+"1",6,1,1,"EST")):INDIRECT(ADDRESS($AC19+"1",IF(X19="",17,X19+"5"),1,1,"EST")))/SUM(INDIRECT(ADDRESS($AC19,6,1,1,"EST")):INDIRECT(ADDRESS($AC19,IF(X19="",17,X19+"5"),1,1,"EST")))-1) -> - | AE19: =IF($I19<AE$12,"-",SUM(INDIRECT(ADDRESS($AC19+"1",22,1,1,"EST")):INDIRECT(ADDRESS($AC19+"1",IF(Y19="",33,Y19+"21"),1,1,"EST")))/SUM(INDIRECT(ADDRESS($AC19,22,1,1,"EST")):INDIRECT(ADDRESS($AC19,IF(Y19="",33,Y19+"21"),1,1,"EST")))-1) -> - | AF19: =IF($I19<AF$12,"-",SUM(INDIRECT(ADDRESS($AC19+"1",38,1,1,"EST")):INDIRECT(ADDRESS($AC19+"1",IF(Z19="",49,Z19+"37"),1,1,"EST")))/SUM(INDIRECT(ADDRESS($AC19,38,1,1,"EST")):INDIRECT(ADDRESS($AC19,IF(Z19="",49,Z19+"37"),1,1,"EST")))-1) -> - | AG19: =IF($I19<AG$12,"-",SUM(INDIRECT(ADDRESS($AC19+"1",54,1,1,"EST")):INDIRECT(ADDRESS($AC19+"1",IF(AA19="",65,AA19+"53"),1,1,"EST")))/SUM(INDIRECT(ADDRESS($AC19,54,1,1,"EST")):INDIRECT(ADDRESS($AC19,IF(AA19="",65,AA19+"53"),1,1,"EST")))-1) -> - | AH19: =IF($I19<AH$12,"-",SUM(INDIRECT(ADDRESS($AC19+"1",70,1,1,"EST")):INDIRECT(ADDRESS($AC19+"1",IF(AB19="",81,AB19+"69"),1,1,"EST")))/SUM(INDIRECT(ADDRESS($AC19,70,1,1,"EST")):INDIRECT(ADDRESS($AC19,IF(AB19="",81,AB19+"69"),1,1,"EST")))-1) -> -
M20: Agosto | N20: 8 | Q20: 44574.66919 | R20: 1 | S20: 2022 | AC20: =VLOOKUP(B20,EST!$B$14:$R$26,18,FALSE) ->  | AD20: =IF($I20<AD$12,"-",SUM(INDIRECT(ADDRESS($AC20+"1",6,1,1,"EST")):INDIRECT(ADDRESS($AC20+"1",IF(X20="",17,X20+"5"),1,1,"EST")))/SUM(INDIRECT(ADDRESS($AC20,6,1,1,"EST")):INDIRECT(ADDRESS($AC20,IF(X20="",17,X20+"5"),1,1,"EST")))-1) -> - | AE20: =IF($I20<AE$12,"-",SUM(INDIRECT(ADDRESS($AC20+"1",22,1,1,"EST")):INDIRECT(ADDRESS($AC20+"1",IF(Y20="",33,Y20+"21"),1,1,"EST")))/SUM(INDIRECT(ADDRESS($AC20,22,1,1,"EST")):INDIRECT(ADDRESS($AC20,IF(Y20="",33,Y20+"21"),1,1,"EST")))-1) -> - | AF20: =IF($I20<AF$12,"-",SUM(INDIRECT(ADDRESS($AC20+"1",38,1,1,"EST")):INDIRECT(ADDRESS($AC20+"1",IF(Z20="",49,Z20+"37"),1,1,"EST")))/SUM(INDIRECT(ADDRESS($AC20,38,1,1,"EST")):INDIRECT(ADDRESS($AC20,IF(Z20="",49,Z20+"37"),1,1,"EST")))-1) -> - | AG20: =IF($I20<AG$12,"-",SUM(INDIRECT(ADDRESS($AC20+"1",54,1,1,"EST")):INDIRECT(ADDRESS($AC20+"1",IF(AA20="",65,AA20+"53"),1,1,"EST")))/SUM(INDIRECT(ADDRESS($AC20,54,1,1,"EST")):INDIRECT(ADDRESS($AC20,IF(AA20="",65,AA20+"53"),1,1,"EST")))-1) -> - | AH20: =IF($I20<AH$12,"-",SUM(INDIRECT(ADDRESS($AC20+"1",70,1,1,"EST")):INDIRECT(ADDRESS($AC20+"1",IF(AB20="",81,AB20+"69"),1,1,"EST")))/SUM(INDIRECT(ADDRESS($AC20,70,1,1,"EST")):INDIRECT(ADDRESS($AC20,IF(AB20="",81,AB20+"69"),1,1,"EST")))-1) -> -
M21: Setembro | N21: 9 | Q21: 44574.66919 | R21: 1 | S21: 2022 | AC21: =VLOOKUP(B21,EST!$B$14:$R$26,18,FALSE) ->  | AD21: =IF($I21<AD$12,"-",SUM(INDIRECT(ADDRESS($AC21+"1",6,1,1,"EST")):INDIRECT(ADDRESS($AC21+"1",IF(X21="",17,X21+"5"),1,1,"EST")))/SUM(INDIRECT(ADDRESS($AC21,6,1,1,"EST")):INDIRECT(ADDRESS($AC21,IF(X21="",17,X21+"5"),1,1,"EST")))-1) -> - | AE21: =IF($I21<AE$12,"-",SUM(INDIRECT(ADDRESS($AC21+"1",22,1,1,"EST")):INDIRECT(ADDRESS($AC21+"1",IF(Y21="",33,Y21+"21"),1,1,"EST")))/SUM(INDIRECT(ADDRESS($AC21,22,1,1,"EST")):INDIRECT(ADDRESS($AC21,IF(Y21="",33,Y21+"21"),1,1,"EST")))-1) -> - | AF21: =IF($I21<AF$12,"-",SUM(INDIRECT(ADDRESS($AC21+"1",38,1,1,"EST")):INDIRECT(ADDRESS($AC21+"1",IF(Z21="",49,Z21+"37"),1,1,"EST")))/SUM(INDIRECT(ADDRESS($AC21,38,1,1,"EST")):INDIRECT(ADDRESS($AC21,IF(Z21="",49,Z21+"37"),1,1,"EST")))-1) -> - | AG21: =IF($I21<AG$12,"-",SUM(INDIRECT(ADDRESS($AC21+"1",54,1,1,"EST")):INDIRECT(ADDRESS($AC21+"1",IF(AA21="",65,AA21+"53"),1,1,"EST")))/SUM(INDIRECT(ADDRESS($AC21,54,1,1,"EST")):INDIRECT(ADDRESS($AC21,IF(AA21="",65,AA21+"53"),1,1,"EST")))-1) -> - | AH21: =IF($I21<AH$12,"-",SUM(INDIRECT(ADDRESS($AC21+"1",70,1,1,"EST")):INDIRECT(ADDRESS($AC21+"1",IF(AB21="",81,AB21+"69"),1,1,"EST")))/SUM(INDIRECT(ADDRESS($AC21,70,1,1,"EST")):INDIRECT(ADDRESS($AC21,IF(AB21="",81,AB21+"69"),1,1,"EST")))-1) -> -
M22: Outubro | N22: 10 | Q22: 44574.66919 | R22: 1 | S22: 2022 | AC22: =VLOOKUP(B22,EST!$B$14:$R$26,18,FALSE) ->  | AD22: =IF($I22<AD$12,"-",SUM(INDIRECT(ADDRESS($AC22+"1",6,1,1,"EST")):INDIRECT(ADDRESS($AC22+"1",IF(X22="",17,X22+"5"),1,1,"EST")))/SUM(INDIRECT(ADDRESS($AC22,6,1,1,"EST")):INDIRECT(ADDRESS($AC22,IF(X22="",17,X22+"5"),1,1,"EST")))-1) -> - | AE22: =IF($I22<AE$12,"-",SUM(INDIRECT(ADDRESS($AC22+"1",22,1,1,"EST")):INDIRECT(ADDRESS($AC22+"1",IF(Y22="",33,Y22+"21"),1,1,"EST")))/SUM(INDIRECT(ADDRESS($AC22,22,1,1,"EST")):INDIRECT(ADDRESS($AC22,IF(Y22="",33,Y22+"21"),1,1,"EST")))-1) -> - | AF22: =IF($I22<AF$12,"-",SUM(INDIRECT(ADDRESS($AC22+"1",38,1,1,"EST")):INDIRECT(ADDRESS($AC22+"1",IF(Z22="",49,Z22+"37"),1,1,"EST")))/SUM(INDIRECT(ADDRESS($AC22,38,1,1,"EST")):INDIRECT(ADDRESS($AC22,IF(Z22="",49,Z22+"37"),1,1,"EST")))-1) -> - | AG22: =IF($I22<AG$12,"-",SUM(INDIRECT(ADDRESS($AC22+"1",54,1,1,"EST")):INDIRECT(ADDRESS($AC22+"1",IF(AA22="",65,AA22+"53"),1,1,"EST")))/SUM(INDIRECT(ADDRESS($AC22,54,1,1,"EST")):INDIRECT(ADDRESS($AC22,IF(AA22="",65,AA22+"53"),1,1,"EST")))-1) -> - | AH22: =IF($I22<AH$12,"-",SUM(INDIRECT(ADDRESS($AC22+"1",70,1,1,"EST")):INDIRECT(ADDRESS($AC22+"1",IF(AB22="",81,AB22+"69"),1,1,"EST")))/SUM(INDIRECT(ADDRESS($AC22,70,1,1,"EST")):INDIRECT(ADDRESS($AC22,IF(AB22="",81,AB22+"69"),1,1,"EST")))-1) -> -
M23: Novembro | N23: 11 | Q23: 44574.66919 | R23: 1 | S23: 2022 | AC23: =VLOOKUP(B23,EST!$B$14:$R$26,18,FALSE) ->  | AD23: =IF($I23<AD$12,"-",SUM(INDIRECT(ADDRESS($AC23+"1",6,1,1,"EST")):INDIRECT(ADDRESS($AC23+"1",IF(X23="",17,X23+"5"),1,1,"EST")))/SUM(INDIRECT(ADDRESS($AC23,6,1,1,"EST")):INDIRECT(ADDRESS($AC23,IF(X23="",17,X23+"5"),1,1,"EST")))-1) -> - | AE23: =IF($I23<AE$12,"-",SUM(INDIRECT(ADDRESS($AC23+"1",22,1,1,"EST")):INDIRECT(ADDRESS($AC23+"1",IF(Y23="",33,Y23+"21"),1,1,"EST")))/SUM(INDIRECT(ADDRESS($AC23,22,1,1,"EST")):INDIRECT(ADDRESS($AC23,IF(Y23="",33,Y23+"21"),1,1,"EST")))-1) -> - | AF23: =IF($I23<AF$12,"-",SUM(INDIRECT(ADDRESS($AC23+"1",38,1,1,"EST")):INDIRECT(ADDRESS($AC23+"1",IF(Z23="",49,Z23+"37"),1,1,"EST")))/SUM(INDIRECT(ADDRESS($AC23,38,1,1,"EST")):INDIRECT(ADDRESS($AC23,IF(Z23="",49,Z23+"37"),1,1,"EST")))-1) -> - | AG23: =IF($I23<AG$12,"-",SUM(INDIRECT(ADDRESS($AC23+"1",54,1,1,"EST")):INDIRECT(ADDRESS($AC23+"1",IF(AA23="",65,AA23+"53"),1,1,"EST")))/SUM(INDIRECT(ADDRESS($AC23,54,1,1,"EST")):INDIRECT(ADDRESS($AC23,IF(AA23="",65,AA23+"53"),1,1,"EST")))-1) -> - | AH23: =IF($I23<AH$12,"-",SUM(INDIRECT(ADDRESS($AC23+"1",70,1,1,"EST")):INDIRECT(ADDRESS($AC23+"1",IF(AB23="",81,AB23+"69"),1,1,"EST")))/SUM(INDIRECT(ADDRESS($AC23,70,1,1,"EST")):INDIRECT(ADDRESS($AC23,IF(AB23="",81,AB23+"69"),1,1,"EST")))-1) -> -
M24: Dezembro | N24: 12 | Q24: 44574.66919 | R24: 1 | S24: 2022 | AC24: =VLOOKUP(B24,EST!$B$14:$R$26,18,FALSE) ->  | AD24: =IF($I24<AD$12,"-",SUM(INDIRECT(ADDRESS($AC24+"1",6,1,1,"EST")):INDIRECT(ADDRESS($AC24+"1",IF(X24="",17,X24+"5"),1,1,"EST")))/SUM(INDIRECT(ADDRESS($AC24,6,1,1,"EST")):INDIRECT(ADDRESS($AC24,IF(X24="",17,X24+"5"),1,1,"EST")))-1) -> - | AE24: =IF($I24<AE$12,"-",SUM(INDIRECT(ADDRESS($AC24+"1",22,1,1,"EST")):INDIRECT(ADDRESS($AC24+"1",IF(Y24="",33,Y24+"21"),1,1,"EST")))/SUM(INDIRECT(ADDRESS($AC24,22,1,1,"EST")):INDIRECT(ADDRESS($AC24,IF(Y24="",33,Y24+"21"),1,1,"EST")))-1) -> - | AF24: =IF($I24<AF$12,"-",SUM(INDIRECT(ADDRESS($AC24+"1",38,1,1,"EST")):INDIRECT(ADDRESS($AC24+"1",IF(Z24="",49,Z24+"37"),1,1,"EST")))/SUM(INDIRECT(ADDRESS($AC24,38,1,1,"EST")):INDIRECT(ADDRESS($AC24,IF(Z24="",49,Z24+"37"),1,1,"EST")))-1) -> - | AG24: =IF($I24<AG$12,"-",SUM(INDIRECT(ADDRESS($AC24+"1",54,1,1,"EST")):INDIRECT(ADDRESS($AC24+"1",IF(AA24="",65,AA24+"53"),1,1,"EST")))/SUM(INDIRECT(ADDRESS($AC24,54,1,1,"EST")):INDIRECT(ADDRESS($AC24,IF(AA24="",65,AA24+"53"),1,1,"EST")))-1) -> - | AH24: =IF($I24<AH$12,"-",SUM(INDIRECT(ADDRESS($AC24+"1",70,1,1,"EST")):INDIRECT(ADDRESS($AC24+"1",IF(AB24="",81,AB24+"69"),1,1,"EST")))/SUM(INDIRECT(ADDRESS($AC24,70,1,1,"EST")):INDIRECT(ADDRESS($AC24,IF(AB24="",81,AB24+"69"),1,1,"EST")))-1) -> -
Q25: 44574.66919 | R25: 1 | S25: 2022 | AC25: =VLOOKUP(B25,EST!$B$14:$R$26,18,FALSE) ->  | AD25: =IF($I25<AD$12,"-",SUM(INDIRECT(ADDRESS($AC25+"1",6,1,1,"EST")):INDIRECT(ADDRESS($AC25+"1",IF(X25="",17,X25+"5"),1,1,"EST")))/SUM(INDIRECT(ADDRESS($AC25,6,1,1,"EST")):INDIRECT(ADDRESS($AC25,IF(X25="",17,X25+"5"),1,1,"EST")))-1) -> - | AE25: =IF($I25<AE$12,"-",SUM(INDIRECT(ADDRESS($AC25+"1",22,1,1,"EST")):INDIRECT(ADDRESS($AC25+"1",IF(Y25="",33,Y25+"21"),1,1,"EST")))/SUM(INDIRECT(ADDRESS($AC25,22,1,1,"EST")):INDIRECT(ADDRESS($AC25,IF(Y25="",33,Y25+"21"),1,1,"EST")))-1) -> - | AF25: =IF($I25<AF$12,"-",SUM(INDIRECT(ADDRESS($AC25+"1",38,1,1,"EST")):INDIRECT(ADDRESS($AC25+"1",IF(Z25="",49,Z25+"37"),1,1,"EST")))/SUM(INDIRECT(ADDRESS($AC25,38,1,1,"EST")):INDIRECT(ADDRESS($AC25,IF(Z25="",49,Z25+"37"),1,1,"EST")))-1) -> - | AG25: =IF($I25<AG$12,"-",SUM(INDIRECT(ADDRESS($AC25+"1",54,1,1,"EST")):INDIRECT(ADDRESS($AC25+"1",IF(AA25="",65,AA25+"53"),1,1,"EST")))/SUM(INDIRECT(ADDRESS($AC25,54,1,1,"EST")):INDIRECT(ADDRESS($AC25,IF(AA25="",65,AA25+"53"),1,1,"EST")))-1) -> - | AH25: =IF($I25<AH$12,"-",SUM(INDIRECT(ADDRESS($AC25+"1",70,1,1,"EST")):INDIRECT(ADDRESS($AC25+"1",IF(AB25="",81,AB25+"69"),1,1,"EST")))/SUM(INDIRECT(ADDRESS($AC25,70,1,1,"EST")):INDIRECT(ADDRESS($AC25,IF(AB25="",81,AB25+"69"),1,1,"EST")))-1) -> -
Q26: 44574.66919 | R26: 1 | S26: 2022 | AC26: =VLOOKUP(B26,EST!$B$14:$R$26,18,FALSE) ->  | AD26: =IF($I26<AD$12,"-",SUM(INDIRECT(ADDRESS($AC26+"1",6,1,1,"EST")):INDIRECT(ADDRESS($AC26+"1",IF(X26="",17,X26+"5"),1,1,"EST")))/SUM(INDIRECT(ADDRESS($AC26,6,1,1,"EST")):INDIRECT(ADDRESS($AC26,IF(X26="",17,X26+"5"),1,1,"EST")))-1) -> - | AE26: =IF($I26<AE$12,"-",SUM(INDIRECT(ADDRESS($AC26+"1",22,1,1,"EST")):INDIRECT(ADDRESS($AC26+"1",IF(Y26="",33,Y26+"21"),1,1,"EST")))/SUM(INDIRECT(ADDRESS($AC26,22,1,1,"EST")):INDIRECT(ADDRESS($AC26,IF(Y26="",33,Y26+"21"),1,1,"EST")))-1) -> - | AF26: =IF($I26<AF$12,"-",SUM(INDIRECT(ADDRESS($AC26+"1",38,1,1,"EST")):INDIRECT(ADDRESS($AC26+"1",IF(Z26="",49,Z26+"37"),1,1,"EST")))/SUM(INDIRECT(ADDRESS($AC26,38,1,1,"EST")):INDIRECT(ADDRESS($AC26,IF(Z26="",49,Z26+"37"),1,1,"EST")))-1) -> - | AG26: =IF($I26<AG$12,"-",SUM(INDIRECT(ADDRESS($AC26+"1",54,1,1,"EST")):INDIRECT(ADDRESS($AC26+"1",IF(AA26="",65,AA26+"53"),1,1,"EST")))/SUM(INDIRECT(ADDRESS($AC26,54,1,1,"EST")):INDIRECT(ADDRESS($AC26,IF(AA26="",65,AA26+"53"),1,1,"EST")))-1) -> - | AH26: =IF($I26<AH$12,"-",SUM(INDIRECT(ADDRESS($AC26+"1",70,1,1,"EST")):INDIRECT(ADDRESS($AC26+"1",IF(AB26="",81,AB26+"69"),1,1,"EST")))/SUM(INDIRECT(ADDRESS($AC26,70,1,1,"EST")):INDIRECT(ADDRESS($AC26,IF(AB26="",81,AB26+"69"),1,1,"EST")))-1) -> -
Q27: 44574.66919 | R27: 1 | S27: 2022 | AC27: =VLOOKUP(B27,EST!$B$14:$R$26,18,FALSE) ->  | AD27: =IF($I27<AD$12,"-",SUM(INDIRECT(ADDRESS($AC27+"1",6,1,1,"EST")):INDIRECT(ADDRESS($AC27+"1",IF(X27="",17,X27+"5"),1,1,"EST")))/SUM(INDIRECT(ADDRESS($AC27,6,1,1,"EST")):INDIRECT(ADDRESS($AC27,IF(X27="",17,X27+"5"),1,1,"EST")))-1) -> - | AE27: =IF($I27<AE$12,"-",SUM(INDIRECT(ADDRESS($AC27+"1",22,1,1,"EST")):INDIRECT(ADDRESS($AC27+"1",IF(Y27="",33,Y27+"21"),1,1,"EST")))/SUM(INDIRECT(ADDRESS($AC27,22,1,1,"EST")):INDIRECT(ADDRESS($AC27,IF(Y27="",33,Y27+"21"),1,1,"EST")))-1) -> - | AF27: =IF($I27<AF$12,"-",SUM(INDIRECT(ADDRESS($AC27+"1",38,1,1,"EST")):INDIRECT(ADDRESS($AC27+"1",IF(Z27="",49,Z27+"37"),1,1,"EST")))/SUM(INDIRECT(ADDRESS($AC27,38,1,1,"EST")):INDIRECT(ADDRESS($AC27,IF(Z27="",49,Z27+"37"),1,1,"EST")))-1) -> - | AG27: =IF($I27<AG$12,"-",SUM(INDIRECT(ADDRESS($AC27+"1",54,1,1,"EST")):INDIRECT(ADDRESS($AC27+"1",IF(AA27="",65,AA27+"53"),1,1,"EST")))/SUM(INDIRECT(ADDRESS($AC27,54,1,1,"EST")):INDIRECT(ADDRESS($AC27,IF(AA27="",65,AA27+"53"),1,1,"EST")))-1) -> - | AH27: =IF($I27<AH$12,"-",SUM(INDIRECT(ADDRESS($AC27+"1",70,1,1,"EST")):INDIRECT(ADDRESS($AC27+"1",IF(AB27="",81,AB27+"69"),1,1,"EST")))/SUM(INDIRECT(ADDRESS($AC27,70,1,1,"EST")):INDIRECT(ADDRESS($AC27,IF(AB27="",81,AB27+"69"),1,1,"EST")))-1) -> -
Q28: 44574.66919 | R28: 1 | S28: 2022 | AC28: =VLOOKUP(B28,EST!$B$14:$R$26,18,FALSE) ->  | AD28: =IF($I28<AD$12,"-",SUM(INDIRECT(ADDRESS($AC28+"1",6,1,1,"EST")):INDIRECT(ADDRESS($AC28+"1",IF(X28="",17,X28+"5"),1,1,"EST")))/SUM(INDIRECT(ADDRESS($AC28,6,1,1,"EST")):INDIRECT(ADDRESS($AC28,IF(X28="",17,X28+"5"),1,1,"EST")))-1) -> - | AE28: =IF($I28<AE$12,"-",SUM(INDIRECT(ADDRESS($AC28+"1",22,1,1,"EST")):INDIRECT(ADDRESS($AC28+"1",IF(Y28="",33,Y28+"21"),1,1,"EST")))/SUM(INDIRECT(ADDRESS($AC28,22,1,1,"EST")):INDIRECT(ADDRESS($AC28,IF(Y28="",33,Y28+"21"),1,1,"EST")))-1) -> - | AF28: =IF($I28<AF$12,"-",SUM(INDIRECT(ADDRESS($AC28+"1",38,1,1,"EST")):INDIRECT(ADDRESS($AC28+"1",IF(Z28="",49,Z28+"37"),1,1,"EST")))/SUM(INDIRECT(ADDRESS($AC28,38,1,1,"EST")):INDIRECT(ADDRESS($AC28,IF(Z28="",49,Z28+"37"),1,1,"EST")))-1) -> - | AG28: =IF($I28<AG$12,"-",SUM(INDIRECT(ADDRESS($AC28+"1",54,1,1,"EST")):INDIRECT(ADDRESS($AC28+"1",IF(AA28="",65,AA28+"53"),1,1,"EST")))/SUM(INDIRECT(ADDRESS($AC28,54,1,1,"EST")):INDIRECT(ADDRESS($AC28,IF(AA28="",65,AA28+"53"),1,1,"EST")))-1) -> - | AH28: =IF($I28<AH$12,"-",SUM(INDIRECT(ADDRESS($AC28+"1",70,1,1,"EST")):INDIRECT(ADDRESS($AC28+"1",IF(AB28="",81,AB28+"69"),1,1,"EST")))/SUM(INDIRECT(ADDRESS($AC28,70,1,1,"EST")):INDIRECT(ADDRESS($AC28,IF(AB28="",81,AB28+"69"),1,1,"EST")))-1) -> -
Q29: 44574.66919 | R29: 1 | S29: 2022 | AC29: =VLOOKUP(B29,EST!$B$14:$R$26,18,FALSE) ->  | AD29: =IF($I29<AD$12,"-",SUM(INDIRECT(ADDRESS($AC29+"1",6,1,1,"EST")):INDIRECT(ADDRESS($AC29+"1",IF(X29="",17,X29+"5"),1,1,"EST")))/SUM(INDIRECT(ADDRESS($AC29,6,1,1,"EST")):INDIRECT(ADDRESS($AC29,IF(X29="",17,X29+"5"),1,1,"EST")))-1) -> - | AE29: =IF($I29<AE$12,"-",SUM(INDIRECT(ADDRESS($AC29+"1",22,1,1,"EST")):INDIRECT(ADDRESS($AC29+"1",IF(Y29="",33,Y29+"21"),1,1,"EST")))/SUM(INDIRECT(ADDRESS($AC29,22,1,1,"EST")):INDIRECT(ADDRESS($AC29,IF(Y29="",33,Y29+"21"),1,1,"EST")))-1) -> - | AF29: =IF($I29<AF$12,"-",SUM(INDIRECT(ADDRESS($AC29+"1",38,1,1,"EST")):INDIRECT(ADDRESS($AC29+"1",IF(Z29="",49,Z29+"37"),1,1,"EST")))/SUM(INDIRECT(ADDRESS($AC29,38,1,1,"EST")):INDIRECT(ADDRESS($AC29,IF(Z29="",49,Z29+"37"),1,1,"EST")))-1) -> - | AG29: =IF($I29<AG$12,"-",SUM(INDIRECT(ADDRESS($AC29+"1",54,1,1,"EST")):INDIRECT(ADDRESS($AC29+"1",IF(AA29="",65,AA29+"53"),1,1,"EST")))/SUM(INDIRECT(ADDRESS($AC29,54,1,1,"EST")):INDIRECT(ADDRESS($AC29,IF(AA29="",65,AA29+"53"),1,1,"EST")))-1) -> - | AH29: =IF($I29<AH$12,"-",SUM(INDIRECT(ADDRESS($AC29+"1",70,1,1,"EST")):INDIRECT(ADDRESS($AC29+"1",IF(AB29="",81,AB29+"69"),1,1,"EST")))/SUM(INDIRECT(ADDRESS($AC29,70,1,1,"EST")):INDIRECT(ADDRESS($AC29,IF(AB29="",81,AB29+"69"),1,1,"EST")))-1) -> -
Q30: 44574.66919 | R30: 1 | S30: 2022 | AC30: =VLOOKUP(B30,EST!$B$14:$R$26,18,FALSE) ->  | AD30: =IF($I30<AD$12,"-",SUM(INDIRECT(ADDRESS($AC30+"1",6,1,1,"EST")):INDIRECT(ADDRESS($AC30+"1",IF(X30="",17,X30+"5"),1,1,"EST")))/SUM(INDIRECT(ADDRESS($AC30,6,1,1,"EST")):INDIRECT(ADDRESS($AC30,IF(X30="",17,X30+"5"),1,1,"EST")))-1) -> - | AE30: =IF($I30<AE$12,"-",SUM(INDIRECT(ADDRESS($AC30+"1",22,1,1,"EST")):INDIRECT(ADDRESS($AC30+"1",IF(Y30="",33,Y30+"21"),1,1,"EST")))/SUM(INDIRECT(ADDRESS($AC30,22,1,1,"EST")):INDIRECT(ADDRESS($AC30,IF(Y30="",33,Y30+"21"),1,1,"EST")))-1) -> - | AF30: =IF($I30<AF$12,"-",SUM(INDIRECT(ADDRESS($AC30+"1",38,1,1,"EST")):INDIRECT(ADDRESS($AC30+"1",IF(Z30="",49,Z30+"37"),1,1,"EST")))/SUM(INDIRECT(ADDRESS($AC30,38,1,1,"EST")):INDIRECT(ADDRESS($AC30,IF(Z30="",49,Z30+"37"),1,1,"EST")))-1) -> - | AG30: =IF($I30<AG$12,"-",SUM(INDIRECT(ADDRESS($AC30+"1",54,1,1,"EST")):INDIRECT(ADDRESS($AC30+"1",IF(AA30="",65,AA30+"53"),1,1,"EST")))/SUM(INDIRECT(ADDRESS($AC30,54,1,1,"EST")):INDIRECT(ADDRESS($AC30,IF(AA30="",65,AA30+"53"),1,1,"EST")))-1) -> - | AH30: =IF($I30<AH$12,"-",SUM(INDIRECT(ADDRESS($AC30+"1",70,1,1,"EST")):INDIRECT(ADDRESS($AC30+"1",IF(AB30="",81,AB30+"69"),1,1,"EST")))/SUM(INDIRECT(ADDRESS($AC30,70,1,1,"EST")):INDIRECT(ADDRESS($AC30,IF(AB30="",81,AB30+"69"),1,1,"EST")))-1) -> -
B32: =EST!B14 -> Aumentar: Receitas | C32: =DA!H13 -> Perspectiva Financeira | I32: =DA!D13 -> 2020
B33: =EST!B19 -> Aumentar: Lucratividade | C33: =DA!K13 -> Perspectiva de Clientes | I33: =IF(OR(DA!$D$15="5 anos",DA!$D$15="3 anos"),'PA 4'!I32+1,"") -> 2021
B34: =EST!B24 -> Diminuir: Despesas | C34: =DA!H24 -> Perspectiva de Processos Internos | I34: =IF(OR(DA!$D$15="5 anos",DA!$D$15="3 anos"),'PA 4'!I33+1,"") -> 2022
C35: =DA!K24 -> Perspectiva de Aprendizagem | I35: =IF(DA!$D$15="3 anos","",IF(DA!$D$15="5 anos",I34+1,"")) -> 
I36: =IF(DA!$D$15="3 anos","",IF(DA!$D$15="5 anos",I35+1,"")) -> 

Sheet PA 2
B12: Metas | D12: Ação | E12: Setor | F12: Quem | G12: Como | H12: Prazo (Mês) | I12: Prazo (Ano) | J12: Status | K12: Saldo (Dias) | L12: % | O12: Mês prazo | P12: data prazo | Q12: Hoje | R12: mês hoje | S12: ano hoje | U12: atraso | V12: faltam | X12: =DA!D13 -> 2020 | Y12: =X12+1 -> 2021 | Z12: =Y12+1 -> 2022 | AA12: =Z12+1 -> 2023 | AB12: =AA12+1 -> 2024 | AD12: =X12 -> 2020 | AE12: =Y12 -> 2021 | AF12: =Z12 -> 2022 | AG12: =AA12 -> 2023 | AH12: =AB12 -> 2024 | AI12: Contador de dias
B13: Aumentar: Quantidade de vendas | D13: Patrocinar redes sociais | E13: Marketing | F13: Silas | G13: Criando campanhas de mkt. | H13: Janeiro | I13: 2020 | J13: =IF(L13=1,"Concluído",IF(P13="","",IF(T13=0,"Vence esse mês",IF(T13>=3,"Faltam "&T13&" meses",IF(T13=2,"Faltam 2 meses",IF(T13=1,"Falta 1 mês",IF(T13=-1,ABS(T13)&" mês de atraso",ABS(T13)&" meses de atraso"))))))) -> 24 meses de atraso | K13: =IF(L13=1,"Concluído",AI13) -> -743.6691931 | L13: 0.99 | M13: Janeiro | N13: 1 | O13: =IF(ISERROR(VLOOKUP(H13,$M$13:$N$24,2,FALSE)),"",VLOOKUP(H13,$M$13:$N$24,2,FALSE)) -> 1 | P13: =IF(O13="","","1/"&O13&"/"&I13) -> 1/1/2020 | Q13: =NOW() -> 44574.66919 | R13: =MONTH(Q13) -> 1 | S13: =YEAR(Q13) -> 2022 | T13: =IF(U13<>"",-U13,V13) -> -24 | U13: =IF(I13>$S$13,"",((YEAR(NOW())-YEAR(P13))*12+MONTH(NOW())-MONTH(P13))) -> 24 | V13: =IF(U13<>"","",((YEAR(P13)-YEAR($Q$13))*12+MONTH(P13)-MONTH($Q$13))) ->  | X13: =IF($I13=X$12,$O13,"") -> 1 | Y13: =IF($I13=Y$12,$O13,"") ->  | Z13: =IF($I13=Z$12,$O13,"") ->  | AA13: =IF($I13=AA$12,$O13,"") ->  | AB13: =IF($I13=AB$12,$O13,"") ->  | AC13: =VLOOKUP(B13,'EST 2'!$B$14:$R$26,18,FALSE) ->  | AD13: =IF($I13<AD$12,"-",SUM(INDIRECT(ADDRESS($AC13+"1",6,1,1,"EST 2")):INDIRECT(ADDRESS($AC13+"1",IF(X13="",17,X13+"5"),1,1,"EST 2")))/SUM(INDIRECT(ADDRESS($AC13,6,1,1,"EST 2")):INDIRECT(ADDRESS($AC13,IF(X13="",17,X13+"5"),1,1,"EST 2")))-1) ->  | AE13: =IF($I13<AE$12,"-",SUM(INDIRECT(ADDRESS($AC13+"1",22,1,1,"EST 2")):INDIRECT(ADDRESS($AC13+"1",IF(Y13="",33,Y13+"21"),1,1,"EST 2")))/SUM(INDIRECT(ADDRESS($AC13,22,1,1,"EST 2")):INDIRECT(ADDRESS($AC13,IF(Y13="",33,Y13+"21"),1,1,"EST 2")))-1) -> - | AF13: =IF($I13<AF$12,"-",SUM(INDIRECT(ADDRESS($AC13+"1",38,1,1,"EST 2")):INDIRECT(ADDRESS($AC13+"1",IF(Z13="",49,Z13+"37"),1,1,"EST 2")))/SUM(INDIRECT(ADDRESS($AC13,38,1,1,"EST 2")):INDIRECT(ADDRESS($AC13,IF(Z13="",49,Z13+"37"),1,1,"EST 2")))-1) -> - | AG13: =IF($I13<AG$12,"-",SUM(INDIRECT(ADDRESS($AC13+"1",54,1,1,"EST 2")):INDIRECT(ADDRESS($AC13+"1",IF(AA13="",65,AA13+"53"),1,1,"EST 2")))/SUM(INDIRECT(ADDRESS($AC13,54,1,1,"EST 2")):INDIRECT(ADDRESS($AC13,IF(AA13="",65,AA13+"53"),1,1,"EST 2")))-1) -> - | AH13: =IF($I13<AH$12,"-",SUM(INDIRECT(ADDRESS($AC13+"1",70,1,1,"EST 2")):INDIRECT(ADDRESS($AC13+"1",IF(AB13="",81,AB13+"69"),1,1,"EST 2")))/SUM(INDIRECT(ADDRESS($AC13,70,1,1,"EST 2")):INDIRECT(ADDRESS($AC13,IF(AB13="",81,AB13+"69"),1,1,"EST 2")))-1) -> - | AI13: =IF(P13="","",P13-Q13) -> -743.6691931
B14: Aumentar: Número de clientes | D14: Participação em feiras e eventos | E14: Comercial | F14: José | G14: Pesquisando eventos no segmento. | H14: Junho | I14: 2020 | J14: =IF(L14=1,"Concluído",IF(P14="","",IF(T14=0,"Vence esse mês",IF(T14>=3,"Faltam "&T14&" meses",IF(T14=2,"Faltam 2 meses",IF(T14=1,"Falta 1 mês",IF(T14=-1,ABS(T14)&" mês de atraso",ABS(T14)&" meses de atraso"))))))) -> Concluído | K14: Concluído | L14: 1 | M14: Fevereiro | N14: 2 | O14: =IF(ISERROR(VLOOKUP(H14,$M$13:$N$24,2,FALSE)),"",VLOOKUP(H14,$M$13:$N$24,2,FALSE)) -> 6 | P14: =IF(O14="","","1/"&O14&"/"&I14) -> 1/6/2020 | Q14: =NOW() -> 44574.66919 | R14: =MONTH(Q14) -> 1 | S14: =YEAR(Q14) -> 2022 | T14: =IF(U14<>"",-U14,V14) -> -19 | U14: =IF(I14>$S$13,"",((YEAR(NOW())-YEAR(P14))*12+MONTH(NOW())-MONTH(P14))) -> 19 | V14: =IF(U14<>"","",((YEAR(P14)-YEAR($Q$13))*12+MONTH(P14)-MONTH($Q$13))) ->  | X14: =IF($I14=X$12,$O14,"") -> 6 | AC14: =VLOOKUP(B14,'EST 2'!$B$14:$R$26,18,FALSE) ->  | AD14: =IF($I14<AD$12,"-",SUM(INDIRECT(ADDRESS($AC14+"1",6,1,1,"EST 2")):INDIRECT(ADDRESS($AC14+"1",IF(X14="",17,X14+"5"),1,1,"EST 2")))/SUM(INDIRECT(ADDRESS($AC14,6,1,1,"EST 2")):INDIRECT(ADDRESS($AC14,IF(X14="",17,X14+"5"),1,1,"EST 2")))-1) ->  | AE14: =IF($I14<AE$12,"-",SUM(INDIRECT(ADDRESS($AC14+"1",22,1,1,"EST 2")):INDIRECT(ADDRESS($AC14+"1",IF(Y14="",33,Y14+"21"),1,1,"EST 2")))/SUM(INDIRECT(ADDRESS($AC14,22,1,1,"EST 2")):INDIRECT(ADDRESS($AC14,IF(Y14="",33,Y14+"21"),1,1,"EST 2")))-1) -> - | AF14: =IF($I14<AF$12,"-",SUM(INDIRECT(ADDRESS($AC14+"1",38,1,1,"EST 2")):INDIRECT(ADDRESS($AC14+"1",IF(Z14="",49,Z14+"37"),1,1,"EST 2")))/SUM(INDIRECT(ADDRESS($AC14,38,1,1,"EST 2")):INDIRECT(ADDRESS($AC14,IF(Z14="",49,Z14+"37"),1,1,"EST 2")))-1) -> - | AG14: =IF($I14<AG$12,"-",SUM(INDIRECT(ADDRESS($AC14+"1",54,1,1,"EST 2")):INDIRECT(ADDRESS($AC14+"1",IF(AA14="",65,AA14+"53"),1,1,"EST 2")))/SUM(INDIRECT(ADDRESS($AC14,54,1,1,"EST 2")):INDIRECT(ADDRESS($AC14,IF(AA14="",65,AA14+"53"),1,1,"EST 2")))-1) -> - | AH14: =IF($I14<AH$12,"-",SUM(INDIRECT(ADDRESS($AC14+"1",70,1,1,"EST 2")):INDIRECT(ADDRESS($AC14+"1",IF(AB14="",81,AB14+"69"),1,1,"EST 2")))/SUM(INDIRECT(ADDRESS($AC14,70,1,1,"EST 2")):INDIRECT(ADDRESS($AC14,IF(AB14="",81,AB14+"69"),1,1,"EST 2")))-1) -> - | AI14: =IF(P14="","",P14-Q14) -> -591.6691931
J15: =IF(L15=1,"Concluído",IF(P15="","",IF(T15=0,"Vence esse mês",IF(T15>=3,"Faltam "&T15&" meses",IF(T15=2,"Faltam 2 meses",IF(T15=1,"Falta 1 mês",IF(T15=-1,ABS(T15)&" mês de atraso",ABS(T15)&" meses de atraso"))))))) ->  | M15: Março | N15: 3 | Q15: 44574.66919 | R15: 1 | S15: 2022 | AC15: =VLOOKUP(B15,'EST 2'!$B$14:$R$26,18,FALSE) ->  | AD15: =IF($I15<AD$12,"-",SUM(INDIRECT(ADDRESS($AC15+"1",6,1,1,"EST 2")):INDIRECT(ADDRESS($AC15+"1",IF(X15="",17,X15+"5"),1,1,"EST 2")))/SUM(INDIRECT(ADDRESS($AC15,6,1,1,"EST 2")):INDIRECT(ADDRESS($AC15,IF(X15="",17,X15+"5"),1,1,"EST 2")))-1) -> - | AE15: =IF($I15<AE$12,"-",SUM(INDIRECT(ADDRESS($AC15+"1",22,1,1,"EST 2")):INDIRECT(ADDRESS($AC15+"1",IF(Y15="",33,Y15+"21"),1,1,"EST 2")))/SUM(INDIRECT(ADDRESS($AC15,22,1,1,"EST 2")):INDIRECT(ADDRESS($AC15,IF(Y15="",33,Y15+"21"),1,1,"EST 2")))-1) -> - | AF15: =IF($I15<AF$12,"-",SUM(INDIRECT(ADDRESS($AC15+"1",38,1,1,"EST 2")):INDIRECT(ADDRESS($AC15+"1",IF(Z15="",49,Z15+"37"),1,1,"EST 2")))/SUM(INDIRECT(ADDRESS($AC15,38,1,1,"EST 2")):INDIRECT(ADDRESS($AC15,IF(Z15="",49,Z15+"37"),1,1,"EST 2")))-1) -> - | AG15: =IF($I15<AG$12,"-",SUM(INDIRECT(ADDRESS($AC15+"1",54,1,1,"EST 2")):INDIRECT(ADDRESS($AC15+"1",IF(AA15="",65,AA15+"53"),1,1,"EST 2")))/SUM(INDIRECT(ADDRESS($AC15,54,1,1,"EST 2")):INDIRECT(ADDRESS($AC15,IF(AA15="",65,AA15+"53"),1,1,"EST 2")))-1) -> - | AH15: =IF($I15<AH$12,"-",SUM(INDIRECT(ADDRESS($AC15+"1",70,1,1,"EST 2")):INDIRECT(ADDRESS($AC15+"1",IF(AB15="",81,AB15+"69"),1,1,"EST 2")))/SUM(INDIRECT(ADDRESS($AC15,70,1,1,"EST 2")):INDIRECT(ADDRESS($AC15,IF(AB15="",81,AB15+"69"),1,1,"EST 2")))-1) -> -
M16: Abril | N16: 4 | Q16: 44574.66919 | R16: 1 | S16: 2022 | AC16: =VLOOKUP(B16,'EST 2'!$B$14:$R$26,18,FALSE) ->  | AD16: =IF($I16<AD$12,"-",SUM(INDIRECT(ADDRESS($AC16+"1",6,1,1,"EST 2")):INDIRECT(ADDRESS($AC16+"1",IF(X16="",17,X16+"5"),1,1,"EST 2")))/SUM(INDIRECT(ADDRESS($AC16,6,1,1,"EST 2")):INDIRECT(ADDRESS($AC16,IF(X16="",17,X16+"5"),1,1,"EST 2")))-1) -> - | AE16: =IF($I16<AE$12,"-",SUM(INDIRECT(ADDRESS($AC16+"1",22,1,1,"EST 2")):INDIRECT(ADDRESS($AC16+"1",IF(Y16="",33,Y16+"21"),1,1,"EST 2")))/SUM(INDIRECT(ADDRESS($AC16,22,1,1,"EST 2")):INDIRECT(ADDRESS($AC16,IF(Y16="",33,Y16+"21"),1,1,"EST 2")))-1) -> - | AF16: =IF($I16<AF$12,"-",SUM(INDIRECT(ADDRESS($AC16+"1",38,1,1,"EST 2")):INDIRECT(ADDRESS($AC16+"1",IF(Z16="",49,Z16+"37"),1,1,"EST 2")))/SUM(INDIRECT(ADDRESS($AC16,38,1,1,"EST 2")):INDIRECT(ADDRESS($AC16,IF(Z16="",49,Z16+"37"),1,1,"EST 2")))-1) -> - | AG16: =IF($I16<AG$12,"-",SUM(INDIRECT(ADDRESS($AC16+"1",54,1,1,"EST 2")):INDIRECT(ADDRESS($AC16+"1",IF(AA16="",65,AA16+"53"),1,1,"EST 2")))/SUM(INDIRECT(ADDRESS($AC16,54,1,1,"EST 2")):INDIRECT(ADDRESS($AC16,IF(AA16="",65,AA16+"53"),1,1,"EST 2")))-1) -> - | AH16: =IF($I16<AH$12,"-",SUM(INDIRECT(ADDRESS($AC16+"1",70,1,1,"EST 2")):INDIRECT(ADDRESS($AC16+"1",IF(AB16="",81,AB16+"69"),1,1,"EST 2")))/SUM(INDIRECT(ADDRESS($AC16,70,1,1,"EST 2")):INDIRECT(ADDRESS($AC16,IF(AB16="",81,AB16+"69"),1,1,"EST 2")))-1) -> -
M17: Maio | N17: 5 | Q17: 44574.66919 | R17: 1 | S17: 2022 | AC17: =VLOOKUP(B17,'EST 2'!$B$14:$R$26,18,FALSE) ->  | AD17: =IF($I17<AD$12,"-",SUM(INDIRECT(ADDRESS($AC17+"1",6,1,1,"EST 2")):INDIRECT(ADDRESS($AC17+"1",IF(X17="",17,X17+"5"),1,1,"EST 2")))/SUM(INDIRECT(ADDRESS($AC17,6,1,1,"EST 2")):INDIRECT(ADDRESS($AC17,IF(X17="",17,X17+"5"),1,1,"EST 2")))-1) -> - | AE17: =IF($I17<AE$12,"-",SUM(INDIRECT(ADDRESS($AC17+"1",22,1,1,"EST 2")):INDIRECT(ADDRESS($AC17+"1",IF(Y17="",33,Y17+"21"),1,1,"EST 2")))/SUM(INDIRECT(ADDRESS($AC17,22,1,1,"EST 2")):INDIRECT(ADDRESS($AC17,IF(Y17="",33,Y17+"21"),1,1,"EST 2")))-1) -> - | AF17: =IF($I17<AF$12,"-",SUM(INDIRECT(ADDRESS($AC17+"1",38,1,1,"EST 2")):INDIRECT(ADDRESS($AC17+"1",IF(Z17="",49,Z17+"37"),1,1,"EST 2")))/SUM(INDIRECT(ADDRESS($AC17,38,1,1,"EST 2")):INDIRECT(ADDRESS($AC17,IF(Z17="",49,Z17+"37"),1,1,"EST 2")))-1) -> - | AG17: =IF($I17<AG$12,"-",SUM(INDIRECT(ADDRESS($AC17+"1",54,1,1,"EST 2")):INDIRECT(ADDRESS($AC17+"1",IF(AA17="",65,AA17+"53"),1,1,"EST 2")))/SUM(INDIRECT(ADDRESS($AC17,54,1,1,"EST 2")):INDIRECT(ADDRESS($AC17,IF(AA17="",65,AA17+"53"),1,1,"EST 2")))-1) -> - | AH17: =IF($I17<AH$12,"-",SUM(INDIRECT(ADDRESS($AC17+"1",70,1,1,"EST 2")):INDIRECT(ADDRESS($AC17+"1",IF(AB17="",81,AB17+"69"),1,1,"EST 2")))/SUM(INDIRECT(ADDRESS($AC17,70,1,1,"EST 2")):INDIRECT(ADDRESS($AC17,IF(AB17="",81,AB17+"69"),1,1,"EST 2")))-1) -> -
K18: =IF(L18=1,"Concluído",AI18) ->  | M18: Junho | N18: 6 | Q18: 44574.66919 | R18: 1 | S18: 2022 | AC18: =VLOOKUP(B18,'EST 2'!$B$14:$R$26,18,FALSE) ->  | AD18: =IF($I18<AD$12,"-",SUM(INDIRECT(ADDRESS($AC18+"1",6,1,1,"EST 2")):INDIRECT(ADDRESS($AC18+"1",IF(X18="",17,X18+"5"),1,1,"EST 2")))/SUM(INDIRECT(ADDRESS($AC18,6,1,1,"EST 2")):INDIRECT(ADDRESS($AC18,IF(X18="",17,X18+"5"),1,1,"EST 2")))-1) -> - | AE18: =IF($I18<AE$12,"-",SUM(INDIRECT(ADDRESS($AC18+"1",22,1,1,"EST 2")):INDIRECT(ADDRESS($AC18+"1",IF(Y18="",33,Y18+"21"),1,1,"EST 2")))/SUM(INDIRECT(ADDRESS($AC18,22,1,1,"EST 2")):INDIRECT(ADDRESS($AC18,IF(Y18="",33,Y18+"21"),1,1,"EST 2")))-1) -> - | AF18: =IF($I18<AF$12,"-",SUM(INDIRECT(ADDRESS($AC18+"1",38,1,1,"EST 2")):INDIRECT(ADDRESS($AC18+"1",IF(Z18="",49,Z18+"37"),1,1,"EST 2")))/SUM(INDIRECT(ADDRESS($AC18,38,1,1,"EST 2")):INDIRECT(ADDRESS($AC18,IF(Z18="",49,Z18+"37"),1,1,"EST 2")))-1) -> - | AG18: =IF($I18<AG$12,"-",SUM(INDIRECT(ADDRESS($AC18+"1",54,1,1,"EST 2")):INDIRECT(ADDRESS($AC18+"1",IF(AA18="",65,AA18+"53"),1,1,"EST 2")))/SUM(INDIRECT(ADDRESS($AC18,54,1,1,"EST 2")):INDIRECT(ADDRESS($AC18,IF(AA18="",65,AA18+"53"),1,1,"EST 2")))-1) -> - | AH18: =IF($I18<AH$12,"-",SUM(INDIRECT(ADDRESS($AC18+"1",70,1,1,"EST 2")):INDIRECT(ADDRESS($AC18+"1",IF(AB18="",81,AB18+"69"),1,1,"EST 2")))/SUM(INDIRECT(ADDRESS($AC18,70,1,1,"EST 2")):INDIRECT(ADDRESS($AC18,IF(AB18="",81,AB18+"69"),1,1,"EST 2")))-1) -> -
K19: =IF(L19=1,"Concluído",AI19) ->  | M19: Julho | N19: 7 | Q19: 44574.66919 | R19: 1 | S19: 2022 | AC19: =VLOOKUP(B19,'EST 2'!$B$14:$R$26,18,FALSE) ->  | AD19: =IF($I19<AD$12,"-",SUM(INDIRECT(ADDRESS($AC19+"1",6,1,1,"EST 2")):INDIRECT(ADDRESS($AC19+"1",IF(X19="",17,X19+"5"),1,1,"EST 2")))/SUM(INDIRECT(ADDRESS($AC19,6,1,1,"EST 2")):INDIRECT(ADDRESS($AC19,IF(X19="",17,X19+"5"),1,1,"EST 2")))-1) -> - | AE19: =IF($I19<AE$12,"-",SUM(INDIRECT(ADDRESS($AC19+"1",22,1,1,"EST 2")):INDIRECT(ADDRESS($AC19+"1",IF(Y19="",33,Y19+"21"),1,1,"EST 2")))/SUM(INDIRECT(ADDRESS($AC19,22,1,1,"EST 2")):INDIRECT(ADDRESS($AC19,IF(Y19="",33,Y19+"21"),1,1,"EST 2")))-1) -> - | AF19: =IF($I19<AF$12,"-",SUM(INDIRECT(ADDRESS($AC19+"1",38,1,1,"EST 2")):INDIRECT(ADDRESS($AC19+"1",IF(Z19="",49,Z19+"37"),1,1,"EST 2")))/SUM(INDIRECT(ADDRESS($AC19,38,1,1,"EST 2")):INDIRECT(ADDRESS($AC19,IF(Z19="",49,Z19+"37"),1,1,"EST 2")))-1) -> - | AG19: =IF($I19<AG$12,"-",SUM(INDIRECT(ADDRESS($AC19+"1",54,1,1,"EST 2")):INDIRECT(ADDRESS($AC19+"1",IF(AA19="",65,AA19+"53"),1,1,"EST 2")))/SUM(INDIRECT(ADDRESS($AC19,54,1,1,"EST 2")):INDIRECT(ADDRESS($AC19,IF(AA19="",65,AA19+"53"),1,1,"EST 2")))-1) -> - | AH19: =IF($I19<AH$12,"-",SUM(INDIRECT(ADDRESS($AC19+"1",70,1,1,"EST 2")):INDIRECT(ADDRESS($AC19+"1",IF(AB19="",81,AB19+"69"),1,1,"EST 2")))/SUM(INDIRECT(ADDRESS($AC19,70,1,1,"EST 2")):INDIRECT(ADDRESS($AC19,IF(AB19="",81,AB19+"69"),1,1,"EST 2")))-1) -> -
M20: Agosto | N20: 8 | Q20: 44574.66919 | R20: 1 | S20: 2022 | AC20: =VLOOKUP(B20,'EST 2'!$B$14:$R$26,18,FALSE) ->  | AD20: =IF($I20<AD$12,"-",SUM(INDIRECT(ADDRESS($AC20+"1",6,1,1,"EST 2")):INDIRECT(ADDRESS($AC20+"1",IF(X20="",17,X20+"5"),1,1,"EST 2")))/SUM(INDIRECT(ADDRESS($AC20,6,1,1,"EST 2")):INDIRECT(ADDRESS($AC20,IF(X20="",17,X20+"5"),1,1,"EST 2")))-1) -> - | AE20: =IF($I20<AE$12,"-",SUM(INDIRECT(ADDRESS($AC20+"1",22,1,1,"EST 2")):INDIRECT(ADDRESS($AC20+"1",IF(Y20="",33,Y20+"21"),1,1,"EST 2")))/SUM(INDIRECT(ADDRESS($AC20,22,1,1,"EST 2")):INDIRECT(ADDRESS($AC20,IF(Y20="",33,Y20+"21"),1,1,"EST 2")))-1) -> - | AF20: =IF($I20<AF$12,"-",SUM(INDIRECT(ADDRESS($AC20+"1",38,1,1,"EST 2")):INDIRECT(ADDRESS($AC20+"1",IF(Z20="",49,Z20+"37"),1,1,"EST 2")))/SUM(INDIRECT(ADDRESS($AC20,38,1,1,"EST 2")):INDIRECT(ADDRESS($AC20,IF(Z20="",49,Z20+"37"),1,1,"EST 2")))-1) -> - | AG20: =IF($I20<AG$12,"-",SUM(INDIRECT(ADDRESS($AC20+"1",54,1,1,"EST 2")):INDIRECT(ADDRESS($AC20+"1",IF(AA20="",65,AA20+"53"),1,1,"EST 2")))/SUM(INDIRECT(ADDRESS($AC20,54,1,1,"EST 2")):INDIRECT(ADDRESS($AC20,IF(AA20="",65,AA20+"53"),1,1,"EST 2")))-1) -> - | AH20: =IF($I20<AH$12,"-",SUM(INDIRECT(ADDRESS($AC20+"1",70,1,1,"EST 2")):INDIRECT(ADDRESS($AC20+"1",IF(AB20="",81,AB20+"69"),1,1,"EST 2")))/SUM(INDIRECT(ADDRESS($AC20,70,1,1,"EST 2")):INDIRECT(ADDRESS($AC20,IF(AB20="",81,AB20+"69"),1,1,"EST 2")))-1) -> -
M21: Setembro | N21: 9 | Q21: 44574.66919 | R21: 1 | S21: 2022 | AC21: =VLOOKUP(B21,'EST 2'!$B$14:$R$26,18,FALSE) ->  | AD21: =IF($I21<AD$12,"-",SUM(INDIRECT(ADDRESS($AC21+"1",6,1,1,"EST 2")):INDIRECT(ADDRESS($AC21+"1",IF(X21="",17,X21+"5"),1,1,"EST 2")))/SUM(INDIRECT(ADDRESS($AC21,6,1,1,"EST 2")):INDIRECT(ADDRESS($AC21,IF(X21="",17,X21+"5"),1,1,"EST 2")))-1) -> - | AE21: =IF($I21<AE$12,"-",SUM(INDIRECT(ADDRESS($AC21+"1",22,1,1,"EST 2")):INDIRECT(ADDRESS($AC21+"1",IF(Y21="",33,Y21+"21"),1,1,"EST 2")))/SUM(INDIRECT(ADDRESS($AC21,22,1,1,"EST 2")):INDIRECT(ADDRESS($AC21,IF(Y21="",33,Y21+"21"),1,1,"EST 2")))-1) -> - | AF21: =IF($I21<AF$12,"-",SUM(INDIRECT(ADDRESS($AC21+"1",38,1,1,"EST 2")):INDIRECT(ADDRESS($AC21+"1",IF(Z21="",49,Z21+"37"),1,1,"EST 2")))/SUM(INDIRECT(ADDRESS($AC21,38,1,1,"EST 2")):INDIRECT(ADDRESS($AC21,IF(Z21="",49,Z21+"37"),1,1,"EST 2")))-1) -> - | AG21: =IF($I21<AG$12,"-",SUM(INDIRECT(ADDRESS($AC21+"1",54,1,1,"EST 2")):INDIRECT(ADDRESS($AC21+"1",IF(AA21="",65,AA21+"53"),1,1,"EST 2")))/SUM(INDIRECT(ADDRESS($AC21,54,1,1,"EST 2")):INDIRECT(ADDRESS($AC21,IF(AA21="",65,AA21+"53"),1,1,"EST 2")))-1) -> - | AH21: =IF($I21<AH$12,"-",SUM(INDIRECT(ADDRESS($AC21+"1",70,1,1,"EST 2")):INDIRECT(ADDRESS($AC21+"1",IF(AB21="",81,AB21+"69"),1,1,"EST 2")))/SUM(INDIRECT(ADDRESS($AC21,70,1,1,"EST 2")):INDIRECT(ADDRESS($AC21,IF(AB21="",81,AB21+"69"),1,1,"EST 2")))-1) -> -
M22: Outubro | N22: 10 | Q22: 44574.66919 | R22: 1 | S22: 2022 | AC22: =VLOOKUP(B22,'EST 2'!$B$14:$R$26,18,FALSE) ->  | AD22: =IF($I22<AD$12,"-",SUM(INDIRECT(ADDRESS($AC22+"1",6,1,1,"EST 2")):INDIRECT(ADDRESS($AC22+"1",IF(X22="",17,X22+"5"),1,1,"EST 2")))/SUM(INDIRECT(ADDRESS($AC22,6,1,1,"EST 2")):INDIRECT(ADDRESS($AC22,IF(X22="",17,X22+"5"),1,1,"EST 2")))-1) -> - | AE22: =IF($I22<AE$12,"-",SUM(INDIRECT(ADDRESS($AC22+"1",22,1,1,"EST 2")):INDIRECT(ADDRESS($AC22+"1",IF(Y22="",33,Y22+"21"),1,1,"EST 2")))/SUM(INDIRECT(ADDRESS($AC22,22,1,1,"EST 2")):INDIRECT(ADDRESS($AC22,IF(Y22="",33,Y22+"21"),1,1,"EST 2")))-1) -> - | AF22: =IF($I22<AF$12,"-",SUM(INDIRECT(ADDRESS($AC22+"1",38,1,1,"EST 2")):INDIRECT(ADDRESS($AC22+"1",IF(Z22="",49,Z22+"37"),1,1,"EST 2")))/SUM(INDIRECT(ADDRESS($AC22,38,1,1,"EST 2")):INDIRECT(ADDRESS($AC22,IF(Z22="",49,Z22+"37"),1,1,"EST 2")))-1) -> - | AG22: =IF($I22<AG$12,"-",SUM(INDIRECT(ADDRESS($AC22+"1",54,1,1,"EST 2")):INDIRECT(ADDRESS($AC22+"1",IF(AA22="",65,AA22+"53"),1,1,"EST 2")))/SUM(INDIRECT(ADDRESS($AC22,54,1,1,"EST 2")):INDIRECT(ADDRESS($AC22,IF(AA22="",65,AA22+"53"),1,1,"EST 2")))-1) -> - | AH22: =IF($I22<AH$12,"-",SUM(INDIRECT(ADDRESS($AC22+"1",70,1,1,"EST 2")):INDIRECT(ADDRESS($AC22+"1",IF(AB22="",81,AB22+"69"),1,1,"EST 2")))/SUM(INDIRECT(ADDRESS($AC22,70,1,1,"EST 2")):INDIRECT(ADDRESS($AC22,IF(AB22="",81,AB22+"69"),1,1,"EST 2")))-1) -> -
M23: Novembro | N23: 11 | Q23: 44574.66919 | R23: 1 | S23: 2022 | AC23: =VLOOKUP(B23,'EST 2'!$B$14:$R$26,18,FALSE) ->  | AD23: =IF($I23<AD$12,"-",SUM(INDIRECT(ADDRESS($AC23+"1",6,1,1,"EST 2")):INDIRECT(ADDRESS($AC23+"1",IF(X23="",17,X23+"5"),1,1,"EST 2")))/SUM(INDIRECT(ADDRESS($AC23,6,1,1,"EST 2")):INDIRECT(ADDRESS($AC23,IF(X23="",17,X23+"5"),1,1,"EST 2")))-1) -> - | AE23: =IF($I23<AE$12,"-",SUM(INDIRECT(ADDRESS($AC23+"1",22,1,1,"EST 2")):INDIRECT(ADDRESS($AC23+"1",IF(Y23="",33,Y23+"21"),1,1,"EST 2")))/SUM(INDIRECT(ADDRESS($AC23,22,1,1,"EST 2")):INDIRECT(ADDRESS($AC23,IF(Y23="",33,Y23+"21"),1,1,"EST 2")))-1) -> - | AF23: =IF($I23<AF$12,"-",SUM(INDIRECT(ADDRESS($AC23+"1",38,1,1,"EST 2")):INDIRECT(ADDRESS($AC23+"1",IF(Z23="",49,Z23+"37"),1,1,"EST 2")))/SUM(INDIRECT(ADDRESS($AC23,38,1,1,"EST 2")):INDIRECT(ADDRESS($AC23,IF(Z23="",49,Z23+"37"),1,1,"EST 2")))-1) -> - | AG23: =IF($I23<AG$12,"-",SUM(INDIRECT(ADDRESS($AC23+"1",54,1,1,"EST 2")):INDIRECT(ADDRESS($AC23+"1",IF(AA23="",65,AA23+"53"),1,1,"EST 2")))/SUM(INDIRECT(ADDRESS($AC23,54,1,1,"EST 2")):INDIRECT(ADDRESS($AC23,IF(AA23="",65,AA23+"53"),1,1,"EST 2")))-1) -> - | AH23: =IF($I23<AH$12,"-",SUM(INDIRECT(ADDRESS($AC23+"1",70,1,1,"EST 2")):INDIRECT(ADDRESS($AC23+"1",IF(AB23="",81,AB23+"69"),1,1,"EST 2")))/SUM(INDIRECT(ADDRESS($AC23,70,1,1,"EST 2")):INDIRECT(ADDRESS($AC23,IF(AB23="",81,AB23+"69"),1,1,"EST 2")))-1) -> -
M24: Dezembro | N24: 12 | Q24: 44574.66919 | R24: 1 | S24: 2022 | AC24: =VLOOKUP(B24,'EST 2'!$B$14:$R$26,18,FALSE) ->  | AD24: =IF($I24<AD$12,"-",SUM(INDIRECT(ADDRESS($AC24+"1",6,1,1,"EST 2")):INDIRECT(ADDRESS($AC24+"1",IF(X24="",17,X24+"5"),1,1,"EST 2")))/SUM(INDIRECT(ADDRESS($AC24,6,1,1,"EST 2")):INDIRECT(ADDRESS($AC24,IF(X24="",17,X24+"5"),1,1,"EST 2")))-1) -> - | AE24: =IF($I24<AE$12,"-",SUM(INDIRECT(ADDRESS($AC24+"1",22,1,1,"EST 2")):INDIRECT(ADDRESS($AC24+"1",IF(Y24="",33,Y24+"21"),1,1,"EST 2")))/SUM(INDIRECT(ADDRESS($AC24,22,1,1,"EST 2")):INDIRECT(ADDRESS($AC24,IF(Y24="",33,Y24+"21"),1,1,"EST 2")))-1) -> - | AF24: =IF($I24<AF$12,"-",SUM(INDIRECT(ADDRESS($AC24+"1",38,1,1,"EST 2")):INDIRECT(ADDRESS($AC24+"1",IF(Z24="",49,Z24+"37"),1,1,"EST 2")))/SUM(INDIRECT(ADDRESS($AC24,38,1,1,"EST 2")):INDIRECT(ADDRESS($AC24,IF(Z24="",49,Z24+"37"),1,1,"EST 2")))-1) -> - | AG24: =IF($I24<AG$12,"-",SUM(INDIRECT(ADDRESS($AC24+"1",54,1,1,"EST 2")):INDIRECT(ADDRESS($AC24+"1",IF(AA24="",65,AA24+"53"),1,1,"EST 2")))/SUM(INDIRECT(ADDRESS($AC24,54,1,1,"EST 2")):INDIRECT(ADDRESS($AC24,IF(AA24="",65,AA24+"53"),1,1,"EST 2")))-1) -> - | AH24: =IF($I24<AH$12,"-",SUM(INDIRECT(ADDRESS($AC24+"1",70,1,1,"EST 2")):INDIRECT(ADDRESS($AC24+"1",IF(AB24="",81,AB24+"69"),1,1,"EST 2")))/SUM(INDIRECT(ADDRESS($AC24,70,1,1,"EST 2")):INDIRECT(ADDRESS($AC24,IF(AB24="",81,AB24+"69"),1,1,"EST 2")))-1) -> -
Q25: 44574.66919 | R25: 1 | S25: 2022 | AC25: =VLOOKUP(B25,'EST 2'!$B$14:$R$26,18,FALSE) ->  | AD25: =IF($I25<AD$12,"-",SUM(INDIRECT(ADDRESS($AC25+"1",6,1,1,"EST 2")):INDIRECT(ADDRESS($AC25+"1",IF(X25="",17,X25+"5"),1,1,"EST 2")))/SUM(INDIRECT(ADDRESS($AC25,6,1,1,"EST 2")):INDIRECT(ADDRESS($AC25,IF(X25="",17,X25+"5"),1,1,"EST 2")))-1) -> - | AE25: =IF($I25<AE$12,"-",SUM(INDIRECT(ADDRESS($AC25+"1",22,1,1,"EST 2")):INDIRECT(ADDRESS($AC25+"1",IF(Y25="",33,Y25+"21"),1,1,"EST 2")))/SUM(INDIRECT(ADDRESS($AC25,22,1,1,"EST 2")):INDIRECT(ADDRESS($AC25,IF(Y25="",33,Y25+"21"),1,1,"EST 2")))-1) -> - | AF25: =IF($I25<AF$12,"-",SUM(INDIRECT(ADDRESS($AC25+"1",38,1,1,"EST 2")):INDIRECT(ADDRESS($AC25+"1",IF(Z25="",49,Z25+"37"),1,1,"EST 2")))/SUM(INDIRECT(ADDRESS($AC25,38,1,1,"EST 2")):INDIRECT(ADDRESS($AC25,IF(Z25="",49,Z25+"37"),1,1,"EST 2")))-1) -> - | AG25: =IF($I25<AG$12,"-",SUM(INDIRECT(ADDRESS($AC25+"1",54,1,1,"EST 2")):INDIRECT(ADDRESS($AC25+"1",IF(AA25="",65,AA25+"53"),1,1,"EST 2")))/SUM(INDIRECT(ADDRESS($AC25,54,1,1,"EST 2")):INDIRECT(ADDRESS($AC25,IF(AA25="",65,AA25+"53"),1,1,"EST 2")))-1) -> - | AH25: =IF($I25<AH$12,"-",SUM(INDIRECT(ADDRESS($AC25+"1",70,1,1,"EST 2")):INDIRECT(ADDRESS($AC25+"1",IF(AB25="",81,AB25+"69"),1,1,"EST 2")))/SUM(INDIRECT(ADDRESS($AC25,70,1,1,"EST 2")):INDIRECT(ADDRESS($AC25,IF(AB25="",81,AB25+"69"),1,1,"EST 2")))-1) -> -
Q26: 44574.66919 | R26: 1 | S26: 2022 | AC26: =VLOOKUP(B26,'EST 2'!$B$14:$R$26,18,FALSE) ->  | AD26: =IF($I26<AD$12,"-",SUM(INDIRECT(ADDRESS($AC26+"1",6,1,1,"EST 2")):INDIRECT(ADDRESS($AC26+"1",IF(X26="",17,X26+"5"),1,1,"EST 2")))/SUM(INDIRECT(ADDRESS($AC26,6,1,1,"EST 2")):INDIRECT(ADDRESS($AC26,IF(X26="",17,X26+"5"),1,1,"EST 2")))-1) -> - | AE26: =IF($I26<AE$12,"-",SUM(INDIRECT(ADDRESS($AC26+"1",22,1,1,"EST 2")):INDIRECT(ADDRESS($AC26+"1",IF(Y26="",33,Y26+"21"),1,1,"EST 2")))/SUM(INDIRECT(ADDRESS($AC26,22,1,1,"EST 2")):INDIRECT(ADDRESS($AC26,IF(Y26="",33,Y26+"21"),1,1,"EST 2")))-1) -> - | AF26: =IF($I26<AF$12,"-",SUM(INDIRECT(ADDRESS($AC26+"1",38,1,1,"EST 2")):INDIRECT(ADDRESS($AC26+"1",IF(Z26="",49,Z26+"37"),1,1,"EST 2")))/SUM(INDIRECT(ADDRESS($AC26,38,1,1,"EST 2")):INDIRECT(ADDRESS($AC26,IF(Z26="",49,Z26+"37"),1,1,"EST 2")))-1) -> - | AG26: =IF($I26<AG$12,"-",SUM(INDIRECT(ADDRESS($AC26+"1",54,1,1,"EST 2")):INDIRECT(ADDRESS($AC26+"1",IF(AA26="",65,AA26+"53"),1,1,"EST 2")))/SUM(INDIRECT(ADDRESS($AC26,54,1,1,"EST 2")):INDIRECT(ADDRESS($AC26,IF(AA26="",65,AA26+"53"),1,1,"EST 2")))-1) -> - | AH26: =IF($I26<AH$12,"-",SUM(INDIRECT(ADDRESS($AC26+"1",70,1,1,"EST 2")):INDIRECT(ADDRESS($AC26+"1",IF(AB26="",81,AB26+"69"),1,1,"EST 2")))/SUM(INDIRECT(ADDRESS($AC26,70,1,1,"EST 2")):INDIRECT(ADDRESS($AC26,IF(AB26="",81,AB26+"69"),1,1,"EST 2")))-1) -> -
Q27: 44574.66919 | R27: 1 | S27: 2022 | AC27: =VLOOKUP(B27,'EST 2'!$B$14:$R$26,18,FALSE) ->  | AD27: =IF($I27<AD$12,"-",SUM(INDIRECT(ADDRESS($AC27+"1",6,1,1,"EST 2")):INDIRECT(ADDRESS($AC27+"1",IF(X27="",17,X27+"5"),1,1,"EST 2")))/SUM(INDIRECT(ADDRESS($AC27,6,1,1,"EST 2")):INDIRECT(ADDRESS($AC27,IF(X27="",17,X27+"5"),1,1,"EST 2")))-1) -> - | AE27: =IF($I27<AE$12,"-",SUM(INDIRECT(ADDRESS($AC27+"1",22,1,1,"EST 2")):INDIRECT(ADDRESS($AC27+"1",IF(Y27="",33,Y27+"21"),1,1,"EST 2")))/SUM(INDIRECT(ADDRESS($AC27,22,1,1,"EST 2")):INDIRECT(ADDRESS($AC27,IF(Y27="",33,Y27+"21"),1,1,"EST 2")))-1) -> - | AF27: =IF($I27<AF$12,"-",SUM(INDIRECT(ADDRESS($AC27+"1",38,1,1,"EST 2")):INDIRECT(ADDRESS($AC27+"1",IF(Z27="",49,Z27+"37"),1,1,"EST 2")))/SUM(INDIRECT(ADDRESS($AC27,38,1,1,"EST 2")):INDIRECT(ADDRESS($AC27,IF(Z27="",49,Z27+"37"),1,1,"EST 2")))-1) -> - | AG27: =IF($I27<AG$12,"-",SUM(INDIRECT(ADDRESS($AC27+"1",54,1,1,"EST 2")):INDIRECT(ADDRESS($AC27+"1",IF(AA27="",65,AA27+"53"),1,1,"EST 2")))/SUM(INDIRECT(ADDRESS($AC27,54,1,1,"EST 2")):INDIRECT(ADDRESS($AC27,IF(AA27="",65,AA27+"53"),1,1,"EST 2")))-1) -> - | AH27: =IF($I27<AH$12,"-",SUM(INDIRECT(ADDRESS($AC27+"1",70,1,1,"EST 2")):INDIRECT(ADDRESS($AC27+"1",IF(AB27="",81,AB27+"69"),1,1,"EST 2")))/SUM(INDIRECT(ADDRESS($AC27,70,1,1,"EST 2")):INDIRECT(ADDRESS($AC27,IF(AB27="",81,AB27+"69"),1,1,"EST 2")))-1) -> -
Q28: 44574.66919 | R28: 1 | S28: 2022 | AC28: =VLOOKUP(B28,'EST 2'!$B$14:$R$26,18,FALSE) ->  | AD28: =IF($I28<AD$12,"-",SUM(INDIRECT(ADDRESS($AC28+"1",6,1,1,"EST 2")):INDIRECT(ADDRESS($AC28+"1",IF(X28="",17,X28+"5"),1,1,"EST 2")))/SUM(INDIRECT(ADDRESS($AC28,6,1,1,"EST 2")):INDIRECT(ADDRESS($AC28,IF(X28="",17,X28+"5"),1,1,"EST 2")))-1) -> - | AE28: =IF($I28<AE$12,"-",SUM(INDIRECT(ADDRESS($AC28+"1",22,1,1,"EST 2")):INDIRECT(ADDRESS($AC28+"1",IF(Y28="",33,Y28+"21"),1,1,"EST 2")))/SUM(INDIRECT(ADDRESS($AC28,22,1,1,"EST 2")):INDIRECT(ADDRESS($AC28,IF(Y28="",33,Y28+"21"),1,1,"EST 2")))-1) -> - | AF28: =IF($I28<AF$12,"-",SUM(INDIRECT(ADDRESS($AC28+"1",38,1,1,"EST 2")):INDIRECT(ADDRESS($AC28+"1",IF(Z28="",49,Z28+"37"),1,1,"EST 2")))/SUM(INDIRECT(ADDRESS($AC28,38,1,1,"EST 2")):INDIRECT(ADDRESS($AC28,IF(Z28="",49,Z28+"37"),1,1,"EST 2")))-1) -> - | AG28: =IF($I28<AG$12,"-",SUM(INDIRECT(ADDRESS($AC28+"1",54,1,1,"EST 2")):INDIRECT(ADDRESS($AC28+"1",IF(AA28="",65,AA28+"53"),1,1,"EST 2")))/SUM(INDIRECT(ADDRESS($AC28,54,1,1,"EST 2")):INDIRECT(ADDRESS($AC28,IF(AA28="",65,AA28+"53"),1,1,"EST 2")))-1) -> - | AH28: =IF($I28<AH$12,"-",SUM(INDIRECT(ADDRESS($AC28+"1",70,1,1,"EST 2")):INDIRECT(ADDRESS($AC28+"1",IF(AB28="",81,AB28+"69"),1,1,"EST 2")))/SUM(INDIRECT(ADDRESS($AC28,70,1,1,"EST 2")):INDIRECT(ADDRESS($AC28,IF(AB28="",81,AB28+"69"),1,1,"EST 2")))-1) -> -
Q29: 44574.66919 | R29: 1 | S29: 2022 | AC29: =VLOOKUP(B29,'EST 2'!$B$14:$R$26,18,FALSE) ->  | AD29: =IF($I29<AD$12,"-",SUM(INDIRECT(ADDRESS($AC29+"1",6,1,1,"EST 2")):INDIRECT(ADDRESS($AC29+"1",IF(X29="",17,X29+"5"),1,1,"EST 2")))/SUM(INDIRECT(ADDRESS($AC29,6,1,1,"EST 2")):INDIRECT(ADDRESS($AC29,IF(X29="",17,X29+"5"),1,1,"EST 2")))-1) -> - | AE29: =IF($I29<AE$12,"-",SUM(INDIRECT(ADDRESS($AC29+"1",22,1,1,"EST 2")):INDIRECT(ADDRESS($AC29+"1",IF(Y29="",33,Y29+"21"),1,1,"EST 2")))/SUM(INDIRECT(ADDRESS($AC29,22,1,1,"EST 2")):INDIRECT(ADDRESS($AC29,IF(Y29="",33,Y29+"21"),1,1,"EST 2")))-1) -> - | AF29: =IF($I29<AF$12,"-",SUM(INDIRECT(ADDRESS($AC29+"1",38,1,1,"EST 2")):INDIRECT(ADDRESS($AC29+"1",IF(Z29="",49,Z29+"37"),1,1,"EST 2")))/SUM(INDIRECT(ADDRESS($AC29,38,1,1,"EST 2")):INDIRECT(ADDRESS($AC29,IF(Z29="",49,Z29+"37"),1,1,"EST 2")))-1) -> - | AG29: =IF($I29<AG$12,"-",SUM(INDIRECT(ADDRESS($AC29+"1",54,1,1,"EST 2")):INDIRECT(ADDRESS($AC29+"1",IF(AA29="",65,AA29+"53"),1,1,"EST 2")))/SUM(INDIRECT(ADDRESS($AC29,54,1,1,"EST 2")):INDIRECT(ADDRESS($AC29,IF(AA29="",65,AA29+"53"),1,1,"EST 2")))-1) -> - | AH29: =IF($I29<AH$12,"-",SUM(INDIRECT(ADDRESS($AC29+"1",70,1,1,"EST 2")):INDIRECT(ADDRESS($AC29+"1",IF(AB29="",81,AB29+"69"),1,1,"EST 2")))/SUM(INDIRECT(ADDRESS($AC29,70,1,1,"EST 2")):INDIRECT(ADDRESS($AC29,IF(AB29="",81,AB29+"69"),1,1,"EST 2")))-1) -> -
Q30: 44574.66919 | R30: 1 | S30: 2022 | AC30: =VLOOKUP(B30,'EST 2'!$B$14:$R$26,18,FALSE) ->  | AD30: =IF($I30<AD$12,"-",SUM(INDIRECT(ADDRESS($AC30+"1",6,1,1,"EST 2")):INDIRECT(ADDRESS($AC30+"1",IF(X30="",17,X30+"5"),1,1,"EST 2")))/SUM(INDIRECT(ADDRESS($AC30,6,1,1,"EST 2")):INDIRECT(ADDRESS($AC30,IF(X30="",17,X30+"5"),1,1,"EST 2")))-1) -> - | AE30: =IF($I30<AE$12,"-",SUM(INDIRECT(ADDRESS($AC30+"1",22,1,1,"EST 2")):INDIRECT(ADDRESS($AC30+"1",IF(Y30="",33,Y30+"21"),1,1,"EST 2")))/SUM(INDIRECT(ADDRESS($AC30,22,1,1,"EST 2")):INDIRECT(ADDRESS($AC30,IF(Y30="",33,Y30+"21"),1,1,"EST 2")))-1) -> - | AF30: =IF($I30<AF$12,"-",SUM(INDIRECT(ADDRESS($AC30+"1",38,1,1,"EST 2")):INDIRECT(ADDRESS($AC30+"1",IF(Z30="",49,Z30+"37"),1,1,"EST 2")))/SUM(INDIRECT(ADDRESS($AC30,38,1,1,"EST 2")):INDIRECT(ADDRESS($AC30,IF(Z30="",49,Z30+"37"),1,1,"EST 2")))-1) -> - | AG30: =IF($I30<AG$12,"-",SUM(INDIRECT(ADDRESS($AC30+"1",54,1,1,"EST 2")):INDIRECT(ADDRESS($AC30+"1",IF(AA30="",65,AA30+"53"),1,1,"EST 2")))/SUM(INDIRECT(ADDRESS($AC30,54,1,1,"EST 2")):INDIRECT(ADDRESS($AC30,IF(AA30="",65,AA30+"53"),1,1,"EST 2")))-1) -> - | AH30: =IF($I30<AH$12,"-",SUM(INDIRECT(ADDRESS($AC30+"1",70,1,1,"EST 2")):INDIRECT(ADDRESS($AC30+"1",IF(AB30="",81,AB30+"69"),1,1,"EST 2")))/SUM(INDIRECT(ADDRESS($AC30,70,1,1,"EST 2")):INDIRECT(ADDRESS($AC30,IF(AB30="",81,AB30+"69"),1,1,"EST 2")))-1) -> -
B32: ='EST 2'!B14 -> Aumentar: Quantidade de vendas | C32: Perspectiva Financeira | I32: =DA!D13 -> 2020
B33: ='EST 2'!B19 -> Aumentar: Número de clientes | C33: =DA!K13 -> Perspectiva de Clientes | I33: =IF(OR(DA!$D$15="5 anos",DA!$D$15="3 anos"),'PA 4'!I32+1,"") -> 2021
B34: ='EST 2'!B24 -> 0 | C34: =DA!H24 -> Perspectiva de Processos Internos | I34: =IF(OR(DA!$D$15="5 anos",DA!$D$15="3 anos"),'PA 4'!I33+1,"") -> 2022
B35: ='EST 2'!B24 -> 0 | C35: =DA!K24 -> Perspectiva de Aprendizagem | I35: =IF(DA!$D$15="3 anos","",IF(DA!$D$15="5 anos",I34+1,"")) -> 
I36: =IF(DA!$D$15="3 anos","",IF(DA!$D$15="5 anos",I35+1,"")) -> 

Sheet PA 3
B12: Metas | D12: Ação | E12: Setor | F12: Quem | G12: Como | H12: Prazo (Mês) | I12: Prazo (Ano) | J12: Status | K12: Saldo (Dias) | L12: % | O12: Mês prazo | P12: data prazo | Q12: Hoje | R12: mês hoje | S12: ano hoje | U12: atraso | V12: faltam | X12: =DA!D13 -> 2020 | Y12: =X12+1 -> 2021 | Z12: =Y12+1 -> 2022 | AA12: =Z12+1 -> 2023 | AB12: =AA12+1 -> 2024 | AD12: =X12 -> 2020 | AE12: =Y12 -> 2021 | AF12: =Z12 -> 2022 | AG12: =AA12 -> 2023 | AH12: =AB12 -> 2024 | AJ12: Contador de dias
B13: Aumentar: Capacidade de produção | D13: Comprar nova máquina | E13: Produção | F13: João | G13: Patrocinando outros sites | H13: Fevereiro | I13: 2017 | J13: =IF(L13=1,"Concluído",IF(P13="","",IF(T13=0,"Vence esse mês",IF(T13>=3,"Faltam "&T13&" meses",IF(T13=2,"Faltam 2 meses",IF(T13=1,"Falta 1 mês",IF(T13=-1,ABS(T13)&" mês de atraso",ABS(T13)&" meses de atraso"))))))) -> Concluído | K13: =IF(L13=1,"Concluído",AI13) -> Concluído | L13: 1 | M13: Janeiro | N13: 1 | O13: =IF(ISERROR(VLOOKUP(H13,$M$13:$N$24,2,FALSE)),"",VLOOKUP(H13,$M$13:$N$24,2,FALSE)) -> 2 | P13: =IF(O13="","","1/"&O13&"/"&I13) -> 1/2/2017 | Q13: =NOW() -> 44574.66919 | R13: =MONTH(Q13) -> 1 | S13: =YEAR(Q13) -> 2022 | T13: =IF(U13<>"",-U13,V13) -> -59 | U13: =IF(I13>$S$13,"",((YEAR(NOW())-YEAR(P13))*12+MONTH(NOW())-MONTH(P13))) -> 59 | V13: =IF(U13<>"","",((YEAR(P13)-YEAR($Q$13))*12+MONTH(P13)-MONTH($Q$13))) ->  | X13: =IF($I13=X$12,$O13,"") ->  | Y13: =IF($I13=Y$12,$O13,"") ->  | Z13: =IF($I13=Z$12,$O13,"") ->  | AA13: =IF($I13=AA$12,$O13,"") ->  | AB13: =IF($I13=AB$12,$O13,"") ->  | AC13: =VLOOKUP(B13,'EST 2'!$B$14:$R$26,18,FALSE) ->  | AD13: =IF($I13<AD$12,"-",SUM(INDIRECT(ADDRESS($AC13+"1",6,1,1,"EST 2")):INDIRECT(ADDRESS($AC13+"1",IF(X13="",17,X13+"5"),1,1,"EST 2")))/SUM(INDIRECT(ADDRESS($AC13,6,1,1,"EST 2")):INDIRECT(ADDRESS($AC13,IF(X13="",17,X13+"5"),1,1,"EST 2")))-1) -> - | AE13: =IF($I13<AE$12,"-",SUM(INDIRECT(ADDRESS($AC13+"1",22,1,1,"EST 2")):INDIRECT(ADDRESS($AC13+"1",IF(Y13="",33,Y13+"21"),1,1,"EST 2")))/SUM(INDIRECT(ADDRESS($AC13,22,1,1,"EST 2")):INDIRECT(ADDRESS($AC13,IF(Y13="",33,Y13+"21"),1,1,"EST 2")))-1) -> - | AF13: =IF($I13<AF$12,"-",SUM(INDIRECT(ADDRESS($AC13+"1",38,1,1,"EST 2")):INDIRECT(ADDRESS($AC13+"1",IF(Z13="",49,Z13+"37"),1,1,"EST 2")))/SUM(INDIRECT(ADDRESS($AC13,38,1,1,"EST 2")):INDIRECT(ADDRESS($AC13,IF(Z13="",49,Z13+"37"),1,1,"EST 2")))-1) -> - | AG13: =IF($I13<AG$12,"-",SUM(INDIRECT(ADDRESS($AC13+"1",54,1,1,"EST 2")):INDIRECT(ADDRESS($AC13+"1",IF(AA13="",65,AA13+"53"),1,1,"EST 2")))/SUM(INDIRECT(ADDRESS($AC13,54,1,1,"EST 2")):INDIRECT(ADDRESS($AC13,IF(AA13="",65,AA13+"53"),1,1,"EST 2")))-1) -> - | AH13: =IF($I13<AH$12,"-",SUM(INDIRECT(ADDRESS($AC13+"1",70,1,1,"EST 2")):INDIRECT(ADDRESS($AC13+"1",IF(AB13="",81,AB13+"69"),1,1,"EST 2")))/SUM(INDIRECT(ADDRESS($AC13,70,1,1,"EST 2")):INDIRECT(ADDRESS($AC13,IF(AB13="",81,AB13+"69"),1,1,"EST 2")))-1) -> - | AI13: =IF(P13="","",P13-Q13) -> -1807.669193 | AJ13: =Q13-R13 -> 44573.66919
J14: =IF(L14=1,"Concluído",IF(P14="","",IF(T14=0,"Vence esse mês",IF(T14>=3,"Faltam "&T14&" meses",IF(T14=2,"Faltam 2 meses",IF(T14=1,"Falta 1 mês",IF(T14=-1,ABS(T14)&" mês de atraso",ABS(T14)&" meses de atraso"))))))) ->  | M14: Fevereiro | N14: 2 | O14: =IF(ISERROR(VLOOKUP(H14,$M$13:$N$24,2,FALSE)),"",VLOOKUP(H14,$M$13:$N$24,2,FALSE)) ->  | P14: =IF(O14="","","1/"&O14&"/"&I14) ->  | Q14: =NOW() -> 44574.66919 | R14: =MONTH(Q14) -> 1 | S14: =YEAR(Q14) -> 2022 | T14: =IF(U14<>"",-U14,V14) ->  | U14: =IF(I14>$S$13,"",((YEAR(NOW())-YEAR(P14))*12+MONTH(NOW())-MONTH(P14))) ->  | V14: =IF(U14<>"","",((YEAR(P14)-YEAR($Q$13))*12+MONTH(P14)-MONTH($Q$13))) ->  | X14: =IF($I14=X$12,$O14,"") ->  | AC14: =VLOOKUP(B14,'EST 2'!$B$14:$R$26,18,FALSE) ->  | AD14: =IF($I14<AD$12,"-",SUM(INDIRECT(ADDRESS($AC14+"1",6,1,1,"EST 2")):INDIRECT(ADDRESS($AC14+"1",IF(X14="",17,X14+"5"),1,1,"EST 2")))/SUM(INDIRECT(ADDRESS($AC14,6,1,1,"EST 2")):INDIRECT(ADDRESS($AC14,IF(X14="",17,X14+"5"),1,1,"EST 2")))-1) -> - | AE14: =IF($I14<AE$12,"-",SUM(INDIRECT(ADDRESS($AC14+"1",22,1,1,"EST 2")):INDIRECT(ADDRESS($AC14+"1",IF(Y14="",33,Y14+"21"),1,1,"EST 2")))/SUM(INDIRECT(ADDRESS($AC14,22,1,1,"EST 2")):INDIRECT(ADDRESS($AC14,IF(Y14="",33,Y14+"21"),1,1,"EST 2")))-1) -> - | AF14: =IF($I14<AF$12,"-",SUM(INDIRECT(ADDRESS($AC14+"1",38,1,1,"EST 2")):INDIRECT(ADDRESS($AC14+"1",IF(Z14="",49,Z14+"37"),1,1,"EST 2")))/SUM(INDIRECT(ADDRESS($AC14,38,1,1,"EST 2")):INDIRECT(ADDRESS($AC14,IF(Z14="",49,Z14+"37"),1,1,"EST 2")))-1) -> - | AG14: =IF($I14<AG$12,"-",SUM(INDIRECT(ADDRESS($AC14+"1",54,1,1,"EST 2")):INDIRECT(ADDRESS($AC14+"1",IF(AA14="",65,AA14+"53"),1,1,"EST 2")))/SUM(INDIRECT(ADDRESS($AC14,54,1,1,"EST 2")):INDIRECT(ADDRESS($AC14,IF(AA14="",65,AA14+"53"),1,1,"EST 2")))-1) -> - | AH14: =IF($I14<AH$12,"-",SUM(INDIRECT(ADDRESS($AC14+"1",70,1,1,"EST 2")):INDIRECT(ADDRESS($AC14+"1",IF(AB14="",81,AB14+"69"),1,1,"EST 2")))/SUM(INDIRECT(ADDRESS($AC14,70,1,1,"EST 2")):INDIRECT(ADDRESS($AC14,IF(AB14="",81,AB14+"69"),1,1,"EST 2")))-1) -> - | AI14: =IF(P14="","",P14-Q14) ->  | AJ14: =Q14-R14 -> 44573.66919
J15: =IF(L15=1,"Concluído",IF(P15="","",IF(T15=0,"Vence esse mês",IF(T15>=3,"Faltam "&T15&" meses",IF(T15=2,"Faltam 2 meses",IF(T15=1,"Falta 1 mês",IF(T15=-1,ABS(T15)&" mês de atraso",ABS(T15)&" meses de atraso"))))))) ->  | M15: Março | N15: 3 | O15: =IF(ISERROR(VLOOKUP(H15,$M$13:$N$24,2,FALSE)),"",VLOOKUP(H15,$M$13:$N$24,2,FALSE)) ->  | Q15: 44574.66919 | R15: 1 | S15: 2022 | AC15: =VLOOKUP(B15,'EST 2'!$B$14:$R$26,18,FALSE) ->  | AD15: =IF($I15<AD$12,"-",SUM(INDIRECT(ADDRESS($AC15+"1",6,1,1,"EST 2")):INDIRECT(ADDRESS($AC15+"1",IF(X15="",17,X15+"5"),1,1,"EST 2")))/SUM(INDIRECT(ADDRESS($AC15,6,1,1,"EST 2")):INDIRECT(ADDRESS($AC15,IF(X15="",17,X15+"5"),1,1,"EST 2")))-1) -> - | AE15: =IF($I15<AE$12,"-",SUM(INDIRECT(ADDRESS($AC15+"1",22,1,1,"EST 2")):INDIRECT(ADDRESS($AC15+"1",IF(Y15="",33,Y15+"21"),1,1,"EST 2")))/SUM(INDIRECT(ADDRESS($AC15,22,1,1,"EST 2")):INDIRECT(ADDRESS($AC15,IF(Y15="",33,Y15+"21"),1,1,"EST 2")))-1) -> - | AF15: =IF($I15<AF$12,"-",SUM(INDIRECT(ADDRESS($AC15+"1",38,1,1,"EST 2")):INDIRECT(ADDRESS($AC15+"1",IF(Z15="",49,Z15+"37"),1,1,"EST 2")))/SUM(INDIRECT(ADDRESS($AC15,38,1,1,"EST 2")):INDIRECT(ADDRESS($AC15,IF(Z15="",49,Z15+"37"),1,1,"EST 2")))-1) -> - | AG15: =IF($I15<AG$12,"-",SUM(INDIRECT(ADDRESS($AC15+"1",54,1,1,"EST 2")):INDIRECT(ADDRESS($AC15+"1",IF(AA15="",65,AA15+"53"),1,1,"EST 2")))/SUM(INDIRECT(ADDRESS($AC15,54,1,1,"EST 2")):INDIRECT(ADDRESS($AC15,IF(AA15="",65,AA15+"53"),1,1,"EST 2")))-1) -> - | AH15: =IF($I15<AH$12,"-",SUM(INDIRECT(ADDRESS($AC15+"1",70,1,1,"EST 2")):INDIRECT(ADDRESS($AC15+"1",IF(AB15="",81,AB15+"69"),1,1,"EST 2")))/SUM(INDIRECT(ADDRESS($AC15,70,1,1,"EST 2")):INDIRECT(ADDRESS($AC15,IF(AB15="",81,AB15+"69"),1,1,"EST 2")))-1) -> - | AJ15: 44573.66919
J16: =IF(L16=1,"Concluído",IF(P16="","",IF(T16=0,"Vence esse mês",IF(T16>=3,"Faltam "&T16&" meses",IF(T16=2,"Faltam 2 meses",IF(T16=1,"Falta 1 mês",IF(T16=-1,ABS(T16)&" mês de atraso",ABS(T16)&" meses de atraso"))))))) ->  | M16: Abril | N16: 4 | Q16: 44574.66919 | R16: 1 | S16: 2022 | AC16: =VLOOKUP(B16,'EST 2'!$B$14:$R$26,18,FALSE) ->  | AD16: =IF($I16<AD$12,"-",SUM(INDIRECT(ADDRESS($AC16+"1",6,1,1,"EST 2")):INDIRECT(ADDRESS($AC16+"1",IF(X16="",17,X16+"5"),1,1,"EST 2")))/SUM(INDIRECT(ADDRESS($AC16,6,1,1,"EST 2")):INDIRECT(ADDRESS($AC16,IF(X16="",17,X16+"5"),1,1,"EST 2")))-1) -> - | AE16: =IF($I16<AE$12,"-",SUM(INDIRECT(ADDRESS($AC16+"1",22,1,1,"EST 2")):INDIRECT(ADDRESS($AC16+"1",IF(Y16="",33,Y16+"21"),1,1,"EST 2")))/SUM(INDIRECT(ADDRESS($AC16,22,1,1,"EST 2")):INDIRECT(ADDRESS($AC16,IF(Y16="",33,Y16+"21"),1,1,"EST 2")))-1) -> - | AF16: =IF($I16<AF$12,"-",SUM(INDIRECT(ADDRESS($AC16+"1",38,1,1,"EST 2")):INDIRECT(ADDRESS($AC16+"1",IF(Z16="",49,Z16+"37"),1,1,"EST 2")))/SUM(INDIRECT(ADDRESS($AC16,38,1,1,"EST 2")):INDIRECT(ADDRESS($AC16,IF(Z16="",49,Z16+"37"),1,1,"EST 2")))-1) -> - | AG16: =IF($I16<AG$12,"-",SUM(INDIRECT(ADDRESS($AC16+"1",54,1,1,"EST 2")):INDIRECT(ADDRESS($AC16+"1",IF(AA16="",65,AA16+"53"),1,1,"EST 2")))/SUM(INDIRECT(ADDRESS($AC16,54,1,1,"EST 2")):INDIRECT(ADDRESS($AC16,IF(AA16="",65,AA16+"53"),1,1,"EST 2")))-1) -> - | AH16: =IF($I16<AH$12,"-",SUM(INDIRECT(ADDRESS($AC16+"1",70,1,1,"EST 2")):INDIRECT(ADDRESS($AC16+"1",IF(AB16="",81,AB16+"69"),1,1,"EST 2")))/SUM(INDIRECT(ADDRESS($AC16,70,1,1,"EST 2")):INDIRECT(ADDRESS($AC16,IF(AB16="",81,AB16+"69"),1,1,"EST 2")))-1) -> - | AJ16: 44573.66919
M17: Maio | N17: 5 | Q17: 44574.66919 | R17: 1 | S17: 2022 | AC17: =VLOOKUP(B17,'EST 2'!$B$14:$R$26,18,FALSE) ->  | AD17: =IF($I17<AD$12,"-",SUM(INDIRECT(ADDRESS($AC17+"1",6,1,1,"EST 2")):INDIRECT(ADDRESS($AC17+"1",IF(X17="",17,X17+"5"),1,1,"EST 2")))/SUM(INDIRECT(ADDRESS($AC17,6,1,1,"EST 2")):INDIRECT(ADDRESS($AC17,IF(X17="",17,X17+"5"),1,1,"EST 2")))-1) -> - | AE17: =IF($I17<AE$12,"-",SUM(INDIRECT(ADDRESS($AC17+"1",22,1,1,"EST 2")):INDIRECT(ADDRESS($AC17+"1",IF(Y17="",33,Y17+"21"),1,1,"EST 2")))/SUM(INDIRECT(ADDRESS($AC17,22,1,1,"EST 2")):INDIRECT(ADDRESS($AC17,IF(Y17="",33,Y17+"21"),1,1,"EST 2")))-1) -> - | AF17: =IF($I17<AF$12,"-",SUM(INDIRECT(ADDRESS($AC17+"1",38,1,1,"EST 2")):INDIRECT(ADDRESS($AC17+"1",IF(Z17="",49,Z17+"37"),1,1,"EST 2")))/SUM(INDIRECT(ADDRESS($AC17,38,1,1,"EST 2")):INDIRECT(ADDRESS($AC17,IF(Z17="",49,Z17+"37"),1,1,"EST 2")))-1) -> - | AG17: =IF($I17<AG$12,"-",SUM(INDIRECT(ADDRESS($AC17+"1",54,1,1,"EST 2")):INDIRECT(ADDRESS($AC17+"1",IF(AA17="",65,AA17+"53"),1,1,"EST 2")))/SUM(INDIRECT(ADDRESS($AC17,54,1,1,"EST 2")):INDIRECT(ADDRESS($AC17,IF(AA17="",65,AA17+"53"),1,1,"EST 2")))-1) -> - | AH17: =IF($I17<AH$12,"-",SUM(INDIRECT(ADDRESS($AC17+"1",70,1,1,"EST 2")):INDIRECT(ADDRESS($AC17+"1",IF(AB17="",81,AB17+"69"),1,1,"EST 2")))/SUM(INDIRECT(ADDRESS($AC17,70,1,1,"EST 2")):INDIRECT(ADDRESS($AC17,IF(AB17="",81,AB17+"69"),1,1,"EST 2")))-1) -> - | AJ17: 44573.66919
M18: Junho | N18: 6 | Q18: 44574.66919 | R18: 1 | S18: 2022 | AC18: =VLOOKUP(B18,'EST 2'!$B$14:$R$26,18,FALSE) ->  | AD18: =IF($I18<AD$12,"-",SUM(INDIRECT(ADDRESS($AC18+"1",6,1,1,"EST 2")):INDIRECT(ADDRESS($AC18+"1",IF(X18="",17,X18+"5"),1,1,"EST 2")))/SUM(INDIRECT(ADDRESS($AC18,6,1,1,"EST 2")):INDIRECT(ADDRESS($AC18,IF(X18="",17,X18+"5"),1,1,"EST 2")))-1) -> - | AE18: =IF($I18<AE$12,"-",SUM(INDIRECT(ADDRESS($AC18+"1",22,1,1,"EST 2")):INDIRECT(ADDRESS($AC18+"1",IF(Y18="",33,Y18+"21"),1,1,"EST 2")))/SUM(INDIRECT(ADDRESS($AC18,22,1,1,"EST 2")):INDIRECT(ADDRESS($AC18,IF(Y18="",33,Y18+"21"),1,1,"EST 2")))-1) -> - | AF18: =IF($I18<AF$12,"-",SUM(INDIRECT(ADDRESS($AC18+"1",38,1,1,"EST 2")):INDIRECT(ADDRESS($AC18+"1",IF(Z18="",49,Z18+"37"),1,1,"EST 2")))/SUM(INDIRECT(ADDRESS($AC18,38,1,1,"EST 2")):INDIRECT(ADDRESS($AC18,IF(Z18="",49,Z18+"37"),1,1,"EST 2")))-1) -> - | AG18: =IF($I18<AG$12,"-",SUM(INDIRECT(ADDRESS($AC18+"1",54,1,1,"EST 2")):INDIRECT(ADDRESS($AC18+"1",IF(AA18="",65,AA18+"53"),1,1,"EST 2")))/SUM(INDIRECT(ADDRESS($AC18,54,1,1,"EST 2")):INDIRECT(ADDRESS($AC18,IF(AA18="",65,AA18+"53"),1,1,"EST 2")))-1) -> - | AH18: =IF($I18<AH$12,"-",SUM(INDIRECT(ADDRESS($AC18+"1",70,1,1,"EST 2")):INDIRECT(ADDRESS($AC18+"1",IF(AB18="",81,AB18+"69"),1,1,"EST 2")))/SUM(INDIRECT(ADDRESS($AC18,70,1,1,"EST 2")):INDIRECT(ADDRESS($AC18,IF(AB18="",81,AB18+"69"),1,1,"EST 2")))-1) -> - | AJ18: 44573.66919
M19: Julho | N19: 7 | Q19: 44574.66919 | R19: 1 | S19: 2022 | AC19: =VLOOKUP(B19,'EST 2'!$B$14:$R$26,18,FALSE) ->  | AD19: =IF($I19<AD$12,"-",SUM(INDIRECT(ADDRESS($AC19+"1",6,1,1,"EST 2")):INDIRECT(ADDRESS($AC19+"1",IF(X19="",17,X19+"5"),1,1,"EST 2")))/SUM(INDIRECT(ADDRESS($AC19,6,1,1,"EST 2")):INDIRECT(ADDRESS($AC19,IF(X19="",17,X19+"5"),1,1,"EST 2")))-1) -> - | AE19: =IF($I19<AE$12,"-",SUM(INDIRECT(ADDRESS($AC19+"1",22,1,1,"EST 2")):INDIRECT(ADDRESS($AC19+"1",IF(Y19="",33,Y19+"21"),1,1,"EST 2")))/SUM(INDIRECT(ADDRESS($AC19,22,1,1,"EST 2")):INDIRECT(ADDRESS($AC19,IF(Y19="",33,Y19+"21"),1,1,"EST 2")))-1) -> - | AF19: =IF($I19<AF$12,"-",SUM(INDIRECT(ADDRESS($AC19+"1",38,1,1,"EST 2")):INDIRECT(ADDRESS($AC19+"1",IF(Z19="",49,Z19+"37"),1,1,"EST 2")))/SUM(INDIRECT(ADDRESS($AC19,38,1,1,"EST 2")):INDIRECT(ADDRESS($AC19,IF(Z19="",49,Z19+"37"),1,1,"EST 2")))-1) -> - | AG19: =IF($I19<AG$12,"-",SUM(INDIRECT(ADDRESS($AC19+"1",54,1,1,"EST 2")):INDIRECT(ADDRESS($AC19+"1",IF(AA19="",65,AA19+"53"),1,1,"EST 2")))/SUM(INDIRECT(ADDRESS($AC19,54,1,1,"EST 2")):INDIRECT(ADDRESS($AC19,IF(AA19="",65,AA19+"53"),1,1,"EST 2")))-1) -> - | AH19: =IF($I19<AH$12,"-",SUM(INDIRECT(ADDRESS($AC19+"1",70,1,1,"EST 2")):INDIRECT(ADDRESS($AC19+"1",IF(AB19="",81,AB19+"69"),1,1,"EST 2")))/SUM(INDIRECT(ADDRESS($AC19,70,1,1,"EST 2")):INDIRECT(ADDRESS($AC19,IF(AB19="",81,AB19+"69"),1,1,"EST 2")))-1) -> - | AJ19: 44573.66919
M20: Agosto | N20: 8 | Q20: 44574.66919 | R20: 1 | S20: 2022 | AC20: =VLOOKUP(B20,'EST 2'!$B$14:$R$26,18,FALSE) ->  | AD20: =IF($I20<AD$12,"-",SUM(INDIRECT(ADDRESS($AC20+"1",6,1,1,"EST 2")):INDIRECT(ADDRESS($AC20+"1",IF(X20="",17,X20+"5"),1,1,"EST 2")))/SUM(INDIRECT(ADDRESS($AC20,6,1,1,"EST 2")):INDIRECT(ADDRESS($AC20,IF(X20="",17,X20+"5"),1,1,"EST 2")))-1) -> - | AE20: =IF($I20<AE$12,"-",SUM(INDIRECT(ADDRESS($AC20+"1",22,1,1,"EST 2")):INDIRECT(ADDRESS($AC20+"1",IF(Y20="",33,Y20+"21"),1,1,"EST 2")))/SUM(INDIRECT(ADDRESS($AC20,22,1,1,"EST 2")):INDIRECT(ADDRESS($AC20,IF(Y20="",33,Y20+"21"),1,1,"EST 2")))-1) -> - | AF20: =IF($I20<AF$12,"-",SUM(INDIRECT(ADDRESS($AC20+"1",38,1,1,"EST 2")):INDIRECT(ADDRESS($AC20+"1",IF(Z20="",49,Z20+"37"),1,1,"EST 2")))/SUM(INDIRECT(ADDRESS($AC20,38,1,1,"EST 2")):INDIRECT(ADDRESS($AC20,IF(Z20="",49,Z20+"37"),1,1,"EST 2")))-1) -> - | AG20: =IF($I20<AG$12,"-",SUM(INDIRECT(ADDRESS($AC20+"1",54,1,1,"EST 2")):INDIRECT(ADDRESS($AC20+"1",IF(AA20="",65,AA20+"53"),1,1,"EST 2")))/SUM(INDIRECT(ADDRESS($AC20,54,1,1,"EST 2")):INDIRECT(ADDRESS($AC20,IF(AA20="",65,AA20+"53"),1,1,"EST 2")))-1) -> - | AH20: =IF($I20<AH$12,"-",SUM(INDIRECT(ADDRESS($AC20+"1",70,1,1,"EST 2")):INDIRECT(ADDRESS($AC20+"1",IF(AB20="",81,AB20+"69"),1,1,"EST 2")))/SUM(INDIRECT(ADDRESS($AC20,70,1,1,"EST 2")):INDIRECT(ADDRESS($AC20,IF(AB20="",81,AB20+"69"),1,1,"EST 2")))-1) -> - | AJ20: 44573.66919
M21: Setembro | N21: 9 | Q21: 44574.66919 | R21: 1 | S21: 2022 | AC21: =VLOOKUP(B21,'EST 2'!$B$14:$R$26,18,FALSE) ->  | AD21: =IF($I21<AD$12,"-",SUM(INDIRECT(ADDRESS($AC21+"1",6,1,1,"EST 2")):INDIRECT(ADDRESS($AC21+"1",IF(X21="",17,X21+"5"),1,1,"EST 2")))/SUM(INDIRECT(ADDRESS($AC21,6,1,1,"EST 2")):INDIRECT(ADDRESS($AC21,IF(X21="",17,X21+"5"),1,1,"EST 2")))-1) -> - | AE21: =IF($I21<AE$12,"-",SUM(INDIRECT(ADDRESS($AC21+"1",22,1,1,"EST 2")):INDIRECT(ADDRESS($AC21+"1",IF(Y21="",33,Y21+"21"),1,1,"EST 2")))/SUM(INDIRECT(ADDRESS($AC21,22,1,1,"EST 2")):INDIRECT(ADDRESS($AC21,IF(Y21="",33,Y21+"21"),1,1,"EST 2")))-1) -> - | AF21: =IF($I21<AF$12,"-",SUM(INDIRECT(ADDRESS($AC21+"1",38,1,1,"EST 2")):INDIRECT(ADDRESS($AC21+"1",IF(Z21="",49,Z21+"37"),1,1,"EST 2")))/SUM(INDIRECT(ADDRESS($AC21,38,1,1,"EST 2")):INDIRECT(ADDRESS($AC21,IF(Z21="",49,Z21+"37"),1,1,"EST 2")))-1) -> - | AG21: =IF($I21<AG$12,"-",SUM(INDIRECT(ADDRESS($AC21+"1",54,1,1,"EST 2")):INDIRECT(ADDRESS($AC21+"1",IF(AA21="",65,AA21+"53"),1,1,"EST 2")))/SUM(INDIRECT(ADDRESS($AC21,54,1,1,"EST 2")):INDIRECT(ADDRESS($AC21,IF(AA21="",65,AA21+"53"),1,1,"EST 2")))-1) -> - | AH21: =IF($I21<AH$12,"-",SUM(INDIRECT(ADDRESS($AC21+"1",70,1,1,"EST 2")):INDIRECT(ADDRESS($AC21+"1",IF(AB21="",81,AB21+"69"),1,1,"EST 2")))/SUM(INDIRECT(ADDRESS($AC21,70,1,1,"EST 2")):INDIRECT(ADDRESS($AC21,IF(AB21="",81,AB21+"69"),1,1,"EST 2")))-1) -> - | AJ21: 44573.66919
M22: Outubro | N22: 10 | Q22: 44574.66919 | R22: 1 | S22: 2022 | AC22: =VLOOKUP(B22,'EST 2'!$B$14:$R$26,18,FALSE) ->  | AD22: =IF($I22<AD$12,"-",SUM(INDIRECT(ADDRESS($AC22+"1",6,1,1,"EST 2")):INDIRECT(ADDRESS($AC22+"1",IF(X22="",17,X22+"5"),1,1,"EST 2")))/SUM(INDIRECT(ADDRESS($AC22,6,1,1,"EST 2")):INDIRECT(ADDRESS($AC22,IF(X22="",17,X22+"5"),1,1,"EST 2")))-1) -> - | AE22: =IF($I22<AE$12,"-",SUM(INDIRECT(ADDRESS($AC22+"1",22,1,1,"EST 2")):INDIRECT(ADDRESS($AC22+"1",IF(Y22="",33,Y22+"21"),1,1,"EST 2")))/SUM(INDIRECT(ADDRESS($AC22,22,1,1,"EST 2")):INDIRECT(ADDRESS($AC22,IF(Y22="",33,Y22+"21"),1,1,"EST 2")))-1) -> - | AF22: =IF($I22<AF$12,"-",SUM(INDIRECT(ADDRESS($AC22+"1",38,1,1,"EST 2")):INDIRECT(ADDRESS($AC22+"1",IF(Z22="",49,Z22+"37"),1,1,"EST 2")))/SUM(INDIRECT(ADDRESS($AC22,38,1,1,"EST 2")):INDIRECT(ADDRESS($AC22,IF(Z22="",49,Z22+"37"),1,1,"EST 2")))-1) -> - | AG22: =IF($I22<AG$12,"-",SUM(INDIRECT(ADDRESS($AC22+"1",54,1,1,"EST 2")):INDIRECT(ADDRESS($AC22+"1",IF(AA22="",65,AA22+"53"),1,1,"EST 2")))/SUM(INDIRECT(ADDRESS($AC22,54,1,1,"EST 2")):INDIRECT(ADDRESS($AC22,IF(AA22="",65,AA22+"53"),1,1,"EST 2")))-1) -> - | AH22: =IF($I22<AH$12,"-",SUM(INDIRECT(ADDRESS($AC22+"1",70,1,1,"EST 2")):INDIRECT(ADDRESS($AC22+"1",IF(AB22="",81,AB22+"69"),1,1,"EST 2")))/SUM(INDIRECT(ADDRESS($AC22,70,1,1,"EST 2")):INDIRECT(ADDRESS($AC22,IF(AB22="",81,AB22+"69"),1,1,"EST 2")))-1) -> - | AJ22: 44573.66919
M23: Novembro | N23: 11 | Q23: 44574.66919 | R23: 1 | S23: 2022 | AC23: =VLOOKUP(B23,'EST 2'!$B$14:$R$26,18,FALSE) ->  | AD23: =IF($I23<AD$12,"-",SUM(INDIRECT(ADDRESS($AC23+"1",6,1,1,"EST 2")):INDIRECT(ADDRESS($AC23+"1",IF(X23="",17,X23+"5"),1,1,"EST 2")))/SUM(INDIRECT(ADDRESS($AC23,6,1,1,"EST 2")):INDIRECT(ADDRESS($AC23,IF(X23="",17,X23+"5"),1,1,"EST 2")))-1) -> - | AE23: =IF($I23<AE$12,"-",SUM(INDIRECT(ADDRESS($AC23+"1",22,1,1,"EST 2")):INDIRECT(ADDRESS($AC23+"1",IF(Y23="",33,Y23+"21"),1,1,"EST 2")))/SUM(INDIRECT(ADDRESS($AC23,22,1,1,"EST 2")):INDIRECT(ADDRESS($AC23,IF(Y23="",33,Y23+"21"),1,1,"EST 2")))-1) -> - | AF23: =IF($I23<AF$12,"-",SUM(INDIRECT(ADDRESS($AC23+"1",38,1,1,"EST 2")):INDIRECT(ADDRESS($AC23+"1",IF(Z23="",49,Z23+"37"),1,1,"EST 2")))/SUM(INDIRECT(ADDRESS($AC23,38,1,1,"EST 2")):INDIRECT(ADDRESS($AC23,IF(Z23="",49,Z23+"37"),1,1,"EST 2")))-1) -> - | AG23: =IF($I23<AG$12,"-",SUM(INDIRECT(ADDRESS($AC23+"1",54,1,1,"EST 2")):INDIRECT(ADDRESS($AC23+"1",IF(AA23="",65,AA23+"53"),1,1,"EST 2")))/SUM(INDIRECT(ADDRESS($AC23,54,1,1,"EST 2")):INDIRECT(ADDRESS($AC23,IF(AA23="",65,AA23+"53"),1,1,"EST 2")))-1) -> - | AH23: =IF($I23<AH$12,"-",SUM(INDIRECT(ADDRESS($AC23+"1",70,1,1,"EST 2")):INDIRECT(ADDRESS($AC23+"1",IF(AB23="",81,AB23+"69"),1,1,"EST 2")))/SUM(INDIRECT(ADDRESS($AC23,70,1,1,"EST 2")):INDIRECT(ADDRESS($AC23,IF(AB23="",81,AB23+"69"),1,1,"EST 2")))-1) -> - | AJ23: 44573.66919
M24: Dezembro | N24: 12 | Q24: 44574.66919 | R24: 1 | S24: 2022 | AC24: =VLOOKUP(B24,'EST 2'!$B$14:$R$26,18,FALSE) ->  | AD24: =IF($I24<AD$12,"-",SUM(INDIRECT(ADDRESS($AC24+"1",6,1,1,"EST 2")):INDIRECT(ADDRESS($AC24+"1",IF(X24="",17,X24+"5"),1,1,"EST 2")))/SUM(INDIRECT(ADDRESS($AC24,6,1,1,"EST 2")):INDIRECT(ADDRESS($AC24,IF(X24="",17,X24+"5"),1,1,"EST 2")))-1) -> - | AE24: =IF($I24<AE$12,"-",SUM(INDIRECT(ADDRESS($AC24+"1",22,1,1,"EST 2")):INDIRECT(ADDRESS($AC24+"1",IF(Y24="",33,Y24+"21"),1,1,"EST 2")))/SUM(INDIRECT(ADDRESS($AC24,22,1,1,"EST 2")):INDIRECT(ADDRESS($AC24,IF(Y24="",33,Y24+"21"),1,1,"EST 2")))-1) -> - | AF24: =IF($I24<AF$12,"-",SUM(INDIRECT(ADDRESS($AC24+"1",38,1,1,"EST 2")):INDIRECT(ADDRESS($AC24+"1",IF(Z24="",49,Z24+"37"),1,1,"EST 2")))/SUM(INDIRECT(ADDRESS($AC24,38,1,1,"EST 2")):INDIRECT(ADDRESS($AC24,IF(Z24="",49,Z24+"37"),1,1,"EST 2")))-1) -> - | AG24: =IF($I24<AG$12,"-",SUM(INDIRECT(ADDRESS($AC24+"1",54,1,1,"EST 2")):INDIRECT(ADDRESS($AC24+"1",IF(AA24="",65,AA24+"53"),1,1,"EST 2")))/SUM(INDIRECT(ADDRESS($AC24,54,1,1,"EST 2")):INDIRECT(ADDRESS($AC24,IF(AA24="",65,AA24+"53"),1,1,"EST 2")))-1) -> - | AH24: =IF($I24<AH$12,"-",SUM(INDIRECT(ADDRESS($AC24+"1",70,1,1,"EST 2")):INDIRECT(ADDRESS($AC24+"1",IF(AB24="",81,AB24+"69"),1,1,"EST 2")))/SUM(INDIRECT(ADDRESS($AC24,70,1,1,"EST 2")):INDIRECT(ADDRESS($AC24,IF(AB24="",81,AB24+"69"),1,1,"EST 2")))-1) -> - | AJ24: 44573.66919
Q25: 44574.66919 | R25: 1 | S25: 2022 | AC25: =VLOOKUP(B25,'EST 2'!$B$14:$R$26,18,FALSE) ->  | AD25: =IF($I25<AD$12,"-",SUM(INDIRECT(ADDRESS($AC25+"1",6,1,1,"EST 2")):INDIRECT(ADDRESS($AC25+"1",IF(X25="",17,X25+"5"),1,1,"EST 2")))/SUM(INDIRECT(ADDRESS($AC25,6,1,1,"EST 2")):INDIRECT(ADDRESS($AC25,IF(X25="",17,X25+"5"),1,1,"EST 2")))-1) -> - | AE25: =IF($I25<AE$12,"-",SUM(INDIRECT(ADDRESS($AC25+"1",22,1,1,"EST 2")):INDIRECT(ADDRESS($AC25+"1",IF(Y25="",33,Y25+"21"),1,1,"EST 2")))/SUM(INDIRECT(ADDRESS($AC25,22,1,1,"EST 2")):INDIRECT(ADDRESS($AC25,IF(Y25="",33,Y25+"21"),1,1,"EST 2")))-1) -> - | AF25: =IF($I25<AF$12,"-",SUM(INDIRECT(ADDRESS($AC25+"1",38,1,1,"EST 2")):INDIRECT(ADDRESS($AC25+"1",IF(Z25="",49,Z25+"37"),1,1,"EST 2")))/SUM(INDIRECT(ADDRESS($AC25,38,1,1,"EST 2")):INDIRECT(ADDRESS($AC25,IF(Z25="",49,Z25+"37"),1,1,"EST 2")))-1) -> - | AG25: =IF($I25<AG$12,"-",SUM(INDIRECT(ADDRESS($AC25+"1",54,1,1,"EST 2")):INDIRECT(ADDRESS($AC25+"1",IF(AA25="",65,AA25+"53"),1,1,"EST 2")))/SUM(INDIRECT(ADDRESS($AC25,54,1,1,"EST 2")):INDIRECT(ADDRESS($AC25,IF(AA25="",65,AA25+"53"),1,1,"EST 2")))-1) -> - | AH25: =IF($I25<AH$12,"-",SUM(INDIRECT(ADDRESS($AC25+"1",70,1,1,"EST 2")):INDIRECT(ADDRESS($AC25+"1",IF(AB25="",81,AB25+"69"),1,1,"EST 2")))/SUM(INDIRECT(ADDRESS($AC25,70,1,1,"EST 2")):INDIRECT(ADDRESS($AC25,IF(AB25="",81,AB25+"69"),1,1,"EST 2")))-1) -> - | AJ25: 44573.66919
Q26: 44574.66919 | R26: 1 | S26: 2022 | AC26: =VLOOKUP(B26,'EST 2'!$B$14:$R$26,18,FALSE) ->  | AD26: =IF($I26<AD$12,"-",SUM(INDIRECT(ADDRESS($AC26+"1",6,1,1,"EST 2")):INDIRECT(ADDRESS($AC26+"1",IF(X26="",17,X26+"5"),1,1,"EST 2")))/SUM(INDIRECT(ADDRESS($AC26,6,1,1,"EST 2")):INDIRECT(ADDRESS($AC26,IF(X26="",17,X26+"5"),1,1,"EST 2")))-1) -> - | AE26: =IF($I26<AE$12,"-",SUM(INDIRECT(ADDRESS($AC26+"1",22,1,1,"EST 2")):INDIRECT(ADDRESS($AC26+"1",IF(Y26="",33,Y26+"21"),1,1,"EST 2")))/SUM(INDIRECT(ADDRESS($AC26,22,1,1,"EST 2")):INDIRECT(ADDRESS($AC26,IF(Y26="",33,Y26+"21"),1,1,"EST 2")))-1) -> - | AF26: =IF($I26<AF$12,"-",SUM(INDIRECT(ADDRESS($AC26+"1",38,1,1,"EST 2")):INDIRECT(ADDRESS($AC26+"1",IF(Z26="",49,Z26+"37"),1,1,"EST 2")))/SUM(INDIRECT(ADDRESS($AC26,38,1,1,"EST 2")):INDIRECT(ADDRESS($AC26,IF(Z26="",49,Z26+"37"),1,1,"EST 2")))-1) -> - | AG26: =IF($I26<AG$12,"-",SUM(INDIRECT(ADDRESS($AC26+"1",54,1,1,"EST 2")):INDIRECT(ADDRESS($AC26+"1",IF(AA26="",65,AA26+"53"),1,1,"EST 2")))/SUM(INDIRECT(ADDRESS($AC26,54,1,1,"EST 2")):INDIRECT(ADDRESS($AC26,IF(AA26="",65,AA26+"53"),1,1,"EST 2")))-1) -> - | AH26: =IF($I26<AH$12,"-",SUM(INDIRECT(ADDRESS($AC26+"1",70,1,1,"EST 2")):INDIRECT(ADDRESS($AC26+"1",IF(AB26="",81,AB26+"69"),1,1,"EST 2")))/SUM(INDIRECT(ADDRESS($AC26,70,1,1,"EST 2")):INDIRECT(ADDRESS($AC26,IF(AB26="",81,AB26+"69"),1,1,"EST 2")))-1) -> - | AJ26: 44573.66919
Q27: 44574.66919 | R27: 1 | S27: 2022 | AC27: =VLOOKUP(B27,'EST 2'!$B$14:$R$26,18,FALSE) ->  | AD27: =IF($I27<AD$12,"-",SUM(INDIRECT(ADDRESS($AC27+"1",6,1,1,"EST 2")):INDIRECT(ADDRESS($AC27+"1",IF(X27="",17,X27+"5"),1,1,"EST 2")))/SUM(INDIRECT(ADDRESS($AC27,6,1,1,"EST 2")):INDIRECT(ADDRESS($AC27,IF(X27="",17,X27+"5"),1,1,"EST 2")))-1) -> - | AE27: =IF($I27<AE$12,"-",SUM(INDIRECT(ADDRESS($AC27+"1",22,1,1,"EST 2")):INDIRECT(ADDRESS($AC27+"1",IF(Y27="",33,Y27+"21"),1,1,"EST 2")))/SUM(INDIRECT(ADDRESS($AC27,22,1,1,"EST 2")):INDIRECT(ADDRESS($AC27,IF(Y27="",33,Y27+"21"),1,1,"EST 2")))-1) -> - | AF27: =IF($I27<AF$12,"-",SUM(INDIRECT(ADDRESS($AC27+"1",38,1,1,"EST 2")):INDIRECT(ADDRESS($AC27+"1",IF(Z27="",49,Z27+"37"),1,1,"EST 2")))/SUM(INDIRECT(ADDRESS($AC27,38,1,1,"EST 2")):INDIRECT(ADDRESS($AC27,IF(Z27="",49,Z27+"37"),1,1,"EST 2")))-1) -> - | AG27: =IF($I27<AG$12,"-",SUM(INDIRECT(ADDRESS($AC27+"1",54,1,1,"EST 2")):INDIRECT(ADDRESS($AC27+"1",IF(AA27="",65,AA27+"53"),1,1,"EST 2")))/SUM(INDIRECT(ADDRESS($AC27,54,1,1,"EST 2")):INDIRECT(ADDRESS($AC27,IF(AA27="",65,AA27+"53"),1,1,"EST 2")))-1) -> - | AH27: =IF($I27<AH$12,"-",SUM(INDIRECT(ADDRESS($AC27+"1",70,1,1,"EST 2")):INDIRECT(ADDRESS($AC27+"1",IF(AB27="",81,AB27+"69"),1,1,"EST 2")))/SUM(INDIRECT(ADDRESS($AC27,70,1,1,"EST 2")):INDIRECT(ADDRESS($AC27,IF(AB27="",81,AB27+"69"),1,1,"EST 2")))-1) -> - | AJ27: 44573.66919
Q28: 44574.66919 | R28: 1 | S28: 2022 | AC28: =VLOOKUP(B28,'EST 2'!$B$14:$R$26,18,FALSE) ->  | AD28: =IF($I28<AD$12,"-",SUM(INDIRECT(ADDRESS($AC28+"1",6,1,1,"EST 2")):INDIRECT(ADDRESS($AC28+"1",IF(X28="",17,X28+"5"),1,1,"EST 2")))/SUM(INDIRECT(ADDRESS($AC28,6,1,1,"EST 2")):INDIRECT(ADDRESS($AC28,IF(X28="",17,X28+"5"),1,1,"EST 2")))-1) -> - | AE28: =IF($I28<AE$12,"-",SUM(INDIRECT(ADDRESS($AC28+"1",22,1,1,"EST 2")):INDIRECT(ADDRESS($AC28+"1",IF(Y28="",33,Y28+"21"),1,1,"EST 2")))/SUM(INDIRECT(ADDRESS($AC28,22,1,1,"EST 2")):INDIRECT(ADDRESS($AC28,IF(Y28="",33,Y28+"21"),1,1,"EST 2")))-1) -> - | AF28: =IF($I28<AF$12,"-",SUM(INDIRECT(ADDRESS($AC28+"1",38,1,1,"EST 2")):INDIRECT(ADDRESS($AC28+"1",IF(Z28="",49,Z28+"37"),1,1,"EST 2")))/SUM(INDIRECT(ADDRESS($AC28,38,1,1,"EST 2")):INDIRECT(ADDRESS($AC28,IF(Z28="",49,Z28+"37"),1,1,"EST 2")))-1) -> - | AG28: =IF($I28<AG$12,"-",SUM(INDIRECT(ADDRESS($AC28+"1",54,1,1,"EST 2")):INDIRECT(ADDRESS($AC28+"1",IF(AA28="",65,AA28+"53"),1,1,"EST 2")))/SUM(INDIRECT(ADDRESS($AC28,54,1,1,"EST 2")):INDIRECT(ADDRESS($AC28,IF(AA28="",65,AA28+"53"),1,1,"EST 2")))-1) -> - | AH28: =IF($I28<AH$12,"-",SUM(INDIRECT(ADDRESS($AC28+"1",70,1,1,"EST 2")):INDIRECT(ADDRESS($AC28+"1",IF(AB28="",81,AB28+"69"),1,1,"EST 2")))/SUM(INDIRECT(ADDRESS($AC28,70,1,1,"EST 2")):INDIRECT(ADDRESS($AC28,IF(AB28="",81,AB28+"69"),1,1,"EST 2")))-1) -> - | AJ28: 44573.66919
Q29: 44574.66919 | R29: 1 | S29: 2022 | AC29: =VLOOKUP(B29,'EST 2'!$B$14:$R$26,18,FALSE) ->  | AD29: =IF($I29<AD$12,"-",SUM(INDIRECT(ADDRESS($AC29+"1",6,1,1,"EST 2")):INDIRECT(ADDRESS($AC29+"1",IF(X29="",17,X29+"5"),1,1,"EST 2")))/SUM(INDIRECT(ADDRESS($AC29,6,1,1,"EST 2")):INDIRECT(ADDRESS($AC29,IF(X29="",17,X29+"5"),1,1,"EST 2")))-1) -> - | AE29: =IF($I29<AE$12,"-",SUM(INDIRECT(ADDRESS($AC29+"1",22,1,1,"EST 2")):INDIRECT(ADDRESS($AC29+"1",IF(Y29="",33,Y29+"21"),1,1,"EST 2")))/SUM(INDIRECT(ADDRESS($AC29,22,1,1,"EST 2")):INDIRECT(ADDRESS($AC29,IF(Y29="",33,Y29+"21"),1,1,"EST 2")))-1) -> - | AF29: =IF($I29<AF$12,"-",SUM(INDIRECT(ADDRESS($AC29+"1",38,1,1,"EST 2")):INDIRECT(ADDRESS($AC29+"1",IF(Z29="",49,Z29+"37"),1,1,"EST 2")))/SUM(INDIRECT(ADDRESS($AC29,38,1,1,"EST 2")):INDIRECT(ADDRESS($AC29,IF(Z29="",49,Z29+"37"),1,1,"EST 2")))-1) -> - | AG29: =IF($I29<AG$12,"-",SUM(INDIRECT(ADDRESS($AC29+"1",54,1,1,"EST 2")):INDIRECT(ADDRESS($AC29+"1",IF(AA29="",65,AA29+"53"),1,1,"EST 2")))/SUM(INDIRECT(ADDRESS($AC29,54,1,1,"EST 2")):INDIRECT(ADDRESS($AC29,IF(AA29="",65,AA29+"53"),1,1,"EST 2")))-1) -> - | AH29: =IF($I29<AH$12,"-",SUM(INDIRECT(ADDRESS($AC29+"1",70,1,1,"EST 2")):INDIRECT(ADDRESS($AC29+"1",IF(AB29="",81,AB29+"69"),1,1,"EST 2")))/SUM(INDIRECT(ADDRESS($AC29,70,1,1,"EST 2")):INDIRECT(ADDRESS($AC29,IF(AB29="",81,AB29+"69"),1,1,"EST 2")))-1) -> - | AJ29: 44573.66919
Q30: 44574.66919 | R30: 1 | S30: 2022 | AC30: =VLOOKUP(B30,'EST 2'!$B$14:$R$26,18,FALSE) ->  | AD30: =IF($I30<AD$12,"-",SUM(INDIRECT(ADDRESS($AC30+"1",6,1,1,"EST 2")):INDIRECT(ADDRESS($AC30+"1",IF(X30="",17,X30+"5"),1,1,"EST 2")))/SUM(INDIRECT(ADDRESS($AC30,6,1,1,"EST 2")):INDIRECT(ADDRESS($AC30,IF(X30="",17,X30+"5"),1,1,"EST 2")))-1) -> - | AE30: =IF($I30<AE$12,"-",SUM(INDIRECT(ADDRESS($AC30+"1",22,1,1,"EST 2")):INDIRECT(ADDRESS($AC30+"1",IF(Y30="",33,Y30+"21"),1,1,"EST 2")))/SUM(INDIRECT(ADDRESS($AC30,22,1,1,"EST 2")):INDIRECT(ADDRESS($AC30,IF(Y30="",33,Y30+"21"),1,1,"EST 2")))-1) -> - | AF30: =IF($I30<AF$12,"-",SUM(INDIRECT(ADDRESS($AC30+"1",38,1,1,"EST 2")):INDIRECT(ADDRESS($AC30+"1",IF(Z30="",49,Z30+"37"),1,1,"EST 2")))/SUM(INDIRECT(ADDRESS($AC30,38,1,1,"EST 2")):INDIRECT(ADDRESS($AC30,IF(Z30="",49,Z30+"37"),1,1,"EST 2")))-1) -> - | AG30: =IF($I30<AG$12,"-",SUM(INDIRECT(ADDRESS($AC30+"1",54,1,1,"EST 2")):INDIRECT(ADDRESS($AC30+"1",IF(AA30="",65,AA30+"53"),1,1,"EST 2")))/SUM(INDIRECT(ADDRESS($AC30,54,1,1,"EST 2")):INDIRECT(ADDRESS($AC30,IF(AA30="",65,AA30+"53"),1,1,"EST 2")))-1) -> - | AH30: =IF($I30<AH$12,"-",SUM(INDIRECT(ADDRESS($AC30+"1",70,1,1,"EST 2")):INDIRECT(ADDRESS($AC30+"1",IF(AB30="",81,AB30+"69"),1,1,"EST 2")))/SUM(INDIRECT(ADDRESS($AC30,70,1,1,"EST 2")):INDIRECT(ADDRESS($AC30,IF(AB30="",81,AB30+"69"),1,1,"EST 2")))-1) -> - | AJ30: 44573.66919
AC31: =VLOOKUP(B31,'EST 3'!$B$14:$R$26,18,FALSE) ->  | AD31: =IF($I31<AD$12,"-",SUM(INDIRECT(ADDRESS($AC31+"1",6,1,1,"EST 3")):INDIRECT(ADDRESS($AC31+"1",IF(X31="",17,X31+"5"),1,1,"EST 3")))/SUM(INDIRECT(ADDRESS($AC31,6,1,1,"EST 3")):INDIRECT(ADDRESS($AC31,IF(X31="",17,X31+"5"),1,1,"EST 3")))-1) -> - | AE31: =IF($I31<AE$12,"-",SUM(INDIRECT(ADDRESS($AC31+"1",22,1,1,"EST 3")):INDIRECT(ADDRESS($AC31+"1",IF(Y31="",33,Y31+"21"),1,1,"EST 3")))/SUM(INDIRECT(ADDRESS($AC31,22,1,1,"EST 3")):INDIRECT(ADDRESS($AC31,IF(Y31="",33,Y31+"21"),1,1,"EST 3")))-1) -> - | AF31: =IF($I31<AF$12,"-",SUM(INDIRECT(ADDRESS($AC31+"1",38,1,1,"EST 3")):INDIRECT(ADDRESS($AC31+"1",IF(Z31="",49,Z31+"37"),1,1,"EST 3")))/SUM(INDIRECT(ADDRESS($AC31,38,1,1,"EST 3")):INDIRECT(ADDRESS($AC31,IF(Z31="",49,Z31+"37"),1,1,"EST 3")))-1) -> - | AG31: =IF($I31<AG$12,"-",SUM(INDIRECT(ADDRESS($AC31+"1",54,1,1,"EST 2")):INDIRECT(ADDRESS($AC31+"1",IF(AA31="",65,AA31+"53"),1,1,"EST 2")))/SUM(INDIRECT(ADDRESS($AC31,54,1,1,"EST 2")):INDIRECT(ADDRESS($AC31,IF(AA31="",65,AA31+"53"),1,1,"EST 2")))-1) -> - | AH31: =IF($I31<AH$12,"-",SUM(INDIRECT(ADDRESS($AC31+"1",70,1,1,"EST 3")):INDIRECT(ADDRESS($AC31+"1",IF(AB31="",81,AB31+"69"),1,1,"EST 3")))/SUM(INDIRECT(ADDRESS($AC31,70,1,1,"EST 3")):INDIRECT(ADDRESS($AC31,IF(AB31="",81,AB31+"69"),1,1,"EST 3")))-1) -> -
B32: Aumentar: Capacidade de produção | C32: Perspectiva Financeira | I32: =DA!D13 -> 2020
B33: ='EST 3'!B19 -> 0 | C33: =DA!K13 -> Perspectiva de Clientes | I33: =IF(OR(DA!$D$15="5 anos",DA!$D$15="3 anos"),'PA 4'!I32+1,"") -> 2021
B34: ='EST 3'!B24 -> 0 | C34: =DA!H24 -> Perspectiva de Processos Internos | I34: =IF(OR(DA!$D$15="5 anos",DA!$D$15="3 anos"),'PA 4'!I33+1,"") -> 2022
C35: =DA!K24 -> Perspectiva de Aprendizagem | I35: =IF(DA!$D$15="3 anos","",IF(DA!$D$15="5 anos",I34+1,"")) -> 
I36: =IF(DA!$D$15="3 anos","",IF(DA!$D$15="5 anos",I35+1,"")) -> 

Sheet PA 4
B12: Metas | D12: Ação | E12: Setor | F12: Quem | G12: Como | H12: Prazo (Mês) | I12: Prazo (Ano) | J12: Status | K12: Saldo (Dias) | L12: % | O12: Mês prazo | P12: data prazo | Q12: Hoje | R12: mês hoje | S12: ano hoje | U12: atraso | V12: faltam | X12: =DA!D13 -> 2020 | Y12: =X12+1 -> 2021 | Z12: =Y12+1 -> 2022 | AA12: =Z12+1 -> 2023 | AB12: =AA12+1 -> 2024 | AD12: =X12 -> 2020 | AE12: =Y12 -> 2021 | AF12: =Z12 -> 2022 | AG12: =AA12 -> 2023 | AH12: =AB12 -> 2024 | AJ12: Contador de dias
B13: Aumentar: Satisfação interna | D13: Criar um melhor ambiente de trabalho | E13: RH | F13: Silas | G13: Criar playground para colaboradores | H13: Dezembro | I13: 2020 | J13: =IF(L13=1,"Concluído",IF(P13="","",IF(T13=0,"Vence esse mês",IF(T13>=3,"Faltam "&T13&" meses",IF(T13=2,"Faltam 2 meses",IF(T13=1,"Falta 1 mês",IF(T13=-1,ABS(T13)&" mês de atraso",ABS(T13)&" meses de atraso"))))))) -> 13 meses de atraso | K13: =IF(L13=1,"Concluído",AI13) -> -408.6691931 | L13: 0.98 | M13: Janeiro | N13: 1 | O13: =IF(ISERROR(VLOOKUP(H13,$M$13:$N$24,2,FALSE)),"",VLOOKUP(H13,$M$13:$N$24,2,FALSE)) -> 12 | P13: =IF(O13="","","1/"&O13&"/"&I13) -> 1/12/2020 | Q13: =NOW() -> 44574.66919 | R13: =MONTH(Q13) -> 1 | S13: =YEAR(Q13) -> 2022 | T13: =IF(U13<>"",-U13,V13) -> -13 | U13: =IF(I13>$S$13,"",((YEAR(NOW())-YEAR(P13))*12+MONTH(NOW())-MONTH(P13))) -> 13 | V13: =IF(U13<>"","",((YEAR(P13)-YEAR($Q$13))*12+MONTH(P13)-MONTH($Q$13))) ->  | X13: =IF($I13=X$12,$O13,"") -> 12 | Y13: =IF($I13=Y$12,$O13,"") ->  | Z13: =IF($I13=Z$12,$O13,"") ->  | AA13: =IF($I13=AA$12,$O13,"") ->  | AB13: =IF($I13=AB$12,$O13,"") ->  | AC13: =VLOOKUP(B13,'EST 2'!$B$14:$R$26,18,FALSE) ->  | AD13: =IF($I13<AD$12,"-",SUM(INDIRECT(ADDRESS($AC13+"1",6,1,1,"EST 2")):INDIRECT(ADDRESS($AC13+"1",IF(X13="",17,X13+"5"),1,1,"EST 2")))/SUM(INDIRECT(ADDRESS($AC13,6,1,1,"EST 2")):INDIRECT(ADDRESS($AC13,IF(X13="",17,X13+"5"),1,1,"EST 2")))-1) ->  | AE13: =IF($I13<AE$12,"-",SUM(INDIRECT(ADDRESS($AC13+"1",22,1,1,"EST 2")):INDIRECT(ADDRESS($AC13+"1",IF(Y13="",33,Y13+"21"),1,1,"EST 2")))/SUM(INDIRECT(ADDRESS($AC13,22,1,1,"EST 2")):INDIRECT(ADDRESS($AC13,IF(Y13="",33,Y13+"21"),1,1,"EST 2")))-1) -> - | AF13: =IF($I13<AF$12,"-",SUM(INDIRECT(ADDRESS($AC13+"1",38,1,1,"EST 2")):INDIRECT(ADDRESS($AC13+"1",IF(Z13="",49,Z13+"37"),1,1,"EST 2")))/SUM(INDIRECT(ADDRESS($AC13,38,1,1,"EST 2")):INDIRECT(ADDRESS($AC13,IF(Z13="",49,Z13+"37"),1,1,"EST 2")))-1) -> - | AG13: =IF($I13<AG$12,"-",SUM(INDIRECT(ADDRESS($AC13+"1",54,1,1,"EST 2")):INDIRECT(ADDRESS($AC13+"1",IF(AA13="",65,AA13+"53"),1,1,"EST 2")))/SUM(INDIRECT(ADDRESS($AC13,54,1,1,"EST 2")):INDIRECT(ADDRESS($AC13,IF(AA13="",65,AA13+"53"),1,1,"EST 2")))-1) -> - | AH13: =IF($I13<AH$12,"-",SUM(INDIRECT(ADDRESS($AC13+"1",70,1,1,"EST 2")):INDIRECT(ADDRESS($AC13+"1",IF(AB13="",81,AB13+"69"),1,1,"EST 2")))/SUM(INDIRECT(ADDRESS($AC13,70,1,1,"EST 2")):INDIRECT(ADDRESS($AC13,IF(AB13="",81,AB13+"69"),1,1,"EST 2")))-1) -> - | AI13: =IF(P13="","",P13-Q13) -> -408.6691931 | AJ13: =Q13-R13 -> 44573.66919
J14: =IF(L14=1,"Concluído",IF(P14="","",IF(T14=0,"Vence esse mês",IF(T14>=3,"Faltam "&T14&" meses",IF(T14=2,"Faltam 2 meses",IF(T14=1,"Falta 1 mês",IF(T14=-1,ABS(T14)&" mês de atraso",ABS(T14)&" meses de atraso"))))))) ->  | K14: =IF(L14=1,"Concluído",AI14) ->  | M14: Fevereiro | N14: 2 | O14: =IF(ISERROR(VLOOKUP(H14,$M$13:$N$24,2,FALSE)),"",VLOOKUP(H14,$M$13:$N$24,2,FALSE)) ->  | P14: =IF(O14="","","1/"&O14&"/"&I14) ->  | Q14: =NOW() -> 44574.66919 | R14: =MONTH(Q14) -> 1 | S14: =YEAR(Q14) -> 2022 | T14: =IF(U14<>"",-U14,V14) ->  | U14: =IF(I14>$S$13,"",((YEAR(NOW())-YEAR(P14))*12+MONTH(NOW())-MONTH(P14))) ->  | V14: =IF(U14<>"","",((YEAR(P14)-YEAR($Q$13))*12+MONTH(P14)-MONTH($Q$13))) ->  | X14: =IF($I14=X$12,$O14,"") ->  | AC14: =VLOOKUP(B14,'EST 2'!$B$14:$R$26,18,FALSE) ->  | AD14: =IF($I14<AD$12,"-",SUM(INDIRECT(ADDRESS($AC14+"1",6,1,1,"EST 2")):INDIRECT(ADDRESS($AC14+"1",IF(X14="",17,X14+"5"),1,1,"EST 2")))/SUM(INDIRECT(ADDRESS($AC14,6,1,1,"EST 2")):INDIRECT(ADDRESS($AC14,IF(X14="",17,X14+"5"),1,1,"EST 2")))-1) -> - | AE14: =IF($I14<AE$12,"-",SUM(INDIRECT(ADDRESS($AC14+"1",22,1,1,"EST 2")):INDIRECT(ADDRESS($AC14+"1",IF(Y14="",33,Y14+"21"),1,1,"EST 2")))/SUM(INDIRECT(ADDRESS($AC14,22,1,1,"EST 2")):INDIRECT(ADDRESS($AC14,IF(Y14="",33,Y14+"21"),1,1,"EST 2")))-1) -> - | AF14: =IF($I14<AF$12,"-",SUM(INDIRECT(ADDRESS($AC14+"1",38,1,1,"EST 2")):INDIRECT(ADDRESS($AC14+"1",IF(Z14="",49,Z14+"37"),1,1,"EST 2")))/SUM(INDIRECT(ADDRESS($AC14,38,1,1,"EST 2")):INDIRECT(ADDRESS($AC14,IF(Z14="",49,Z14+"37"),1,1,"EST 2")))-1) -> - | AG14: =IF($I14<AG$12,"-",SUM(INDIRECT(ADDRESS($AC14+"1",54,1,1,"EST 2")):INDIRECT(ADDRESS($AC14+"1",IF(AA14="",65,AA14+"53"),1,1,"EST 2")))/SUM(INDIRECT(ADDRESS($AC14,54,1,1,"EST 2")):INDIRECT(ADDRESS($AC14,IF(AA14="",65,AA14+"53"),1,1,"EST 2")))-1) -> - | AH14: =IF($I14<AH$12,"-",SUM(INDIRECT(ADDRESS($AC14+"1",70,1,1,"EST 2")):INDIRECT(ADDRESS($AC14+"1",IF(AB14="",81,AB14+"69"),1,1,"EST 2")))/SUM(INDIRECT(ADDRESS($AC14,70,1,1,"EST 2")):INDIRECT(ADDRESS($AC14,IF(AB14="",81,AB14+"69"),1,1,"EST 2")))-1) -> - | AI14: =IF(P14="","",P14-Q14) ->  | AJ14: =Q14-R14 -> 44573.66919
J15: =IF(L15=1,"Concluído",IF(P15="","",IF(T15=0,"Vence esse mês",IF(T15>=3,"Faltam "&T15&" meses",IF(T15=2,"Faltam 2 meses",IF(T15=1,"Falta 1 mês",IF(T15=-1,ABS(T15)&" mês de atraso",ABS(T15)&" meses de atraso"))))))) ->  | M15: Março | N15: 3 | Q15: 44574.66919 | R15: 1 | S15: 2022 | AC15: =VLOOKUP(B15,'EST 2'!$B$14:$R$26,18,FALSE) ->  | AD15: =IF($I15<AD$12,"-",SUM(INDIRECT(ADDRESS($AC15+"1",6,1,1,"EST 2")):INDIRECT(ADDRESS($AC15+"1",IF(X15="",17,X15+"5"),1,1,"EST 2")))/SUM(INDIRECT(ADDRESS($AC15,6,1,1,"EST 2")):INDIRECT(ADDRESS($AC15,IF(X15="",17,X15+"5"),1,1,"EST 2")))-1) -> - | AE15: =IF($I15<AE$12,"-",SUM(INDIRECT(ADDRESS($AC15+"1",22,1,1,"EST 2")):INDIRECT(ADDRESS($AC15+"1",IF(Y15="",33,Y15+"21"),1,1,"EST 2")))/SUM(INDIRECT(ADDRESS($AC15,22,1,1,"EST 2")):INDIRECT(ADDRESS($AC15,IF(Y15="",33,Y15+"21"),1,1,"EST 2")))-1) -> - | AF15: =IF($I15<AF$12,"-",SUM(INDIRECT(ADDRESS($AC15+"1",38,1,1,"EST 2")):INDIRECT(ADDRESS($AC15+"1",IF(Z15="",49,Z15+"37"),1,1,"EST 2")))/SUM(INDIRECT(ADDRESS($AC15,38,1,1,"EST 2")):INDIRECT(ADDRESS($AC15,IF(Z15="",49,Z15+"37"),1,1,"EST 2")))-1) -> - | AG15: =IF($I15<AG$12,"-",SUM(INDIRECT(ADDRESS($AC15+"1",54,1,1,"EST 2")):INDIRECT(ADDRESS($AC15+"1",IF(AA15="",65,AA15+"53"),1,1,"EST 2")))/SUM(INDIRECT(ADDRESS($AC15,54,1,1,"EST 2")):INDIRECT(ADDRESS($AC15,IF(AA15="",65,AA15+"53"),1,1,"EST 2")))-1) -> - | AH15: =IF($I15<AH$12,"-",SUM(INDIRECT(ADDRESS($AC15+"1",70,1,1,"EST 2")):INDIRECT(ADDRESS($AC15+"1",IF(AB15="",81,AB15+"69"),1,1,"EST 2")))/SUM(INDIRECT(ADDRESS($AC15,70,1,1,"EST 2")):INDIRECT(ADDRESS($AC15,IF(AB15="",81,AB15+"69"),1,1,"EST 2")))-1) -> - | AJ15: 44573.66919
M16: Abril | N16: 4 | Q16: 44574.66919 | R16: 1 | S16: 2022 | AC16: =VLOOKUP(B16,'EST 2'!$B$14:$R$26,18,FALSE) ->  | AD16: =IF($I16<AD$12,"-",SUM(INDIRECT(ADDRESS($AC16+"1",6,1,1,"EST 2")):INDIRECT(ADDRESS($AC16+"1",IF(X16="",17,X16+"5"),1,1,"EST 2")))/SUM(INDIRECT(ADDRESS($AC16,6,1,1,"EST 2")):INDIRECT(ADDRESS($AC16,IF(X16="",17,X16+"5"),1,1,"EST 2")))-1) -> - | AE16: =IF($I16<AE$12,"-",SUM(INDIRECT(ADDRESS($AC16+"1",22,1,1,"EST 2")):INDIRECT(ADDRESS($AC16+"1",IF(Y16="",33,Y16+"21"),1,1,"EST 2")))/SUM(INDIRECT(ADDRESS($AC16,22,1,1,"EST 2")):INDIRECT(ADDRESS($AC16,IF(Y16="",33,Y16+"21"),1,1,"EST 2")))-1) -> - | AF16: =IF($I16<AF$12,"-",SUM(INDIRECT(ADDRESS($AC16+"1",38,1,1,"EST 2")):INDIRECT(ADDRESS($AC16+"1",IF(Z16="",49,Z16+"37"),1,1,"EST 2")))/SUM(INDIRECT(ADDRESS($AC16,38,1,1,"EST 2")):INDIRECT(ADDRESS($AC16,IF(Z16="",49,Z16+"37"),1,1,"EST 2")))-1) -> - | AG16: =IF($I16<AG$12,"-",SUM(INDIRECT(ADDRESS($AC16+"1",54,1,1,"EST 2")):INDIRECT(ADDRESS($AC16+"1",IF(AA16="",65,AA16+"53"),1,1,"EST 2")))/SUM(INDIRECT(ADDRESS($AC16,54,1,1,"EST 2")):INDIRECT(ADDRESS($AC16,IF(AA16="",65,AA16+"53"),1,1,"EST 2")))-1) -> - | AH16: =IF($I16<AH$12,"-",SUM(INDIRECT(ADDRESS($AC16+"1",70,1,1,"EST 2")):INDIRECT(ADDRESS($AC16+"1",IF(AB16="",81,AB16+"69"),1,1,"EST 2")))/SUM(INDIRECT(ADDRESS($AC16,70,1,1,"EST 2")):INDIRECT(ADDRESS($AC16,IF(AB16="",81,AB16+"69"),1,1,"EST 2")))-1) -> - | AJ16: 44573.66919
M17: Maio | N17: 5 | Q17: 44574.66919 | R17: 1 | S17: 2022 | AC17: =VLOOKUP(B17,'EST 2'!$B$14:$R$26,18,FALSE) ->  | AD17: =IF($I17<AD$12,"-",SUM(INDIRECT(ADDRESS($AC17+"1",6,1,1,"EST 2")):INDIRECT(ADDRESS($AC17+"1",IF(X17="",17,X17+"5"),1,1,"EST 2")))/SUM(INDIRECT(ADDRESS($AC17,6,1,1,"EST 2")):INDIRECT(ADDRESS($AC17,IF(X17="",17,X17+"5"),1,1,"EST 2")))-1) -> - | AE17: =IF($I17<AE$12,"-",SUM(INDIRECT(ADDRESS($AC17+"1",22,1,1,"EST 2")):INDIRECT(ADDRESS($AC17+"1",IF(Y17="",33,Y17+"21"),1,1,"EST 2")))/SUM(INDIRECT(ADDRESS($AC17,22,1,1,"EST 2")):INDIRECT(ADDRESS($AC17,IF(Y17="",33,Y17+"21"),1,1,"EST 2")))-1) -> - | AF17: =IF($I17<AF$12,"-",SUM(INDIRECT(ADDRESS($AC17+"1",38,1,1,"EST 2")):INDIRECT(ADDRESS($AC17+"1",IF(Z17="",49,Z17+"37"),1,1,"EST 2")))/SUM(INDIRECT(ADDRESS($AC17,38,1,1,"EST 2")):INDIRECT(ADDRESS($AC17,IF(Z17="",49,Z17+"37"),1,1,"EST 2")))-1) -> - | AG17: =IF($I17<AG$12,"-",SUM(INDIRECT(ADDRESS($AC17+"1",54,1,1,"EST 2")):INDIRECT(ADDRESS($AC17+"1",IF(AA17="",65,AA17+"53"),1,1,"EST 2")))/SUM(INDIRECT(ADDRESS($AC17,54,1,1,"EST 2")):INDIRECT(ADDRESS($AC17,IF(AA17="",65,AA17+"53"),1,1,"EST 2")))-1) -> - | AH17: =IF($I17<AH$12,"-",SUM(INDIRECT(ADDRESS($AC17+"1",70,1,1,"EST 2")):INDIRECT(ADDRESS($AC17+"1",IF(AB17="",81,AB17+"69"),1,1,"EST 2")))/SUM(INDIRECT(ADDRESS($AC17,70,1,1,"EST 2")):INDIRECT(ADDRESS($AC17,IF(AB17="",81,AB17+"69"),1,1,"EST 2")))-1) -> - | AJ17: 44573.66919
K18: =IF(L18=1,"Concluído",AI18) ->  | M18: Junho | N18: 6 | Q18: 44574.66919 | R18: 1 | S18: 2022 | AC18: =VLOOKUP(B18,'EST 2'!$B$14:$R$26,18,FALSE) ->  | AD18: =IF($I18<AD$12,"-",SUM(INDIRECT(ADDRESS($AC18+"1",6,1,1,"EST 2")):INDIRECT(ADDRESS($AC18+"1",IF(X18="",17,X18+"5"),1,1,"EST 2")))/SUM(INDIRECT(ADDRESS($AC18,6,1,1,"EST 2")):INDIRECT(ADDRESS($AC18,IF(X18="",17,X18+"5"),1,1,"EST 2")))-1) -> - | AE18: =IF($I18<AE$12,"-",SUM(INDIRECT(ADDRESS($AC18+"1",22,1,1,"EST 2")):INDIRECT(ADDRESS($AC18+"1",IF(Y18="",33,Y18+"21"),1,1,"EST 2")))/SUM(INDIRECT(ADDRESS($AC18,22,1,1,"EST 2")):INDIRECT(ADDRESS($AC18,IF(Y18="",33,Y18+"21"),1,1,"EST 2")))-1) -> - | AF18: =IF($I18<AF$12,"-",SUM(INDIRECT(ADDRESS($AC18+"1",38,1,1,"EST 2")):INDIRECT(ADDRESS($AC18+"1",IF(Z18="",49,Z18+"37"),1,1,"EST 2")))/SUM(INDIRECT(ADDRESS($AC18,38,1,1,"EST 2")):INDIRECT(ADDRESS($AC18,IF(Z18="",49,Z18+"37"),1,1,"EST 2")))-1) -> - | AG18: =IF($I18<AG$12,"-",SUM(INDIRECT(ADDRESS($AC18+"1",54,1,1,"EST 2")):INDIRECT(ADDRESS($AC18+"1",IF(AA18="",65,AA18+"53"),1,1,"EST 2")))/SUM(INDIRECT(ADDRESS($AC18,54,1,1,"EST 2")):INDIRECT(ADDRESS($AC18,IF(AA18="",65,AA18+"53"),1,1,"EST 2")))-1) -> - | AH18: =IF($I18<AH$12,"-",SUM(INDIRECT(ADDRESS($AC18+"1",70,1,1,"EST 2")):INDIRECT(ADDRESS($AC18+"1",IF(AB18="",81,AB18+"69"),1,1,"EST 2")))/SUM(INDIRECT(ADDRESS($AC18,70,1,1,"EST 2")):INDIRECT(ADDRESS($AC18,IF(AB18="",81,AB18+"69"),1,1,"EST 2")))-1) -> - | AJ18: 44573.66919
K19: =IF(L19=1,"Concluído",AI19) ->  | M19: Julho | N19: 7 | Q19: 44574.66919 | R19: 1 | S19: 2022 | AC19: =VLOOKUP(B19,'EST 2'!$B$14:$R$26,18,FALSE) ->  | AD19: =IF($I19<AD$12,"-",SUM(INDIRECT(ADDRESS($AC19+"1",6,1,1,"EST 2")):INDIRECT(ADDRESS($AC19+"1",IF(X19="",17,X19+"5"),1,1,"EST 2")))/SUM(INDIRECT(ADDRESS($AC19,6,1,1,"EST 2")):INDIRECT(ADDRESS($AC19,IF(X19="",17,X19+"5"),1,1,"EST 2")))-1) -> - | AE19: =IF($I19<AE$12,"-",SUM(INDIRECT(ADDRESS($AC19+"1",22,1,1,"EST 2")):INDIRECT(ADDRESS($AC19+"1",IF(Y19="",33,Y19+"21"),1,1,"EST 2")))/SUM(INDIRECT(ADDRESS($AC19,22,1,1,"EST 2")):INDIRECT(ADDRESS($AC19,IF(Y19="",33,Y19+"21"),1,1,"EST 2")))-1) -> - | AF19: =IF($I19<AF$12,"-",SUM(INDIRECT(ADDRESS($AC19+"1",38,1,1,"EST 2")):INDIRECT(ADDRESS($AC19+"1",IF(Z19="",49,Z19+"37"),1,1,"EST 2")))/SUM(INDIRECT(ADDRESS($AC19,38,1,1,"EST 2")):INDIRECT(ADDRESS($AC19,IF(Z19="",49,Z19+"37"),1,1,"EST 2")))-1) -> - | AG19: =IF($I19<AG$12,"-",SUM(INDIRECT(ADDRESS($AC19+"1",54,1,1,"EST 2")):INDIRECT(ADDRESS($AC19+"1",IF(AA19="",65,AA19+"53"),1,1,"EST 2")))/SUM(INDIRECT(ADDRESS($AC19,54,1,1,"EST 2")):INDIRECT(ADDRESS($AC19,IF(AA19="",65,AA19+"53"),1,1,"EST 2")))-1) -> - | AH19: =IF($I19<AH$12,"-",SUM(INDIRECT(ADDRESS($AC19+"1",70,1,1,"EST 2")):INDIRECT(ADDRESS($AC19+"1",IF(AB19="",81,AB19+"69"),1,1,"EST 2")))/SUM(INDIRECT(ADDRESS($AC19,70,1,1,"EST 2")):INDIRECT(ADDRESS($AC19,IF(AB19="",81,AB19+"69"),1,1,"EST 2")))-1) -> - | AJ19: 44573.66919
M20: Agosto | N20: 8 | Q20: 44574.66919 | R20: 1 | S20: 2022 | AC20: =VLOOKUP(B20,'EST 2'!$B$14:$R$26,18,FALSE) ->  | AD20: =IF($I20<AD$12,"-",SUM(INDIRECT(ADDRESS($AC20+"1",6,1,1,"EST 2")):INDIRECT(ADDRESS($AC20+"1",IF(X20="",17,X20+"5"),1,1,"EST 2")))/SUM(INDIRECT(ADDRESS($AC20,6,1,1,"EST 2")):INDIRECT(ADDRESS($AC20,IF(X20="",17,X20+"5"),1,1,"EST 2")))-1) -> - | AE20: =IF($I20<AE$12,"-",SUM(INDIRECT(ADDRESS($AC20+"1",22,1,1,"EST 2")):INDIRECT(ADDRESS($AC20+"1",IF(Y20="",33,Y20+"21"),1,1,"EST 2")))/SUM(INDIRECT(ADDRESS($AC20,22,1,1,"EST 2")):INDIRECT(ADDRESS($AC20,IF(Y20="",33,Y20+"21"),1,1,"EST 2")))-1) -> - | AF20: =IF($I20<AF$12,"-",SUM(INDIRECT(ADDRESS($AC20+"1",38,1,1,"EST 2")):INDIRECT(ADDRESS($AC20+"1",IF(Z20="",49,Z20+"37"),1,1,"EST 2")))/SUM(INDIRECT(ADDRESS($AC20,38,1,1,"EST 2")):INDIRECT(ADDRESS($AC20,IF(Z20="",49,Z20+"37"),1,1,"EST 2")))-1) -> - | AG20: =IF($I20<AG$12,"-",SUM(INDIRECT(ADDRESS($AC20+"1",54,1,1,"EST 2")):INDIRECT(ADDRESS($AC20+"1",IF(AA20="",65,AA20+"53"),1,1,"EST 2")))/SUM(INDIRECT(ADDRESS($AC20,54,1,1,"EST 2")):INDIRECT(ADDRESS($AC20,IF(AA20="",65,AA20+"53"),1,1,"EST 2")))-1) -> - | AH20: =IF($I20<AH$12,"-",SUM(INDIRECT(ADDRESS($AC20+"1",70,1,1,"EST 2")):INDIRECT(ADDRESS($AC20+"1",IF(AB20="",81,AB20+"69"),1,1,"EST 2")))/SUM(INDIRECT(ADDRESS($AC20,70,1,1,"EST 2")):INDIRECT(ADDRESS($AC20,IF(AB20="",81,AB20+"69"),1,1,"EST 2")))-1) -> - | AJ20: 44573.66919
M21: Setembro | N21: 9 | Q21: 44574.66919 | R21: 1 | S21: 2022 | AC21: =VLOOKUP(B21,'EST 2'!$B$14:$R$26,18,FALSE) ->  | AD21: =IF($I21<AD$12,"-",SUM(INDIRECT(ADDRESS($AC21+"1",6,1,1,"EST 2")):INDIRECT(ADDRESS($AC21+"1",IF(X21="",17,X21+"5"),1,1,"EST 2")))/SUM(INDIRECT(ADDRESS($AC21,6,1,1,"EST 2")):INDIRECT(ADDRESS($AC21,IF(X21="",17,X21+"5"),1,1,"EST 2")))-1) -> - | AE21: =IF($I21<AE$12,"-",SUM(INDIRECT(ADDRESS($AC21+"1",22,1,1,"EST 2")):INDIRECT(ADDRESS($AC21+"1",IF(Y21="",33,Y21+"21"),1,1,"EST 2")))/SUM(INDIRECT(ADDRESS($AC21,22,1,1,"EST 2")):INDIRECT(ADDRESS($AC21,IF(Y21="",33,Y21+"21"),1,1,"EST 2")))-1) -> - | AF21: =IF($I21<AF$12,"-",SUM(INDIRECT(ADDRESS($AC21+"1",38,1,1,"EST 2")):INDIRECT(ADDRESS($AC21+"1",IF(Z21="",49,Z21+"37"),1,1,"EST 2")))/SUM(INDIRECT(ADDRESS($AC21,38,1,1,"EST 2")):INDIRECT(ADDRESS($AC21,IF(Z21="",49,Z21+"37"),1,1,"EST 2")))-1) -> - | AG21: =IF($I21<AG$12,"-",SUM(INDIRECT(ADDRESS($AC21+"1",54,1,1,"EST 2")):INDIRECT(ADDRESS($AC21+"1",IF(AA21="",65,AA21+"53"),1,1,"EST 2")))/SUM(INDIRECT(ADDRESS($AC21,54,1,1,"EST 2")):INDIRECT(ADDRESS($AC21,IF(AA21="",65,AA21+"53"),1,1,"EST 2")))-1) -> - | AH21: =IF($I21<AH$12,"-",SUM(INDIRECT(ADDRESS($AC21+"1",70,1,1,"EST 2")):INDIRECT(ADDRESS($AC21+"1",IF(AB21="",81,AB21+"69"),1,1,"EST 2")))/SUM(INDIRECT(ADDRESS($AC21,70,1,1,"EST 2")):INDIRECT(ADDRESS($AC21,IF(AB21="",81,AB21+"69"),1,1,"EST 2")))-1) -> - | AJ21: 44573.66919
M22: Outubro | N22: 10 | Q22: 44574.66919 | R22: 1 | S22: 2022 | AC22: =VLOOKUP(B22,'EST 2'!$B$14:$R$26,18,FALSE) ->  | AD22: =IF($I22<AD$12,"-",SUM(INDIRECT(ADDRESS($AC22+"1",6,1,1,"EST 2")):INDIRECT(ADDRESS($AC22+"1",IF(X22="",17,X22+"5"),1,1,"EST 2")))/SUM(INDIRECT(ADDRESS($AC22,6,1,1,"EST 2")):INDIRECT(ADDRESS($AC22,IF(X22="",17,X22+"5"),1,1,"EST 2")))-1) -> - | AE22: =IF($I22<AE$12,"-",SUM(INDIRECT(ADDRESS($AC22+"1",22,1,1,"EST 2")):INDIRECT(ADDRESS($AC22+"1",IF(Y22="",33,Y22+"21"),1,1,"EST 2")))/SUM(INDIRECT(ADDRESS($AC22,22,1,1,"EST 2")):INDIRECT(ADDRESS($AC22,IF(Y22="",33,Y22+"21"),1,1,"EST 2")))-1) -> - | AF22: =IF($I22<AF$12,"-",SUM(INDIRECT(ADDRESS($AC22+"1",38,1,1,"EST 2")):INDIRECT(ADDRESS($AC22+"1",IF(Z22="",49,Z22+"37"),1,1,"EST 2")))/SUM(INDIRECT(ADDRESS($AC22,38,1,1,"EST 2")):INDIRECT(ADDRESS($AC22,IF(Z22="",49,Z22+"37"),1,1,"EST 2")))-1) -> - | AG22: =IF($I22<AG$12,"-",SUM(INDIRECT(ADDRESS($AC22+"1",54,1,1,"EST 2")):INDIRECT(ADDRESS($AC22+"1",IF(AA22="",65,AA22+"53"),1,1,"EST 2")))/SUM(INDIRECT(ADDRESS($AC22,54,1,1,"EST 2")):INDIRECT(ADDRESS($AC22,IF(AA22="",65,AA22+"53"),1,1,"EST 2")))-1) -> - | AH22: =IF($I22<AH$12,"-",SUM(INDIRECT(ADDRESS($AC22+"1",70,1,1,"EST 2")):INDIRECT(ADDRESS($AC22+"1",IF(AB22="",81,AB22+"69"),1,1,"EST 2")))/SUM(INDIRECT(ADDRESS($AC22,70,1,1,"EST 2")):INDIRECT(ADDRESS($AC22,IF(AB22="",81,AB22+"69"),1,1,"EST 2")))-1) -> - | AJ22: 44573.66919
M23: Novembro | N23: 11 | Q23: 44574.66919 | R23: 1 | S23: 2022 | AC23: =VLOOKUP(B23,'EST 2'!$B$14:$R$26,18,FALSE) ->  | AD23: =IF($I23<AD$12,"-",SUM(INDIRECT(ADDRESS($AC23+"1",6,1,1,"EST 2")):INDIRECT(ADDRESS($AC23+"1",IF(X23="",17,X23+"5"),1,1,"EST 2")))/SUM(INDIRECT(ADDRESS($AC23,6,1,1,"EST 2")):INDIRECT(ADDRESS($AC23,IF(X23="",17,X23+"5"),1,1,"EST 2")))-1) -> - | AE23: =IF($I23<AE$12,"-",SUM(INDIRECT(ADDRESS($AC23+"1",22,1,1,"EST 2")):INDIRECT(ADDRESS($AC23+"1",IF(Y23="",33,Y23+"21"),1,1,"EST 2")))/SUM(INDIRECT(ADDRESS($AC23,22,1,1,"EST 2")):INDIRECT(ADDRESS($AC23,IF(Y23="",33,Y23+"21"),1,1,"EST 2")))-1) -> - | AF23: =IF($I23<AF$12,"-",SUM(INDIRECT(ADDRESS($AC23+"1",38,1,1,"EST 2")):INDIRECT(ADDRESS($AC23+"1",IF(Z23="",49,Z23+"37"),1,1,"EST 2")))/SUM(INDIRECT(ADDRESS($AC23,38,1,1,"EST 2")):INDIRECT(ADDRESS($AC23,IF(Z23="",49,Z23+"37"),1,1,"EST 2")))-1) -> - | AG23: =IF($I23<AG$12,"-",SUM(INDIRECT(ADDRESS($AC23+"1",54,1,1,"EST 2")):INDIRECT(ADDRESS($AC23+"1",IF(AA23="",65,AA23+"53"),1,1,"EST 2")))/SUM(INDIRECT(ADDRESS($AC23,54,1,1,"EST 2")):INDIRECT(ADDRESS($AC23,IF(AA23="",65,AA23+"53"),1,1,"EST 2")))-1) -> - | AH23: =IF($I23<AH$12,"-",SUM(INDIRECT(ADDRESS($AC23+"1",70,1,1,"EST 2")):INDIRECT(ADDRESS($AC23+"1",IF(AB23="",81,AB23+"69"),1,1,"EST 2")))/SUM(INDIRECT(ADDRESS($AC23,70,1,1,"EST 2")):INDIRECT(ADDRESS($AC23,IF(AB23="",81,AB23+"69"),1,1,"EST 2")))-1) -> - | AJ23: 44573.66919
M24: Dezembro | N24: 12 | Q24: 44574.66919 | R24: 1 | S24: 2022 | AC24: =VLOOKUP(B24,'EST 2'!$B$14:$R$26,18,FALSE) ->  | AD24: =IF($I24<AD$12,"-",SUM(INDIRECT(ADDRESS($AC24+"1",6,1,1,"EST 2")):INDIRECT(ADDRESS($AC24+"1",IF(X24="",17,X24+"5"),1,1,"EST 2")))/SUM(INDIRECT(ADDRESS($AC24,6,1,1,"EST 2")):INDIRECT(ADDRESS($AC24,IF(X24="",17,X24+"5"),1,1,"EST 2")))-1) -> - | AE24: =IF($I24<AE$12,"-",SUM(INDIRECT(ADDRESS($AC24+"1",22,1,1,"EST 2")):INDIRECT(ADDRESS($AC24+"1",IF(Y24="",33,Y24+"21"),1,1,"EST 2")))/SUM(INDIRECT(ADDRESS($AC24,22,1,1,"EST 2")):INDIRECT(ADDRESS($AC24,IF(Y24="",33,Y24+"21"),1,1,"EST 2")))-1) -> - | AF24: =IF($I24<AF$12,"-",SUM(INDIRECT(ADDRESS($AC24+"1",38,1,1,"EST 2")):INDIRECT(ADDRESS($AC24+"1",IF(Z24="",49,Z24+"37"),1,1,"EST 2")))/SUM(INDIRECT(ADDRESS($AC24,38,1,1,"EST 2")):INDIRECT(ADDRESS($AC24,IF(Z24="",49,Z24+"37"),1,1,"EST 2")))-1) -> - | AG24: =IF($I24<AG$12,"-",SUM(INDIRECT(ADDRESS($AC24+"1",54,1,1,"EST 2")):INDIRECT(ADDRESS($AC24+"1",IF(AA24="",65,AA24+"53"),1,1,"EST 2")))/SUM(INDIRECT(ADDRESS($AC24,54,1,1,"EST 2")):INDIRECT(ADDRESS($AC24,IF(AA24="",65,AA24+"53"),1,1,"EST 2")))-1) -> - | AH24: =IF($I24<AH$12,"-",SUM(INDIRECT(ADDRESS($AC24+"1",70,1,1,"EST 2")):INDIRECT(ADDRESS($AC24+"1",IF(AB24="",81,AB24+"69"),1,1,"EST 2")))/SUM(INDIRECT(ADDRESS($AC24,70,1,1,"EST 2")):INDIRECT(ADDRESS($AC24,IF(AB24="",81,AB24+"69"),1,1,"EST 2")))-1) -> - | AJ24: 44573.66919
Q25: 44574.66919 | R25: 1 | S25: 2022 | AC25: =VLOOKUP(B25,'EST 2'!$B$14:$R$26,18,FALSE) ->  | AD25: =IF($I25<AD$12,"-",SUM(INDIRECT(ADDRESS($AC25+"1",6,1,1,"EST 2")):INDIRECT(ADDRESS($AC25+"1",IF(X25="",17,X25+"5"),1,1,"EST 2")))/SUM(INDIRECT(ADDRESS($AC25,6,1,1,"EST 2")):INDIRECT(ADDRESS($AC25,IF(X25="",17,X25+"5"),1,1,"EST 2")))-1) -> - | AE25: =IF($I25<AE$12,"-",SUM(INDIRECT(ADDRESS($AC25+"1",22,1,1,"EST 2")):INDIRECT(ADDRESS($AC25+"1",IF(Y25="",33,Y25+"21"),1,1,"EST 2")))/SUM(INDIRECT(ADDRESS($AC25,22,1,1,"EST 2")):INDIRECT(ADDRESS($AC25,IF(Y25="",33,Y25+"21"),1,1,"EST 2")))-1) -> - | AF25: =IF($I25<AF$12,"-",SUM(INDIRECT(ADDRESS($AC25+"1",38,1,1,"EST 2")):INDIRECT(ADDRESS($AC25+"1",IF(Z25="",49,Z25+"37"),1,1,"EST 2")))/SUM(INDIRECT(ADDRESS($AC25,38,1,1,"EST 2")):INDIRECT(ADDRESS($AC25,IF(Z25="",49,Z25+"37"),1,1,"EST 2")))-1) -> - | AG25: =IF($I25<AG$12,"-",SUM(INDIRECT(ADDRESS($AC25+"1",54,1,1,"EST 2")):INDIRECT(ADDRESS($AC25+"1",IF(AA25="",65,AA25+"53"),1,1,"EST 2")))/SUM(INDIRECT(ADDRESS($AC25,54,1,1,"EST 2")):INDIRECT(ADDRESS($AC25,IF(AA25="",65,AA25+"53"),1,1,"EST 2")))-1) -> - | AH25: =IF($I25<AH$12,"-",SUM(INDIRECT(ADDRESS($AC25+"1",70,1,1,"EST 2")):INDIRECT(ADDRESS($AC25+"1",IF(AB25="",81,AB25+"69"),1,1,"EST 2")))/SUM(INDIRECT(ADDRESS($AC25,70,1,1,"EST 2")):INDIRECT(ADDRESS($AC25,IF(AB25="",81,AB25+"69"),1,1,"EST 2")))-1) -> - | AJ25: 44573.66919
Q26: 44574.66919 | R26: 1 | S26: 2022 | AC26: =VLOOKUP(B26,'EST 2'!$B$14:$R$26,18,FALSE) ->  | AD26: =IF($I26<AD$12,"-",SUM(INDIRECT(ADDRESS($AC26+"1",6,1,1,"EST 2")):INDIRECT(ADDRESS($AC26+"1",IF(X26="",17,X26+"5"),1,1,"EST 2")))/SUM(INDIRECT(ADDRESS($AC26,6,1,1,"EST 2")):INDIRECT(ADDRESS($AC26,IF(X26="",17,X26+"5"),1,1,"EST 2")))-1) -> - | AE26: =IF($I26<AE$12,"-",SUM(INDIRECT(ADDRESS($AC26+"1",22,1,1,"EST 2")):INDIRECT(ADDRESS($AC26+"1",IF(Y26="",33,Y26+"21"),1,1,"EST 2")))/SUM(INDIRECT(ADDRESS($AC26,22,1,1,"EST 2")):INDIRECT(ADDRESS($AC26,IF(Y26="",33,Y26+"21"),1,1,"EST 2")))-1) -> - | AF26: =IF($I26<AF$12,"-",SUM(INDIRECT(ADDRESS($AC26+"1",38,1,1,"EST 2")):INDIRECT(ADDRESS($AC26+"1",IF(Z26="",49,Z26+"37"),1,1,"EST 2")))/SUM(INDIRECT(ADDRESS($AC26,38,1,1,"EST 2")):INDIRECT(ADDRESS($AC26,IF(Z26="",49,Z26+"37"),1,1,"EST 2")))-1) -> - | AG26: =IF($I26<AG$12,"-",SUM(INDIRECT(ADDRESS($AC26+"1",54,1,1,"EST 2")):INDIRECT(ADDRESS($AC26+"1",IF(AA26="",65,AA26+"53"),1,1,"EST 2")))/SUM(INDIRECT(ADDRESS($AC26,54,1,1,"EST 2")):INDIRECT(ADDRESS($AC26,IF(AA26="",65,AA26+"53"),1,1,"EST 2")))-1) -> - | AH26: =IF($I26<AH$12,"-",SUM(INDIRECT(ADDRESS($AC26+"1",70,1,1,"EST 2")):INDIRECT(ADDRESS($AC26+"1",IF(AB26="",81,AB26+"69"),1,1,"EST 2")))/SUM(INDIRECT(ADDRESS($AC26,70,1,1,"EST 2")):INDIRECT(ADDRESS($AC26,IF(AB26="",81,AB26+"69"),1,1,"EST 2")))-1) -> - | AJ26: 44573.66919
Q27: 44574.66919 | R27: 1 | S27: 2022 | AC27: =VLOOKUP(B27,'EST 2'!$B$14:$R$26,18,FALSE) ->  | AD27: =IF($I27<AD$12,"-",SUM(INDIRECT(ADDRESS($AC27+"1",6,1,1,"EST 2")):INDIRECT(ADDRESS($AC27+"1",IF(X27="",17,X27+"5"),1,1,"EST 2")))/SUM(INDIRECT(ADDRESS($AC27,6,1,1,"EST 2")):INDIRECT(ADDRESS($AC27,IF(X27="",17,X27+"5"),1,1,"EST 2")))-1) -> - | AE27: =IF($I27<AE$12,"-",SUM(INDIRECT(ADDRESS($AC27+"1",22,1,1,"EST 2")):INDIRECT(ADDRESS($AC27+"1",IF(Y27="",33,Y27+"21"),1,1,"EST 2")))/SUM(INDIRECT(ADDRESS($AC27,22,1,1,"EST 2")):INDIRECT(ADDRESS($AC27,IF(Y27="",33,Y27+"21"),1,1,"EST 2")))-1) -> - | AF27: =IF($I27<AF$12,"-",SUM(INDIRECT(ADDRESS($AC27+"1",38,1,1,"EST 2")):INDIRECT(ADDRESS($AC27+"1",IF(Z27="",49,Z27+"37"),1,1,"EST 2")))/SUM(INDIRECT(ADDRESS($AC27,38,1,1,"EST 2")):INDIRECT(ADDRESS($AC27,IF(Z27="",49,Z27+"37"),1,1,"EST 2")))-1) -> - | AG27: =IF($I27<AG$12,"-",SUM(INDIRECT(ADDRESS($AC27+"1",54,1,1,"EST 2")):INDIRECT(ADDRESS($AC27+"1",IF(AA27="",65,AA27+"53"),1,1,"EST 2")))/SUM(INDIRECT(ADDRESS($AC27,54,1,1,"EST 2")):INDIRECT(ADDRESS($AC27,IF(AA27="",65,AA27+"53"),1,1,"EST 2")))-1) -> - | AH27: =IF($I27<AH$12,"-",SUM(INDIRECT(ADDRESS($AC27+"1",70,1,1,"EST 2")):INDIRECT(ADDRESS($AC27+"1",IF(AB27="",81,AB27+"69"),1,1,"EST 2")))/SUM(INDIRECT(ADDRESS($AC27,70,1,1,"EST 2")):INDIRECT(ADDRESS($AC27,IF(AB27="",81,AB27+"69"),1,1,"EST 2")))-1) -> - | AJ27: 44573.66919
Q28: 44574.66919 | R28: 1 | S28: 2022 | AC28: =VLOOKUP(B28,'EST 2'!$B$14:$R$26,18,FALSE) ->  | AD28: =IF($I28<AD$12,"-",SUM(INDIRECT(ADDRESS($AC28+"1",6,1,1,"EST 2")):INDIRECT(ADDRESS($AC28+"1",IF(X28="",17,X28+"5"),1,1,"EST 2")))/SUM(INDIRECT(ADDRESS($AC28,6,1,1,"EST 2")):INDIRECT(ADDRESS($AC28,IF(X28="",17,X28+"5"),1,1,"EST 2")))-1) -> - | AE28: =IF($I28<AE$12,"-",SUM(INDIRECT(ADDRESS($AC28+"1",22,1,1,"EST 2")):INDIRECT(ADDRESS($AC28+"1",IF(Y28="",33,Y28+"21"),1,1,"EST 2")))/SUM(INDIRECT(ADDRESS($AC28,22,1,1,"EST 2")):INDIRECT(ADDRESS($AC28,IF(Y28="",33,Y28+"21"),1,1,"EST 2")))-1) -> - | AF28: =IF($I28<AF$12,"-",SUM(INDIRECT(ADDRESS($AC28+"1",38,1,1,"EST 2")):INDIRECT(ADDRESS($AC28+"1",IF(Z28="",49,Z28+"37"),1,1,"EST 2")))/SUM(INDIRECT(ADDRESS($AC28,38,1,1,"EST 2")):INDIRECT(ADDRESS($AC28,IF(Z28="",49,Z28+"37"),1,1,"EST 2")))-1) -> - | AG28: =IF($I28<AG$12,"-",SUM(INDIRECT(ADDRESS($AC28+"1",54,1,1,"EST 2")):INDIRECT(ADDRESS($AC28+"1",IF(AA28="",65,AA28+"53"),1,1,"EST 2")))/SUM(INDIRECT(ADDRESS($AC28,54,1,1,"EST 2")):INDIRECT(ADDRESS($AC28,IF(AA28="",65,AA28+"53"),1,1,"EST 2")))-1) -> - | AH28: =IF($I28<AH$12,"-",SUM(INDIRECT(ADDRESS($AC28+"1",70,1,1,"EST 2")):INDIRECT(ADDRESS($AC28+"1",IF(AB28="",81,AB28+"69"),1,1,"EST 2")))/SUM(INDIRECT(ADDRESS($AC28,70,1,1,"EST 2")):INDIRECT(ADDRESS($AC28,IF(AB28="",81,AB28+"69"),1,1,"EST 2")))-1) -> - | AJ28: 44573.66919
Q29: 44574.66919 | R29: 1 | S29: 2022 | AC29: =VLOOKUP(B29,'EST 2'!$B$14:$R$26,18,FALSE) ->  | AD29: =IF($I29<AD$12,"-",SUM(INDIRECT(ADDRESS($AC29+"1",6,1,1,"EST 2")):INDIRECT(ADDRESS($AC29+"1",IF(X29="",17,X29+"5"),1,1,"EST 2")))/SUM(INDIRECT(ADDRESS($AC29,6,1,1,"EST 2")):INDIRECT(ADDRESS($AC29,IF(X29="",17,X29+"5"),1,1,"EST 2")))-1) -> - | AE29: =IF($I29<AE$12,"-",SUM(INDIRECT(ADDRESS($AC29+"1",22,1,1,"EST 2")):INDIRECT(ADDRESS($AC29+"1",IF(Y29="",33,Y29+"21"),1,1,"EST 2")))/SUM(INDIRECT(ADDRESS($AC29,22,1,1,"EST 2")):INDIRECT(ADDRESS($AC29,IF(Y29="",33,Y29+"21"),1,1,"EST 2")))-1) -> - | AF29: =IF($I29<AF$12,"-",SUM(INDIRECT(ADDRESS($AC29+"1",38,1,1,"EST 2")):INDIRECT(ADDRESS($AC29+"1",IF(Z29="",49,Z29+"37"),1,1,"EST 2")))/SUM(INDIRECT(ADDRESS($AC29,38,1,1,"EST 2")):INDIRECT(ADDRESS($AC29,IF(Z29="",49,Z29+"37"),1,1,"EST 2")))-1) -> - | AG29: =IF($I29<AG$12,"-",SUM(INDIRECT(ADDRESS($AC29+"1",54,1,1,"EST 2")):INDIRECT(ADDRESS($AC29+"1",IF(AA29="",65,AA29+"53"),1,1,"EST 2")))/SUM(INDIRECT(ADDRESS($AC29,54,1,1,"EST 2")):INDIRECT(ADDRESS($AC29,IF(AA29="",65,AA29+"53"),1,1,"EST 2")))-1) -> - | AH29: =IF($I29<AH$12,"-",SUM(INDIRECT(ADDRESS($AC29+"1",70,1,1,"EST 2")):INDIRECT(ADDRESS($AC29+"1",IF(AB29="",81,AB29+"69"),1,1,"EST 2")))/SUM(INDIRECT(ADDRESS($AC29,70,1,1,"EST 2")):INDIRECT(ADDRESS($AC29,IF(AB29="",81,AB29+"69"),1,1,"EST 2")))-1) -> - | AJ29: 44573.66919
Q30: 44574.66919 | R30: 1 | S30: 2022 | AC30: =VLOOKUP(B30,'EST 2'!$B$14:$R$26,18,FALSE) ->  | AD30: =IF($I30<AD$12,"-",SUM(INDIRECT(ADDRESS($AC30+"1",6,1,1,"EST 2")):INDIRECT(ADDRESS($AC30+"1",IF(X30="",17,X30+"5"),1,1,"EST 2")))/SUM(INDIRECT(ADDRESS($AC30,6,1,1,"EST 2")):INDIRECT(ADDRESS($AC30,IF(X30="",17,X30+"5"),1,1,"EST 2")))-1) -> - | AE30: =IF($I30<AE$12,"-",SUM(INDIRECT(ADDRESS($AC30+"1",22,1,1,"EST 2")):INDIRECT(ADDRESS($AC30+"1",IF(Y30="",33,Y30+"21"),1,1,"EST 2")))/SUM(INDIRECT(ADDRESS($AC30,22,1,1,"EST 2")):INDIRECT(ADDRESS($AC30,IF(Y30="",33,Y30+"21"),1,1,"EST 2")))-1) -> - | AF30: =IF($I30<AF$12,"-",SUM(INDIRECT(ADDRESS($AC30+"1",38,1,1,"EST 2")):INDIRECT(ADDRESS($AC30+"1",IF(Z30="",49,Z30+"37"),1,1,"EST 2")))/SUM(INDIRECT(ADDRESS($AC30,38,1,1,"EST 2")):INDIRECT(ADDRESS($AC30,IF(Z30="",49,Z30+"37"),1,1,"EST 2")))-1) -> - | AG30: =IF($I30<AG$12,"-",SUM(INDIRECT(ADDRESS($AC30+"1",54,1,1,"EST 2")):INDIRECT(ADDRESS($AC30+"1",IF(AA30="",65,AA30+"53"),1,1,"EST 2")))/SUM(INDIRECT(ADDRESS($AC30,54,1,1,"EST 2")):INDIRECT(ADDRESS($AC30,IF(AA30="",65,AA30+"53"),1,1,"EST 2")))-1) -> - | AH30: =IF($I30<AH$12,"-",SUM(INDIRECT(ADDRESS($AC30+"1",70,1,1,"EST 2")):INDIRECT(ADDRESS($AC30+"1",IF(AB30="",81,AB30+"69"),1,1,"EST 2")))/SUM(INDIRECT(ADDRESS($AC30,70,1,1,"EST 2")):INDIRECT(ADDRESS($AC30,IF(AB30="",81,AB30+"69"),1,1,"EST 2")))-1) -> - | AJ30: 44573.66919
AC31: =VLOOKUP(B31,'EST 3'!$B$14:$R$26,18,FALSE) ->  | AD31: =IF($I31<AD$12,"-",SUM(INDIRECT(ADDRESS($AC31+"1",6,1,1,"EST 3")):INDIRECT(ADDRESS($AC31+"1",IF(X31="",17,X31+"5"),1,1,"EST 3")))/SUM(INDIRECT(ADDRESS($AC31,6,1,1,"EST 3")):INDIRECT(ADDRESS($AC31,IF(X31="",17,X31+"5"),1,1,"EST 3")))-1) -> - | AE31: =IF($I31<AE$12,"-",SUM(INDIRECT(ADDRESS($AC31+"1",22,1,1,"EST 3")):INDIRECT(ADDRESS($AC31+"1",IF(Y31="",33,Y31+"21"),1,1,"EST 3")))/SUM(INDIRECT(ADDRESS($AC31,22,1,1,"EST 3")):INDIRECT(ADDRESS($AC31,IF(Y31="",33,Y31+"21"),1,1,"EST 3")))-1) -> - | AF31: =IF($I31<AF$12,"-",SUM(INDIRECT(ADDRESS($AC31+"1",38,1,1,"EST 3")):INDIRECT(ADDRESS($AC31+"1",IF(Z31="",49,Z31+"37"),1,1,"EST 3")))/SUM(INDIRECT(ADDRESS($AC31,38,1,1,"EST 3")):INDIRECT(ADDRESS($AC31,IF(Z31="",49,Z31+"37"),1,1,"EST 3")))-1) -> - | AG31: =IF($I31<AG$12,"-",SUM(INDIRECT(ADDRESS($AC31+"1",54,1,1,"EST 3")):INDIRECT(ADDRESS($AC31+"1",IF(AA31="",65,AA31+"53"),1,1,"EST 3")))/SUM(INDIRECT(ADDRESS($AC31,54,1,1,"EST 3")):INDIRECT(ADDRESS($AC31,IF(AA31="",65,AA31+"53"),1,1,"EST 3")))-1) -> - | AH31: =IF($I31<AH$12,"-",SUM(INDIRECT(ADDRESS($AC31+"1",70,1,1,"EST 3")):INDIRECT(ADDRESS($AC31+"1",IF(AB31="",81,AB31+"69"),1,1,"EST 3")))/SUM(INDIRECT(ADDRESS($AC31,70,1,1,"EST 3")):INDIRECT(ADDRESS($AC31,IF(AB31="",81,AB31+"69"),1,1,"EST 3")))-1) -> -
B32: Diminuir: Reclamações trabalhistas | C32: Perspectiva Financeira | I32: =DA!D13 -> 2020
B33: ='EST 4'!B19 -> Aumentar: Satisfação interna | C33: =DA!K13 -> Perspectiva de Clientes | I33: =IF(OR(DA!$D$15="5 anos",DA!$D$15="3 anos"),'PA 4'!I32+1,"") -> 2021
B34: ='EST 4'!B24 -> 0 | C34: =DA!H24 -> Perspectiva de Processos Internos | I34: =IF(OR(DA!$D$15="5 anos",DA!$D$15="3 anos"),'PA 4'!I33+1,"") -> 2022
C35: =DA!K24 -> Perspectiva de Aprendizagem | I35: =IF(DA!$D$15="3 anos","",IF(DA!$D$15="5 anos",I34+1,"")) -> 
I36: =IF(DA!$D$15="3 anos","",IF(DA!$D$15="5 anos",I35+1,"")) -> 

Sheet RC
B12: Visão geral | M12: 0.7 | N12: É necessário avaliar as ações previstasa e se estão sendo implementadas corretamente, pois seu índice geral ainda está abaixo de 100%.
B13: Índice Geral do Planejamento Estratégico | C13: =IF(ISERROR(IF(B14<1,N12,N13)),"",IF(B14<1,N12,N13)) -> Parabéns! Suas metas estão sendo alcançadas e seu índice geral está acima de 100%. | N13: Parabéns! Suas metas estão sendo alcançadas e seu índice geral está acima de 100%.
B14: =IF(ISERROR(AVERAGE(F18,AE18,F48,AE48,F19,AE19,F49,AE49)),"",AVERAGE(F18,AE18,F48,AE48,F19,AE19,F49,AE49)) -> 1.013934947 | J14: =YEAR(NOW()) -> 2022 | K14: ='RC'!J14+IF(DA!D15="1 ano",1,IF(DA!D15="3 anos",3,5)) -> 2025
B15: ="Restam "&J18&" meses para conclusão do Planejamento Estratégico" -> Restam 47 meses para conclusão do Planejamento Estratégico | J15: =MONTH(NOW()) -> 1 | K15: 12
J16: =DATE(J14,J15,1) -> 44562 | K16: =DATE(K14,K15,1) -> 45992
B17: =DA!H13 -> Perspectiva Financeira | AA17: =DA!K13 -> Perspectiva de Clientes
B18: Índice de atendimento das metas planejadas: | F18: =IF(ISERROR(AVERAGE(F21:F30)),"",AVERAGE(F21:F30)) -> 0.8504583741 | J18: =DATEDIF(J16,K16,"M") -> 47 | AA18: Índice de atendimento das metas planejadas: | AE18: =IF(ISERROR(AVERAGE(AE21:AE30)),"",AVERAGE(AE21:AE30)) -> 1.156532508
B19: Índice de conclusão dos planos de ação: | F19: =IF(ISERROR(AVERAGE(PA!L13:L30)),"",AVERAGE(PA!L13:L30)) -> 0.9833333333 | AA19: Índice de conclusão dos planos de ação: | AE19: =IF(ISERROR(AVERAGE('PA 2'!L13:L30)),"",AVERAGE('PA 2'!L13:L30)) -> 0.995
B20: Objetivo | D20: Planejado | E20: Realizado | F20: Alcance da Meta | G20: =IF(LARGE(N21:N23,1)>12,LARGE(N21:N23,1)+1,LARGE(N21:N23,1)) -> 7 | AA20: Objetivo | AC20: Planejado | AD20: Realizado | AE20: Alcance da Meta | AF20: =IF(LARGE(AM21:AM23,1)>12,LARGE(AM21:AM23,1)+1,LARGE(AM21:AM23,1)) -> 7
B21: =EST!B14 -> Aumentar: Receitas | D21: =IF(ISERROR(IF(DA!$J$13="1 ano",EST!P14,IF(DA!$J$13="3 anos",SUM(EST!P14,EST!AF14,EST!AV14),SUM(EST!P14,EST!AF14,EST!AV14,EST!BL14,EST!CB14)))),"",IF(DA!$J$13="1 ano",EST!P14,IF(DA!$J$13="3 anos",SUM(EST!P14,EST!AF14,EST!AV14),SUM(EST!P14,EST!AF14,EST!AV14,EST!BL14,EST!CB14)))) -> 650 | E21: =IF(ISERROR(IF(DA!$J$13="1 ano",EST!P15,IF(DA!$J$13="3 anos",SUM(EST!P15,EST!AF15,EST!AV15),SUM(EST!P15,EST!AF15,EST!AV15,EST!BL15,EST!CB15)))),"",IF(DA!$J$13="1 ano",EST!P15,IF(DA!$J$13="3 anos",SUM(EST!P15,EST!AF15,EST!AV15),SUM(EST!P15,EST!AF15,EST!AV15,EST!BL15,EST!CB15)))) -> 300 | F21: =IF(ISERROR(E21/D21),"",E21/D21) -> 0.4615384615 | G21: =IF(DA!$J$13="1 ANO",LARGE(EST!D56:O56,1),IF(DA!$J$13="3 ANOS",LARGE(EST!D56:AU56,1),LARGE(EST!D56:CA56,1))) -> 7 | H21: jan | I21: Janeiro | N21: =IF(ISERROR(G21),0,G21) -> 7 | Q21: Jan | R21: eiro | AA21: ='EST 2'!B14 -> Aumentar: Quantidade de vendas | AC21: =IF(ISERROR(IF(DA!$J$13="1 ano",'EST 2'!P14,IF(DA!$J$13="3 anos",SUM('EST 2'!P14,'EST 2'!AF14,'EST 2'!AV14),SUM('EST 2'!P14,'EST 2'!AF14,'EST 2'!AV14,'EST 2'!BL14,'EST 2'!CB14)))),"",IF(DA!$J$13="1 ano",'EST 2'!P14,IF(DA!$J$13="3 anos",SUM('EST 2'!P14,'EST 2'!AF14,'EST 2'!AV14),SUM('EST 2'!P14,'EST 2'!AF14,'EST 2'!AV14,'EST 2'!BL14,'EST 2'!CB14)))) -> 639.7 | AD21: =IF(ISERROR(IF(DA!$J$13="1 ano",'EST 2'!P15,IF(DA!$J$13="3 anos",SUM('EST 2'!P15,'EST 2'!AF15,'EST 2'!AV15),SUM('EST 2'!P15,'EST 2'!AF15,'EST 2'!AV15,'EST 2'!BL15,'EST 2'!CB15)))),"",IF(DA!$J$13="1 ano",'EST 2'!P15,IF(DA!$J$13="3 anos",SUM('EST 2'!P15,'EST 2'!AF15,'EST 2'!AV15),SUM('EST 2'!P15,'EST 2'!AF15,'EST 2'!AV15,'EST 2'!BL15,'EST 2'!CB15)))) -> 640.35 | AE21: =IF(ISERROR(AD21/AC21),"",AD21/AC21) -> 1.001016101 | AF21: =IF(DA!$J$13="1 ANO",LARGE('EST 2'!D56:O56,1),IF(DA!$J$13="3 ANOS",LARGE('EST 2'!D56:AU56,1),LARGE('EST 2'!D56:CA56,1))) -> 7 | AM21: =IF(ISERROR(AF21),0,AF21) -> 7
H22: fev | I22: Fevereiro | K22: =B22 -> 0 | L22: =F21 -> 0.4615384615 | N22: =IF(ISERROR(G23),0,G23) -> 4 | Q22: Fev | R22: ereiro | AM22: =IF(ISERROR(AF23),0,AF23) -> 4
B23: =EST!B19 -> Aumentar: Lucratividade | D23: =IF(ISERROR(IF(DA!$J$13="1 ano",EST!P19,IF(DA!$J$13="3 anos",SUM(EST!P19,EST!AF19,EST!AV19),SUM(EST!P19,EST!AF19,EST!AV19,EST!BL19,EST!CB19)))),"",IF(DA!$J$13="1 ano",EST!P19,IF(DA!$J$13="3 anos",SUM(EST!P19,EST!AF19,EST!AV19),SUM(EST!P19,EST!AF19,EST!AV19,EST!BL19,EST!CB19)))) -> 1102 | E23: =IF(ISERROR(IF(DA!$J$13="1 ano",EST!P20,IF(DA!$J$13="3 anos",SUM(EST!P20,EST!AF20,EST!AV20),SUM(EST!P20,EST!AF20,EST!AV20,EST!BL20,EST!CB20)))),"",IF(DA!$J$13="1 ano",EST!P20,IF(DA!$J$13="3 anos",SUM(EST!P20,EST!AF20,EST!AV20),SUM(EST!P20,EST!AF20,EST!AV20,EST!BL20,EST!CB20)))) -> 1201 | F23: =IF(ISERROR(E23/D23),"",E23/D23) -> 1.089836661 | G23: =IF(DA!$J$13="1 ANO",LARGE(EST!D58:O58,1),IF(DA!$J$13="3 ANOS",LARGE(EST!D58:AU58,1),LARGE(EST!D58:CA58,1))) -> 4 | H23: mar | I23: Março | K23: =B24 -> 0 | L23: =F23 -> 1.089836661 | N23: =IF(ISERROR(G25),0,G25) -> 4 | Q23: Mar | R23: ço | AA23: ='EST 2'!B19 -> Aumentar: Número de clientes | AC23: =IF(ISERROR(IF(DA!$J$13="1 ano",'EST 2'!P19,IF(DA!$J$13="3 anos",SUM('EST 2'!P19,'EST 2'!AF19,'EST 2'!AV19),SUM('EST 2'!P19,'EST 2'!AF19,'EST 2'!AV19,'EST 2'!BL19,'EST 2'!CB19)))),"",IF(DA!$J$13="1 ano",'EST 2'!P19,IF(DA!$J$13="3 anos",SUM('EST 2'!P19,'EST 2'!AF19,'EST 2'!AV19),SUM('EST 2'!P19,'EST 2'!AF19,'EST 2'!AV19,'EST 2'!BL19,'EST 2'!CB19)))) -> 139 | AD23: =IF(ISERROR(IF(DA!$J$13="1 ano",'EST 2'!P20,IF(DA!$J$13="3 anos",SUM('EST 2'!P20,'EST 2'!AF20,'EST 2'!AV20),SUM('EST 2'!P20,'EST 2'!AF20,'EST 2'!AV20,'EST 2'!BL20,'EST 2'!CB20)))),"",IF(DA!$J$13="1 ano",'EST 2'!P20,IF(DA!$J$13="3 anos",SUM('EST 2'!P20,'EST 2'!AF20,'EST 2'!AV20),SUM('EST 2'!P20,'EST 2'!AF20,'EST 2'!AV20,'EST 2'!BL20,'EST 2'!CB20)))) -> 219 | AE23: =IF(ISERROR(AD23/AC23),"",AD23/AC23) -> 1.575539568 | AF23: =IF(DA!$J$13="1 ANO",LARGE('EST 2'!D58:O260,1),IF(DA!$J$13="3 ANOS",LARGE('EST 2'!D58:AU58,1),LARGE('EST 2'!D58:CA58,1))) -> 4 | AM23: =IF(ISERROR(AF25),0,AF25) -> 4
H24: abr | I24: Abril | K24: =B26 -> 0 | L24: =F25 -> 1 | Q24: Abr | R24: il
B25: =EST!B24 -> Diminuir: Despesas | D25: =IF(ISERROR(IF(DA!$J$13="1 ano",EST!P24,IF(DA!$J$13="3 anos",SUM(EST!P24,EST!AF24,EST!AV24),SUM(EST!P24,EST!AF24,EST!AV24,EST!BL24,EST!CB24)))),"",IF(DA!$J$13="1 ano",EST!P24,IF(DA!$J$13="3 anos",SUM(EST!P24,EST!AF24,EST!AV24),SUM(EST!P24,EST!AF24,EST!AV24,EST!BL24,EST!CB24)))) -> 0.3 | E25: =IF(ISERROR(IF(DA!$J$13="1 ano",EST!P25,IF(DA!$J$13="3 anos",SUM(EST!P25,EST!AF25,EST!AV25),SUM(EST!P25,EST!AF25,EST!AV25,EST!BL25,EST!CB25)))),"",IF(DA!$J$13="1 ano",EST!P25,IF(DA!$J$13="3 anos",SUM(EST!P25,EST!AF25,EST!AV25),SUM(EST!P25,EST!AF25,EST!AV25,EST!BL25,EST!CB25)))) -> 0.3 | F25: =IF(ISERROR(E25/D25),"",E25/D25) -> 1 | G25: =IF(DA!$J$13="1 ANO",LARGE(EST!D62:O62,1),IF(DA!$J$13="3 ANOS",LARGE(EST!D62:AU62,1),LARGE(EST!D62:CA62,1))) -> 4 | H25: mai | I25: Maio | K25: =AA22 -> 0 | L25: =AE21 -> 1.001016101 | Q25: Mai | R25: o | AA25: ='EST 2'!B24 -> 0 | AC25: =IF(ISERROR(IF(DA!$J$13="1 ano",'EST 2'!P24,IF(DA!$J$13="3 anos",SUM('EST 2'!P24,'EST 2'!AF24,'EST 2'!AV24),SUM('EST 2'!P24,'EST 2'!AF24,'EST 2'!AV24,'EST 2'!BL24,'EST 2'!CB24)))),"",IF(DA!$J$13="1 ano",'EST 2'!P24,IF(DA!$J$13="3 anos",SUM('EST 2'!P24,'EST 2'!AF24,'EST 2'!AV24),SUM('EST 2'!P24,'EST 2'!AF24,'EST 2'!AV24,'EST 2'!BL24,'EST 2'!CB24)))) -> 131 | AD25: =IF(ISERROR(IF(DA!$J$13="1 ano",'EST 2'!P25,IF(DA!$J$13="3 anos",SUM('EST 2'!P25,'EST 2'!AF25,'EST 2'!AV25),SUM('EST 2'!P25,'EST 2'!AF25,'EST 2'!AV25,'EST 2'!BL25,'EST 2'!CB25)))),"",IF(DA!$J$13="1 ano",'EST 2'!P25,IF(DA!$J$13="3 anos",SUM('EST 2'!P25,'EST 2'!AF25,'EST 2'!AV25),SUM('EST 2'!P25,'EST 2'!AF25,'EST 2'!AV25,'EST 2'!BL25,'EST 2'!CB25)))) -> 140 | AE25: =IF(ISERROR(AD25/AC25),"",AD25/AC25) -> 1.06870229 | AF25: =IF(DA!$J$13="1 ANO",LARGE('EST 2'!D62:O62,1),IF(DA!$J$13="3 ANOS",LARGE('EST 2'!D62:AU62,1),LARGE('EST 2'!D62:CA62,1))) -> 4
H26: jun | I26: Junho | K26: =AA24 -> 0 | L26: =AE23 -> 1.575539568 | Q26: Jun | R26: ho
B27: =EST!B29 -> 0 | D27: =IF(ISERROR(IF(DA!$J$13="1 ano",EST!P29,IF(DA!$J$13="3 anos",SUM(EST!P29,EST!AF29,EST!AV29),SUM(EST!P29,EST!AF29,EST!AV29,EST!BL29,EST!CB29)))),"",IF(DA!$J$13="1 ano",EST!P29,IF(DA!$J$13="3 anos",SUM(EST!P29,EST!AF29,EST!AV29),SUM(EST!P29,EST!AF29,EST!AV29,EST!BL29,EST!CB29)))) -> 0 | E27: =IF(ISERROR(IF(DA!$J$13="1 ano",EST!P30,IF(DA!$J$13="3 anos",SUM(EST!P30,EST!AF30,EST!AV30),SUM(EST!P30,EST!AF30,EST!AV30,EST!BL30,EST!CB30)))),"",IF(DA!$J$13="1 ano",EST!P30,IF(DA!$J$13="3 anos",SUM(EST!P30,EST!AF30,EST!AV30),SUM(EST!P30,EST!AF30,EST!AV30,EST!BL30,EST!CB30)))) -> 0 | F27: =IF(ISERROR(E27/D27),"",E27/D27) ->  | G27: =IF(DA!$J$13="1 ANO",LARGE(EST!D64:O64,1),IF(DA!$J$13="3 ANOS",LARGE(EST!D64:AU64,1),LARGE(EST!D64:CA64,1))) ->  | H27: mai | I27: Maio | K27: =AA24 -> 0 | L27: =AE23 -> 1.575539568 | Q27: Mai | R27: o | AA27: ='EST 2'!B29 -> 0 | AC27: =IF(ISERROR(IF(DA!$J$13="1 ano",'EST 2'!P29,IF(DA!$J$13="3 anos",SUM('EST 2'!P29,'EST 2'!AF26,'EST 2'!AV29),SUM('EST 2'!P29,'EST 2'!AF29,'EST 2'!AV29,'EST 2'!BL29,'EST 2'!CB29)))),"",IF(DA!$J$13="1 ano",'EST 2'!P29,IF(DA!$J$13="3 anos",SUM('EST 2'!P29,'EST 2'!AF29,'EST 2'!AV29),SUM('EST 2'!P29,'EST 2'!AF29,'EST 2'!AV29,'EST 2'!BL29,'EST 2'!CB29)))) -> 131 | AD27: =IF(ISERROR(IF(DA!$J$13="1 ano",'EST 2'!P30,IF(DA!$J$13="3 anos",SUM('EST 2'!P30,'EST 2'!AF30,'EST 2'!AV30),SUM('EST 2'!P30,'EST 2'!AF30,'EST 2'!AV30,'EST 2'!BL30,'EST 2'!CB30)))),"",IF(DA!$J$13="1 ano",'EST 2'!P30,IF(DA!$J$13="3 anos",SUM('EST 2'!P30,'EST 2'!AF30,'EST 2'!AV30),SUM('EST 2'!P30,'EST 2'!AF30,'EST 2'!AV30,'EST 2'!BL30,'EST 2'!CB30)))) -> 140 | AE27: =IF(ISERROR(AD27/AC27),"",AD27/AC27) -> 1.06870229 | AF27: =IF(DA!$J$13="1 ANO",LARGE('EST 2'!D64:O64,1),IF(DA!$J$13="3 ANOS",LARGE('EST 2'!D64:AU64,1),LARGE('EST 2'!D64:CA64,1))) -> 
H28: jun | I28: Junho | K28: =AA26 -> 0 | L28: =AE25 -> 1.06870229 | Q28: Jun | R28: ho
B29: =EST!B34 -> 0 | D29: =IF(ISERROR(IF(DA!$J$13="1 ano",EST!P34,IF(DA!$J$13="3 anos",SUM(EST!P34,EST!AF34,EST!AV34),SUM(EST!P34,EST!AF34,EST!AV34,EST!BL34,EST!CB34)))),"",IF(DA!$J$13="1 ano",EST!P34,IF(DA!$J$13="3 anos",SUM(EST!P34,EST!AF34,EST!AV34),SUM(EST!P34,EST!AF34,EST!AV34,EST!BL34,EST!CB34)))) -> 0 | E29: =IF(ISERROR(IF(DA!$J$13="1 ano",EST!P35,IF(DA!$J$13="3 anos",SUM(EST!P35,EST!AF35,EST!AV35),SUM(EST!P35,EST!AF35,EST!AV35,EST!BL35,EST!CB35)))),"",IF(DA!$J$13="1 ano",EST!P35,IF(DA!$J$13="3 anos",SUM(EST!P35,EST!AF35,EST!AV35),SUM(EST!P35,EST!AF35,EST!AV35,EST!BL35,EST!CB35)))) -> 0 | F29: =IF(ISERROR(E29/D29),"",E29/D29) ->  | G29: =IF(DA!$J$13="1 ANO",LARGE(EST!D66:O66,1),IF(DA!$J$13="3 ANOS",LARGE(EST!D66:AU66,1),LARGE(EST!D66:CA66,1))) ->  | H29: mai | I29: Maio | K29: =AA26 -> 0 | L29: =AE25 -> 1.06870229 | Q29: Mai | R29: o | AA29: ='EST 2'!B34 -> 0 | AC29: =IF(ISERROR(IF(DA!$J$13="1 ano",'EST 2'!P34,IF(DA!$J$13="3 anos",SUM('EST 2'!P34,'EST 2'!AF34,'EST 2'!AV34),SUM('EST 2'!P34,'EST 2'!AF34,'EST 2'!AV34,'EST 2'!BL34,'EST 2'!CB34)))),"",IF(DA!$J$13="1 ano",'EST 2'!P34,IF(DA!$J$13="3 anos",SUM('EST 2'!P34,'EST 2'!AF34,'EST 2'!AV34),SUM('EST 2'!P34,'EST 2'!AF34,'EST 2'!AV34,'EST 2'!BL34,'EST 2'!CB34)))) -> 131 | AD29: =IF(ISERROR(IF(DA!$J$13="1 ano",'EST 2'!P35,IF(DA!$J$13="3 anos",SUM('EST 2'!P35,'EST 2'!AF35,'EST 2'!AV35),SUM('EST 2'!P35,'EST 2'!AF35,'EST 2'!AV35,'EST 2'!BL35,'EST 2'!CB35)))),"",IF(DA!$J$13="1 ano",'EST 2'!P35,IF(DA!$J$13="3 anos",SUM('EST 2'!P35,'EST 2'!AF35,'EST 2'!AV35),SUM('EST 2'!P35,'EST 2'!AF35,'EST 2'!AV35,'EST 2'!BL35,'EST 2'!CB35)))) -> 140 | AE29: =IF(ISERROR(AD29/AC29),"",AD29/AC29) -> 1.06870229 | AF29: =IF(DA!$J$13="1 ANO",LARGE('EST 2'!D66:O66,1),IF(DA!$J$13="3 ANOS",LARGE('EST 2'!D66:AU66,1),LARGE('EST 2'!D66:CA66,1))) -> 
H30: jun | I30: Junho | K30: =B47 -> Perspectiva de Processos Internos | L30: =F46 -> 0 | Q30: Jun | R30: ho
H31: jul | I31: Julho | K31: =AA51 -> Aumentar: Know How da equipe | L31: =AE51 -> 0.3870478118 | Q31: Nov | R31: embro
H32: ago | I32: Agosto | K32: =AA53 -> Aumentar: Satisfação interna | L32: =AE53 -> 1.600111359 | Q32: Dez | R32: embro
H33: set | I33: Setembro | K33: =AA55 -> 0 | L33: =AE55 -> 1.06870229
H34: out | I34: Outubro
H35: nov | I35: Novembro
H36: dez | I36: Dezembro
B47: =DA!H24 -> Perspectiva de Processos Internos | AA47: =DA!K24 -> Perspectiva de Aprendizagem
B48: Índice de atendimento das metas planejadas: | F48: =IF(ISERROR(AVERAGE(F51:F60)),"",AVERAGE(F51:F60)) -> 1.10750215 | AA48: Índice de atendimento das metas planejadas: | AE48: =IF(ISERROR(AVERAGE(AE51:AE60)),"",AVERAGE(AE51:AE60)) -> 1.038653208
B49: Índice de conclusão dos planos de ação: | F49: =IF(ISERROR(AVERAGE('PA 3'!L13:L30)),"",AVERAGE('PA 3'!L13:L30)) -> 1 | AA49: Índice de conclusão dos planos de ação: | AE49: =IF(ISERROR(AVERAGE('PA 4'!L13:L30)),"",AVERAGE('PA 4'!L13:L30)) -> 0.98
B50: Objetivo | D50: Planejado | E50: Realizado | F50: Alcance da Meta | G50: =IF(LARGE(N51:N53,1)>12,LARGE(N51:N53,1)+1,LARGE(N51:N53,1)) -> 7 | AA50: Objetivo | AC50: Planejado | AD50: Realizado | AE50: Alcance da Meta | AF50: =IF(LARGE(AM51:AM53,1)>12,LARGE(AM51:AM53,1)+1,LARGE(AM51:AM53,1)) -> 7
B51: ='EST 3'!B14 -> Aumentar: Capacidade de atendimentos | D51: =IF(ISERROR(IF(DA!$J$13="1 ano",'EST 3'!P14,IF(DA!$J$13="3 anos",SUM('EST 3'!P14,'EST 3'!AF14,'EST 3'!AV14),SUM('EST 3'!P14,'EST 3'!AF14,'EST 3'!AV14,'EST 3'!BL14,'EST 3'!CB14)))),"",IF(DA!$J$13="1 ano",'EST 3'!P14,IF(DA!$J$13="3 anos",SUM('EST 3'!P14,'EST 3'!AF14,'EST 3'!AV14),SUM('EST 3'!P14,'EST 3'!AF14,'EST 3'!AV14,'EST 3'!BL14,'EST 3'!CB14)))) -> 3638.9 | E51: =IF(ISERROR(IF(DA!$J$13="1 ano",'EST 3'!P15,IF(DA!$J$13="3 anos",SUM('EST 3'!P15,'EST 3'!AF15,'EST 3'!AV15),SUM('EST 3'!P15,'EST 3'!AF15,'EST 3'!AV15,'EST 3'!BL15,'EST 3'!CB15)))),"",IF(DA!$J$13="1 ano",'EST 3'!P15,IF(DA!$J$13="3 anos",SUM('EST 3'!P15,'EST 3'!AF15,'EST 3'!AV15),SUM('EST 3'!P15,'EST 3'!AF15,'EST 3'!AV15,'EST 3'!BL15,'EST 3'!CB15)))) -> 1989 | F51: =IF(ISERROR(E51/D51),"",E51/D51) -> 0.5465937509 | G51: =IF(DA!$J$13="1 ANO",LARGE('EST 3'!D56:O56,1),IF(DA!$J$13="3 ANOS",LARGE('EST 3'!D56:AU56,1),LARGE('EST 3'!D56:CA56,1))) -> 7 | N51: =IF(ISERROR(G51),0,G51) -> 7 | AA51: ='EST 4'!B14 -> Aumentar: Know How da equipe | AC51: =IF(ISERROR(IF(DA!$J$13="1 ano",'EST 4'!P14,IF(DA!$J$13="3 anos",SUM('EST 4'!P14,'EST 4'!AF14,'EST 4'!AV14),SUM('EST 4'!P14,'EST 4'!AF14,'EST 4'!AV14,'EST 4'!BL14,'EST 4'!CB14)))),"",IF(DA!$J$13="1 ano",'EST 4'!P14,IF(DA!$J$13="3 anos",SUM('EST 4'!P14,'EST 4'!AF14,'EST 4'!AV14),SUM('EST 4'!P14,'EST 4'!AF14,'EST 4'!AV14,'EST 4'!BL14,'EST 4'!CB14)))) -> 5138.9 | AD51: =IF(ISERROR(IF(DA!$J$13="1 ano",'EST 4'!P15,IF(DA!$J$13="3 anos",SUM('EST 4'!P15,'EST 4'!AF15,'EST 4'!AV15),SUM('EST 4'!P15,'EST 4'!AF15,'EST 4'!AV15,'EST 4'!BL15,'EST 4'!CB15)))),"",IF(DA!$J$13="1 ano",'EST 4'!P15,IF(DA!$J$13="3 anos",SUM('EST 4'!P15,'EST 4'!AF15,'EST 4'!AV15),SUM('EST 4'!P15,'EST 4'!AF15,'EST 4'!AV15,'EST 4'!BL15,'EST 4'!CB15)))) -> 1989 | AE51: =IF(ISERROR(AD51/AC51),"",AD51/AC51) -> 0.3870478118 | AF51: =IF(DA!$J$13="1 ANO",LARGE('EST 4'!D56:O56,1),IF(DA!$J$13="2 ANOS",LARGE('EST 4'!D56:AU56,1),LARGE('EST 4'!D56:CA56,1))) -> 7 | AM51: =IF(ISERROR(AF51),0,AF51) -> 7
N52: =IF(ISERROR(G53),0,G53) -> 4 | AM52: =IF(ISERROR(AF53),0,AF53) -> 4
B53: ='EST 3'!B19 -> 0 | D53: =IF(ISERROR(IF(DA!$J$13="1 ano",'EST 3'!P19,IF(DA!$J$13="3 anos",SUM('EST 3'!P19,'EST 3'!AF19,'EST 3'!AV19),SUM('EST 3'!P19,'EST 3'!AF19,'EST 3'!AV19,'EST 3'!BL19,'EST 3'!CB19)))),"",IF(DA!$J$13="1 ano",'EST 3'!P19,IF(DA!$J$13="3 anos",SUM('EST 3'!P19,'EST 3'!AF19,'EST 3'!AV19),SUM('EST 3'!P19,'EST 3'!AF19,'EST 3'!AV19,'EST 3'!BL19,'EST 3'!CB19)))) -> 79 | E53: =IF(ISERROR(IF(DA!$J$13="1 ano",'EST 3'!P20,IF(DA!$J$13="3 anos",SUM('EST 3'!P20,'EST 3'!AF20,'EST 3'!AV20),SUM('EST 3'!P20,'EST 3'!AF20,'EST 3'!AV20,'EST 3'!BL20,'EST 3'!CB20)))),"",IF(DA!$J$13="1 ano",'EST 3'!P20,IF(DA!$J$13="3 anos",SUM('EST 3'!P20,'EST 3'!AF20,'EST 3'!AV20),SUM('EST 3'!P20,'EST 3'!AF20,'EST 3'!AV20,'EST 3'!BL20,'EST 3'!CB20)))) -> 141 | F53: =IF(ISERROR(E53/D53),"",E53/D53) -> 1.784810127 | G53: =IF(DA!$J$13="1 ANO",LARGE('EST 3'!D58:O260,1),IF(DA!$J$13="3 ANOS",LARGE('EST 3'!D58:AU58,1),LARGE('EST 3'!D58:CA58,1))) -> 4 | N53: =IF(ISERROR(G55),0,G55) -> 4 | AA53: ='EST 4'!B19 -> Aumentar: Satisfação interna | AC53: =IF(ISERROR(IF(DA!$J$13="1 ano",'EST 4'!P19,IF(DA!$J$13="3 anos",SUM('EST 4'!P19,'EST 4'!AF19,'EST 4'!AV19),SUM('EST 4'!P19,'EST 4'!AF19,'EST 4'!AV19,'EST 4'!BL19,'EST 4'!CB19)))),"",IF(DA!$J$13="1 ano",'EST 4'!P19,IF(DA!$J$13="3 anos",SUM('EST 4'!P19,'EST 4'!AF19,'EST 4'!AV19),SUM('EST 4'!P19,'EST 4'!AF19,'EST 4'!AV19,'EST 4'!BL19,'EST 4'!CB19)))) -> 89.8 | AD53: =IF(ISERROR(IF(DA!$J$13="1 ano",'EST 4'!P20,IF(DA!$J$13="3 anos",SUM('EST 4'!P20,'EST 4'!AF20,'EST 4'!AV20),SUM('EST 4'!P20,'EST 4'!AF20,'EST 4'!AV20,'EST 4'!BL20,'EST 4'!CB20)))),"",IF(DA!$J$13="1 ano",'EST 4'!P20,IF(DA!$J$13="3 anos",SUM('EST 4'!P20,'EST 4'!AF20,'EST 4'!AV20),SUM('EST 4'!P20,'EST 4'!AF20,'EST 4'!AV20,'EST 4'!BL20,'EST 4'!CB20)))) -> 143.69 | AE53: =IF(ISERROR(AD53/AC53),"",AD53/AC53) -> 1.600111359 | AF53: =IF(DA!$J$13="1 ANO",LARGE('EST 4'!D58:O260,1),IF(DA!$J$13="2 ANOS",LARGE('EST 4'!D58:AU58,1),LARGE('EST 4'!D58:CA58,1))) -> 4 | AM53: =IF(ISERROR(AF55),0,AF55) -> 4
B55: ='EST 3'!B24 -> 0 | D55: =IF(ISERROR(IF(DA!$J$13="1 ano",'EST 3'!P24,IF(DA!$J$13="3 anos",SUM('EST 3'!P24,'EST 3'!AF24,'EST 3'!AV24),SUM('EST 3'!P24,'EST 3'!AF24,'EST 3'!AV24,'EST 3'!BL24,'EST 3'!CB24)))),"",IF(DA!$J$13="1 ano",'EST 3'!P24,IF(DA!$J$13="3 anos",SUM('EST 3'!P24,'EST 3'!AF24,'EST 3'!AV24),SUM('EST 3'!P24,'EST 3'!AF24,'EST 3'!AV24,'EST 3'!BL24,'EST 3'!CB24)))) -> 131 | E55: =IF(ISERROR(IF(DA!$J$13="1 ano",'EST 3'!P25,IF(DA!$J$13="3 anos",SUM('EST 3'!P25,'EST 3'!AF25,'EST 3'!AV25),SUM('EST 3'!P25,'EST 3'!AF25,'EST 3'!AV25,'EST 3'!BL25,'EST 3'!CB25)))),"",IF(DA!$J$13="1 ano",'EST 3'!P25,IF(DA!$J$13="3 anos",SUM('EST 3'!P25,'EST 3'!AF25,'EST 3'!AV25),SUM('EST 3'!P25,'EST 3'!AF25,'EST 3'!AV25,'EST 3'!BL25,'EST 3'!CB25)))) -> 140 | F55: =IF(ISERROR(E55/D55),"",E55/D55) -> 1.06870229 | G55: =IF(DA!$J$13="1 ANO",LARGE('EST 3'!D62:O62,1),IF(DA!$J$13="3 ANOS",LARGE('EST 3'!D62:AU62,1),LARGE('EST 3'!D62:CA62,1))) -> 4 | AA55: ='EST 4'!B24 -> 0 | AC55: =IF(ISERROR(IF(DA!$J$13="1 ano",'EST 4'!P24,IF(DA!$J$13="3 anos",SUM('EST 4'!P24,'EST 4'!AF24,'EST 4'!AV24),SUM('EST 4'!P24,'EST 4'!AF24,'EST 4'!AV24,'EST 4'!BL24,'EST 4'!CB24)))),"",IF(DA!$J$13="1 ano",'EST 4'!P24,IF(DA!$J$13="3 anos",SUM('EST 4'!P24,'EST 4'!AF24,'EST 4'!AV24),SUM('EST 4'!P24,'EST 4'!AF24,'EST 4'!AV24,'EST 4'!BL24,'EST 4'!CB24)))) -> 131 | AD55: =IF(ISERROR(IF(DA!$J$13="1 ano",'EST 4'!P25,IF(DA!$J$13="3 anos",SUM('EST 4'!P25,'EST 4'!AF25,'EST 4'!AV25),SUM('EST 4'!P25,'EST 4'!AF25,'EST 4'!AV25,'EST 4'!BL25,'EST 4'!CB25)))),"",IF(DA!$J$13="1 ano",'EST 4'!P25,IF(DA!$J$13="3 anos",SUM('EST 4'!P25,'EST 4'!AF25,'EST 4'!AV25),SUM('EST 4'!P25,'EST 4'!AF25,'EST 4'!AV25,'EST 4'!BL25,'EST 4'!CB25)))) -> 140 | AE55: =IF(ISERROR(AD55/AC55),"",AD55/AC55) -> 1.06870229 | AF55: =IF(DA!$J$13="1 ANO",LARGE('EST 4'!D62:O62,1),IF(DA!$J$13="2 ANOS",LARGE('EST 4'!D62:AU62,1),LARGE('EST 4'!D62:CA62,1))) -> 4
B57: ='EST 3'!B29 -> Aumentar: Gasto para produção | D57: =IF(ISERROR(IF(DA!$J$13="1 ano",'EST 3'!P29,IF(DA!$J$13="3 anos",SUM('EST 3'!P29,'EST 3'!AF29,'EST 3'!AV29),SUM('EST 3'!P29,'EST 3'!AF29,'EST 3'!AV29,'EST 3'!BL29,'EST 3'!CB29)))),"",IF(DA!$J$13="1 ano",'EST 3'!P29,IF(DA!$J$13="3 anos",SUM('EST 3'!P29,'EST 3'!AF29,'EST 3'!AV29),SUM('EST 3'!P29,'EST 3'!AF29,'EST 3'!AV29,'EST 3'!BL29,'EST 3'!CB29)))) -> 131 | E57: =IF(ISERROR(IF(DA!$J$13="1 ano",'EST 3'!P30,IF(DA!$J$13="3 anos",SUM('EST 3'!P30,'EST 3'!AF30,'EST 3'!AV30),SUM('EST 3'!P30,'EST 3'!AF30,'EST 3'!AV30,'EST 3'!BL30,'EST 3'!CB30)))),"",IF(DA!$J$13="1 ano",'EST 3'!P30,IF(DA!$J$13="3 anos",SUM('EST 3'!P30,'EST 3'!AF30,'EST 3'!AV30),SUM('EST 3'!P30,'EST 3'!AF30,'EST 3'!AV30,'EST 3'!BL30,'EST 3'!CB30)))) -> 140 | F57: =IF(ISERROR(E57/D57),"",E57/D57) -> 1.06870229 | G57: =IF(DA!$J$13="1 ANO",LARGE('EST 3'!D64:O64,1),IF(DA!$J$13="3 ANOS",LARGE('EST 3'!D64:AU64,1),LARGE('EST 3'!D64:CA64,1))) ->  | AA57: ='EST 4'!B29 -> 0 | AC57: =IF(ISERROR(IF(DA!$J$13="1 ano",'EST 4'!P29,IF(DA!$J$13="3 anos",SUM('EST 4'!P29,'EST 4'!AF29,'EST 4'!AV29),SUM('EST 4'!P29,'EST 4'!AF29,'EST 4'!AV29,'EST 4'!BL29,'EST 4'!CB29)))),"",IF(DA!$J$13="1 ano",'EST 4'!P29,IF(DA!$J$13="3 anos",SUM('EST 4'!P29,'EST 4'!AF29,'EST 4'!AV29),SUM('EST 4'!P29,'EST 4'!AF29,'EST 4'!AV29,'EST 4'!BL29,'EST 4'!CB29)))) -> 131 | AD57: =IF(ISERROR(IF(DA!$J$13="1 ano",'EST 4'!P30,IF(DA!$J$13="3 anos",SUM('EST 4'!P30,'EST 4'!AF30,'EST 4'!AV30),SUM('EST 4'!P30,'EST 4'!AF30,'EST 4'!AV30,'EST 4'!BL30,'EST 4'!CB30)))),"",IF(DA!$J$13="1 ano",'EST 4'!P30,IF(DA!$J$13="3 anos",SUM('EST 4'!P30,'EST 4'!AF30,'EST 4'!AV30),SUM('EST 4'!P30,'EST 4'!AF30,'EST 4'!AV30,'EST 4'!BL30,'EST 4'!CB30)))) -> 140 | AE57: =IF(ISERROR(AD57/AC57),"",AD57/AC57) -> 1.06870229 | AF57: =IF(DA!$J$13="1 ANO",LARGE('EST 4'!D64:O64,1),IF(DA!$J$13="2 ANOS",LARGE('EST 4'!D64:AU64,1),LARGE('EST 4'!D64:CA64,1))) -> 
B59: ='EST 3'!B34 -> Aumentar: Gasto para produção | D59: =IF(ISERROR(IF(DA!$J$13="1 ano",'EST 3'!P34,IF(DA!$J$13="3 anos",SUM('EST 3'!P34,'EST 3'!AF34,'EST 3'!AV34),SUM('EST 3'!P34,'EST 3'!AF34,'EST 3'!AV34,'EST 3'!BL34,'EST 3'!CB34)))),"",IF(DA!$J$13="1 ano",'EST 3'!P34,IF(DA!$J$13="3 anos",SUM('EST 3'!P34,'EST 3'!AF34,'EST 3'!AV34),SUM('EST 3'!P34,'EST 3'!AF34,'EST 3'!AV34,'EST 3'!BL34,'EST 3'!CB34)))) -> 131 | E59: =IF(ISERROR(IF(DA!$J$13="1 ano",'EST 3'!P35,IF(DA!$J$13="3 anos",SUM('EST 3'!P35,'EST 3'!AF35,'EST 3'!AV35),SUM('EST 3'!P35,'EST 3'!AF35,'EST 3'!AV35,'EST 3'!BL35,'EST 3'!CB35)))),"",IF(DA!$J$13="1 ano",'EST 3'!P35,IF(DA!$J$13="3 anos",SUM('EST 3'!P35,'EST 3'!AF35,'EST 3'!AV35),SUM('EST 3'!P35,'EST 3'!AF35,'EST 3'!AV35,'EST 3'!BL35,'EST 3'!CB35)))) -> 140 | F59: =IF(ISERROR(E59/D59),"",E59/D59) -> 1.06870229 | G59: =IF(DA!$J$13="1 ANO",LARGE('EST 3'!D66:O66,1),IF(DA!$J$13="3 ANOS",LARGE('EST 3'!D66:AU66,1),LARGE('EST 3'!D66:CA66,1))) ->  | AA59: ='EST 4'!B34 -> 0 | AC59: =IF(ISERROR(IF(DA!$J$13="1 ano",'EST 4'!P34,IF(DA!$J$13="3 anos",SUM('EST 4'!P34,'EST 4'!AF34,'EST 4'!AV34),SUM('EST 4'!P34,'EST 4'!AF34,'EST 4'!AV34,'EST 4'!BL34,'EST 4'!CB34)))),"",IF(DA!$J$13="1 ano",'EST 4'!P34,IF(DA!$J$13="3 anos",SUM('EST 4'!P34,'EST 4'!AF34,'EST 4'!AV34),SUM('EST 4'!P34,'EST 4'!AF34,'EST 4'!AV34,'EST 4'!BL34,'EST 4'!CB34)))) -> 131 | AD59: =IF(ISERROR(IF(DA!$J$13="1 ano",'EST 4'!P35,IF(DA!$J$13="3 anos",SUM('EST 4'!P35,'EST 4'!AF35,'EST 4'!AV35),SUM('EST 4'!P35,'EST 4'!AF35,'EST 4'!AV35,'EST 4'!BL35,'EST 4'!CB35)))),"",IF(DA!$J$13="1 ano",'EST 4'!P35,IF(DA!$J$13="3 anos",SUM('EST 4'!P35,'EST 4'!AF35,'EST 4'!AV35),SUM('EST 4'!P35,'EST 4'!AF35,'EST 4'!AV35,'EST 4'!BL35,'EST 4'!CB35)))) -> 140 | AE59: =IF(ISERROR(AD59/AC59),"",AD59/AC59) -> 1.06870229 | AF59: =IF(DA!$J$13="1 ANO",LARGE('EST 4'!D66:O66,1),IF(DA!$J$13="2 ANOS",LARGE('EST 4'!D66:AU66,1),LARGE('EST 4'!D66:CA66,1))) -> 

Sheet Gra
B14: =Parametros!L3 -> 15 | D14: FORÇA
B16: =Parametros!L5 -> 0 | D16: FRAQUEZA
B18: =Parametros!L4 -> 8 | D18: OPORTUNIDADE
B20: =Parametros!L6 -> 10 | D20: AMEAÇA

Sheet GRAF
B12: Planejado x Realizado | M12: Prazos - Plano de ação | Y12: =PA!B13 -> Aumentar: Receitas | Z12: =IF(ISERROR(PA!U13),"",PA!U13) -> 24 | AA12: =IF(ISERROR(PA!V13),"",PA!V13) -> 
C13: Planejado | D13: Realizado | M13: Vence esse mês | N13: Falta 1 mês | O13: Faltam 2 meses | P13: Faltam 3 ou mais meses | Q13: Atrasados | Y13: =PA!B14 -> Aumentar: Lucratividade | Z13: =IF(ISERROR(PA!U14),"",PA!U14) -> 23 | AA13: =IF(ISERROR(PA!V14),"",PA!V14) -> 
B14: =EST!B14 -> Aumentar: Receitas | C14: =SUM(EST!CB14,EST!BL14,EST!AV14,EST!AF14,EST!P14) -> 650 | D14: =SUM(EST!P15,EST!AF15,EST!AV15,EST!BL15,EST!CB15) -> 300 | L14: =B14 -> Aumentar: Receitas | M14: =SUM(IF($Y$12:$Y$29=$L14,IF($Z$12:$Z$29=0,1,0),0)) -> 0 | N14: =SUM(IF($Y$12:$Y$29=$L14,IF($Z$12:$Z$29=-1,1,0),0)) -> 0 | O14: =COUNTIFS($Y$12:$Y$29,$L14,$AA$12:$AA$29,"=2") -> 0 | P14: =COUNTIFS($Y$12:$Y$29,$L14,$AA$12:$AA$29,">2") -> 0 | Q14: =COUNTIFS($Y$12:$Y$29,$L14,$Z$12:$Z$29,">0") -> 1 | Y14: =PA!B15 -> Diminuir: Despesas | Z14: =IF(ISERROR(PA!U15),"",PA!U15) -> 20 | AA14: =IF(ISERROR(PA!V15),"",PA!V15) -> 
B15: =EST!B19 -> Aumentar: Lucratividade | C15: =SUM(EST!P19,EST!AF19,EST!AV19,EST!BL19,EST!CB19) -> 1102 | D15: =SUM(EST!CB20,EST!BL20,EST!AV20,EST!AF20,EST!P20) -> 1201 | L15: =B15 -> Aumentar: Lucratividade | M15: =SUM(IF($Y$12:$Y$29=$L15,IF($Z$12:$Z$29=0,1,0),0)) -> 0 | N15: =SUM(IF($Y$12:$Y$29=$L15,IF($Z$12:$Z$29=-1,1,0),0)) -> 0 | O15: =COUNTIFS($Y$12:$Y$29,$L15,$AA$12:$AA$29,"=2") -> 0 | P15: =COUNTIFS($Y$12:$Y$29,$L15,$AA$12:$AA$29,">2") -> 0 | Q15: =COUNTIFS($Y$12:$Y$29,$L15,$Z$12:$Z$29,">0") -> 1 | Y15: =PA!B16 -> 0 | Z15: =IF(ISERROR(PA!U16),"",PA!U16) ->  | AA15: =IF(ISERROR(PA!V16),"",PA!V16) -> 
B16: =EST!B24 -> Diminuir: Despesas | C16: =SUM(EST!P24,EST!AF24,EST!AV24,EST!BL24,EST!CB24) -> 0.3 | D16: =SUM(EST!CB25,EST!BL25,EST!AV25,EST!AF25,EST!P25) -> 0.3 | L16: =B16 -> Diminuir: Despesas | M16: =SUM(IF($Y$12:$Y$29=$L16,IF($Z$12:$Z$29=0,1,0),0)) -> 0 | N16: =SUM(IF($Y$12:$Y$29=$L16,IF($Z$12:$Z$29=-1,1,0),0)) -> 0 | O16: =COUNTIFS($Y$12:$Y$29,$L16,$AA$12:$AA$29,"=2") -> 0 | P16: =COUNTIFS($Y$12:$Y$29,$L16,$AA$12:$AA$29,">2") -> 0 | Q16: =COUNTIFS($Y$12:$Y$29,$L16,$Z$12:$Z$29,">0") -> 1 | Y16: =PA!B17 -> 0 | Z16: =IF(ISERROR(PA!U17),"",PA!U17) ->  | AA16: =IF(ISERROR(PA!V17),"",PA!V17) -> 
B17: =EST!B29 -> 0 | C17: =SUM(EST!P29,EST!AF29,EST!AV29,EST!BL29,EST!CB29) -> 0 | D17: =SUM(EST!CB30,EST!BL30,EST!AV30,EST!AF30,EST!P30) -> 0 | L17: =B17 -> 0 | M17: =SUM(IF($Y$12:$Y$29=$L17,IF($Z$12:$Z$29=0,1,0),0)) -> 0 | N17: =SUM(IF($Y$12:$Y$29=$L17,IF($Z$12:$Z$29=-1,1,0),0)) -> 0 | O17: =COUNTIFS($Y$12:$Y$29,$L17,$AA$12:$AA$29,"=2") -> 0 | P17: =COUNTIFS($Y$12:$Y$29,$L17,$AA$12:$AA$29,">2") -> 0 | Q17: =COUNTIFS($Y$12:$Y$29,$L17,$Z$12:$Z$29,">0") -> 0 | Y17: =PA!B18 -> 0 | Z17: =IF(ISERROR(PA!U18),"",PA!U18) ->  | AA17: =IF(ISERROR(PA!V18),"",PA!V18) -> 
B18: =EST!B34 -> 0 | C18: =SUM(EST!P34,EST!AF34,EST!AV34,EST!BL34,EST!CB250) -> 0 | D18: =SUM(EST!CB35,EST!BL35,EST!AV35,EST!AF35,EST!P35) -> 0 | L18: 0 | M18: 0 | N18: =SUM(IF($Y$12:$Y$29=$L18,IF($Z$12:$Z$29=-1,1,0),0)) -> 0 | O18: 0 | P18: 0 | Q18: 0 | Y18: =PA!B19 -> 0 | Z18: =IF(ISERROR(PA!U19),"",PA!U19) ->  | AA18: =IF(ISERROR(PA!V19),"",PA!V19) -> 
Y19: =PA!B20 -> 0 | Z19: =IF(ISERROR(PA!U20),"",PA!U20) ->  | AA19: =IF(ISERROR(PA!V20),"",PA!V20) -> 
B20: ="Ano 1 - "&B14 -> Ano 1 - Aumentar: Receitas | I20: ="Ano 1 - "&B15 -> Ano 1 - Aumentar: Lucratividade | P20: ="Ano 1 - "&B16 -> Ano 1 - Diminuir: Despesas | Y20: =PA!B21 -> 0 | Z20: =IF(ISERROR(PA!U21),"",PA!U21) ->  | AA20: =IF(ISERROR(PA!V21),"",PA!V21) -> 
Y21: =PA!B22 -> 0 | Z21: =IF(ISERROR(PA!U22),"",PA!U22) ->  | AA21: =IF(ISERROR(PA!V22),"",PA!V22) -> 
Y22: =PA!B23 -> 0 | Z22: =IF(ISERROR(PA!U23),"",PA!U23) ->  | AA22: =IF(ISERROR(PA!V23),"",PA!V23) -> 
Y23: =PA!B24 -> 0 | Z23: =IF(ISERROR(PA!U24),"",PA!U24) ->  | AA23: =IF(ISERROR(PA!V24),"",PA!V24) -> 
Y24: =PA!B25 -> 0 | Z24: =IF(ISERROR(PA!U25),"",PA!U25) ->  | AA24: =IF(ISERROR(PA!V25),"",PA!V25) -> 
Y25: =PA!B26 -> 0 | Z25: =IF(ISERROR(PA!U26),"",PA!U26) ->  | AA25: =IF(ISERROR(PA!V26),"",PA!V26) -> 
Y26: =PA!B27 -> 0 | Z26: =IF(ISERROR(PA!U27),"",PA!U27) ->  | AA26: =IF(ISERROR(PA!V27),"",PA!V27) -> 
Y27: =PA!B28 -> 0 | Z27: =IF(ISERROR(PA!U28),"",PA!U28) ->  | AA27: =IF(ISERROR(PA!V28),"",PA!V28) -> 
B28: ="Ano 2 - "&$B$14 -> Ano 2 - Aumentar: Receitas | I28: ="Ano 2 - "&$B$15 -> Ano 2 - Aumentar: Lucratividade | P28: ="Ano 2 - "&$B$16 -> Ano 2 - Diminuir: Despesas | Y28: =PA!B29 -> 0 | Z28: =IF(ISERROR(PA!U29),"",PA!U29) ->  | AA28: =IF(ISERROR(PA!V29),"",PA!V29) -> 
Y29: =PA!B30 -> 0 | Z29: =IF(ISERROR(PA!U30),"",PA!U30) ->  | AA29: =IF(ISERROR(PA!V30),"",PA!V30) -> 
B36: ="Ano 3 - "&$B$14 -> Ano 3 - Aumentar: Receitas | I36: ="Ano 3 - "&$B$15 -> Ano 3 - Aumentar: Lucratividade | P36: ="Ano 3 - "&$B$16 -> Ano 3 - Diminuir: Despesas
B44: ="Ano 4 - "&$B$14 -> Ano 4 - Aumentar: Receitas | I44: ="Ano 4 - "&$B$15 -> Ano 4 - Aumentar: Lucratividade | P44: ="Ano 4 - "&$B$16 -> Ano 4 - Diminuir: Despesas
B52: ="Ano 5 - "&$B$14 -> Ano 5 - Aumentar: Receitas | I52: ="Ano 5 - "&$B$15 -> Ano 5 - Aumentar: Lucratividade | P52: ="Ano 5 - "&$B$16 -> Ano 5 - Diminuir: Despesas
B61: ="Ano 1 - "&$B$17 -> Ano 1 - 0 | I61: ="Ano 1 - "&$B$18 -> Ano 1 - 0
B69: ="Ano 2 - "&$B$17 -> Ano 2 - 0 | I69: ="Ano 2 - "&$B$18 -> Ano 2 - 0
B77: ="Ano 3 - "&$B$17 -> Ano 3 - 0 | I77: ="Ano 3 - "&$B$18 -> Ano 3 - 0
B85: ="Ano 4 - "&$B$17 -> Ano 4 - 0 | I85: ="Ano 4 - "&$B$18 -> Ano 4 - 0
B93: ="Ano 5 - "&$B$17 -> Ano 5 - 0 | I93: ="Ano 5 - "&$B$18 -> Ano 5 - 0
B101: =PA!C32 -> Perspectiva Financeira
B102: =PA!C33 -> Perspectiva de Clientes
B103: =PA!C34 -> Perspectiva de Processos Internos
B104: =PA!C35 -> Perspectiva de Aprendizagem

Sheet GRAF 2
B12: Planejado x Realizado | M12: Prazos - Plano de ação | Y12: ='PA 2'!B13 -> Aumentar: Quantidade de vendas | Z12: =IF(ISERROR('PA 2'!U13),"",'PA 2'!U13) -> 24 | AA12: =IF(ISERROR('PA 2'!V13),"",'PA 2'!V13) -> 
C13: Planejado | D13: Realizado | M13: Vence esse mês | N13: Falta 1 mês | O13: Faltam 2 meses | P13: Faltam 3 ou mais meses | Q13: Atrasados | Y13: ='PA 2'!B14 -> Aumentar: Número de clientes | Z13: =IF(ISERROR('PA 2'!U14),"",'PA 2'!U14) -> 19 | AA13: =IF(ISERROR('PA 2'!V14),"",'PA 2'!V14) -> 
B14: ='EST 2'!B14 -> Aumentar: Quantidade de vendas | C14: =SUM('EST 2'!CB14,'EST 2'!BL14,'EST 2'!AV14,'EST 2'!AF14,'EST 2'!P14) -> 639.7 | D14: =SUM('EST 2'!P15,'EST 2'!AF15,'EST 2'!AV15,'EST 2'!BL15,'EST 2'!CB15) -> 640.35 | L14: =B14 -> Aumentar: Quantidade de vendas | M14: =SUM(IF($Y$12:$Y$29=$L14,IF($Z$12:$Z$29=0,1,0),0)) -> 0 | N14: =SUM(IF($Y$12:$Y$29=$L14,IF($Z$12:$Z$29=-1,1,0),0)) -> 0 | O14: =COUNTIFS($Y$12:$Y$29,$L14,$AA$12:$AA$29,"=2") -> 0 | P14: =COUNTIFS($Y$12:$Y$29,$L14,$AA$12:$AA$29,">2") -> 0 | Q14: =COUNTIFS($Y$12:$Y$29,$L14,$Z$12:$Z$29,">0") -> 1 | Y14: ='PA 2'!B15 -> 0 | Z14: =IF(ISERROR('PA 2'!U15),"",'PA 2'!U15) ->  | AA14: =IF(ISERROR('PA 2'!V15),"",'PA 2'!V15) -> 
B15: ='EST 2'!B19 -> Aumentar: Número de clientes | C15: =SUM('EST 2'!P19,'EST 2'!AF19,'EST 2'!AV19,'EST 2'!BL19,'EST 2'!CB19) -> 139 | D15: =SUM('EST 2'!CB20,'EST 2'!BL20,'EST 2'!AV20,'EST 2'!AF20,'EST 2'!P20) -> 219 | L15: =B15 -> Aumentar: Número de clientes | M15: =SUM(IF($Y$12:$Y$29=$L15,IF($Z$12:$Z$29=0,1,0),0)) -> 0 | N15: =SUM(IF($Y$12:$Y$29=$L15,IF($Z$12:$Z$29=-1,1,0),0)) -> 0 | O15: =COUNTIFS($Y$12:$Y$29,$L15,$AA$12:$AA$29,"=2") -> 0 | P15: =COUNTIFS($Y$12:$Y$29,$L15,$AA$12:$AA$29,">2") -> 0 | Q15: =COUNTIFS($Y$12:$Y$29,$L15,$Z$12:$Z$29,">0") -> 1 | Y15: ='PA 2'!B16 -> 0 | Z15: =IF(ISERROR('PA 2'!U16),"",'PA 2'!U16) ->  | AA15: =IF(ISERROR('PA 2'!V16),"",'PA 2'!V16) -> 
B16: ='EST 2'!B24 -> 0 | C16: =SUM('EST 2'!P24,'EST 2'!AF24,'EST 2'!AV24,'EST 2'!BL24,'EST 2'!CB24) -> 131 | D16: =SUM('EST 2'!CB25,'EST 2'!BL25,'EST 2'!AV25,'EST 2'!AF25,'EST 2'!P25) -> 140 | L16: =B16 -> 0 | M16: =SUM(IF($Y$12:$Y$29=$L16,IF($Z$12:$Z$29=0,1,0),0)) -> 0 | N16: =SUM(IF($Y$12:$Y$29=$L16,IF($Z$12:$Z$29=-1,1,0),0)) -> 0 | O16: =COUNTIFS($Y$12:$Y$29,$L16,$AA$12:$AA$29,"=2") -> 0 | P16: =COUNTIFS($Y$12:$Y$29,$L16,$AA$12:$AA$29,">2") -> 0 | Q16: =COUNTIFS($Y$12:$Y$29,$L16,$Z$12:$Z$29,">0") -> 0 | Y16: ='PA 2'!B17 -> 0 | Z16: =IF(ISERROR('PA 2'!U17),"",'PA 2'!U17) ->  | AA16: =IF(ISERROR('PA 2'!V17),"",'PA 2'!V17) -> 
B17: ='EST 2'!B29 -> 0 | C17: =SUM('EST 2'!P29,'EST 2'!AF29,'EST 2'!AV29,'EST 2'!BL29,'EST 2'!CB29) -> 131 | D17: =SUM('EST 2'!CB30,'EST 2'!BL30,'EST 2'!AV30,'EST 2'!AF30,'EST 2'!P30) -> 140 | L17: =B17 -> 0 | M17: =SUM(IF($Y$12:$Y$29=$L17,IF($Z$12:$Z$29=0,1,0),0)) -> 0 | N17: =SUM(IF($Y$12:$Y$29=$L17,IF($Z$12:$Z$29=-1,1,0),0)) -> 0 | O17: =COUNTIFS($Y$12:$Y$29,$L17,$AA$12:$AA$29,"=2") -> 0 | P17: =COUNTIFS($Y$12:$Y$29,$L17,$AA$12:$AA$29,">2") -> 0 | Q17: =COUNTIFS($Y$12:$Y$29,$L17,$Z$12:$Z$29,">0") -> 0 | Y17: ='PA 2'!B18 -> 0 | Z17: =IF(ISERROR('PA 2'!U18),"",'PA 2'!U18) ->  | AA17: =IF(ISERROR('PA 2'!V18),"",'PA 2'!V18) -> 
B18: ='EST 2'!B34 -> 0 | C18: =SUM('EST 2'!P34,'EST 2'!AF34,'EST 2'!AV34,'EST 2'!BL34,'EST 2'!CB34) -> 131 | D18: =SUM('EST 2'!CB35,'EST 2'!BL35,'EST 2'!AV35,'EST 2'!AF35,'EST 2'!P35) -> 140 | L18: 0 | M18: =SUM(IF($Y$12:$Y$29=$L18,IF($Z$12:$Z$29=0,1,0),0)) -> 0 | N18: =SUM(IF($Y$12:$Y$29=$L18,IF($Z$12:$Z$29=-1,1,0),0)) -> 0 | O18: 0 | P18: 0 | Q18: 0 | Y18: ='PA 2'!B19 -> 0 | Z18: =IF(ISERROR('PA 2'!U19),"",'PA 2'!U19) ->  | AA18: =IF(ISERROR('PA 2'!V19),"",'PA 2'!V19) -> 
Y19: ='PA 2'!B20 -> 0 | Z19: =IF(ISERROR('PA 2'!U20),"",'PA 2'!U20) ->  | AA19: =IF(ISERROR('PA 2'!V20),"",'PA 2'!V20) -> 
B20: ="Ano 1 - "&B14 -> Ano 1 - Aumentar: Quantidade de vendas | I20: ="Ano 1 - "&B15 -> Ano 1 - Aumentar: Número de clientes | P20: ="Ano 1 - "&B16 -> Ano 1 - 0 | Y20: ='PA 2'!B21 -> 0 | Z20: =IF(ISERROR('PA 2'!U21),"",'PA 2'!U21) ->  | AA20: =IF(ISERROR('PA 2'!V21),"",'PA 2'!V21) -> 
Y21: ='PA 2'!B22 -> 0 | Z21: =IF(ISERROR('PA 2'!U22),"",'PA 2'!U22) ->  | AA21: =IF(ISERROR('PA 2'!V22),"",'PA 2'!V22) -> 
Y22: ='PA 2'!B23 -> 0 | Z22: =IF(ISERROR('PA 2'!U23),"",'PA 2'!U23) ->  | AA22: =IF(ISERROR('PA 2'!V23),"",'PA 2'!V23) -> 
Y23: ='PA 2'!B24 -> 0 | Z23: =IF(ISERROR('PA 2'!U24),"",'PA 2'!U24) ->  | AA23: =IF(ISERROR('PA 2'!V24),"",'PA 2'!V24) -> 
Y24: ='PA 2'!B25 -> 0 | Z24: =IF(ISERROR('PA 2'!U25),"",'PA 2'!U25) ->  | AA24: =IF(ISERROR('PA 2'!V25),"",'PA 2'!V25) -> 
Y25: ='PA 2'!B26 -> 0 | Z25: =IF(ISERROR('PA 2'!U26),"",'PA 2'!U26) ->  | AA25: =IF(ISERROR('PA 2'!V26),"",'PA 2'!V26) -> 
Y26: ='PA 2'!B27 -> 0 | Z26: =IF(ISERROR('PA 2'!U27),"",'PA 2'!U27) ->  | AA26: =IF(ISERROR('PA 2'!V27),"",'PA 2'!V27) -> 
Y27: ='PA 2'!B28 -> 0 | Z27: =IF(ISERROR('PA 2'!U28),"",'PA 2'!U28) ->  | AA27: =IF(ISERROR('PA 2'!V28),"",'PA 2'!V28) -> 
B28: ="Ano 2 - "&$B$14 -> Ano 2 - Aumentar: Quantidade de vendas | I28: ="Ano 2 - "&$B$15 -> Ano 2 - Aumentar: Número de clientes | P28: ="Ano 2 - "&$B$16 -> Ano 2 - 0 | Y28: ='PA 2'!B29 -> 0 | Z28: =IF(ISERROR('PA 2'!U29),"",'PA 2'!U29) ->  | AA28: =IF(ISERROR('PA 2'!V29),"",'PA 2'!V29) -> 
Y29: ='PA 2'!B30 -> 0 | Z29: =IF(ISERROR('PA 2'!U30),"",'PA 2'!U30) ->  | AA29: =IF(ISERROR('PA 2'!V30),"",'PA 2'!V30) -> 
B36: ="Ano 3 - "&$B$14 -> Ano 3 - Aumentar: Quantidade de vendas | I36: ="Ano 3 - "&$B$15 -> Ano 3 - Aumentar: Número de clientes | P36: ="Ano 3 - "&$B$16 -> Ano 3 - 0
B44: ="Ano 4 - "&$B$14 -> Ano 4 - Aumentar: Quantidade de vendas | I44: ="Ano 4 - "&$B$15 -> Ano 4 - Aumentar: Número de clientes | P44: ="Ano 4 - "&$B$16 -> Ano 4 - 0
B52: ="Ano 5 - "&$B$14 -> Ano 5 - Aumentar: Quantidade de vendas | I52: ="Ano 5 - "&$B$15 -> Ano 5 - Aumentar: Número de clientes | P52: ="Ano 5 - "&$B$16 -> Ano 5 - 0
B61: ="Ano 1 - "&B17 -> Ano 1 - 0 | I61: ="Ano 1 - "&B18 -> Ano 1 - 0
B69: ="Ano 2 - "&$B$17 -> Ano 2 - 0 | I69: ="Ano 2 - "&$B$18 -> Ano 2 - 0
B77: ="Ano 3 - "&$B$17 -> Ano 3 - 0 | I77: ="Ano 3 - "&$B$18 -> Ano 3 - 0
B85: ="Ano 4 - "&$B$17 -> Ano 4 - 0 | I85: ="Ano 4 - "&$B$18 -> Ano 4 - 0
B93: ="Ano 5 - "&$B$17 -> Ano 5 - 0 | I93: ="Ano 5 - "&$B$18 -> Ano 5 - 0
B101: =PA!C32 -> Perspectiva Financeira
B102: =PA!C33 -> Perspectiva de Clientes
B103: =PA!C34 -> Perspectiva de Processos Internos
B104: =PA!C35 -> Perspectiva de Aprendizagem

Sheet GRAF 3
B12: Planejado x Realizado | M12: Prazos - Plano de ação | Y12: ='PA 3'!B13 -> Aumentar: Capacidade de produção | Z12: =IF(ISERROR('PA 3'!U13),"",'PA 3'!U13) -> 59 | AA12: =IF(ISERROR('PA 3'!V13),"",'PA 3'!V13) -> 
C13: Planejado | D13: Realizado | M13: Vence esse mês | N13: Falta 1 mês | O13: Faltam 2 meses | P13: Faltam 3 ou mais meses | Q13: Atrasados | Y13: ='PA 3'!B14 -> 0 | Z13: =IF(ISERROR('PA 3'!U14),"",'PA 3'!U14) ->  | AA13: =IF(ISERROR('PA 3'!V14),"",'PA 3'!V14) -> 
B14: ='EST 3'!B14 -> Aumentar: Capacidade de atendimentos | C14: =SUM('EST 3'!CB14,'EST 3'!BL14,'EST 3'!AV14,'EST 3'!AF14,'EST 3'!P14) -> 3638.9 | D14: =SUM('EST 3'!P15,'EST 3'!AF15,'EST 3'!AV15,'EST 3'!BL15,'EST 3'!CB15) -> 1989 | L14: =B14 -> Aumentar: Capacidade de atendimentos | M14: =SUM(IF($Y$12:$Y$29=$L14,IF($Z$12:$Z$29=0,1,0),0)) -> 0 | N14: =SUM(IF($Y$12:$Y$29=$L14,IF($Z$12:$Z$29=-1,1,0),0)) -> 0 | O14: =COUNTIFS($Y$12:$Y$29,$L14,$AA$12:$AA$29,"=2") -> 0 | P14: =COUNTIFS($Y$12:$Y$29,$L14,$AA$12:$AA$29,">2") -> 0 | Q14: =COUNTIFS($Y$12:$Y$29,$L14,$Z$12:$Z$29,">0") -> 0 | Y14: ='PA 3'!B15 -> 0 | Z14: =IF(ISERROR('PA 3'!U15),"",'PA 3'!U15) ->  | AA14: =IF(ISERROR('PA 3'!V15),"",'PA 3'!V15) -> 
B15: ='EST 3'!B19 -> 0 | C15: =SUM('EST 3'!P19,'EST 3'!AF19,'EST 3'!AV19,'EST 3'!BL19,'EST 3'!CB19) -> 79 | D15: =SUM('EST 3'!CB20,'EST 3'!BL20,'EST 3'!AV20,'EST 3'!AF20,'EST 3'!P20) -> 141 | L15: =B15 -> 0 | M15: =SUM(IF($Y$12:$Y$29=$L15,IF($Z$12:$Z$29=0,1,0),0)) -> 0 | N15: =SUM(IF($Y$12:$Y$29=$L15,IF($Z$12:$Z$29=-1,1,0),0)) -> 0 | O15: =COUNTIFS($Y$12:$Y$29,$L15,$AA$12:$AA$29,"=2") -> 0 | P15: =COUNTIFS($Y$12:$Y$29,$L15,$AA$12:$AA$29,">2") -> 0 | Q15: =COUNTIFS($Y$12:$Y$29,$L15,$Z$12:$Z$29,">0") -> 0 | Y15: ='PA 3'!B16 -> 0 | Z15: =IF(ISERROR('PA 3'!U16),"",'PA 3'!U16) ->  | AA15: =IF(ISERROR('PA 3'!V16),"",'PA 3'!V16) -> 
B16: ='EST 3'!B24 -> 0 | C16: =SUM('EST 3'!P24,'EST 3'!AF24,'EST 3'!AV24,'EST 3'!BL24,'EST 3'!CB24) -> 131 | D16: =SUM('EST 3'!CB25,'EST 3'!BL25,'EST 3'!AV25,'EST 3'!AF25,'EST 3'!P25) -> 140 | L16: =B16 -> 0 | M16: =SUM(IF($Y$12:$Y$29=$L16,IF($Z$12:$Z$29=0,1,0),0)) -> 0 | N16: =SUM(IF($Y$12:$Y$29=$L16,IF($Z$12:$Z$29=-1,1,0),0)) -> 0 | O16: =COUNTIFS($Y$12:$Y$29,$L16,$AA$12:$AA$29,"=2") -> 0 | P16: =COUNTIFS($Y$12:$Y$29,$L16,$AA$12:$AA$29,">2") -> 0 | Q16: =COUNTIFS($Y$12:$Y$29,$L16,$Z$12:$Z$29,">0") -> 0 | Y16: ='PA 3'!B17 -> 0 | Z16: =IF(ISERROR('PA 3'!U17),"",'PA 3'!U17) ->  | AA16: =IF(ISERROR('PA 3'!V17),"",'PA 3'!V17) -> 
B17: ='EST 3'!B29 -> Aumentar: Gasto para produção | C17: =SUM('EST 3'!P29,'EST 3'!AF29,'EST 3'!AV29,'EST 3'!BL29,'EST 3'!CB29) -> 131 | D17: =SUM('EST 3'!CB30,'EST 3'!BL30,'EST 3'!AV30,'EST 3'!AF30,'EST 3'!P30) -> 140 | L17: =B17 -> Aumentar: Gasto para produção | M17: =SUM(IF($Y$12:$Y$29=$L17,IF($Z$12:$Z$29=0,1,0),0)) -> 0 | N17: =SUM(IF($Y$12:$Y$29=$L17,IF($Z$12:$Z$29=-1,1,0),0)) -> 0 | O17: =COUNTIFS($Y$12:$Y$29,$L17,$AA$12:$AA$29,"=2") -> 0 | P17: =COUNTIFS($Y$12:$Y$29,$L17,$AA$12:$AA$29,">2") -> 0 | Q17: =COUNTIFS($Y$12:$Y$29,$L17,$Z$12:$Z$29,">0") -> 0 | Y17: ='PA 3'!B18 -> 0 | Z17: =IF(ISERROR('PA 3'!U18),"",'PA 3'!U18) ->  | AA17: =IF(ISERROR('PA 3'!V18),"",'PA 3'!V18) -> 
B18: ='EST 3'!B34 -> Aumentar: Gasto para produção | C18: =SUM('EST 3'!P34,'EST 3'!AF34,'EST 3'!AV34,'EST 3'!BL34,'EST 3'!CB34) -> 131 | D18: =SUM('EST 3'!CB35,'EST 3'!BL35,'EST 3'!AV35,'EST 3'!AF35,'EST 3'!P35) -> 140 | L18: Aumentar: Gasto para produção | M18: =SUM(IF($Y$12:$Y$29=$L18,IF($Z$12:$Z$29=0,1,0),0)) -> 0 | N18: =SUM(IF($Y$12:$Y$29=$L18,IF($Z$12:$Z$29=-1,1,0),0)) -> 0 | O18: 0 | P18: 0 | Q18: 0 | Y18: ='PA 3'!B19 -> 0 | Z18: =IF(ISERROR('PA 3'!U19),"",'PA 3'!U19) ->  | AA18: =IF(ISERROR('PA 3'!V19),"",'PA 3'!V19) -> 
Y19: ='PA 3'!B20 -> 0 | Z19: =IF(ISERROR('PA 3'!U20),"",'PA 3'!U20) ->  | AA19: =IF(ISERROR('PA 3'!V20),"",'PA 3'!V20) -> 
B20: ="Ano 1 - "&B14 -> Ano 1 - Aumentar: Capacidade de atendimentos | I20: ="Ano 1 - "&B15 -> Ano 1 - 0 | P20: ="Ano 1 - "&B16 -> Ano 1 - 0 | Y20: ='PA 3'!B21 -> 0 | Z20: =IF(ISERROR('PA 3'!U21),"",'PA 3'!U21) ->  | AA20: =IF(ISERROR('PA 3'!V21),"",'PA 3'!V21) -> 
Y21: ='PA 3'!B22 -> 0 | Z21: =IF(ISERROR('PA 3'!U22),"",'PA 3'!U22) ->  | AA21: =IF(ISERROR('PA 3'!V22),"",'PA 3'!V22) -> 
Y22: ='PA 3'!B23 -> 0 | Z22: =IF(ISERROR('PA 3'!U23),"",'PA 3'!U23) ->  | AA22: =IF(ISERROR('PA 3'!V23),"",'PA 3'!V23) -> 
Y23: ='PA 3'!B24 -> 0 | Z23: =IF(ISERROR('PA 3'!U24),"",'PA 3'!U24) ->  | AA23: =IF(ISERROR('PA 3'!V24),"",'PA 3'!V24) -> 
Y24: ='PA 3'!B25 -> 0 | Z24: =IF(ISERROR('PA 3'!U25),"",'PA 3'!U25) ->  | AA24: =IF(ISERROR('PA 3'!V25),"",'PA 3'!V25) -> 
Y25: ='PA 3'!B26 -> 0 | Z25: =IF(ISERROR('PA 3'!U26),"",'PA 3'!U26) ->  | AA25: =IF(ISERROR('PA 3'!V26),"",'PA 3'!V26) -> 
Y26: ='PA 3'!B27 -> 0 | Z26: =IF(ISERROR('PA 3'!U27),"",'PA 3'!U27) ->  | AA26: =IF(ISERROR('PA 3'!V27),"",'PA 3'!V27) -> 
Y27: ='PA 3'!B28 -> 0 | Z27: =IF(ISERROR('PA 3'!U28),"",'PA 3'!U28) ->  | AA27: =IF(ISERROR('PA 3'!V28),"",'PA 3'!V28) -> 
B28: ="Ano 2 - "&$B$14 -> Ano 2 - Aumentar: Capacidade de atendimentos | I28: ="Ano 2 - "&$B$15 -> Ano 2 - 0 | P28: ="Ano 2 - "&$B$16 -> Ano 2 - 0 | Y28: ='PA 3'!B29 -> 0 | Z28: =IF(ISERROR('PA 3'!U29),"",'PA 3'!U29) ->  | AA28: =IF(ISERROR('PA 3'!V29),"",'PA 3'!V29) -> 
Y29: ='PA 3'!B30 -> 0 | Z29: =IF(ISERROR('PA 3'!U30),"",'PA 3'!U30) ->  | AA29: =IF(ISERROR('PA 3'!V30),"",'PA 3'!V30) -> 
B36: ="Ano 3 - "&$B$14 -> Ano 3 - Aumentar: Capacidade de atendimentos | I36: ="Ano 3 - "&$B$15 -> Ano 3 - 0 | P36: ="Ano 3 - "&$B$16 -> Ano 3 - 0
B44: ="Ano 4 - "&$B$14 -> Ano 4 - Aumentar: Capacidade de atendimentos | I44: ="Ano 4 - "&$B$15 -> Ano 4 - 0 | P44: ="Ano 4 - "&$B$16 -> Ano 4 - 0
B52: ="Ano 5 - "&$B$14 -> Ano 5 - Aumentar: Capacidade de atendimentos | I52: ="Ano 5 - "&$B$15 -> Ano 5 - 0 | P52: ="Ano 5 - "&$B$16 -> Ano 5 - 0
B61: ="Ano 1 - "&B17 -> Ano 1 - Aumentar: Gasto para produção | I61: ="Ano 1 - "&B18 -> Ano 1 - Aumentar: Gasto para produção
B69: ="Ano 2 - "&$B$17 -> Ano 2 - Aumentar: Gasto para produção | I69: ="Ano 2 - "&$B$18 -> Ano 2 - Aumentar: Gasto para produção
B77: ="Ano 3 - "&$B$17 -> Ano 3 - Aumentar: Gasto para produção | I77: ="Ano 3 - "&$B$18 -> Ano 3 - Aumentar: Gasto para produção
B85: ="Ano 4 - "&$B$17 -> Ano 4 - Aumentar: Gasto para produção | I85: ="Ano 4 - "&$B$18 -> Ano 4 - Aumentar: Gasto para produção
B93: ="Ano 5 - "&$B$17 -> Ano 5 - Aumentar: Gasto para produção | I93: ="Ano 5 - "&$B$18 -> Ano 5 - Aumentar: Gasto para produção
B101: =PA!C32 -> Perspectiva Financeira
B102: =PA!C33 -> Perspectiva de Clientes
B103: =PA!C34 -> Perspectiva de Processos Internos
B104: =PA!C35 -> Perspectiva de Aprendizagem

Sheet GRAF 4
B12: Planejado x Realizado | M12: Prazos - Plano de ação | Y12: ='PA 4'!B13 -> Aumentar: Satisfação interna | Z12: =IF(ISERROR('PA 4'!U13),"",'PA 4'!U13) -> 13 | AA12: =IF(ISERROR('PA 4'!V13),"",'PA 4'!V13) -> 
C13: Planejado | D13: Realizado | M13: Vence esse mês | N13: Falta 1 mês | O13: Faltam 2 meses | P13: Faltam 3 ou mais meses | Q13: Atrasados | Y13: ='PA 4'!B14 -> 0 | Z13: =IF(ISERROR('PA 4'!U14),"",'PA 4'!U14) ->  | AA13: =IF(ISERROR('PA 4'!V14),"",'PA 4'!V14) -> 
B14: ='EST 4'!B14 -> Aumentar: Know How da equipe | C14: =SUM('EST 4'!CB14,'EST 4'!BL14,'EST 4'!AV14,'EST 4'!AF14,'EST 4'!P14) -> 5138.9 | D14: =SUM('EST 4'!P15,'EST 4'!AF15,'EST 4'!AV15,'EST 4'!BL15,'EST 4'!CB15) -> 1989 | L14: =B14 -> Aumentar: Know How da equipe | M14: =SUM(IF($Y$12:$Y$29=$L14,IF($Z$12:$Z$29=0,1,0),0)) -> 0 | N14: =SUM(IF($Y$12:$Y$29=$L14,IF($Z$12:$Z$29=-1,1,0),0)) -> 0 | O14: =COUNTIFS($Y$12:$Y$29,$L14,$AA$12:$AA$29,"=2") -> 0 | P14: =COUNTIFS($Y$12:$Y$29,$L14,$AA$12:$AA$29,">2") -> 0 | Q14: =COUNTIFS($Y$12:$Y$29,$L14,$Z$12:$Z$29,">0") -> 0 | Y14: ='PA 4'!B15 -> 0 | Z14: =IF(ISERROR('PA 4'!U15),"",'PA 4'!U15) ->  | AA14: =IF(ISERROR('PA 4'!V15),"",'PA 4'!V15) -> 
B15: ='EST 4'!B19 -> Aumentar: Satisfação interna | C15: =SUM('EST 4'!P19,'EST 4'!AF19,'EST 4'!AV19,'EST 4'!BL19,'EST 4'!CB19) -> 89.8 | D15: =SUM('EST 4'!CB20,'EST 4'!BL20,'EST 4'!AV20,'EST 4'!AF20,'EST 4'!P20) -> 143.69 | L15: =B15 -> Aumentar: Satisfação interna | M15: =SUM(IF($Y$12:$Y$29=$L15,IF($Z$12:$Z$29=0,1,0),0)) -> 0 | N15: =SUM(IF($Y$12:$Y$29=$L15,IF($Z$12:$Z$29=-1,1,0),0)) -> 0 | O15: =COUNTIFS($Y$12:$Y$29,$L15,$AA$12:$AA$29,"=2") -> 0 | P15: =COUNTIFS($Y$12:$Y$29,$L15,$AA$12:$AA$29,">2") -> 0 | Q15: =COUNTIFS($Y$12:$Y$29,$L15,$Z$12:$Z$29,">0") -> 1 | Y15: ='PA 4'!B16 -> 0 | Z15: =IF(ISERROR('PA 4'!U16),"",'PA 4'!U16) ->  | AA15: =IF(ISERROR('PA 4'!V16),"",'PA 4'!V16) -> 
B16: ='EST 4'!B24 -> 0 | C16: =SUM('EST 4'!P24,'EST 4'!AF24,'EST 4'!AV24,'EST 4'!BL24,'EST 4'!CB24) -> 131 | D16: =SUM('EST 4'!CB25,'EST 4'!BL25,'EST 4'!AV25,'EST 4'!AF25,'EST 4'!P25) -> 140 | L16: =B16 -> 0 | M16: =SUM(IF($Y$12:$Y$29=$L16,IF($Z$12:$Z$29=0,1,0),0)) -> 0 | N16: =SUM(IF($Y$12:$Y$29=$L16,IF($Z$12:$Z$29=-1,1,0),0)) -> 0 | O16: =COUNTIFS($Y$12:$Y$29,$L16,$AA$12:$AA$29,"=2") -> 0 | P16: =COUNTIFS($Y$12:$Y$29,$L16,$AA$12:$AA$29,">2") -> 0 | Q16: =COUNTIFS($Y$12:$Y$29,$L16,$Z$12:$Z$29,">0") -> 0 | Y16: ='PA 4'!B17 -> 0 | Z16: =IF(ISERROR('PA 4'!U17),"",'PA 4'!U17) ->  | AA16: =IF(ISERROR('PA 4'!V17),"",'PA 4'!V17) -> 
B17: ='EST 4'!B29 -> 0 | C17: =SUM('EST 4'!P29,'EST 4'!AF29,'EST 4'!AV29,'EST 4'!BL29,'EST 4'!CB29) -> 131 | D17: =SUM('EST 4'!CB30,'EST 4'!BL30,'EST 4'!AV30,'EST 4'!AF30,'EST 4'!P30) -> 140 | L17: =B17 -> 0 | M17: =SUM(IF($Y$12:$Y$29=$L17,IF($Z$12:$Z$29=0,1,0),0)) -> 0 | N17: =SUM(IF($Y$12:$Y$29=$L17,IF($Z$12:$Z$29=-1,1,0),0)) -> 0 | O17: =COUNTIFS($Y$12:$Y$29,$L17,$AA$12:$AA$29,"=2") -> 0 | P17: =COUNTIFS($Y$12:$Y$29,$L17,$AA$12:$AA$29,">2") -> 0 | Q17: =COUNTIFS($Y$12:$Y$29,$L17,$Z$12:$Z$29,">0") -> 0 | Y17: ='PA 4'!B18 -> 0 | Z17: =IF(ISERROR('PA 4'!U18),"",'PA 4'!U18) ->  | AA17: =IF(ISERROR('PA 4'!V18),"",'PA 4'!V18) -> 
B18: ='EST 4'!B34 -> 0 | C18: =SUM('EST 4'!P34,'EST 4'!AF34,'EST 4'!AV34,'EST 4'!BL34,'EST 4'!CB34) -> 131 | D18: =SUM('EST 4'!CB35,'EST 4'!BL35,'EST 4'!AV35,'EST 4'!AF35,'EST 4'!P35) -> 140 | L18: 0 | M18: =SUM(IF($Y$12:$Y$29=$L18,IF($Z$12:$Z$29=0,1,0),0)) -> 0 | N18: =SUM(IF($Y$12:$Y$29=$L18,IF($Z$12:$Z$29=-1,1,0),0)) -> 0 | O18: 0 | P18: 0 | Q18: 0 | Y18: ='PA 4'!B19 -> 0 | Z18: =IF(ISERROR('PA 4'!U19),"",'PA 4'!U19) ->  | AA18: =IF(ISERROR('PA 4'!V19),"",'PA 4'!V19) -> 
Y19: ='PA 4'!B20 -> 0 | Z19: =IF(ISERROR('PA 4'!U20),"",'PA 4'!U20) ->  | AA19: =IF(ISERROR('PA 4'!V20),"",'PA 4'!V20) -> 
B20: ="Ano 1 - "&B14 -> Ano 1 - Aumentar: Know How da equipe | I20: ="Ano 1 - "&B15 -> Ano 1 - Aumentar: Satisfação interna | P20: ="Ano 1 - "&B16 -> Ano 1 - 0 | Y20: ='PA 4'!B21 -> 0 | Z20: =IF(ISERROR('PA 4'!U21),"",'PA 4'!U21) ->  | AA20: =IF(ISERROR('PA 4'!V21),"",'PA 4'!V21) -> 
Y21: ='PA 4'!B22 -> 0 | Z21: =IF(ISERROR('PA 4'!U22),"",'PA 4'!U22) ->  | AA21: =IF(ISERROR('PA 4'!V22),"",'PA 4'!V22) -> 
Y22: ='PA 4'!B23 -> 0 | Z22: =IF(ISERROR('PA 4'!U23),"",'PA 4'!U23) ->  | AA22: =IF(ISERROR('PA 4'!V23),"",'PA 4'!V23) -> 
Y23: ='PA 4'!B24 -> 0 | Z23: =IF(ISERROR('PA 4'!U24),"",'PA 4'!U24) ->  | AA23: =IF(ISERROR('PA 4'!V24),"",'PA 4'!V24) -> 
Y24: ='PA 4'!B25 -> 0 | Z24: =IF(ISERROR('PA 4'!U25),"",'PA 4'!U25) ->  | AA24: =IF(ISERROR('PA 4'!V25),"",'PA 4'!V25) -> 
Y25: ='PA 4'!B26 -> 0 | Z25: =IF(ISERROR('PA 4'!U26),"",'PA 4'!U26) ->  | AA25: =IF(ISERROR('PA 4'!V26),"",'PA 4'!V26) -> 
Y26: ='PA 4'!B27 -> 0 | Z26: =IF(ISERROR('PA 4'!U27),"",'PA 4'!U27) ->  | AA26: =IF(ISERROR('PA 4'!V27),"",'PA 4'!V27) -> 
Y27: ='PA 4'!B28 -> 0 | Z27: =IF(ISERROR('PA 4'!U28),"",'PA 4'!U28) ->  | AA27: =IF(ISERROR('PA 4'!V28),"",'PA 4'!V28) -> 
B28: ="Ano 2 - "&$B$14 -> Ano 2 - Aumentar: Know How da equipe | I28: ="Ano 2 - "&$B$15 -> Ano 2 - Aumentar: Satisfação interna | P28: ="Ano 2 - "&$B$16 -> Ano 2 - 0 | Y28: ='PA 4'!B29 -> 0 | Z28: =IF(ISERROR('PA 4'!U29),"",'PA 4'!U29) ->  | AA28: =IF(ISERROR('PA 4'!V29),"",'PA 4'!V29) -> 
Y29: ='PA 4'!B30 -> 0 | Z29: =IF(ISERROR('PA 4'!U30),"",'PA 4'!U30) ->  | AA29: =IF(ISERROR('PA 4'!V30),"",'PA 4'!V30) -> 
B36: ="Ano 3 - "&$B$14 -> Ano 3 - Aumentar: Know How da equipe | I36: ="Ano 3 - "&$B$15 -> Ano 3 - Aumentar: Satisfação interna | P36: ="Ano 3 - "&$B$16 -> Ano 3 - 0
B44: ="Ano 4 - "&$B$14 -> Ano 4 - Aumentar: Know How da equipe | I44: ="Ano 4 - "&$B$15 -> Ano 4 - Aumentar: Satisfação interna | P44: ="Ano 4 - "&$B$16 -> Ano 4 - 0
B52: ="Ano 5 - "&$B$14 -> Ano 5 - Aumentar: Know How da equipe | I52: ="Ano 5 - "&$B$15 -> Ano 5 - Aumentar: Satisfação interna | P52: ="Ano 5 - "&$B$16 -> Ano 5 - 0
B61: ="Ano 1 - "&B17 -> Ano 1 - 0 | I61: ="Ano 1 - "&B18 -> Ano 1 - 0
B69: ="Ano 2 - "&$B$17 -> Ano 2 - 0 | I69: ="Ano 2 - "&$B$18 -> Ano 2 - 0
B77: ="Ano 3 - "&$B$17 -> Ano 3 - 0 | I77: ="Ano 3 - "&$B$18 -> Ano 3 - 0
B85: ="Ano 4 - "&$B$17 -> Ano 4 - 0 | I85: ="Ano 4 - "&$B$18 -> Ano 4 - 0
B93: ="Ano 5 - "&$B$17 -> Ano 5 - 0 | I93: ="Ano 5 - "&$B$18 -> Ano 5 - 0
B101: =PA!C32 -> Perspectiva Financeira
B102: =PA!C33 -> Perspectiva de Clientes
B103: =PA!C34 -> Perspectiva de Processos Internos
B104: =PA!C35 -> Perspectiva de Aprendizagem

Sheet Mapa
B12: Planjemaento Estratégico
B14: Selecione o tipo de análise ao lado | E14: Total
C17: =DA!$H$13 -> Perspectiva Financeira
C20: =EST!$B$14 -> Aumentar: Receitas | E20: =EST!$B$19 -> Aumentar: Lucratividade | G20: =EST!$B$24 -> Diminuir: Despesas | I20: =EST!$B$29 -> 0 | K20: =EST!$B$34 -> 0
C21: =IF($E$14="Parcial",CONCATENATE(EST!$C$14,": ",EST!$P$14),IF($E$14="Total",CONCATENATE(EST!$C$14,": ",EST!$Q$14),"Planejado:")) -> Planejado: 600 | E21: =IF($E$14="Parcial",CONCATENATE(EST!$C$19,": ",EST!$P$19),IF($E$14="Total",CONCATENATE(EST!$C$19,": ",EST!$Q$19),"Planejado:")) -> Planejado: 1102 | G21: =IF($E$14="Parcial",CONCATENATE(EST!$C$24,": ",EST!$P$24),IF($E$14="Total",CONCATENATE(EST!$C$24,": ",EST!$Q$24),"Planejado:")) -> Planejado: 0,3 | I21: =IF($E$14="Parcial",CONCATENATE(EST!$C$29,": ",EST!$P$29),IF($E$14="Total",CONCATENATE(EST!$C$29,": ",EST!$Q$29),"Planejado:")) -> Planejado: 0 | K21: =IF($E$14="Parcial",CONCATENATE(EST!$C$34,": ",EST!$P$34),IF($E$14="Total",CONCATENATE(EST!$C$34,": ",EST!$Q$34),"Planejado:")) -> Planejado: 0
C22: =IF($E$14="Parcial",CONCATENATE(EST!$C$15,": ",EST!$P$15),IF($E$14="Total",CONCATENATE(EST!$C$15,": ",EST!$Q$15),"Realizado:")) -> Realizado: 300 | E22: =IF($E$14="Parcial",CONCATENATE(EST!$C$20,": ",EST!$P$20),IF($E$14="Total",CONCATENATE(EST!$C$20,": ",EST!$Q$20),"Realizado:")) -> Realizado: 1201 | G22: =IF($E$14="Parcial",CONCATENATE(EST!$C$25,": ",EST!$P$25),IF($E$14="Total",CONCATENATE(EST!$C$25,": ",EST!$Q$25),"Realizado:")) -> Realizado: 0,3 | I22: =IF($E$14="Parcial",CONCATENATE(EST!$C$30,": ",EST!$P$30),IF($E$14="Total",CONCATENATE(EST!$C$30,": ",EST!$Q$30),"Realizado:")) -> Realizado: 0 | K22: =IF($E$14="Parcial",CONCATENATE(EST!$C$35,": ",EST!$P$35),IF($E$14="Total",CONCATENATE(EST!$C$35,": ",EST!$Q$35),"Realizado:")) -> Realizado: 0
C24: =IF($E$14="Parcial",IFERROR(EST!$P$15/EST!$P$14,""),IF($E$14="Total",IFERROR(EST!$Q$15/EST!$Q$14,""),"")) -> 0.5 | E24: =IF($E$14="Parcial",IFERROR(EST!$P$20/EST!$P$19,""),IF($E$14="Total",IFERROR(EST!$Q$20/EST!$Q$19,""),"")) -> 1.089836661 | G24: =IF($E$14="Parcial",IFERROR(EST!$P$25/EST!$P$24,""),IF($E$14="Total",IFERROR(EST!$Q$25/EST!$Q$24,""),"")) -> 1 | I24: =IF($E$14="Parcial",IFERROR(EST!$P$30/EST!$P$29,""),IF($E$14="Total",IFERROR(EST!$Q$30/EST!$Q$29,""),"")) ->  | K24: =IF($E$14="Parcial",IFERROR(EST!$P$35/EST!$P$34,""),IF($E$14="Total",IFERROR(EST!$Q$35/EST!$Q$34,""),"")) -> 
C28: =DA!$K$13 -> Perspectiva de Clientes
C31: ='EST 2'!$B$14 -> Aumentar: Quantidade de vendas | E31: ='EST 2'!$B$19 -> Aumentar: Número de clientes | G31: ='EST 2'!$B$24 -> 0 | I31: ='EST 2'!$B$29 -> 0 | K31: ='EST 2'!$B$34 -> 0
C32: =IF($E$14="Parcial",CONCATENATE('EST 2'!$C$14,": ",'EST 2'!$P$14),IF($E$14="Total",CONCATENATE('EST 2'!$C$14,": ",'EST 2'!$Q$14),"Planejado:")) -> Planejado: 0,8 | E32: =IF($E$14="Parcial",CONCATENATE('EST 2'!$C$19,": ",'EST 2'!$P$19),IF($E$14="Total",CONCATENATE('EST 2'!$C$19,": ",'EST 2'!$Q$19),"Planejado:")) -> Planejado: 60 | G32: =IF($E$14="Parcial",CONCATENATE('EST 2'!$C$24,": ",'EST 2'!$P$24),IF($E$14="Total",CONCATENATE('EST 2'!$C$24,": ",'EST 2'!$Q$24),"Planejado:")) -> Planejado: 0 | I32: =IF($E$14="Parcial",CONCATENATE('EST 2'!$C$29,": ",'EST 2'!$P$29),IF($E$14="Total",CONCATENATE('EST 2'!$C$29,": ",'EST 2'!$Q$29),"Planejado:")) -> Planejado: 0 | K32: =IF($E$14="Parcial",CONCATENATE('EST 2'!$C$34,": ",'EST 2'!$P$34),IF($E$14="Total",CONCATENATE('EST 2'!$C$34,": ",'EST 2'!$Q$34),"Planejado:")) -> Planejado: 0
C33: =IF($E$14="Parcial",CONCATENATE('EST 2'!$C$15,": ",'EST 2'!$P$15),IF($E$14="Total",CONCATENATE('EST 2'!$C$15,": ",'EST 2'!$Q$15),"Realizado:")) -> Realizado: 1,35 | E33: =IF($E$14="Parcial",CONCATENATE('EST 2'!$C$20,": ",'EST 2'!$P$20),IF($E$14="Total",CONCATENATE('EST 2'!$C$20,": ",'EST 2'!$Q$20),"Realizado:")) -> Realizado: 78 | G33: =IF($E$14="Parcial",CONCATENATE('EST 2'!$C$25,": ",'EST 2'!$P$25),IF($E$14="Total",CONCATENATE('EST 2'!$C$25,": ",'EST 2'!$Q$25),"Realizado:")) -> Realizado: 0 | I33: =IF($E$14="Parcial",CONCATENATE('EST 2'!$C$30,": ",'EST 2'!$P$30),IF($E$14="Total",CONCATENATE('EST 2'!$C$30,": ",'EST 2'!$Q$30),"Realizado:")) -> Realizado: 0 | K33: =IF($E$14="Parcial",CONCATENATE('EST 2'!$C$35,": ",'EST 2'!$P$35),IF($E$14="Total",CONCATENATE('EST 2'!$C$35,": ",'EST 2'!$Q$35),"Realizado:")) -> Realizado: 0
C35: =IF($E$14="Parcial",IFERROR('EST 2'!$P$15/'EST 2'!$P$14,""),IF($E$14="Total",IFERROR('EST 2'!$Q$15/'EST 2'!$Q$14,""),"")) -> 1.6875 | E35: =IF($E$14="Parcial",IFERROR('EST 2'!$P$20/'EST 2'!$P$19,""),IF($E$14="Total",IFERROR('EST 2'!$Q$20/'EST 2'!$Q$19,""),"")) -> 1.3 | G35: =IF($E$14="Parcial",IFERROR('EST 2'!$P$25/'EST 2'!$P$24,""),IF($E$14="Total",IFERROR('EST 2'!$Q$25/'EST 2'!$Q$24,""),"")) ->  | I35: =IF($E$14="Parcial",IFERROR('EST 2'!$P$30/'EST 2'!$P$29,""),IF($E$14="Total",IFERROR('EST 2'!$Q$30/'EST 2'!$Q$29,""),"")) ->  | K35: =IF($E$14="Parcial",IFERROR('EST 2'!$P$35/'EST 2'!$P$34,""),IF($E$14="Total",IFERROR('EST 2'!$Q$35/'EST 2'!$Q$34,""),"")) -> 
C39: =DA!$H$24 -> Perspectiva de Processos Internos
C42: ='EST 3'!$B$14 -> Aumentar: Capacidade de atendimentos | E42: ='EST 3'!$B$19 -> 0 | G42: ='EST 3'!$B$24 -> 0 | I42: ='EST 3'!$B$29 -> Aumentar: Gasto para produção | K42: ='EST 3'!$B$34 -> Aumentar: Gasto para produção
C43: =IF($E$14="Parcial",CONCATENATE('EST 3'!$C$14,": ",'EST 3'!$P$14),IF($E$14="Total",CONCATENATE('EST 3'!$C$14,": ",'EST 3'!$Q$14),"Planejado:")) -> Planejado: 3000 | E43: =IF($E$14="Parcial",CONCATENATE('EST 3'!$C$19,": ",'EST 3'!$P$19),IF($E$14="Total",CONCATENATE('EST 3'!$C$19,": ",'EST 3'!$Q$19),"Planejado:")) -> Planejado: 0 | G43: =IF($E$14="Parcial",CONCATENATE('EST 3'!$C$24,": ",'EST 3'!$P$24),IF($E$14="Total",CONCATENATE('EST 3'!$C$24,": ",'EST 3'!$Q$24),"Planejado:")) -> Planejado: 0 | I43: =IF($E$14="Parcial",CONCATENATE('EST 3'!$C$29,": ",'EST 3'!$P$29),IF($E$14="Total",CONCATENATE('EST 3'!$C$29,": ",'EST 3'!$Q$29),"Planejado:")) -> Planejado: 0 | K43: =IF($E$14="Parcial",CONCATENATE('EST 3'!$C$34,": ",'EST 3'!$P$34),IF($E$14="Total",CONCATENATE('EST 3'!$C$34,": ",'EST 3'!$Q$34),"Planejado:")) -> Planejado: 0
C44: =IF($E$14="Parcial",CONCATENATE('EST 3'!$C$15,": ",'EST 3'!$P$15),IF($E$14="Total",CONCATENATE('EST 3'!$C$15,": ",'EST 3'!$Q$15),"Realizado:")) -> Realizado: 1350 | E44: =IF($E$14="Parcial",CONCATENATE('EST 3'!$C$20,": ",'EST 3'!$P$20),IF($E$14="Total",CONCATENATE('EST 3'!$C$20,": ",'EST 3'!$Q$20),"Realizado:")) -> Realizado: 0 | G44: =IF($E$14="Parcial",CONCATENATE('EST 3'!$C$25,": ",'EST 3'!$P$25),IF($E$14="Total",CONCATENATE('EST 3'!$C$25,": ",'EST 3'!$Q$25),"Realizado:")) -> Realizado: 0 | I44: =IF($E$14="Parcial",CONCATENATE('EST 3'!$C$30,": ",'EST 3'!$P$30),IF($E$14="Total",CONCATENATE('EST 3'!$C$30,": ",'EST 3'!$Q$30),"Realizado:")) -> Realizado: 0 | K44: =IF($E$14="Parcial",CONCATENATE('EST 3'!$C$35,": ",'EST 3'!$P$35),IF($E$14="Total",CONCATENATE('EST 3'!$C$35,": ",'EST 3'!$Q$35),"Realizado:")) -> Realizado: 0
C46: =IF($E$14="Parcial",IFERROR('EST 3'!$P$15/'EST 3'!$P$14,""),IF($E$14="Total",IFERROR('EST 3'!$Q$15/'EST 3'!$Q$14,""),"")) -> 0.45 | E46: =IF($E$14="Parcial",IFERROR('EST 3'!$P$20/'EST 3'!$P$19,""),IF($E$14="Total",IFERROR('EST 3'!$Q$20/'EST 3'!$Q$19,""),"")) ->  | G46: =IF($E$14="Parcial",IFERROR('EST 3'!$P$25/'EST 3'!$P$24,""),IF($E$14="Total",IFERROR('EST 3'!$Q$25/'EST 3'!$Q$24,""),"")) ->  | I46: =IF($E$14="Parcial",IFERROR('EST 3'!$P$30/'EST 3'!$P$29,""),IF($E$14="Total",IFERROR('EST 3'!$Q$30/'EST 3'!$Q$29,""),"")) ->  | K46: =IF($E$14="Parcial",IFERROR('EST 3'!$P$35/'EST 3'!$P$34,""),IF($E$14="Total",IFERROR('EST 3'!$Q$35/'EST 3'!$Q$34,""),"")) -> 
C50: =DA!$K$24 -> Perspectiva de Aprendizagem
C53: ='EST 4'!$B$14 -> Aumentar: Know How da equipe | E53: ='EST 4'!$B$19 -> Aumentar: Satisfação interna | G53: ='EST 4'!$B$24 -> 0 | I53: ='EST 4'!$B$29 -> 0 | K53: ='EST 4'!$B$34 -> 0
C54: =IF($E$14="Parcial",CONCATENATE('EST 4'!$C$14,": ",'EST 4'!$P$14),IF($E$14="Total",CONCATENATE('EST 4'!$C$14,": ",'EST 4'!$Q$14),"Planejado:")) -> Planejado: 4500 | E54: =IF($E$14="Parcial",CONCATENATE('EST 4'!$C$19,": ",'EST 4'!$P$19),IF($E$14="Total",CONCATENATE('EST 4'!$C$19,": ",'EST 4'!$Q$19),"Planejado:")) -> Planejado: 10,8 | G54: =IF($E$14="Parcial",CONCATENATE('EST 4'!$C$24,": ",'EST 4'!$P$24),IF($E$14="Total",CONCATENATE('EST 4'!$C$24,": ",'EST 4'!$Q$24),"Planejado:")) -> Planejado: 0 | I54: =IF($E$14="Parcial",CONCATENATE('EST 4'!$C$29,": ",'EST 4'!$P$29),IF($E$14="Total",CONCATENATE('EST 4'!$C$29,": ",'EST 4'!$Q$29),"Planejado:")) -> Planejado: 0 | K54: =IF($E$14="Parcial",CONCATENATE('EST 4'!$C$34,": ",'EST 4'!$P$34),IF($E$14="Total",CONCATENATE('EST 4'!$C$34,": ",'EST 4'!$Q$34),"Planejado:")) -> Planejado: 0
C55: =IF($E$14="Parcial",CONCATENATE('EST 4'!$C$15,": ",'EST 4'!$P$15),IF($E$14="Total",CONCATENATE('EST 4'!$C$15,": ",'EST 4'!$Q$15),"Realizado:")) -> Realizado: 1350 | E55: =IF($E$14="Parcial",CONCATENATE('EST 4'!$C$20,": ",'EST 4'!$P$20),IF($E$14="Total",CONCATENATE('EST 4'!$C$20,": ",'EST 4'!$Q$20),"Realizado:")) -> Realizado: 2,69 | G55: =IF($E$14="Parcial",CONCATENATE('EST 4'!$C$25,": ",'EST 4'!$P$25),IF($E$14="Total",CONCATENATE('EST 4'!$C$25,": ",'EST 4'!$Q$25),"Realizado:")) -> Realizado: 0 | I55: =IF($E$14="Parcial",CONCATENATE('EST 4'!$C$30,": ",'EST 4'!$P$30),IF($E$14="Total",CONCATENATE('EST 4'!$C$30,": ",'EST 4'!$Q$30),"Realizado:")) -> Realizado: 0 | K55: =IF($E$14="Parcial",CONCATENATE('EST 4'!$C$35,": ",'EST 4'!$P$35),IF($E$14="Total",CONCATENATE('EST 4'!$C$35,": ",'EST 4'!$Q$35),"Realizado:")) -> Realizado: 0
C57: =IF($E$14="Parcial",IFERROR('EST 4'!$P$15/'EST 4'!$P$14,""),IF($E$14="Total",IFERROR('EST 4'!$Q$15/'EST 4'!$Q$14,""),"")) -> 0.3 | E57: =IF($E$14="Parcial",IFERROR('EST 4'!$P$20/'EST 4'!$P$19,""),IF($E$14="Total",IFERROR('EST 4'!$Q$20/'EST 4'!$Q$19,""),"")) -> 0.2490740741 | G57: =IF($E$14="Parcial",IFERROR('EST 4'!$P$25/'EST 4'!$P$24,""),IF($E$14="Total",IFERROR('EST 4'!$Q$25/'EST 4'!$Q$24,""),"")) ->  | I57: =IF($E$14="Parcial",IFERROR('EST 4'!$P$30/'EST 4'!$P$29,""),IF($E$14="Total",IFERROR('EST 4'!$Q$30/'EST 4'!$Q$29,""),"")) ->  | K57: =IF($E$14="Parcial",IFERROR('EST 4'!$P$35/'EST 4'!$P$34,""),IF($E$14="Total",IFERROR('EST 4'!$Q$35/'EST 4'!$Q$34,""),"")) -> 

Sheet Instruções

Sheet Parametros
A1: Fatores Internos | F1: Fatores Externos
L2: Pontuação | M2: Plano de Ação
A3: Critérios | B3: Pontuação | C3: Resultado | F3: Critérios | G3: Pontuação | H3: Resultado | K3: FORÇA | L3: =SUMIF(Int!E14:E33,">0") -> 15 | M3: 0
A4: Não atende-Insignificante | B4: 0 | C4: NEUTRO | F4: Desfavorável-Insignificante | G4: 0 | H4: NEUTRO | K4: OPORTUNIDADE | L4: =SUMIF(Int!AE14:AE33,">0") -> 8 | M4: 0
A5: Não atende-Importante | B5: -8 | C5: FRAQUEZA | F5: Neutro-Insignificante | G5: 0 | H5: NEUTRO | K5: FRAQUEZA | L5: =ABS(SUMIF(Int!E14:E33,"<0")) -> 0 | M5: 1
A6: Não atende-Muito importante | B6: -10 | C6: FRAQUEZA | F6: Favorável-Insignificante | G6: 0 | H6: NEUTRO | K6: AMEAÇA | L6: =ABS(SUMIF(Int!AE14:AE33,"<0")) -> 10 | M6: 0
A7: Atende razoavelmente-Insignificante | B7: -5 | C7: FRAQUEZA | F7: Desfavorável-Importante | G7: -8 | H7: AMEAÇA
A8: Atende razoavelmente-Importante | B8: 2 | C8: FORÇA | F8: Neutro-Importante | G8: -2 | H8: AMEAÇA
A9: Atende razoavelmente-Muito importante | B9: 5 | C9: FORÇA | F9: Favorável-Importante | G9: 8 | H9: OPORTUNIDADE
A10: Atende totalmente-Insignificante | B10: -10 | C10: FRAQUEZA | F10: Desfavorável-Muito Importante | G10: -10 | H10: AMEAÇA
A11: Atende totalmente-Importante | B11: 8 | C11: FORÇA | F11: Neutro-Muito Importante | G11: -4 | H11: AMEAÇA
A12: Atende totalmente-Muito importante | B12: 10 | C12: FORÇA | F12: Favorável-Muito Importante | G12: 10 | H12: OPORTUNIDADE
